Workbook

Sheet Indice
Q37: Versión 2018.01
Q38: Actualizada a enero 2018

Sheet Datos
B3: CONFIGURACIÓN DE LA PLANILLA
B10: DATOS DEL EMPLEADOR Y DEL TRABAJADOR
B12: PERÍODO FISCAL: | F12: 2018
B14: DATOS DEL TRABAJADOR
B15: Nombres: | F15: FLORENCIA FIORELLA
B16: Apellido: | F16: MATEI
B17: Legajo: | F17: 561
B18: CUIL: | F18: 27451112220
B19: Dato adicional (optativo):
B20: Zona geográfica | F20: Todo el país excepto zona patagónica
B23: DATOS DEL AGENTE DE RETENCIÓN
B24: CUIT:
B25: Denominación legal:
B28: FORMULARIO LIQUIDACIÓN DEL IMPUESTO A LAS GANANCIAS
B29: Apellido y nombres del firmante:
B30: Cargo:
B31: Fecha (desde): | F31: 2017-01-01
B32: Fecha (hasta): | F32: 2017-12-31
B33: Lugar de extensión del certificado:
B34: Fecha de extensión del certificado: | F34: 2018-12-31

Sheet Ingresos
B5: INGRESOS BRUTOS PAGADOS POR EL AGENTE DE RETENCIÓN
P6: Tratamiento en el impuesto
B7: Concepto ($) | C7: enero | D7: febrero | E7: marzo | F7: abril | G7: mayo | H7: junio | I7: julio | J7: agosto | K7: septiembre | L7: octubre | M7: noviembre | N7: diciembre | P7: G/E/NG | Q7: Prorrateo | R7: Remunerativo | S7: Base del SAC
B8: Sueldo bruto | C8: 50000 | D8: 50000 | E8: 50000 | F8: 53000 | G8: 53000 | H8: 54000 | I8: 54000 | J8: 54000 | K8: 54000 | L8: 54000 | M8: 56000 | N8: 56000 | P8: Gravado | Q8: No | R8: Sí | S8: Sí
B9: Horas extras (días inhábiles) | P9: Gravado | Q9: No | R9: Sí | S9: Sí
B10: Plus horas extras (días inhábiles) | P10: Exento | Q10: No | R10: Sí | S10: No
B11: Horas extras (días hábiles) | P11: Gravado | Q11: No | R11: Sí | S11: Sí
B12: SAC | H12: 27000 | N12: 28000 | P12: Gravado | Q12: Sí | R12: Sí | S12: No
B13: Plus Vacacional | P13: Gravado | Q13: Sí | R13: Sí | S13: Sí
B14: Plus Feriado | P14: Gravado | Q14: No | R14: Sí | S14: Sí
B15: Gratif. (rem.) | P15: Gravado | Q15: No | R15: Sí | S15: Sí
B16: Gratif. (no rem.) | P16: Gravado | Q16: No | R16: No | S16: No
B17: Licencias varias | P17: Gravado | Q17: No | R17: Sí | S17: Sí
B18: Benef. Soc. (no rem.) | P18: Gravado | Q18: No | R18: No | S18: No
B19: Indemnización art. 245 | P19: No gravado | Q19: No | R19: No | S19: No
B20: Preaviso | P20: Gravado | Q20: No | R20: Sí | S20: No
B21: SAC s/preaviso | P21: Gravado | Q21: No | R21: No | S21: No
B22: Vacaciones no gozadas | P22: Gravado | Q22: No | R22: No | S22: No
B23: SAC s/vacaciones no gozadas | P23: Gravado | Q23: No | R23: No | S23: No
B24: Integración mes de despido | P24: Gravado | Q24: No | R24: No | S24: No
B25: SAC s/integración mes de despido | P25: Gravado | Q25: No | R25: No | S25: No
B26: Gratificación por cese | P26: No gravado | Q26: No | R26: No | S26: No
B27: Total | C27: =SUM(C8:C26) -> 50000 | D27: 50000 | E27: 50000 | F27: 53000 | G27: 53000 | H27: 81000 | I27: 54000 | J27: 54000 | K27: 54000 | L27: 54000 | M27: 56000 | N27: 84000
B28: SAC neto estimado (automático) | C28: =Auxiliares!D192 -> 3458.333333 | D28: =Auxiliares!E192 -> 3458.333333 | E28: =Auxiliares!F192 -> 3458.333333 | F28: =Auxiliares!G192 -> 3665.833333 | G28: =Auxiliares!H192 -> 3665.833333 | H28: =Auxiliares!I192 -> 3735 | I28: =Auxiliares!J192 -> 3735 | J28: =Auxiliares!K192 -> 3735 | K28: =Auxiliares!L192 -> 3735 | L28: =Auxiliares!M192 -> 3735 | M28: =Auxiliares!N192 -> 3873.333333 | N28: =Auxiliares!O192 -> 3873.333333
B29: SAC neto estimado (automáticol)
B30: Horas extras netas (automático) | C30: =+Auxiliares!D222 -> 0 | D30: =+Auxiliares!E222 -> 0 | E30: =+Auxiliares!F222 -> 0 | F30: =+Auxiliares!G222 -> 0 | G30: =+Auxiliares!H222 -> 0 | H30: =+Auxiliares!I222 -> 0 | I30: =+Auxiliares!J222 -> 0 | J30: =+Auxiliares!K222 -> 0 | K30: =+Auxiliares!L222 -> 0 | L30: =+Auxiliares!M222 -> 0 | M30: =+Auxiliares!N222 -> 0 | N30: =+Auxiliares!O222 -> 0
B31: Horas extras netas (para art. 90)
B33: PLURIEMPLEO | P33: Tratamiento en el impuesto
B34: Concepto | C34: enero | D34: febrero | E34: marzo | F34: abril | G34: mayo | H34: junio | I34: julio | J34: agosto | K34: septiembre | L34: octubre | M34: noviembre | N34: diciembre | P34: G/E/NG | Q34: Prorrateo | R34: Remunerativo | S34: Base del SAC
B35: Sueldo bruto | P35: Gravado | Q35: No | R35: Sí | S35: Sí
B36: Horas extras (días inhábiles) | P36: Gravado | Q36: No | R36: Sí | S36: Sí
B37: Plus horas extras (días inhábiles) | P37: Exento | Q37: No | R37: Sí | S37: Sí
B38: Horas extras (días hábiles) | P38: Gravado | Q38: Sí | R38: Sí | S38: Sí
B39: SAC | P39: Gravado | Q39: Sí | R39: Sí | S39: No
P40: Gravado | Q40: No | R40: Sí | S40: Sí
P41: Gravado | Q41: No | R41: Sí | S41: Sí
P42: Gravado | Q42: No | R42: Sí | S42: Sí
P43: Gravado | Q43: No | R43: Sí | S43: Sí
P44: Gravado | Q44: No | R44: Sí | S44: Sí
P45: Gravado | Q45: No | R45: Sí | S45: Sí
B46: Total | C46: =SUM(C35:C45) -> 0 | D46: =SUM(D35:D45) -> 0 | E46: 0 | F46: 0 | G46: 0 | H46: 0 | I46: 0 | J46: 0 | K46: 0 | L46: 0 | M46: 0 | N46: 0
B47: SAC neto estimado (automático) | C47: =Auxiliares!D197 -> 0 | D47: =Auxiliares!E197 -> 0 | E47: =Auxiliares!F197 -> 0 | F47: =Auxiliares!G197 -> 0 | G47: =Auxiliares!H197 -> 0 | H47: =Auxiliares!I197 -> 0 | I47: =Auxiliares!J197 -> 0 | J47: =Auxiliares!K197 -> 0 | K47: =Auxiliares!L197 -> 0 | L47: =Auxiliares!M197 -> 0 | M47: =Auxiliares!N197 -> 0 | N47: =Auxiliares!O197 -> 0
B48: SAC neto estimado (manual)
B49: Horas extras netas (para art. 90) | C49: =+Auxiliares!D230 -> 0 | D49: =+Auxiliares!E230 -> 0 | E49: =+Auxiliares!F230 -> 0 | F49: =+Auxiliares!G230 -> 0 | G49: =+Auxiliares!H230 -> 0 | H49: =+Auxiliares!I230 -> 0 | I49: =+Auxiliares!J230 -> 0 | J49: =+Auxiliares!K230 -> 0 | K49: =+Auxiliares!L230 -> 0 | L49: =+Auxiliares!M230 -> 0 | M49: =+Auxiliares!N230 -> 0 | N49: =+Auxiliares!O230 -> 0
B50: Horas extras netas (para art. 90)

Sheet DedGrales
B3: DEDUCCIONES GENERALES
C11: Concepto | D11: Enero | E11: Febrero | F11: Marzo | G11: Abril | H11: Mayo | I11: Junio | J11: Julio | K11: Agosto | L11: Septiembre | M11: Octubre | N11: Noviembre | O11: Diciembre
C12: =Tablas!B8 -> Jubilación | D12: 0 | E12: 0 | F12: 0 | G12: 0 | H12: 0 | I12: 0 | J12: 0 | K12: 0 | L12: 0 | M12: 0 | N12: 0 | O12: 0
C13: =Tablas!B9 -> Ley 19032 | D13: 0 | E13: 0 | F13: 0 | G13: 0 | H13: 0 | I13: 0 | J13: 0 | K13: 0 | L13: 0 | M13: 0 | N13: 0 | O13: 0
C14: =Tablas!B10 -> Obra social | D14: 0 | E14: 0 | F14: 0 | G14: 0 | H14: 0 | I14: 0 | J14: 0 | K14: 0 | L14: 0 | M14: 0 | N14: 0 | O14: 0
C15: =Tablas!B11 -> Sindicato | D15: 0 | E15: 0 | F15: 0 | G15: 0 | H15: 0 | I15: 0 | J15: 0 | K15: 0 | L15: 0 | M15: 0 | N15: 0 | O15: 0
C16: =Tablas!B12 -> 0 | D16: 0 | E16: 0 | F16: 0 | G16: 0 | H16: 0 | I16: 0 | J16: 0 | K16: 0 | L16: 0 | M16: 0 | N16: 0 | O16: 0
C17: =Tablas!B13 -> 0 | D17: 0 | E17: 0 | F17: 0 | G17: 0 | H17: 0 | I17: 0 | J17: 0 | K17: 0 | L17: 0 | M17: 0 | N17: 0 | O17: 0
C18: Ded. al SAC Prorrateado | D18: 0 | E18: 0 | F18: 0 | G18: 0 | H18: 0 | I18: 0 | J18: 0 | K18: 0 | L18: 0 | M18: 0 | N18: 0 | O18: 0
C20: Pluriempleo
C22: Concepto | D22: Enero | E22: Febrero | F22: Marzo | G22: Abril | H22: Mayo | I22: Junio | J22: Julio | K22: Agosto | L22: Septiembre | M22: Octubre | N22: Noviembre | O22: Diciembre
C23: =Tablas!B8 -> Jubilación | D23: 0 | E23: 0 | F23: 0 | G23: 0 | H23: 0 | I23: 0 | J23: 0 | K23: 0 | L23: 0 | M23: 0 | N23: 0 | O23: 0
C24: =Tablas!B9 -> Ley 19032 | D24: 0 | E24: 0 | F24: 0 | G24: 0 | H24: 0 | I24: 0 | J24: 0 | K24: 0 | L24: 0 | M24: 0 | N24: 0 | O24: 0
C25: =Tablas!B10 -> Obra social | D25: 0 | E25: 0 | F25: 0 | G25: 0 | H25: 0 | I25: 0 | J25: 0 | K25: 0 | L25: 0 | M25: 0 | N25: 0 | O25: 0
C26: =Tablas!B11 -> Sindicato | D26: 0 | E26: 0 | F26: 0 | G26: 0 | H26: 0 | I26: 0 | J26: 0 | K26: 0 | L26: 0 | M26: 0 | N26: 0 | O26: 0
C27: =Tablas!B12 -> 0 | D27: 0 | E27: 0 | F27: 0 | G27: 0 | H27: 0 | I27: 0 | J27: 0 | K27: 0 | L27: 0 | M27: 0 | N27: 0 | O27: 0
C28: =Tablas!B13 -> 0 | D28: 0 | E28: 0 | F28: 0 | G28: 0 | H28: 0 | I28: 0 | J28: 0 | K28: 0 | L28: 0 | M28: 0 | N28: 0 | O28: 0
C29: Ded. al SAC Prorrateado | D29: 0 | E29: 0 | F29: 0 | G29: 0 | H29: 0 | I29: 0 | J29: 0 | K29: 0 | L29: 0 | M29: 0 | N29: 0 | O29: 0
C34: Concepto | D34: Enero | E34: Febrero | F34: Marzo | G34: Abril | H34: Mayo | I34: Junio | J34: Julio | K34: Agosto | L34: Septiembre | M34: Octubre | N34: Noviembre | O34: Diciembre
C35: Importe | D35: 0 | E35: 0 | F35: 0 | G35: 0 | H35: 0 | I35: 0 | J35: 0 | K35: 0 | L35: 0 | M35: 0 | N35: 0 | O35: 0
C36: Total acumulado | D36: =+D35 -> 0 | E36: =+D36+E35 -> 0 | F36: =+E36+F35 -> 0 | G36: 0 | H36: 0 | I36: 0 | J36: 0 | K36: 0 | L36: 0 | M36: 0 | N36: 0 | O36: 0
C37: Mes en que se informa | D37: 1 | E37: 2 | F37: 3 | G37: 4 | H37: 5 | I37: 6 | J37: 7 | K37: 8 | L37: 9 | M37: 10 | N37: 11 | O37: 12
C42: Concepto | D42: Enero | E42: Febrero | F42: Marzo | G42: Abril | H42: Mayo | I42: Junio | J42: Julio | K42: Agosto | L42: Septiembre | M42: Octubre | N42: Noviembre | O42: Diciembre
C43: Importe | D43: 0 | E43: 0 | F43: 0 | G43: 0 | H43: 0 | I43: 0 | J43: 0 | K43: 0 | L43: 0 | M43: 0 | N43: 0 | O43: 0
C44: Total acumulado | D44: =+D43 -> 0 | E44: =+D44+E43 -> 0 | F44: =+E44+F43 -> 0 | G44: 0 | H44: 0 | I44: 0 | J44: 0 | K44: 0 | L44: 0 | M44: 0 | N44: 0 | O44: 0
C45: Mes en que se informa | D45: 1 | E45: 2 | F45: 3 | G45: 4 | H45: 5 | I45: 6 | J45: 7 | K45: 8 | L45: 9 | M45: 10 | N45: 11 | O45: 12
C50: Concepto | D50: Enero | E50: Febrero | F50: Marzo | G50: Abril | H50: Mayo | I50: Junio | J50: Julio | K50: Agosto | L50: Septiembre | M50: Octubre | N50: Noviembre | O50: Diciembre
C51: Importe | D51: 0 | E51: 0 | F51: 0 | G51: 0 | H51: 0 | I51: 0 | J51: 0 | K51: 0 | L51: 0 | M51: 0 | N51: 0 | O51: 0
C52: Total acumulado | D52: =+D51 -> 0 | E52: =+D52+E51 -> 0 | F52: =+E52+F51 -> 0 | G52: 0 | H52: 0 | I52: 0 | J52: 0 | K52: 0 | L52: 0 | M52: 0 | N52: 0 | O52: 0
C53: Mes en que se informa | D53: 1 | E53: 2 | F53: 3 | G53: 4 | H53: 5 | I53: 6 | J53: 7 | K53: 8 | L53: 9 | M53: 10 | N53: 11 | O53: 12
C58: Concepto | D58: Enero | E58: Febrero | F58: Marzo | G58: Abril | H58: Mayo | I58: Junio | J58: Julio | K58: Agosto | L58: Septiembre | M58: Octubre | N58: Noviembre | O58: Diciembre
C59: Importe | D59: 0 | E59: 0 | F59: 0 | G59: 0 | H59: 0 | I59: 0 | J59: 0 | K59: 0 | L59: 0 | M59: 0 | N59: 0 | O59: 0
C60: Total acumulado | D60: =+D59 -> 0 | E60: =+D60+E59 -> 0 | F60: =+E60+F59 -> 0 | G60: 0 | H60: 0 | I60: 0 | J60: 0 | K60: 0 | L60: 0 | M60: 0 | N60: 0 | O60: 0
C61: Mes en que se informa | D61: 1 | E61: 2 | F61: 3 | G61: 4 | H61: 5 | I61: 6 | J61: 7 | K61: 8 | L61: 9 | M61: 10 | N61: 11 | O61: 12
C67: Concepto | D67: Enero | E67: Febrero | F67: Marzo | G67: Abril | H67: Mayo | I67: Junio | J67: Julio | K67: Agosto | L67: Septiembre | M67: Octubre | N67: Noviembre | O67: Diciembre
C68: Importe | D68: 4500 | E68: 4500 | F68: 4500 | G68: 4500 | H68: 4500 | I68: 4500 | J68: 5500 | K68: 5500 | L68: 5500 | M68: 5500 | N68: 5500 | O68: 5500
C69: Total acumulado | D69: =+D68 -> 4500 | E69: =+D69+E68 -> 9000 | F69: =+E69+F68 -> 13500 | G69: 18000 | H69: 22500 | I69: 27000 | J69: 32500 | K69: 38000 | L69: 43500 | M69: 49000 | N69: 54500 | O69: 60000
C70: Mes en que se informa | D70: 1 | E70: 2 | F70: 3 | G70: 4 | H70: 5 | I70: 6 | J70: 7 | K70: 8 | L70: 9 | M70: 10 | N70: 11 | O70: 12
C76: Concepto | D76: Enero | E76: Febrero | F76: Marzo | G76: Abril | H76: Mayo | I76: Junio | J76: Julio | K76: Agosto | L76: Septiembre | M76: Octubre | N76: Noviembre | O76: Diciembre
C77: Importe | F77: 0 | G77: 0 | H77: 0 | I77: 0 | J77: 0 | K77: 0 | L77: 0 | M77: 0 | N77: 0 | O77: 0
C78: Total acumulado | D78: =+D77 -> 0 | E78: =+E77+DedGrales!$D78 -> 0 | F78: =+DedGrales!$E78+F77 -> 0 | G78: =+DedGrales!$F78+G77 -> 0 | H78: =+DedGrales!$G78+H77 -> 0 | I78: =+DedGrales!$H78+I77 -> 0 | J78: =+DedGrales!$I78+J77 -> 0 | K78: =+DedGrales!$J78+K77 -> 0 | L78: =+DedGrales!$K78+L77 -> 0 | M78: =+DedGrales!$L78+M77 -> 0 | N78: =+DedGrales!$M78+N77 -> 0 | O78: =+DedGrales!$N78+O77 -> 0
C79: Mes en que se informa | D79: 1 | E79: 2 | F79: 3 | G79: 4 | H79: 5 | I79: 6 | J79: 7 | K79: 8 | L79: 9 | M79: 10 | N79: 11 | O79: 12
C85: Cantidad de sepelios | D85: 1
C87: Concepto | D87: Enero | E87: Febrero | F87: Marzo | G87: Abril | H87: Mayo | I87: Junio | J87: Julio | K87: Agosto | L87: Septiembre | M87: Octubre | N87: Noviembre | O87: Diciembre
C88: Importe | D88: 0 | E88: 0 | F88: 0 | G88: 0 | H88: 0 | I88: 0 | J88: 0 | K88: 0 | L88: 0 | M88: 0 | N88: 0 | O88: 0
C89: Total acumulado | D89: =+D88 -> 0 | E89: =+D89+E88 -> 0 | F89: =+E89+F88 -> 0 | G89: =+F89+G88 -> 0 | H89: 0 | I89: 0 | J89: 0 | K89: 0 | L89: 0 | M89: 0 | N89: 0 | O89: 0
C90: Mes en que se informa | D90: 1 | E90: 2 | F90: 3 | G90: 4 | H90: 5 | I90: 6 | J90: 7 | K90: 8 | L90: 9 | M90: 10 | N90: 11 | O90: 12
C95: Concepto | D95: Enero | E95: Febrero | F95: Marzo | G95: Abril | H95: Mayo | I95: Junio | J95: Julio | K95: Agosto | L95: Septiembre | M95: Octubre | N95: Noviembre | O95: Diciembre
C96: Importe | F96: 0 | G96: 0 | H96: 0 | I96: 0 | J96: 0 | K96: 0 | L96: 0 | M96: 0 | N96: 0 | O96: 0
C97: Total acumulado | D97: =+D96 -> 0 | E97: =+D97+E96 -> 0 | F97: 0 | G97: 0 | H97: 0 | I97: 0 | J97: 0 | K97: 0 | L97: 0 | M97: 0 | N97: 0 | O97: 0
C98: Mes en que se informa | D98: 1 | E98: 2 | F98: 3 | G98: 4 | H98: 5 | I98: 6 | J98: 7 | K98: 8 | L98: 9 | M98: 10 | N98: 11 | O98: 12
C104: Concepto | D104: Enero | E104: Febrero | F104: Marzo | G104: Abril | H104: Mayo | I104: Junio | J104: Julio | K104: Agosto | L104: Septiembre | M104: Octubre | N104: Noviembre | O104: Diciembre
C105: Importe | F105: 0 | G105: 0 | H105: 0 | I105: 0 | J105: 0 | K105: 0 | L105: 0 | M105: 0 | N105: 0 | O105: 0
C106: Total acumulado | D106: =+D105 -> 0 | E106: =+D106+E105 -> 0 | F106: =+E106+F105 -> 0 | G106: 0 | H106: 0 | I106: 0 | J106: 0 | K106: 0 | L106: 0 | M106: 0 | N106: 0 | O106: 0
C107: Mes en que se informa | D107: 1 | E107: 2 | F107: 3 | G107: 4 | H107: 5 | I107: 6 | J107: 7 | K107: 8 | L107: 9 | M107: 10 | N107: 11 | O107: 12
C113: Concepto | D113: Enero | E113: Febrero | F113: Marzo | G113: Abril | H113: Mayo | I113: Junio | J113: Julio | K113: Agosto | L113: Septiembre | M113: Octubre | N113: Noviembre | O113: Diciembre
C114: Importe | F114: 0 | G114: 0 | H114: 0 | I114: 0 | J114: 0 | K114: 0 | L114: 0 | M114: 0 | N114: 0 | O114: 0
C115: Total acumulado | D115: =+D114 -> 0 | E115: =+D115+E114 -> 0 | F115: 0 | G115: 0 | H115: 0 | I115: 0 | J115: 0 | K115: 0 | L115: 0 | M115: 0 | N115: 0 | O115: 0
C116: Mes en que se informa | D116: 1 | E116: 2 | F116: 3 | G116: 4 | H116: 5 | I116: 6 | J116: 7 | K116: 8 | L116: 9 | M116: 10 | N116: 11 | O116: 12
C122: Concepto | D122: Enero | E122: Febrero | F122: Marzo | G122: Abril | H122: Mayo | I122: Junio | J122: Julio | K122: Agosto | L122: Septiembre | M122: Octubre | N122: Noviembre | O122: Diciembre
C123: Importe | D123: 0 | E123: 0 | F123: 0 | G123: 0 | H123: 0 | I123: 0 | J123: 0 | K123: 0 | L123: 0 | M123: 0 | N123: 0 | O123: 0
C124: Total acumulado | D124: =+D123 -> 0 | E124: =+D124+E123 -> 0 | F124: =+E124+F123 -> 0 | G124: 0 | H124: 0 | I124: 0 | J124: 0 | K124: 0 | L124: 0 | M124: 0 | N124: 0 | O124: 0
C125: Mes en que se informa | D125: 1 | E125: 2 | F125: 3 | G125: 4 | H125: 5 | I125: 6 | J125: 7 | K125: 8 | L125: 9 | M125: 10 | N125: 11 | O125: 12
C130: Concepto | D130: Enero | E130: Febrero | F130: Marzo | G130: Abril | H130: Mayo | I130: Junio | J130: Julio | K130: Agosto | L130: Septiembre | M130: Octubre | N130: Noviembre | O130: Diciembre
C131: Importe | E131: 0 | F131: 0 | G131: 0 | H131: 0 | I131: 0 | J131: 0 | K131: 0 | L131: 0 | M131: 0 | N131: 0 | O131: 0
C132: Total acumulado | D132: =+D131 -> 0 | E132: =+D132+E131 -> 0 | F132: 0 | G132: 0 | H132: 0 | I132: 0 | J132: 0 | K132: 0 | L132: 0 | M132: 0 | N132: 0 | O132: 0
C133: Mes en que se informa | D133: 1 | E133: 2 | F133: 3 | G133: 4 | H133: 5 | I133: 6 | J133: 7 | K133: 8 | L133: 9 | M133: 10 | N133: 11 | O133: 12
C138: Concepto | D138: Enero | E138: Febrero | F138: Marzo | G138: Abril | H138: Mayo | I138: Junio | J138: Julio | K138: Agosto | L138: Septiembre | M138: Octubre | N138: Noviembre | O138: Diciembre
C139: Importe
C140: Total acumulado | D140: =+D139 -> 0 | E140: =+D140+E139 -> 0 | F140: =+E140+F139 -> 0 | G140: =+F140+G139 -> 0 | H140: =+G140+H139 -> 0 | I140: =+H140+I139 -> 0 | J140: =+I140+J139 -> 0 | K140: =+J140+K139 -> 0 | L140: =+K140+L139 -> 0 | M140: =+L140+M139 -> 0 | N140: =+M140+N139 -> 0 | O140: =+N140+O139 -> 0
C141: Mes en que se informa | D141: 1 | E141: 2 | F141: 3 | G141: 4 | H141: 5 | I141: 6 | J141: 7 | K141: 8 | L141: 9 | M141: 10 | N141: 11 | O141: 12
C147: Concepto | D147: Enero | E147: Febrero | F147: Marzo | G147: Abril | H147: Mayo | I147: Junio | J147: Julio | K147: Agosto | L147: Septiembre | M147: Octubre | N147: Noviembre | O147: Diciembre
C148: Importe
C149: Total acumulado | D149: =+D148 -> 0 | E149: =+D149+E148 -> 0 | F149: =+E149+F148 -> 0 | G149: =+F149+G148 -> 0 | H149: =+G149+H148 -> 0 | I149: =+H149+I148 -> 0 | J149: =+I149+J148 -> 0 | K149: =+J149+K148 -> 0 | L149: =+K149+L148 -> 0 | M149: =+L149+M148 -> 0 | N149: =+M149+N148 -> 0 | O149: =+N149+O148 -> 0
C150: Mes en que se informa | D150: 1 | E150: 2 | F150: 3 | G150: 4 | H150: 5 | I150: 6 | J150: 7 | K150: 8 | L150: 9 | M150: 10 | N150: 11 | O150: 12

Sheet Check
A1: Último día del mes
A2: Seguro de vida
A3: Gastos de sepelio
A4: Crédito hipotecario
A5: PCP
A6: Cuota médico asistencial
A7: Donaciones
A8: Retenciones automáticas | B8: Ok
A9: Aportes a fondos de jubilaciones
A10: Alquiler de casa habitación | B10: Ok
A11: Viáticos
A12: Descuentos obligatorios
A13: SGR
A14: Cajas complementarias de previsión
A15: Honorarios por asistencia sanitaria, médica
A16: Viajantes
A17: 35% de límite anual

Sheet DedPersonales
B3: DEDUCCIONES PERSONALES
B5: Cónyuge
B6: ="Sean residentes en el país, estén a cargo del contribuyente y no tengan en el año ingresos netos superiores a pesos "&Tablas!O30&", cualquiera sea su origen y estén o no sujetas al impuesto" -> Sean residentes en el país, estén a cargo del contribuyente y no tengan en el año ingresos netos superiores a pesos 66917,91, cualquiera sea su origen y estén o no sujetas al impuesto
C7: Nombre y apellido | D7: CUIL | E7: Mes de alta | F7: Mes de baja | G7: Mes en que se informa
I8: =IF(AND(E8="",F8="",G8=""),"",IF(AND(OR(E8<>"",F8<>""),G8=""),"Recuerde completar el campo 'Mes en que se informa' para computar las deducciones","")) -> 
B10: Hijos
B11: ="Hijo, hija, hijastro o hijastra menor de dieciocho (18) años o incapacitado para el trabajo; residentes en el país, estén a cargo del contribuyente y no tengan en el año ingresos netos superiores a "&Tablas!O30&", cualquiera sea su origen y estén o no sujetas al impuesto" -> Hijo, hija, hijastro o hijastra menor de dieciocho (18) años o incapacitado para el trabajo; residentes en el país, estén a cargo del contribuyente y no tengan en el año ingresos netos superiores a 66917,91, cualquiera sea su origen y estén o no sujetas al impuesto
C12: Nombre y apellido | D12: CUIL | E12: Mes de alta | F12: Mes de baja | G12: Mes en que se informa | X12: 1 | Y12: 2 | Z12: 3 | AA12: 4 | AB12: =+AA12+1 -> 5 | AC12: =+AB12+1 -> 6 | AD12: 7 | AE12: 8 | AF12: 9 | AG12: 10 | AH12: 11 | AI12: =+AH12+1 -> 12
C13: hijo 7 años | E13: 1 | F13: 12 | G13: 1 | I13: =IF(AND(E13="",F13="",G13=""),"",IF(AND(OR(E13<>"",F13<>""),G13=""),"Recuerde completar el campo 'Mes en que se informa' para computar las deducciones","")) -> 
I14: =IF(AND(E14="",F14="",G14=""),"",IF(AND(OR(E14<>"",F14<>""),G14=""),"Recuerde completar el campo 'Mes en que se informa' para computar las deducciones","")) -> 

Sheet PagosACuenta
B4: PERCEPCIONES
B6: Concepto | C6: enero | D6: febrero | E6: marzo | F6: abril | G6: mayo | H6: junio | I6: julio | J6: agosto | K6: septiembre | L6: octubre | M6: noviembre | N6: diciembre | O6: anual
B7: Importe
B8: Acumulado | C8: =+C7 -> 0 | D8: =+D7+C8 -> 0 | E8: =+E7+D8 -> 0 | F8: 0 | G8: 0 | H8: 0 | I8: 0 | J8: 0 | K8: 0 | L8: 0 | M8: 0 | N8: 0 | O8: 0
B11: IMPORTE EFECTIVAMENTE RETENIDO/DEVUELTO (MENSUAL)
B13: Concepto | C13: enero | D13: febrero | E13: marzo | F13: abril | G13: mayo | H13: junio | I13: julio | J13: agosto | K13: septiembre | L13: octubre | M13: noviembre | N13: diciembre | O13: anual
B14: Retenciones
B15: Devoluciones
B16: Acumulado | C16: =+C14-C15 -> 0 | D16: =+D14-D15+C16 -> 0 | E16: =+E14-E15+D16 -> 0 | F16: 0 | G16: 0 | H16: 0 | I16: 0 | J16: 0 | K16: 0 | L16: 0 | M16: 0 | N16: 0 | O16: 0

Sheet Auxiliares
C3: No
C5: Mes | D5: 2017-01-01 | E5: 2017-02-01 | F5: 2017-03-01 | G5: 2017-04-01 | H5: 2017-05-01 | I5: 2017-06-01 | J5: 2017-07-01 | K5: 2017-08-01 | L5: 2017-09-01 | M5: 2017-10-01 | N5: 2017-11-01 | O5: 2017-12-01
C7: Concepto | D7: 2017-01-01 | E7: 2017-02-01 | F7: 2017-03-01 | G7: 2017-04-01 | H7: 2017-05-01 | I7: 2017-06-01 | J7: 2017-07-01 | K7: 2017-08-01 | L7: 2017-09-01 | M7: 2017-10-01 | N7: 2017-11-01 | O7: 2017-12-01 | P7: Anual
C8: Gravado - SAC
C9: Sueldo Rem. (no prorrateo) | D9: =SUMIFS(Ingresos!C$8:C$26,Ingresos!$P$8:$P$26,"Gravado",Ingresos!$R$8:$R$26,"Sí",Ingresos!$Q$8:$Q$26,"No")+SUMIFS(Ingresos!C$35:C$45,Ingresos!$P$35:$P$45,"Gravado",Ingresos!$R$35:$R$45,"Sí",Ingresos!$Q$35:$Q$45,"No") -> 50000 | E9: =SUMIFS(Ingresos!D$8:D$26,Ingresos!$P$8:$P$26,"Gravado",Ingresos!$R$8:$R$26,"Sí",Ingresos!$Q$8:$Q$26,"No")+SUMIFS(Ingresos!D$35:D$45,Ingresos!$P$35:$P$45,"Gravado",Ingresos!$R$35:$R$45,"Sí",Ingresos!$Q$35:$Q$45,"No") -> 50000 | F9: =SUMIFS(Ingresos!E$8:E$26,Ingresos!$P$8:$P$26,"Gravado",Ingresos!$R$8:$R$26,"Sí",Ingresos!$Q$8:$Q$26,"No")+SUMIFS(Ingresos!E$35:E$45,Ingresos!$P$35:$P$45,"Gravado",Ingresos!$R$35:$R$45,"Sí",Ingresos!$Q$35:$Q$45,"No") -> 50000 | G9: =SUMIFS(Ingresos!F$8:F$26,Ingresos!$P$8:$P$26,"Gravado",Ingresos!$R$8:$R$26,"Sí",Ingresos!$Q$8:$Q$26,"No")+SUMIFS(Ingresos!F$35:F$45,Ingresos!$P$35:$P$45,"Gravado",Ingresos!$R$35:$R$45,"Sí",Ingresos!$Q$35:$Q$45,"No") -> 53000 | H9: =SUMIFS(Ingresos!G$8:G$26,Ingresos!$P$8:$P$26,"Gravado",Ingresos!$R$8:$R$26,"Sí",Ingresos!$Q$8:$Q$26,"No")+SUMIFS(Ingresos!G$35:G$45,Ingresos!$P$35:$P$45,"Gravado",Ingresos!$R$35:$R$45,"Sí",Ingresos!$Q$35:$Q$45,"No") -> 53000 | I9: =SUMIFS(Ingresos!H$8:H$26,Ingresos!$P$8:$P$26,"Gravado",Ingresos!$R$8:$R$26,"Sí",Ingresos!$Q$8:$Q$26,"No")+SUMIFS(Ingresos!H$35:H$45,Ingresos!$P$35:$P$45,"Gravado",Ingresos!$R$35:$R$45,"Sí",Ingresos!$Q$35:$Q$45,"No") -> 54000 | J9: =SUMIFS(Ingresos!I$8:I$26,Ingresos!$P$8:$P$26,"Gravado",Ingresos!$R$8:$R$26,"Sí",Ingresos!$Q$8:$Q$26,"No")+SUMIFS(Ingresos!I$35:I$45,Ingresos!$P$35:$P$45,"Gravado",Ingresos!$R$35:$R$45,"Sí",Ingresos!$Q$35:$Q$45,"No") -> 54000 | K9: =SUMIFS(Ingresos!J$8:J$26,Ingresos!$P$8:$P$26,"Gravado",Ingresos!$R$8:$R$26,"Sí",Ingresos!$Q$8:$Q$26,"No")+SUMIFS(Ingresos!J$35:J$45,Ingresos!$P$35:$P$45,"Gravado",Ingresos!$R$35:$R$45,"Sí",Ingresos!$Q$35:$Q$45,"No") -> 54000 | L9: =SUMIFS(Ingresos!K$8:K$26,Ingresos!$P$8:$P$26,"Gravado",Ingresos!$R$8:$R$26,"Sí",Ingresos!$Q$8:$Q$26,"No")+SUMIFS(Ingresos!K$35:K$45,Ingresos!$P$35:$P$45,"Gravado",Ingresos!$R$35:$R$45,"Sí",Ingresos!$Q$35:$Q$45,"No") -> 54000 | M9: =SUMIFS(Ingresos!L$8:L$26,Ingresos!$P$8:$P$26,"Gravado",Ingresos!$R$8:$R$26,"Sí",Ingresos!$Q$8:$Q$26,"No")+SUMIFS(Ingresos!L$35:L$45,Ingresos!$P$35:$P$45,"Gravado",Ingresos!$R$35:$R$45,"Sí",Ingresos!$Q$35:$Q$45,"No") -> 54000 | N9: =SUMIFS(Ingresos!M$8:M$26,Ingresos!$P$8:$P$26,"Gravado",Ingresos!$R$8:$R$26,"Sí",Ingresos!$Q$8:$Q$26,"No")+SUMIFS(Ingresos!M$35:M$45,Ingresos!$P$35:$P$45,"Gravado",Ingresos!$R$35:$R$45,"Sí",Ingresos!$Q$35:$Q$45,"No") -> 56000 | O9: =SUMIFS(Ingresos!N$8:N$26,Ingresos!$P$8:$P$26,"Gravado",Ingresos!$R$8:$R$26,"Sí",Ingresos!$Q$8:$Q$26,"No")+SUMIFS(Ingresos!N$35:N$45,Ingresos!$P$35:$P$45,"Gravado",Ingresos!$R$35:$R$45,"Sí",Ingresos!$Q$35:$Q$45,"No") -> 56000 | P9: =SUM(D9:O9) -> 638000
C10: Sueldo Rem. (prorrateo) | D10: =SUMIFS(Ingresos!C$8:C$26,Ingresos!$P$8:$P$26,"Gravado",Ingresos!$R$8:$R$26,"Sí",Ingresos!$Q$8:$Q$26,"Sí")+SUMIFS(Ingresos!C$35:C$45,Ingresos!$P$35:$P$45,"Gravado",Ingresos!$R$35:$R$45,"Sí",Ingresos!$Q$35:$Q$45,"Sí")-Ingresos!C12-Ingresos!C39 -> 0 | E10: =SUMIFS(Ingresos!D$8:D$26,Ingresos!$P$8:$P$26,"Gravado",Ingresos!$R$8:$R$26,"Sí",Ingresos!$Q$8:$Q$26,"Sí")+SUMIFS(Ingresos!D$35:D$45,Ingresos!$P$35:$P$45,"Gravado",Ingresos!$R$35:$R$45,"Sí",Ingresos!$Q$35:$Q$45,"Sí")-Ingresos!D12-Ingresos!D39 -> 0 | F10: =SUMIFS(Ingresos!E$8:E$26,Ingresos!$P$8:$P$26,"Gravado",Ingresos!$R$8:$R$26,"Sí",Ingresos!$Q$8:$Q$26,"Sí")+SUMIFS(Ingresos!E$35:E$45,Ingresos!$P$35:$P$45,"Gravado",Ingresos!$R$35:$R$45,"Sí",Ingresos!$Q$35:$Q$45,"Sí")-Ingresos!E12-Ingresos!E39 -> 0 | G10: =SUMIFS(Ingresos!F$8:F$26,Ingresos!$P$8:$P$26,"Gravado",Ingresos!$R$8:$R$26,"Sí",Ingresos!$Q$8:$Q$26,"Sí")+SUMIFS(Ingresos!F$35:F$45,Ingresos!$P$35:$P$45,"Gravado",Ingresos!$R$35:$R$45,"Sí",Ingresos!$Q$35:$Q$45,"Sí")-Ingresos!F12-Ingresos!F39 -> 0 | H10: =SUMIFS(Ingresos!G$8:G$26,Ingresos!$P$8:$P$26,"Gravado",Ingresos!$R$8:$R$26,"Sí",Ingresos!$Q$8:$Q$26,"Sí")+SUMIFS(Ingresos!G$35:G$45,Ingresos!$P$35:$P$45,"Gravado",Ingresos!$R$35:$R$45,"Sí",Ingresos!$Q$35:$Q$45,"Sí")-Ingresos!G12-Ingresos!G39 -> 0 | I10: =SUMIFS(Ingresos!H$8:H$26,Ingresos!$P$8:$P$26,"Gravado",Ingresos!$R$8:$R$26,"Sí",Ingresos!$Q$8:$Q$26,"Sí")+SUMIFS(Ingresos!H$35:H$45,Ingresos!$P$35:$P$45,"Gravado",Ingresos!$R$35:$R$45,"Sí",Ingresos!$Q$35:$Q$45,"Sí")-Ingresos!H12-Ingresos!H39 -> 0 | J10: =SUMIFS(Ingresos!I$8:I$26,Ingresos!$P$8:$P$26,"Gravado",Ingresos!$R$8:$R$26,"Sí",Ingresos!$Q$8:$Q$26,"Sí")+SUMIFS(Ingresos!I$35:I$45,Ingresos!$P$35:$P$45,"Gravado",Ingresos!$R$35:$R$45,"Sí",Ingresos!$Q$35:$Q$45,"Sí")-Ingresos!I12-Ingresos!I39 -> 0 | K10: =SUMIFS(Ingresos!J$8:J$26,Ingresos!$P$8:$P$26,"Gravado",Ingresos!$R$8:$R$26,"Sí",Ingresos!$Q$8:$Q$26,"Sí")+SUMIFS(Ingresos!J$35:J$45,Ingresos!$P$35:$P$45,"Gravado",Ingresos!$R$35:$R$45,"Sí",Ingresos!$Q$35:$Q$45,"Sí")-Ingresos!J12-Ingresos!J39 -> 0 | L10: =SUMIFS(Ingresos!K$8:K$26,Ingresos!$P$8:$P$26,"Gravado",Ingresos!$R$8:$R$26,"Sí",Ingresos!$Q$8:$Q$26,"Sí")+SUMIFS(Ingresos!K$35:K$45,Ingresos!$P$35:$P$45,"Gravado",Ingresos!$R$35:$R$45,"Sí",Ingresos!$Q$35:$Q$45,"Sí")-Ingresos!K12-Ingresos!K39 -> 0 | M10: =SUMIFS(Ingresos!L$8:L$26,Ingresos!$P$8:$P$26,"Gravado",Ingresos!$R$8:$R$26,"Sí",Ingresos!$Q$8:$Q$26,"Sí")+SUMIFS(Ingresos!L$35:L$45,Ingresos!$P$35:$P$45,"Gravado",Ingresos!$R$35:$R$45,"Sí",Ingresos!$Q$35:$Q$45,"Sí")-Ingresos!L12-Ingresos!L39 -> 0 | N10: =SUMIFS(Ingresos!M$8:M$26,Ingresos!$P$8:$P$26,"Gravado",Ingresos!$R$8:$R$26,"Sí",Ingresos!$Q$8:$Q$26,"Sí")+SUMIFS(Ingresos!M$35:M$45,Ingresos!$P$35:$P$45,"Gravado",Ingresos!$R$35:$R$45,"Sí",Ingresos!$Q$35:$Q$45,"Sí")-Ingresos!M12-Ingresos!M39 -> 0 | O10: =SUMIFS(Ingresos!N$8:N$26,Ingresos!$P$8:$P$26,"Gravado",Ingresos!$R$8:$R$26,"Sí",Ingresos!$Q$8:$Q$26,"Sí")+SUMIFS(Ingresos!N$35:N$45,Ingresos!$P$35:$P$45,"Gravado",Ingresos!$R$35:$R$45,"Sí",Ingresos!$Q$35:$Q$45,"Sí")-Ingresos!N12-Ingresos!N39 -> 0 | P10: =SUM(D10:O10) -> 0
C11: Sueldo no Rem. (no prorrateo) | D11: =SUMIFS(Ingresos!C$8:C$26,Ingresos!$P$8:$P$26,"Gravado",Ingresos!$R$8:$R$26,"No",Ingresos!$Q$8:$Q$26,"No")+SUMIFS(Ingresos!C$35:C$45,Ingresos!$P$35:$P$45,"Gravado",Ingresos!$R$35:$R$45,"No",Ingresos!$Q$35:$Q$45,"No") -> 0 | E11: =SUMIFS(Ingresos!D$8:D$26,Ingresos!$P$8:$P$26,"Gravado",Ingresos!$R$8:$R$26,"No",Ingresos!$Q$8:$Q$26,"No")+SUMIFS(Ingresos!D$35:D$45,Ingresos!$P$35:$P$45,"Gravado",Ingresos!$R$35:$R$45,"No",Ingresos!$Q$35:$Q$45,"No") -> 0 | F11: =SUMIFS(Ingresos!E$8:E$26,Ingresos!$P$8:$P$26,"Gravado",Ingresos!$R$8:$R$26,"No",Ingresos!$Q$8:$Q$26,"No")+SUMIFS(Ingresos!E$35:E$45,Ingresos!$P$35:$P$45,"Gravado",Ingresos!$R$35:$R$45,"No",Ingresos!$Q$35:$Q$45,"No") -> 0 | G11: =SUMIFS(Ingresos!F$8:F$26,Ingresos!$P$8:$P$26,"Gravado",Ingresos!$R$8:$R$26,"No",Ingresos!$Q$8:$Q$26,"No")+SUMIFS(Ingresos!F$35:F$45,Ingresos!$P$35:$P$45,"Gravado",Ingresos!$R$35:$R$45,"No",Ingresos!$Q$35:$Q$45,"No") -> 0 | H11: =SUMIFS(Ingresos!G$8:G$26,Ingresos!$P$8:$P$26,"Gravado",Ingresos!$R$8:$R$26,"No",Ingresos!$Q$8:$Q$26,"No")+SUMIFS(Ingresos!G$35:G$45,Ingresos!$P$35:$P$45,"Gravado",Ingresos!$R$35:$R$45,"No",Ingresos!$Q$35:$Q$45,"No") -> 0 | I11: =SUMIFS(Ingresos!H$8:H$26,Ingresos!$P$8:$P$26,"Gravado",Ingresos!$R$8:$R$26,"No",Ingresos!$Q$8:$Q$26,"No")+SUMIFS(Ingresos!H$35:H$45,Ingresos!$P$35:$P$45,"Gravado",Ingresos!$R$35:$R$45,"No",Ingresos!$Q$35:$Q$45,"No") -> 0 | J11: =SUMIFS(Ingresos!I$8:I$26,Ingresos!$P$8:$P$26,"Gravado",Ingresos!$R$8:$R$26,"No",Ingresos!$Q$8:$Q$26,"No")+SUMIFS(Ingresos!I$35:I$45,Ingresos!$P$35:$P$45,"Gravado",Ingresos!$R$35:$R$45,"No",Ingresos!$Q$35:$Q$45,"No") -> 0 | K11: =SUMIFS(Ingresos!J$8:J$26,Ingresos!$P$8:$P$26,"Gravado",Ingresos!$R$8:$R$26,"No",Ingresos!$Q$8:$Q$26,"No")+SUMIFS(Ingresos!J$35:J$45,Ingresos!$P$35:$P$45,"Gravado",Ingresos!$R$35:$R$45,"No",Ingresos!$Q$35:$Q$45,"No") -> 0 | L11: =SUMIFS(Ingresos!K$8:K$26,Ingresos!$P$8:$P$26,"Gravado",Ingresos!$R$8:$R$26,"No",Ingresos!$Q$8:$Q$26,"No")+SUMIFS(Ingresos!K$35:K$45,Ingresos!$P$35:$P$45,"Gravado",Ingresos!$R$35:$R$45,"No",Ingresos!$Q$35:$Q$45,"No") -> 0 | M11: =SUMIFS(Ingresos!L$8:L$26,Ingresos!$P$8:$P$26,"Gravado",Ingresos!$R$8:$R$26,"No",Ingresos!$Q$8:$Q$26,"No")+SUMIFS(Ingresos!L$35:L$45,Ingresos!$P$35:$P$45,"Gravado",Ingresos!$R$35:$R$45,"No",Ingresos!$Q$35:$Q$45,"No") -> 0 | N11: =SUMIFS(Ingresos!M$8:M$26,Ingresos!$P$8:$P$26,"Gravado",Ingresos!$R$8:$R$26,"No",Ingresos!$Q$8:$Q$26,"No")+SUMIFS(Ingresos!M$35:M$45,Ingresos!$P$35:$P$45,"Gravado",Ingresos!$R$35:$R$45,"No",Ingresos!$Q$35:$Q$45,"No") -> 0 | O11: =SUMIFS(Ingresos!N$8:N$26,Ingresos!$P$8:$P$26,"Gravado",Ingresos!$R$8:$R$26,"No",Ingresos!$Q$8:$Q$26,"No")+SUMIFS(Ingresos!N$35:N$45,Ingresos!$P$35:$P$45,"Gravado",Ingresos!$R$35:$R$45,"No",Ingresos!$Q$35:$Q$45,"No") -> 0 | P11: 0
C12: Sueldo no Rem. (prorrateo) | D12: =SUMIFS(Ingresos!C$8:C$26,Ingresos!$P$8:$P$26,"Gravado",Ingresos!$R$8:$R$26,"No",Ingresos!$Q$8:$Q$26,"Sí")+SUMIFS(Ingresos!C$35:C$45,Ingresos!$P$35:$P$45,"Gravado",Ingresos!$R$35:$R$45,"No",Ingresos!$Q$35:$Q$45,"Sí") -> 0 | E12: =SUMIFS(Ingresos!D$8:D$26,Ingresos!$P$8:$P$26,"Gravado",Ingresos!$R$8:$R$26,"No",Ingresos!$Q$8:$Q$26,"Sí")+SUMIFS(Ingresos!D$35:D$45,Ingresos!$P$35:$P$45,"Gravado",Ingresos!$R$35:$R$45,"No",Ingresos!$Q$35:$Q$45,"Sí") -> 0 | F12: =SUMIFS(Ingresos!E$8:E$26,Ingresos!$P$8:$P$26,"Gravado",Ingresos!$R$8:$R$26,"No",Ingresos!$Q$8:$Q$26,"Sí")+SUMIFS(Ingresos!E$35:E$45,Ingresos!$P$35:$P$45,"Gravado",Ingresos!$R$35:$R$45,"No",Ingresos!$Q$35:$Q$45,"Sí") -> 0 | G12: =SUMIFS(Ingresos!F$8:F$26,Ingresos!$P$8:$P$26,"Gravado",Ingresos!$R$8:$R$26,"No",Ingresos!$Q$8:$Q$26,"Sí")+SUMIFS(Ingresos!F$35:F$45,Ingresos!$P$35:$P$45,"Gravado",Ingresos!$R$35:$R$45,"No",Ingresos!$Q$35:$Q$45,"Sí") -> 0 | H12: =SUMIFS(Ingresos!G$8:G$26,Ingresos!$P$8:$P$26,"Gravado",Ingresos!$R$8:$R$26,"No",Ingresos!$Q$8:$Q$26,"Sí")+SUMIFS(Ingresos!G$35:G$45,Ingresos!$P$35:$P$45,"Gravado",Ingresos!$R$35:$R$45,"No",Ingresos!$Q$35:$Q$45,"Sí") -> 0 | I12: =SUMIFS(Ingresos!H$8:H$26,Ingresos!$P$8:$P$26,"Gravado",Ingresos!$R$8:$R$26,"No",Ingresos!$Q$8:$Q$26,"Sí")+SUMIFS(Ingresos!H$35:H$45,Ingresos!$P$35:$P$45,"Gravado",Ingresos!$R$35:$R$45,"No",Ingresos!$Q$35:$Q$45,"Sí") -> 0 | J12: =SUMIFS(Ingresos!I$8:I$26,Ingresos!$P$8:$P$26,"Gravado",Ingresos!$R$8:$R$26,"No",Ingresos!$Q$8:$Q$26,"Sí")+SUMIFS(Ingresos!I$35:I$45,Ingresos!$P$35:$P$45,"Gravado",Ingresos!$R$35:$R$45,"No",Ingresos!$Q$35:$Q$45,"Sí") -> 0 | K12: =SUMIFS(Ingresos!J$8:J$26,Ingresos!$P$8:$P$26,"Gravado",Ingresos!$R$8:$R$26,"No",Ingresos!$Q$8:$Q$26,"Sí")+SUMIFS(Ingresos!J$35:J$45,Ingresos!$P$35:$P$45,"Gravado",Ingresos!$R$35:$R$45,"No",Ingresos!$Q$35:$Q$45,"Sí") -> 0 | L12: =SUMIFS(Ingresos!K$8:K$26,Ingresos!$P$8:$P$26,"Gravado",Ingresos!$R$8:$R$26,"No",Ingresos!$Q$8:$Q$26,"Sí")+SUMIFS(Ingresos!K$35:K$45,Ingresos!$P$35:$P$45,"Gravado",Ingresos!$R$35:$R$45,"No",Ingresos!$Q$35:$Q$45,"Sí") -> 0 | M12: =SUMIFS(Ingresos!L$8:L$26,Ingresos!$P$8:$P$26,"Gravado",Ingresos!$R$8:$R$26,"No",Ingresos!$Q$8:$Q$26,"Sí")+SUMIFS(Ingresos!L$35:L$45,Ingresos!$P$35:$P$45,"Gravado",Ingresos!$R$35:$R$45,"No",Ingresos!$Q$35:$Q$45,"Sí") -> 0 | N12: =SUMIFS(Ingresos!M$8:M$26,Ingresos!$P$8:$P$26,"Gravado",Ingresos!$R$8:$R$26,"No",Ingresos!$Q$8:$Q$26,"Sí")+SUMIFS(Ingresos!M$35:M$45,Ingresos!$P$35:$P$45,"Gravado",Ingresos!$R$35:$R$45,"No",Ingresos!$Q$35:$Q$45,"Sí") -> 0 | O12: =SUMIFS(Ingresos!N$8:N$26,Ingresos!$P$8:$P$26,"Gravado",Ingresos!$R$8:$R$26,"No",Ingresos!$Q$8:$Q$26,"Sí")+SUMIFS(Ingresos!N$35:N$45,Ingresos!$P$35:$P$45,"Gravado",Ingresos!$R$35:$R$45,"No",Ingresos!$Q$35:$Q$45,"Sí") -> 0 | P12: 0
C13: Gravado total
C15: No gravado
C16: Sueldo Rem. (no prorrateo) | D16: =SUMIFS(Ingresos!C$8:C$26,Ingresos!$P$8:$P$26,"No gravado",Ingresos!$R$8:$R$26,"Sí",Ingresos!$Q$8:$Q$26,"No")+SUMIFS(Ingresos!C$35:C$45,Ingresos!$P$35:$P$45,"No gravado",Ingresos!$R$35:$R$45,"Sí",Ingresos!$Q$35:$Q$45,"No") -> 0 | E16: =SUMIFS(Ingresos!D$8:D$26,Ingresos!$P$8:$P$26,"No gravado",Ingresos!$R$8:$R$26,"Sí",Ingresos!$Q$8:$Q$26,"No") -> 0 | F16: =SUMIFS(Ingresos!E$8:E$26,Ingresos!$P$8:$P$26,"No gravado",Ingresos!$R$8:$R$26,"Sí",Ingresos!$Q$8:$Q$26,"No") -> 0 | G16: =SUMIFS(Ingresos!F$8:F$26,Ingresos!$P$8:$P$26,"No gravado",Ingresos!$R$8:$R$26,"Sí",Ingresos!$Q$8:$Q$26,"No") -> 0 | H16: =SUMIFS(Ingresos!G$8:G$26,Ingresos!$P$8:$P$26,"No gravado",Ingresos!$R$8:$R$26,"Sí",Ingresos!$Q$8:$Q$26,"No") -> 0 | I16: =SUMIFS(Ingresos!H$8:H$26,Ingresos!$P$8:$P$26,"No gravado",Ingresos!$R$8:$R$26,"Sí",Ingresos!$Q$8:$Q$26,"No") -> 0 | J16: =SUMIFS(Ingresos!I$8:I$26,Ingresos!$P$8:$P$26,"No gravado",Ingresos!$R$8:$R$26,"Sí",Ingresos!$Q$8:$Q$26,"No") -> 0 | K16: =SUMIFS(Ingresos!J$8:J$26,Ingresos!$P$8:$P$26,"No gravado",Ingresos!$R$8:$R$26,"Sí",Ingresos!$Q$8:$Q$26,"No") -> 0 | L16: =SUMIFS(Ingresos!K$8:K$26,Ingresos!$P$8:$P$26,"No gravado",Ingresos!$R$8:$R$26,"Sí",Ingresos!$Q$8:$Q$26,"No") -> 0 | M16: =SUMIFS(Ingresos!L$8:L$26,Ingresos!$P$8:$P$26,"No gravado",Ingresos!$R$8:$R$26,"Sí",Ingresos!$Q$8:$Q$26,"No") -> 0 | N16: =SUMIFS(Ingresos!M$8:M$26,Ingresos!$P$8:$P$26,"No gravado",Ingresos!$R$8:$R$26,"Sí",Ingresos!$Q$8:$Q$26,"No") -> 0 | O16: =SUMIFS(Ingresos!N$8:N$26,Ingresos!$P$8:$P$26,"No gravado",Ingresos!$R$8:$R$26,"Sí",Ingresos!$Q$8:$Q$26,"No") -> 0 | P16: =SUM(D16:O16) -> 0
C17: Sueldo Rem. (prorrateo) | D17: =SUMIFS(Ingresos!C$8:C$26,Ingresos!$P$8:$P$26,"No gravado",Ingresos!$R$8:$R$26,"Sí",Ingresos!$Q$8:$Q$26,"Sí")+SUMIFS(Ingresos!C$35:C$45,Ingresos!$P$35:$P$45,"No gravado",Ingresos!$R$35:$R$45,"Sí",Ingresos!$Q$35:$Q$45,"Sí") -> 0 | E17: =SUMIFS(Ingresos!D$8:D$26,Ingresos!$P$8:$P$26,"No gravado",Ingresos!$R$8:$R$26,"Sí",Ingresos!$Q$8:$Q$26,"Sí")+SUMIFS(Ingresos!D$35:D$45,Ingresos!$P$35:$P$45,"No gravado",Ingresos!$R$35:$R$45,"Sí",Ingresos!$Q$35:$Q$45,"Sí") -> 0 | F17: =SUMIFS(Ingresos!E$8:E$26,Ingresos!$P$8:$P$26,"No gravado",Ingresos!$R$8:$R$26,"Sí",Ingresos!$Q$8:$Q$26,"Sí")+SUMIFS(Ingresos!E$35:E$45,Ingresos!$P$35:$P$45,"No gravado",Ingresos!$R$35:$R$45,"Sí",Ingresos!$Q$35:$Q$45,"Sí") -> 0 | G17: =SUMIFS(Ingresos!F$8:F$26,Ingresos!$P$8:$P$26,"No gravado",Ingresos!$R$8:$R$26,"Sí",Ingresos!$Q$8:$Q$26,"Sí")+SUMIFS(Ingresos!F$35:F$45,Ingresos!$P$35:$P$45,"No gravado",Ingresos!$R$35:$R$45,"Sí",Ingresos!$Q$35:$Q$45,"Sí") -> 0 | H17: =SUMIFS(Ingresos!G$8:G$26,Ingresos!$P$8:$P$26,"No gravado",Ingresos!$R$8:$R$26,"Sí",Ingresos!$Q$8:$Q$26,"Sí")+SUMIFS(Ingresos!G$35:G$45,Ingresos!$P$35:$P$45,"No gravado",Ingresos!$R$35:$R$45,"Sí",Ingresos!$Q$35:$Q$45,"Sí") -> 0 | I17: =SUMIFS(Ingresos!H$8:H$26,Ingresos!$P$8:$P$26,"No gravado",Ingresos!$R$8:$R$26,"Sí",Ingresos!$Q$8:$Q$26,"Sí")+SUMIFS(Ingresos!H$35:H$45,Ingresos!$P$35:$P$45,"No gravado",Ingresos!$R$35:$R$45,"Sí",Ingresos!$Q$35:$Q$45,"Sí") -> 0 | J17: =SUMIFS(Ingresos!I$8:I$26,Ingresos!$P$8:$P$26,"No gravado",Ingresos!$R$8:$R$26,"Sí",Ingresos!$Q$8:$Q$26,"Sí")+SUMIFS(Ingresos!I$35:I$45,Ingresos!$P$35:$P$45,"No gravado",Ingresos!$R$35:$R$45,"Sí",Ingresos!$Q$35:$Q$45,"Sí") -> 0 | K17: =SUMIFS(Ingresos!J$8:J$26,Ingresos!$P$8:$P$26,"No gravado",Ingresos!$R$8:$R$26,"Sí",Ingresos!$Q$8:$Q$26,"Sí")+SUMIFS(Ingresos!J$35:J$45,Ingresos!$P$35:$P$45,"No gravado",Ingresos!$R$35:$R$45,"Sí",Ingresos!$Q$35:$Q$45,"Sí") -> 0 | L17: =SUMIFS(Ingresos!K$8:K$26,Ingresos!$P$8:$P$26,"No gravado",Ingresos!$R$8:$R$26,"Sí",Ingresos!$Q$8:$Q$26,"Sí")+SUMIFS(Ingresos!K$35:K$45,Ingresos!$P$35:$P$45,"No gravado",Ingresos!$R$35:$R$45,"Sí",Ingresos!$Q$35:$Q$45,"Sí") -> 0 | M17: =SUMIFS(Ingresos!L$8:L$26,Ingresos!$P$8:$P$26,"No gravado",Ingresos!$R$8:$R$26,"Sí",Ingresos!$Q$8:$Q$26,"Sí")+SUMIFS(Ingresos!L$35:L$45,Ingresos!$P$35:$P$45,"No gravado",Ingresos!$R$35:$R$45,"Sí",Ingresos!$Q$35:$Q$45,"Sí") -> 0 | N17: =SUMIFS(Ingresos!M$8:M$26,Ingresos!$P$8:$P$26,"No gravado",Ingresos!$R$8:$R$26,"Sí",Ingresos!$Q$8:$Q$26,"Sí")+SUMIFS(Ingresos!M$35:M$45,Ingresos!$P$35:$P$45,"No gravado",Ingresos!$R$35:$R$45,"Sí",Ingresos!$Q$35:$Q$45,"Sí") -> 0 | O17: =SUMIFS(Ingresos!N$8:N$26,Ingresos!$P$8:$P$26,"No gravado",Ingresos!$R$8:$R$26,"Sí",Ingresos!$Q$8:$Q$26,"Sí")+SUMIFS(Ingresos!N$35:N$45,Ingresos!$P$35:$P$45,"No gravado",Ingresos!$R$35:$R$45,"Sí",Ingresos!$Q$35:$Q$45,"Sí") -> 0 | P17: 0
C18: Sueldo no Rem. (no prorrateo) | D18: =SUMIFS(Ingresos!C$8:C$26,Ingresos!$P$8:$P$26,"No gravado",Ingresos!$R$8:$R$26,"No",Ingresos!$Q$8:$Q$26,"No")+SUMIFS(Ingresos!C$35:C$45,Ingresos!$P$35:$P$45,"No gravado",Ingresos!$R$35:$R$45,"No",Ingresos!$Q$35:$Q$45,"No") -> 0 | E18: =SUMIFS(Ingresos!D$8:D$26,Ingresos!$P$8:$P$26,"No gravado",Ingresos!$R$8:$R$26,"No",Ingresos!$Q$8:$Q$26,"No")+SUMIFS(Ingresos!D$35:D$45,Ingresos!$P$35:$P$45,"No gravado",Ingresos!$R$35:$R$45,"No",Ingresos!$Q$35:$Q$45,"No") -> 0 | F18: =SUMIFS(Ingresos!E$8:E$26,Ingresos!$P$8:$P$26,"No gravado",Ingresos!$R$8:$R$26,"No",Ingresos!$Q$8:$Q$26,"No")+SUMIFS(Ingresos!E$35:E$45,Ingresos!$P$35:$P$45,"No gravado",Ingresos!$R$35:$R$45,"No",Ingresos!$Q$35:$Q$45,"No") -> 0 | G18: =SUMIFS(Ingresos!F$8:F$26,Ingresos!$P$8:$P$26,"No gravado",Ingresos!$R$8:$R$26,"No",Ingresos!$Q$8:$Q$26,"No")+SUMIFS(Ingresos!F$35:F$45,Ingresos!$P$35:$P$45,"No gravado",Ingresos!$R$35:$R$45,"No",Ingresos!$Q$35:$Q$45,"No") -> 0 | H18: =SUMIFS(Ingresos!G$8:G$26,Ingresos!$P$8:$P$26,"No gravado",Ingresos!$R$8:$R$26,"No",Ingresos!$Q$8:$Q$26,"No")+SUMIFS(Ingresos!G$35:G$45,Ingresos!$P$35:$P$45,"No gravado",Ingresos!$R$35:$R$45,"No",Ingresos!$Q$35:$Q$45,"No") -> 0 | I18: =SUMIFS(Ingresos!H$8:H$26,Ingresos!$P$8:$P$26,"No gravado",Ingresos!$R$8:$R$26,"No",Ingresos!$Q$8:$Q$26,"No")+SUMIFS(Ingresos!H$35:H$45,Ingresos!$P$35:$P$45,"No gravado",Ingresos!$R$35:$R$45,"No",Ingresos!$Q$35:$Q$45,"No") -> 0 | J18: =SUMIFS(Ingresos!I$8:I$26,Ingresos!$P$8:$P$26,"No gravado",Ingresos!$R$8:$R$26,"No",Ingresos!$Q$8:$Q$26,"No")+SUMIFS(Ingresos!I$35:I$45,Ingresos!$P$35:$P$45,"No gravado",Ingresos!$R$35:$R$45,"No",Ingresos!$Q$35:$Q$45,"No") -> 0 | K18: =SUMIFS(Ingresos!J$8:J$26,Ingresos!$P$8:$P$26,"No gravado",Ingresos!$R$8:$R$26,"No",Ingresos!$Q$8:$Q$26,"No")+SUMIFS(Ingresos!J$35:J$45,Ingresos!$P$35:$P$45,"No gravado",Ingresos!$R$35:$R$45,"No",Ingresos!$Q$35:$Q$45,"No") -> 0 | L18: =SUMIFS(Ingresos!K$8:K$26,Ingresos!$P$8:$P$26,"No gravado",Ingresos!$R$8:$R$26,"No",Ingresos!$Q$8:$Q$26,"No")+SUMIFS(Ingresos!K$35:K$45,Ingresos!$P$35:$P$45,"No gravado",Ingresos!$R$35:$R$45,"No",Ingresos!$Q$35:$Q$45,"No") -> 0 | M18: =SUMIFS(Ingresos!L$8:L$26,Ingresos!$P$8:$P$26,"No gravado",Ingresos!$R$8:$R$26,"No",Ingresos!$Q$8:$Q$26,"No")+SUMIFS(Ingresos!L$35:L$45,Ingresos!$P$35:$P$45,"No gravado",Ingresos!$R$35:$R$45,"No",Ingresos!$Q$35:$Q$45,"No") -> 0 | N18: =SUMIFS(Ingresos!M$8:M$26,Ingresos!$P$8:$P$26,"No gravado",Ingresos!$R$8:$R$26,"No",Ingresos!$Q$8:$Q$26,"No")+SUMIFS(Ingresos!M$35:M$45,Ingresos!$P$35:$P$45,"No gravado",Ingresos!$R$35:$R$45,"No",Ingresos!$Q$35:$Q$45,"No") -> 0 | O18: =SUMIFS(Ingresos!N$8:N$26,Ingresos!$P$8:$P$26,"No gravado",Ingresos!$R$8:$R$26,"No",Ingresos!$Q$8:$Q$26,"No")+SUMIFS(Ingresos!N$35:N$45,Ingresos!$P$35:$P$45,"No gravado",Ingresos!$R$35:$R$45,"No",Ingresos!$Q$35:$Q$45,"No") -> 0 | P18: 0
C19: Sueldo no Rem. (prorrateo) | D19: =SUMIFS(Ingresos!C$8:C$26,Ingresos!$P$8:$P$26,"No gravado",Ingresos!$R$8:$R$26,"No",Ingresos!$Q$8:$Q$26,"Sí")+SUMIFS(Ingresos!C$35:C$45,Ingresos!$P$35:$P$45,"No gravado",Ingresos!$R$35:$R$45,"No",Ingresos!$Q$35:$Q$45,"Sí") -> 0 | E19: =SUMIFS(Ingresos!D$8:D$26,Ingresos!$P$8:$P$26,"No gravado",Ingresos!$R$8:$R$26,"No",Ingresos!$Q$8:$Q$26,"Sí")+SUMIFS(Ingresos!D$35:D$45,Ingresos!$P$35:$P$45,"No gravado",Ingresos!$R$35:$R$45,"No",Ingresos!$Q$35:$Q$45,"Sí") -> 0 | F19: =SUMIFS(Ingresos!E$8:E$26,Ingresos!$P$8:$P$26,"No gravado",Ingresos!$R$8:$R$26,"No",Ingresos!$Q$8:$Q$26,"Sí")+SUMIFS(Ingresos!E$35:E$45,Ingresos!$P$35:$P$45,"No gravado",Ingresos!$R$35:$R$45,"No",Ingresos!$Q$35:$Q$45,"Sí") -> 0 | G19: =SUMIFS(Ingresos!F$8:F$26,Ingresos!$P$8:$P$26,"No gravado",Ingresos!$R$8:$R$26,"No",Ingresos!$Q$8:$Q$26,"Sí")+SUMIFS(Ingresos!F$35:F$45,Ingresos!$P$35:$P$45,"No gravado",Ingresos!$R$35:$R$45,"No",Ingresos!$Q$35:$Q$45,"Sí") -> 0 | H19: =SUMIFS(Ingresos!G$8:G$26,Ingresos!$P$8:$P$26,"No gravado",Ingresos!$R$8:$R$26,"No",Ingresos!$Q$8:$Q$26,"Sí")+SUMIFS(Ingresos!G$35:G$45,Ingresos!$P$35:$P$45,"No gravado",Ingresos!$R$35:$R$45,"No",Ingresos!$Q$35:$Q$45,"Sí") -> 0 | I19: =SUMIFS(Ingresos!H$8:H$26,Ingresos!$P$8:$P$26,"No gravado",Ingresos!$R$8:$R$26,"No",Ingresos!$Q$8:$Q$26,"Sí")+SUMIFS(Ingresos!H$35:H$45,Ingresos!$P$35:$P$45,"No gravado",Ingresos!$R$35:$R$45,"No",Ingresos!$Q$35:$Q$45,"Sí") -> 0 | J19: =SUMIFS(Ingresos!I$8:I$26,Ingresos!$P$8:$P$26,"No gravado",Ingresos!$R$8:$R$26,"No",Ingresos!$Q$8:$Q$26,"Sí")+SUMIFS(Ingresos!I$35:I$45,Ingresos!$P$35:$P$45,"No gravado",Ingresos!$R$35:$R$45,"No",Ingresos!$Q$35:$Q$45,"Sí") -> 0 | K19: =SUMIFS(Ingresos!J$8:J$26,Ingresos!$P$8:$P$26,"No gravado",Ingresos!$R$8:$R$26,"No",Ingresos!$Q$8:$Q$26,"Sí")+SUMIFS(Ingresos!J$35:J$45,Ingresos!$P$35:$P$45,"No gravado",Ingresos!$R$35:$R$45,"No",Ingresos!$Q$35:$Q$45,"Sí") -> 0 | L19: =SUMIFS(Ingresos!K$8:K$26,Ingresos!$P$8:$P$26,"No gravado",Ingresos!$R$8:$R$26,"No",Ingresos!$Q$8:$Q$26,"Sí")+SUMIFS(Ingresos!K$35:K$45,Ingresos!$P$35:$P$45,"No gravado",Ingresos!$R$35:$R$45,"No",Ingresos!$Q$35:$Q$45,"Sí") -> 0 | M19: =SUMIFS(Ingresos!L$8:L$26,Ingresos!$P$8:$P$26,"No gravado",Ingresos!$R$8:$R$26,"No",Ingresos!$Q$8:$Q$26,"Sí")+SUMIFS(Ingresos!L$35:L$45,Ingresos!$P$35:$P$45,"No gravado",Ingresos!$R$35:$R$45,"No",Ingresos!$Q$35:$Q$45,"Sí") -> 0 | N19: =SUMIFS(Ingresos!M$8:M$26,Ingresos!$P$8:$P$26,"No gravado",Ingresos!$R$8:$R$26,"No",Ingresos!$Q$8:$Q$26,"Sí")+SUMIFS(Ingresos!M$35:M$45,Ingresos!$P$35:$P$45,"No gravado",Ingresos!$R$35:$R$45,"No",Ingresos!$Q$35:$Q$45,"Sí") -> 0 | O19: =SUMIFS(Ingresos!N$8:N$26,Ingresos!$P$8:$P$26,"No gravado",Ingresos!$R$8:$R$26,"No",Ingresos!$Q$8:$Q$26,"Sí")+SUMIFS(Ingresos!N$35:N$45,Ingresos!$P$35:$P$45,"No gravado",Ingresos!$R$35:$R$45,"No",Ingresos!$Q$35:$Q$45,"Sí") -> 0 | P19: 0
C20: No gravado total
C22: Exento
C23: Sueldo Rem. (no prorrateo) | D23: =SUMIFS(Ingresos!C$8:C$26,Ingresos!$P$8:$P$26,"Exento",Ingresos!$R$8:$R$26,"Sí",Ingresos!$Q$8:$Q$26,"No")+SUMIFS(Ingresos!C$35:C$45,Ingresos!$P$35:$P$45,"Exento",Ingresos!$R$35:$R$45,"Sí",Ingresos!$Q$35:$Q$45,"No") -> 0 | E23: =SUMIFS(Ingresos!D$8:D$26,Ingresos!$P$8:$P$26,"Exento",Ingresos!$R$8:$R$26,"Sí",Ingresos!$Q$8:$Q$26,"No")+SUMIFS(Ingresos!D$35:D$45,Ingresos!$P$35:$P$45,"Exento",Ingresos!$R$35:$R$45,"Sí",Ingresos!$Q$35:$Q$45,"No") -> 0 | F23: =SUMIFS(Ingresos!E$8:E$26,Ingresos!$P$8:$P$26,"Exento",Ingresos!$R$8:$R$26,"Sí",Ingresos!$Q$8:$Q$26,"No")+SUMIFS(Ingresos!E$35:E$45,Ingresos!$P$35:$P$45,"Exento",Ingresos!$R$35:$R$45,"Sí",Ingresos!$Q$35:$Q$45,"No") -> 0 | G23: =SUMIFS(Ingresos!F$8:F$26,Ingresos!$P$8:$P$26,"Exento",Ingresos!$R$8:$R$26,"Sí",Ingresos!$Q$8:$Q$26,"No")+SUMIFS(Ingresos!F$35:F$45,Ingresos!$P$35:$P$45,"Exento",Ingresos!$R$35:$R$45,"Sí",Ingresos!$Q$35:$Q$45,"No") -> 0 | H23: =SUMIFS(Ingresos!G$8:G$26,Ingresos!$P$8:$P$26,"Exento",Ingresos!$R$8:$R$26,"Sí",Ingresos!$Q$8:$Q$26,"No")+SUMIFS(Ingresos!G$35:G$45,Ingresos!$P$35:$P$45,"Exento",Ingresos!$R$35:$R$45,"Sí",Ingresos!$Q$35:$Q$45,"No") -> 0 | I23: =SUMIFS(Ingresos!H$8:H$26,Ingresos!$P$8:$P$26,"Exento",Ingresos!$R$8:$R$26,"Sí",Ingresos!$Q$8:$Q$26,"No")+SUMIFS(Ingresos!H$35:H$45,Ingresos!$P$35:$P$45,"Exento",Ingresos!$R$35:$R$45,"Sí",Ingresos!$Q$35:$Q$45,"No") -> 0 | J23: =SUMIFS(Ingresos!I$8:I$26,Ingresos!$P$8:$P$26,"Exento",Ingresos!$R$8:$R$26,"Sí",Ingresos!$Q$8:$Q$26,"No")+SUMIFS(Ingresos!I$35:I$45,Ingresos!$P$35:$P$45,"Exento",Ingresos!$R$35:$R$45,"Sí",Ingresos!$Q$35:$Q$45,"No") -> 0 | K23: =SUMIFS(Ingresos!J$8:J$26,Ingresos!$P$8:$P$26,"Exento",Ingresos!$R$8:$R$26,"Sí",Ingresos!$Q$8:$Q$26,"No")+SUMIFS(Ingresos!J$35:J$45,Ingresos!$P$35:$P$45,"Exento",Ingresos!$R$35:$R$45,"Sí",Ingresos!$Q$35:$Q$45,"No") -> 0 | L23: =SUMIFS(Ingresos!K$8:K$26,Ingresos!$P$8:$P$26,"Exento",Ingresos!$R$8:$R$26,"Sí",Ingresos!$Q$8:$Q$26,"No")+SUMIFS(Ingresos!K$35:K$45,Ingresos!$P$35:$P$45,"Exento",Ingresos!$R$35:$R$45,"Sí",Ingresos!$Q$35:$Q$45,"No") -> 0 | M23: =SUMIFS(Ingresos!L$8:L$26,Ingresos!$P$8:$P$26,"Exento",Ingresos!$R$8:$R$26,"Sí",Ingresos!$Q$8:$Q$26,"No")+SUMIFS(Ingresos!L$35:L$45,Ingresos!$P$35:$P$45,"Exento",Ingresos!$R$35:$R$45,"Sí",Ingresos!$Q$35:$Q$45,"No") -> 0 | N23: =SUMIFS(Ingresos!M$8:M$26,Ingresos!$P$8:$P$26,"Exento",Ingresos!$R$8:$R$26,"Sí",Ingresos!$Q$8:$Q$26,"No")+SUMIFS(Ingresos!M$35:M$45,Ingresos!$P$35:$P$45,"Exento",Ingresos!$R$35:$R$45,"Sí",Ingresos!$Q$35:$Q$45,"No") -> 0 | O23: =SUMIFS(Ingresos!N$8:N$26,Ingresos!$P$8:$P$26,"Exento",Ingresos!$R$8:$R$26,"Sí",Ingresos!$Q$8:$Q$26,"No")+SUMIFS(Ingresos!N$35:N$45,Ingresos!$P$35:$P$45,"Exento",Ingresos!$R$35:$R$45,"Sí",Ingresos!$Q$35:$Q$45,"No") -> 0 | P23: =SUM(D23:O23) -> 0
C24: Sueldo Rem. (prorrateo) | D24: =SUMIFS(Ingresos!C$8:C$26,Ingresos!$P$8:$P$26,"Exento",Ingresos!$R$8:$R$26,"Sí",Ingresos!$Q$8:$Q$26,"Sí")+SUMIFS(Ingresos!C$35:C$45,Ingresos!$P$35:$P$45,"Exento",Ingresos!$R$35:$R$45,"Sí",Ingresos!$Q$35:$Q$45,"Sí") -> 0 | E24: =SUMIFS(Ingresos!D$8:D$26,Ingresos!$P$8:$P$26,"Exento",Ingresos!$R$8:$R$26,"Sí",Ingresos!$Q$8:$Q$26,"Sí")+SUMIFS(Ingresos!D$35:D$45,Ingresos!$P$35:$P$45,"Exento",Ingresos!$R$35:$R$45,"Sí",Ingresos!$Q$35:$Q$45,"Sí") -> 0 | F24: =SUMIFS(Ingresos!E$8:E$26,Ingresos!$P$8:$P$26,"Exento",Ingresos!$R$8:$R$26,"Sí",Ingresos!$Q$8:$Q$26,"Sí")+SUMIFS(Ingresos!E$35:E$45,Ingresos!$P$35:$P$45,"Exento",Ingresos!$R$35:$R$45,"Sí",Ingresos!$Q$35:$Q$45,"Sí") -> 0 | G24: =SUMIFS(Ingresos!F$8:F$26,Ingresos!$P$8:$P$26,"Exento",Ingresos!$R$8:$R$26,"Sí",Ingresos!$Q$8:$Q$26,"Sí")+SUMIFS(Ingresos!F$35:F$45,Ingresos!$P$35:$P$45,"Exento",Ingresos!$R$35:$R$45,"Sí",Ingresos!$Q$35:$Q$45,"Sí") -> 0 | H24: =SUMIFS(Ingresos!G$8:G$26,Ingresos!$P$8:$P$26,"Exento",Ingresos!$R$8:$R$26,"Sí",Ingresos!$Q$8:$Q$26,"Sí")+SUMIFS(Ingresos!G$35:G$45,Ingresos!$P$35:$P$45,"Exento",Ingresos!$R$35:$R$45,"Sí",Ingresos!$Q$35:$Q$45,"Sí") -> 0 | I24: =SUMIFS(Ingresos!H$8:H$26,Ingresos!$P$8:$P$26,"Exento",Ingresos!$R$8:$R$26,"Sí",Ingresos!$Q$8:$Q$26,"Sí")+SUMIFS(Ingresos!H$35:H$45,Ingresos!$P$35:$P$45,"Exento",Ingresos!$R$35:$R$45,"Sí",Ingresos!$Q$35:$Q$45,"Sí") -> 0 | J24: =SUMIFS(Ingresos!I$8:I$26,Ingresos!$P$8:$P$26,"Exento",Ingresos!$R$8:$R$26,"Sí",Ingresos!$Q$8:$Q$26,"Sí")+SUMIFS(Ingresos!I$35:I$45,Ingresos!$P$35:$P$45,"Exento",Ingresos!$R$35:$R$45,"Sí",Ingresos!$Q$35:$Q$45,"Sí") -> 0 | K24: =SUMIFS(Ingresos!J$8:J$26,Ingresos!$P$8:$P$26,"Exento",Ingresos!$R$8:$R$26,"Sí",Ingresos!$Q$8:$Q$26,"Sí")+SUMIFS(Ingresos!J$35:J$45,Ingresos!$P$35:$P$45,"Exento",Ingresos!$R$35:$R$45,"Sí",Ingresos!$Q$35:$Q$45,"Sí") -> 0 | L24: =SUMIFS(Ingresos!K$8:K$26,Ingresos!$P$8:$P$26,"Exento",Ingresos!$R$8:$R$26,"Sí",Ingresos!$Q$8:$Q$26,"Sí")+SUMIFS(Ingresos!K$35:K$45,Ingresos!$P$35:$P$45,"Exento",Ingresos!$R$35:$R$45,"Sí",Ingresos!$Q$35:$Q$45,"Sí") -> 0 | M24: =SUMIFS(Ingresos!L$8:L$26,Ingresos!$P$8:$P$26,"Exento",Ingresos!$R$8:$R$26,"Sí",Ingresos!$Q$8:$Q$26,"Sí")+SUMIFS(Ingresos!L$35:L$45,Ingresos!$P$35:$P$45,"Exento",Ingresos!$R$35:$R$45,"Sí",Ingresos!$Q$35:$Q$45,"Sí") -> 0 | N24: =SUMIFS(Ingresos!M$8:M$26,Ingresos!$P$8:$P$26,"Exento",Ingresos!$R$8:$R$26,"Sí",Ingresos!$Q$8:$Q$26,"Sí")+SUMIFS(Ingresos!M$35:M$45,Ingresos!$P$35:$P$45,"Exento",Ingresos!$R$35:$R$45,"Sí",Ingresos!$Q$35:$Q$45,"Sí") -> 0 | O24: =SUMIFS(Ingresos!N$8:N$26,Ingresos!$P$8:$P$26,"Exento",Ingresos!$R$8:$R$26,"Sí",Ingresos!$Q$8:$Q$26,"Sí")+SUMIFS(Ingresos!N$35:N$45,Ingresos!$P$35:$P$45,"Exento",Ingresos!$R$35:$R$45,"Sí",Ingresos!$Q$35:$Q$45,"Sí") -> 0 | P24: 0
C25: Sueldo no Rem. (no prorrateo) | D25: =SUMIFS(Ingresos!C$8:C$26,Ingresos!$P$8:$P$26,"Exento",Ingresos!$R$8:$R$26,"No",Ingresos!$Q$8:$Q$26,"No")+SUMIFS(Ingresos!C$35:C$45,Ingresos!$P$35:$P$45,"Exento",Ingresos!$R$35:$R$45,"No",Ingresos!$Q$35:$Q$45,"No") -> 0 | E25: =SUMIFS(Ingresos!D$8:D$26,Ingresos!$P$8:$P$26,"Exento",Ingresos!$R$8:$R$26,"No",Ingresos!$Q$8:$Q$26,"No")+SUMIFS(Ingresos!D$35:D$45,Ingresos!$P$35:$P$45,"Exento",Ingresos!$R$35:$R$45,"No",Ingresos!$Q$35:$Q$45,"No") -> 0 | F25: =SUMIFS(Ingresos!E$8:E$26,Ingresos!$P$8:$P$26,"Exento",Ingresos!$R$8:$R$26,"No",Ingresos!$Q$8:$Q$26,"No")+SUMIFS(Ingresos!E$35:E$45,Ingresos!$P$35:$P$45,"Exento",Ingresos!$R$35:$R$45,"No",Ingresos!$Q$35:$Q$45,"No") -> 0 | G25: =SUMIFS(Ingresos!F$8:F$26,Ingresos!$P$8:$P$26,"Exento",Ingresos!$R$8:$R$26,"No",Ingresos!$Q$8:$Q$26,"No")+SUMIFS(Ingresos!F$35:F$45,Ingresos!$P$35:$P$45,"Exento",Ingresos!$R$35:$R$45,"No",Ingresos!$Q$35:$Q$45,"No") -> 0 | H25: =SUMIFS(Ingresos!G$8:G$26,Ingresos!$P$8:$P$26,"Exento",Ingresos!$R$8:$R$26,"No",Ingresos!$Q$8:$Q$26,"No")+SUMIFS(Ingresos!G$35:G$45,Ingresos!$P$35:$P$45,"Exento",Ingresos!$R$35:$R$45,"No",Ingresos!$Q$35:$Q$45,"No") -> 0 | I25: =SUMIFS(Ingresos!H$8:H$26,Ingresos!$P$8:$P$26,"Exento",Ingresos!$R$8:$R$26,"No",Ingresos!$Q$8:$Q$26,"No")+SUMIFS(Ingresos!H$35:H$45,Ingresos!$P$35:$P$45,"Exento",Ingresos!$R$35:$R$45,"No",Ingresos!$Q$35:$Q$45,"No") -> 0 | J25: =SUMIFS(Ingresos!I$8:I$26,Ingresos!$P$8:$P$26,"Exento",Ingresos!$R$8:$R$26,"No",Ingresos!$Q$8:$Q$26,"No")+SUMIFS(Ingresos!I$35:I$45,Ingresos!$P$35:$P$45,"Exento",Ingresos!$R$35:$R$45,"No",Ingresos!$Q$35:$Q$45,"No") -> 0 | K25: =SUMIFS(Ingresos!J$8:J$26,Ingresos!$P$8:$P$26,"Exento",Ingresos!$R$8:$R$26,"No",Ingresos!$Q$8:$Q$26,"No")+SUMIFS(Ingresos!J$35:J$45,Ingresos!$P$35:$P$45,"Exento",Ingresos!$R$35:$R$45,"No",Ingresos!$Q$35:$Q$45,"No") -> 0 | L25: =SUMIFS(Ingresos!K$8:K$26,Ingresos!$P$8:$P$26,"Exento",Ingresos!$R$8:$R$26,"No",Ingresos!$Q$8:$Q$26,"No")+SUMIFS(Ingresos!K$35:K$45,Ingresos!$P$35:$P$45,"Exento",Ingresos!$R$35:$R$45,"No",Ingresos!$Q$35:$Q$45,"No") -> 0 | M25: =SUMIFS(Ingresos!L$8:L$26,Ingresos!$P$8:$P$26,"Exento",Ingresos!$R$8:$R$26,"No",Ingresos!$Q$8:$Q$26,"No")+SUMIFS(Ingresos!L$35:L$45,Ingresos!$P$35:$P$45,"Exento",Ingresos!$R$35:$R$45,"No",Ingresos!$Q$35:$Q$45,"No") -> 0 | N25: =SUMIFS(Ingresos!M$8:M$26,Ingresos!$P$8:$P$26,"Exento",Ingresos!$R$8:$R$26,"No",Ingresos!$Q$8:$Q$26,"No")+SUMIFS(Ingresos!M$35:M$45,Ingresos!$P$35:$P$45,"Exento",Ingresos!$R$35:$R$45,"No",Ingresos!$Q$35:$Q$45,"No") -> 0 | O25: =SUMIFS(Ingresos!N$8:N$26,Ingresos!$P$8:$P$26,"Exento",Ingresos!$R$8:$R$26,"No",Ingresos!$Q$8:$Q$26,"No")+SUMIFS(Ingresos!N$35:N$45,Ingresos!$P$35:$P$45,"Exento",Ingresos!$R$35:$R$45,"No",Ingresos!$Q$35:$Q$45,"No") -> 0 | P25: 0
C26: Sueldo no Rem. (prorrateo) | D26: =SUMIFS(Ingresos!C$8:C$26,Ingresos!$P$8:$P$26,"Exento",Ingresos!$R$8:$R$26,"No",Ingresos!$Q$8:$Q$26,"Sí")+SUMIFS(Ingresos!C$35:C$45,Ingresos!$P$35:$P$45,"Exento",Ingresos!$R$35:$R$45,"No",Ingresos!$Q$35:$Q$45,"Sí") -> 0 | E26: =SUMIFS(Ingresos!D$8:D$26,Ingresos!$P$8:$P$26,"Exento",Ingresos!$R$8:$R$26,"No",Ingresos!$Q$8:$Q$26,"Sí")+SUMIFS(Ingresos!D$35:D$45,Ingresos!$P$35:$P$45,"Exento",Ingresos!$R$35:$R$45,"No",Ingresos!$Q$35:$Q$45,"Sí") -> 0 | F26: =SUMIFS(Ingresos!E$8:E$26,Ingresos!$P$8:$P$26,"Exento",Ingresos!$R$8:$R$26,"No",Ingresos!$Q$8:$Q$26,"Sí")+SUMIFS(Ingresos!E$35:E$45,Ingresos!$P$35:$P$45,"Exento",Ingresos!$R$35:$R$45,"No",Ingresos!$Q$35:$Q$45,"Sí") -> 0 | G26: =SUMIFS(Ingresos!F$8:F$26,Ingresos!$P$8:$P$26,"Exento",Ingresos!$R$8:$R$26,"No",Ingresos!$Q$8:$Q$26,"Sí")+SUMIFS(Ingresos!F$35:F$45,Ingresos!$P$35:$P$45,"Exento",Ingresos!$R$35:$R$45,"No",Ingresos!$Q$35:$Q$45,"Sí") -> 0 | H26: =SUMIFS(Ingresos!G$8:G$26,Ingresos!$P$8:$P$26,"Exento",Ingresos!$R$8:$R$26,"No",Ingresos!$Q$8:$Q$26,"Sí")+SUMIFS(Ingresos!G$35:G$45,Ingresos!$P$35:$P$45,"Exento",Ingresos!$R$35:$R$45,"No",Ingresos!$Q$35:$Q$45,"Sí") -> 0 | I26: =SUMIFS(Ingresos!H$8:H$26,Ingresos!$P$8:$P$26,"Exento",Ingresos!$R$8:$R$26,"No",Ingresos!$Q$8:$Q$26,"Sí")+SUMIFS(Ingresos!H$35:H$45,Ingresos!$P$35:$P$45,"Exento",Ingresos!$R$35:$R$45,"No",Ingresos!$Q$35:$Q$45,"Sí") -> 0 | J26: =SUMIFS(Ingresos!I$8:I$26,Ingresos!$P$8:$P$26,"Exento",Ingresos!$R$8:$R$26,"No",Ingresos!$Q$8:$Q$26,"Sí")+SUMIFS(Ingresos!I$35:I$45,Ingresos!$P$35:$P$45,"Exento",Ingresos!$R$35:$R$45,"No",Ingresos!$Q$35:$Q$45,"Sí") -> 0 | K26: =SUMIFS(Ingresos!J$8:J$26,Ingresos!$P$8:$P$26,"Exento",Ingresos!$R$8:$R$26,"No",Ingresos!$Q$8:$Q$26,"Sí")+SUMIFS(Ingresos!J$35:J$45,Ingresos!$P$35:$P$45,"Exento",Ingresos!$R$35:$R$45,"No",Ingresos!$Q$35:$Q$45,"Sí") -> 0 | L26: =SUMIFS(Ingresos!K$8:K$26,Ingresos!$P$8:$P$26,"Exento",Ingresos!$R$8:$R$26,"No",Ingresos!$Q$8:$Q$26,"Sí")+SUMIFS(Ingresos!K$35:K$45,Ingresos!$P$35:$P$45,"Exento",Ingresos!$R$35:$R$45,"No",Ingresos!$Q$35:$Q$45,"Sí") -> 0 | M26: =SUMIFS(Ingresos!L$8:L$26,Ingresos!$P$8:$P$26,"Exento",Ingresos!$R$8:$R$26,"No",Ingresos!$Q$8:$Q$26,"Sí")+SUMIFS(Ingresos!L$35:L$45,Ingresos!$P$35:$P$45,"Exento",Ingresos!$R$35:$R$45,"No",Ingresos!$Q$35:$Q$45,"Sí") -> 0 | N26: =SUMIFS(Ingresos!M$8:M$26,Ingresos!$P$8:$P$26,"Exento",Ingresos!$R$8:$R$26,"No",Ingresos!$Q$8:$Q$26,"Sí")+SUMIFS(Ingresos!M$35:M$45,Ingresos!$P$35:$P$45,"Exento",Ingresos!$R$35:$R$45,"No",Ingresos!$Q$35:$Q$45,"Sí") -> 0 | O26: =SUMIFS(Ingresos!N$8:N$26,Ingresos!$P$8:$P$26,"Exento",Ingresos!$R$8:$R$26,"No",Ingresos!$Q$8:$Q$26,"Sí")+SUMIFS(Ingresos!N$35:N$45,Ingresos!$P$35:$P$45,"Exento",Ingresos!$R$35:$R$45,"No",Ingresos!$Q$35:$Q$45,"Sí") -> 0 | P26: 0
C27: Exento total
C29: Deducciones | D29: 2017-01-01 | E29: 2017-02-01 | F29: 2017-03-01 | G29: 2017-04-01 | H29: 2017-05-01 | I29: 2017-06-01 | J29: 2017-07-01 | K29: 2017-08-01 | L29: 2017-09-01 | M29: 2017-10-01 | N29: 2017-11-01 | O29: 2017-12-01 | P29: Anual | R29: Aplica tope
C30: =Tablas!B8 -> Jubilación | D30: =retenciones(Check!$B$8,$R30,SUM(D$9:D$10,D$16:D$17,D$23:D$24),Tablas!C$7,Tablas!C8,D$9,DedGrales!D12+DedGrales!D23) -> 5500 | E30: =retenciones(Check!$B$8,$R30,SUM(E$9:E$10,E$16:E$17,E$23:E$24),Tablas!D$7,Tablas!D8,E$9,DedGrales!E12+DedGrales!E23) -> 5500 | F30: =retenciones(Check!$B$8,$R30,SUM(F$9:F$10,F$16:F$17,F$23:F$24),Tablas!E$7,Tablas!E8,F$9,DedGrales!F12+DedGrales!F23) -> 5500 | G30: =retenciones(Check!$B$8,$R30,SUM(G$9:G$10,G$16:G$17,G$23:G$24),Tablas!F$7,Tablas!F8,G$9,DedGrales!G12+DedGrales!G23) -> 5830 | H30: =retenciones(Check!$B$8,$R30,SUM(H$9:H$10,H$16:H$17,H$23:H$24),Tablas!G$7,Tablas!G8,H$9,DedGrales!H12+DedGrales!H23) -> 5830 | I30: =retenciones(Check!$B$8,$R30,SUM(I$9:I$10,I$16:I$17,I$23:I$24),Tablas!H$7,Tablas!H8,I$9,DedGrales!I12+DedGrales!I23) -> 5940 | J30: =retenciones(Check!$B$8,$R30,SUM(J$9:J$10,J$16:J$17,J$23:J$24),Tablas!I$7,Tablas!I8,J$9,DedGrales!J12+DedGrales!J23) -> 5940 | K30: =retenciones(Check!$B$8,$R30,SUM(K$9:K$10,K$16:K$17,K$23:K$24),Tablas!J$7,Tablas!J8,K$9,DedGrales!K12+DedGrales!K23) -> 5940 | L30: =retenciones(Check!$B$8,$R30,SUM(L$9:L$10,L$16:L$17,L$23:L$24),Tablas!K$7,Tablas!K8,L$9,DedGrales!L12+DedGrales!L23) -> 5940 | M30: =retenciones(Check!$B$8,$R30,SUM(M$9:M$10,M$16:M$17,M$23:M$24),Tablas!L$7,Tablas!L8,M$9,DedGrales!M12+DedGrales!M23) -> 5940 | N30: =retenciones(Check!$B$8,$R30,SUM(N$9:N$10,N$16:N$17,N$23:N$24),Tablas!M$7,Tablas!M8,N$9,DedGrales!N12+DedGrales!N23) -> 6160 | O30: =retenciones(Check!$B$8,$R30,SUM(O$9:O$10,O$16:O$17,O$23:O$24),Tablas!N$7,Tablas!N8,O$9,DedGrales!O12+DedGrales!O23) -> 6160 | P30: =SUM(D30:O30) -> 70180 | R30: =Tablas!O8 -> Sí
C31: =Tablas!B9 -> Ley 19032 | D31: =retenciones(Check!$B$8,$R31,SUM(D$9:D$10,D$16:D$17,D$23:D$24),Tablas!C$7,Tablas!C9,D$9,DedGrales!D13+DedGrales!D24) -> 1500 | E31: =retenciones(Check!$B$8,$R31,SUM(E$9:E$10,E$16:E$17,E$23:E$24),Tablas!D$7,Tablas!D9,E$9,DedGrales!E13+DedGrales!E24) -> 1500 | F31: =retenciones(Check!$B$8,$R31,SUM(F$9:F$10,F$16:F$17,F$23:F$24),Tablas!E$7,Tablas!E9,F$9,DedGrales!F13+DedGrales!F24) -> 1500 | G31: =retenciones(Check!$B$8,$R31,SUM(G$9:G$10,G$16:G$17,G$23:G$24),Tablas!F$7,Tablas!F9,G$9,DedGrales!G13+DedGrales!G24) -> 1590 | H31: =retenciones(Check!$B$8,$R31,SUM(H$9:H$10,H$16:H$17,H$23:H$24),Tablas!G$7,Tablas!G9,H$9,DedGrales!H13+DedGrales!H24) -> 1590 | I31: =retenciones(Check!$B$8,$R31,SUM(I$9:I$10,I$16:I$17,I$23:I$24),Tablas!H$7,Tablas!H9,I$9,DedGrales!I13+DedGrales!I24) -> 1620 | J31: =retenciones(Check!$B$8,$R31,SUM(J$9:J$10,J$16:J$17,J$23:J$24),Tablas!I$7,Tablas!I9,J$9,DedGrales!J13+DedGrales!J24) -> 1620 | K31: =retenciones(Check!$B$8,$R31,SUM(K$9:K$10,K$16:K$17,K$23:K$24),Tablas!J$7,Tablas!J9,K$9,DedGrales!K13+DedGrales!K24) -> 1620 | L31: =retenciones(Check!$B$8,$R31,SUM(L$9:L$10,L$16:L$17,L$23:L$24),Tablas!K$7,Tablas!K9,L$9,DedGrales!L13+DedGrales!L24) -> 1620 | M31: =retenciones(Check!$B$8,$R31,SUM(M$9:M$10,M$16:M$17,M$23:M$24),Tablas!L$7,Tablas!L9,M$9,DedGrales!M13+DedGrales!M24) -> 1620 | N31: =retenciones(Check!$B$8,$R31,SUM(N$9:N$10,N$16:N$17,N$23:N$24),Tablas!M$7,Tablas!M9,N$9,DedGrales!N13+DedGrales!N24) -> 1680 | O31: =retenciones(Check!$B$8,$R31,SUM(O$9:O$10,O$16:O$17,O$23:O$24),Tablas!N$7,Tablas!N9,O$9,DedGrales!O13+DedGrales!O24) -> 1680 | P31: =SUM(D31:O31) -> 19140 | R31: =Tablas!O9 -> Sí
C32: =Tablas!B10 -> Obra social | D32: =retenciones(Check!$B$8,$R32,SUM(D$9:D$10,D$16:D$17,D$23:D$24),Tablas!C$7,Tablas!C10,D$9,DedGrales!D14+DedGrales!D25) -> 1500 | E32: =retenciones(Check!$B$8,$R32,SUM(E$9:E$10,E$16:E$17,E$23:E$24),Tablas!D$7,Tablas!D10,E$9,DedGrales!E14+DedGrales!E25) -> 1500 | F32: =retenciones(Check!$B$8,$R32,SUM(F$9:F$10,F$16:F$17,F$23:F$24),Tablas!E$7,Tablas!E10,F$9,DedGrales!F14+DedGrales!F25) -> 1500 | G32: =retenciones(Check!$B$8,$R32,SUM(G$9:G$10,G$16:G$17,G$23:G$24),Tablas!F$7,Tablas!F10,G$9,DedGrales!G14+DedGrales!G25) -> 1590 | H32: =retenciones(Check!$B$8,$R32,SUM(H$9:H$10,H$16:H$17,H$23:H$24),Tablas!G$7,Tablas!G10,H$9,DedGrales!H14+DedGrales!H25) -> 1590 | I32: =retenciones(Check!$B$8,$R32,SUM(I$9:I$10,I$16:I$17,I$23:I$24),Tablas!H$7,Tablas!H10,I$9,DedGrales!I14+DedGrales!I25) -> 1620 | J32: =retenciones(Check!$B$8,$R32,SUM(J$9:J$10,J$16:J$17,J$23:J$24),Tablas!I$7,Tablas!I10,J$9,DedGrales!J14+DedGrales!J25) -> 1620 | K32: =retenciones(Check!$B$8,$R32,SUM(K$9:K$10,K$16:K$17,K$23:K$24),Tablas!J$7,Tablas!J10,K$9,DedGrales!K14+DedGrales!K25) -> 1620 | L32: =retenciones(Check!$B$8,$R32,SUM(L$9:L$10,L$16:L$17,L$23:L$24),Tablas!K$7,Tablas!K10,L$9,DedGrales!L14+DedGrales!L25) -> 1620 | M32: =retenciones(Check!$B$8,$R32,SUM(M$9:M$10,M$16:M$17,M$23:M$24),Tablas!L$7,Tablas!L10,M$9,DedGrales!M14+DedGrales!M25) -> 1620 | N32: =retenciones(Check!$B$8,$R32,SUM(N$9:N$10,N$16:N$17,N$23:N$24),Tablas!M$7,Tablas!M10,N$9,DedGrales!N14+DedGrales!N25) -> 1680 | O32: =retenciones(Check!$B$8,$R32,SUM(O$9:O$10,O$16:O$17,O$23:O$24),Tablas!N$7,Tablas!N10,O$9,DedGrales!O14+DedGrales!O25) -> 1680 | P32: 19140 | R32: =Tablas!O10 -> Sí
C33: =Tablas!B11 -> Sindicato | D33: =retenciones(Check!$B$8,$R33,SUM(D$9:D$10,D$16:D$17,D$23:D$24),Tablas!C$7,Tablas!C11,D$9,DedGrales!D15+DedGrales!D26) -> 0 | E33: =retenciones(Check!$B$8,$R33,SUM(E$9:E$10,E$16:E$17,E$23:E$24),Tablas!D$7,Tablas!D11,E$9,DedGrales!E15+DedGrales!E26) -> 0 | F33: =retenciones(Check!$B$8,$R33,SUM(F$9:F$10,F$16:F$17,F$23:F$24),Tablas!E$7,Tablas!E11,F$9,DedGrales!F15+DedGrales!F26) -> 0 | G33: =retenciones(Check!$B$8,$R33,SUM(G$9:G$10,G$16:G$17,G$23:G$24),Tablas!F$7,Tablas!F11,G$9,DedGrales!G15+DedGrales!G26) -> 0 | H33: =retenciones(Check!$B$8,$R33,SUM(H$9:H$10,H$16:H$17,H$23:H$24),Tablas!G$7,Tablas!G11,H$9,DedGrales!H15+DedGrales!H26) -> 0 | I33: =retenciones(Check!$B$8,$R33,SUM(I$9:I$10,I$16:I$17,I$23:I$24),Tablas!H$7,Tablas!H11,I$9,DedGrales!I15+DedGrales!I26) -> 0 | J33: =retenciones(Check!$B$8,$R33,SUM(J$9:J$10,J$16:J$17,J$23:J$24),Tablas!I$7,Tablas!I11,J$9,DedGrales!J15+DedGrales!J26) -> 0 | K33: =retenciones(Check!$B$8,$R33,SUM(K$9:K$10,K$16:K$17,K$23:K$24),Tablas!J$7,Tablas!J11,K$9,DedGrales!K15+DedGrales!K26) -> 0 | L33: =retenciones(Check!$B$8,$R33,SUM(L$9:L$10,L$16:L$17,L$23:L$24),Tablas!K$7,Tablas!K11,L$9,DedGrales!L15+DedGrales!L26) -> 0 | M33: =retenciones(Check!$B$8,$R33,SUM(M$9:M$10,M$16:M$17,M$23:M$24),Tablas!L$7,Tablas!L11,M$9,DedGrales!M15+DedGrales!M26) -> 0 | N33: =retenciones(Check!$B$8,$R33,SUM(N$9:N$10,N$16:N$17,N$23:N$24),Tablas!M$7,Tablas!M11,N$9,DedGrales!N15+DedGrales!N26) -> 0 | O33: =retenciones(Check!$B$8,$R33,SUM(O$9:O$10,O$16:O$17,O$23:O$24),Tablas!N$7,Tablas!N11,O$9,DedGrales!O15+DedGrales!O26) -> 0 | P33: 0 | R33: =Tablas!O11 -> No
C34: =Tablas!B12 -> 0 | D34: =retenciones(Check!$B$8,$R34,SUM(D$9:D$10,D$16:D$17,D$23:D$24),Tablas!C$7,Tablas!C12,D$9,DedGrales!D16+DedGrales!D27) -> 0 | E34: =retenciones(Check!$B$8,$R34,SUM(E$9:E$10,E$16:E$17,E$23:E$24),Tablas!D$7,Tablas!D12,E$9,DedGrales!E16+DedGrales!E27) -> 0 | F34: =retenciones(Check!$B$8,$R34,SUM(F$9:F$10,F$16:F$17,F$23:F$24),Tablas!E$7,Tablas!E12,F$9,DedGrales!F16+DedGrales!F27) -> 0 | G34: =retenciones(Check!$B$8,$R34,SUM(G$9:G$10,G$16:G$17,G$23:G$24),Tablas!F$7,Tablas!F12,G$9,DedGrales!G16+DedGrales!G27) -> 0 | H34: =retenciones(Check!$B$8,$R34,SUM(H$9:H$10,H$16:H$17,H$23:H$24),Tablas!G$7,Tablas!G12,H$9,DedGrales!H16+DedGrales!H27) -> 0 | I34: =retenciones(Check!$B$8,$R34,SUM(I$9:I$10,I$16:I$17,I$23:I$24),Tablas!H$7,Tablas!H12,I$9,DedGrales!I16+DedGrales!I27) -> 0 | J34: =retenciones(Check!$B$8,$R34,SUM(J$9:J$10,J$16:J$17,J$23:J$24),Tablas!I$7,Tablas!I12,J$9,DedGrales!J16+DedGrales!J27) -> 0 | K34: =retenciones(Check!$B$8,$R34,SUM(K$9:K$10,K$16:K$17,K$23:K$24),Tablas!J$7,Tablas!J12,K$9,DedGrales!K16+DedGrales!K27) -> 0 | L34: =retenciones(Check!$B$8,$R34,SUM(L$9:L$10,L$16:L$17,L$23:L$24),Tablas!K$7,Tablas!K12,L$9,DedGrales!L16+DedGrales!L27) -> 0 | M34: =retenciones(Check!$B$8,$R34,SUM(M$9:M$10,M$16:M$17,M$23:M$24),Tablas!L$7,Tablas!L12,M$9,DedGrales!M16+DedGrales!M27) -> 0 | N34: =retenciones(Check!$B$8,$R34,SUM(N$9:N$10,N$16:N$17,N$23:N$24),Tablas!M$7,Tablas!M12,N$9,DedGrales!N16+DedGrales!N27) -> 0 | O34: =retenciones(Check!$B$8,$R34,SUM(O$9:O$10,O$16:O$17,O$23:O$24),Tablas!N$7,Tablas!N12,O$9,DedGrales!O16+DedGrales!O27) -> 0 | P34: 0 | R34: =Tablas!O12 -> No
C35: =Tablas!B13 -> 0 | D35: =retenciones(Check!$B$8,$R35,SUM(D$9:D$10,D$16:D$17,D$23:D$24),Tablas!C$7,Tablas!C13,D$9,DedGrales!D17+DedGrales!D28) -> 0 | E35: =retenciones(Check!$B$8,$R35,SUM(E$9:E$10,E$16:E$17,E$23:E$24),Tablas!D$7,Tablas!D13,E$9,DedGrales!E17+DedGrales!E28) -> 0 | F35: =retenciones(Check!$B$8,$R35,SUM(F$9:F$10,F$16:F$17,F$23:F$24),Tablas!E$7,Tablas!E13,F$9,DedGrales!F17+DedGrales!F28) -> 0 | G35: =retenciones(Check!$B$8,$R35,SUM(G$9:G$10,G$16:G$17,G$23:G$24),Tablas!F$7,Tablas!F13,G$9,DedGrales!G17+DedGrales!G28) -> 0 | H35: =retenciones(Check!$B$8,$R35,SUM(H$9:H$10,H$16:H$17,H$23:H$24),Tablas!G$7,Tablas!G13,H$9,DedGrales!H17+DedGrales!H28) -> 0 | I35: =retenciones(Check!$B$8,$R35,SUM(I$9:I$10,I$16:I$17,I$23:I$24),Tablas!H$7,Tablas!H13,I$9,DedGrales!I17+DedGrales!I28) -> 0 | J35: =retenciones(Check!$B$8,$R35,SUM(J$9:J$10,J$16:J$17,J$23:J$24),Tablas!I$7,Tablas!I13,J$9,DedGrales!J17+DedGrales!J28) -> 0 | K35: =retenciones(Check!$B$8,$R35,SUM(K$9:K$10,K$16:K$17,K$23:K$24),Tablas!J$7,Tablas!J13,K$9,DedGrales!K17+DedGrales!K28) -> 0 | L35: =retenciones(Check!$B$8,$R35,SUM(L$9:L$10,L$16:L$17,L$23:L$24),Tablas!K$7,Tablas!K13,L$9,DedGrales!L17+DedGrales!L28) -> 0 | M35: =retenciones(Check!$B$8,$R35,SUM(M$9:M$10,M$16:M$17,M$23:M$24),Tablas!L$7,Tablas!L13,M$9,DedGrales!M17+DedGrales!M28) -> 0 | N35: =retenciones(Check!$B$8,$R35,SUM(N$9:N$10,N$16:N$17,N$23:N$24),Tablas!M$7,Tablas!M13,N$9,DedGrales!N17+DedGrales!N28) -> 0 | O35: =retenciones(Check!$B$8,$R35,SUM(O$9:O$10,O$16:O$17,O$23:O$24),Tablas!N$7,Tablas!N13,O$9,DedGrales!O17+DedGrales!O28) -> 0 | P35: 0 | R35: =Tablas!O13 -> No
C36: Prorrateo | R36: Aplica tope
C37: =C30 -> Jubilación | D37: =retenciones(Check!$B$8,$R37,SUM(D$9:D$10,D$16:D$17,D$23:D$24),Tablas!C$7,Tablas!C8,D$10,0) -> 0 | E37: =retenciones(Check!$B$8,$R37,SUM(E$9:E$10,E$16:E$17,E$23:E$24),Tablas!D$7,Tablas!D8,E$10,0) -> 0 | F37: =retenciones(Check!$B$8,$R37,SUM(F$9:F$10,F$16:F$17,F$23:F$24),Tablas!E$7,Tablas!E8,F$10,0) -> 0 | G37: =retenciones(Check!$B$8,$R37,SUM(G$9:G$10,G$16:G$17,G$23:G$24),Tablas!F$7,Tablas!F8,G$10,0) -> 0 | H37: =retenciones(Check!$B$8,$R37,SUM(H$9:H$10,H$16:H$17,H$23:H$24),Tablas!G$7,Tablas!G8,H$10,0) -> 0 | I37: =retenciones(Check!$B$8,$R37,SUM(I$9:I$10,I$16:I$17,I$23:I$24),Tablas!H$7,Tablas!H8,I$10,0) -> 0 | J37: =retenciones(Check!$B$8,$R37,SUM(J$9:J$10,J$16:J$17,J$23:J$24),Tablas!I$7,Tablas!I8,J$10,0) -> 0 | K37: =retenciones(Check!$B$8,$R37,SUM(K$9:K$10,K$16:K$17,K$23:K$24),Tablas!J$7,Tablas!J8,K$10,0) -> 0 | L37: =retenciones(Check!$B$8,$R37,SUM(L$9:L$10,L$16:L$17,L$23:L$24),Tablas!K$7,Tablas!K8,L$10,0) -> 0 | M37: =retenciones(Check!$B$8,$R37,SUM(M$9:M$10,M$16:M$17,M$23:M$24),Tablas!L$7,Tablas!L8,M$10,0) -> 0 | N37: =retenciones(Check!$B$8,$R37,SUM(N$9:N$10,N$16:N$17,N$23:N$24),Tablas!M$7,Tablas!M8,N$10,0) -> 0 | O37: =retenciones(Check!$B$8,$R37,SUM(O$9:O$10,O$16:O$17,O$23:O$24),Tablas!N$7,Tablas!N8,O$10,0) -> 0 | P37: =SUM(D37:O37) -> 0 | R37: =R30 -> Sí
C38: =C31 -> Ley 19032 | D38: =retenciones(Check!$B$8,$R38,SUM(D$9:D$10,D$16:D$17,D$23:D$24),Tablas!C$7,Tablas!C9,D$10,0) -> 0 | E38: =retenciones(Check!$B$8,$R38,SUM(E$9:E$10,E$16:E$17,E$23:E$24),Tablas!D$7,Tablas!D9,E$10,0) -> 0 | F38: =retenciones(Check!$B$8,$R38,SUM(F$9:F$10,F$16:F$17,F$23:F$24),Tablas!E$7,Tablas!E9,F$10,0) -> 0 | G38: =retenciones(Check!$B$8,$R38,SUM(G$9:G$10,G$16:G$17,G$23:G$24),Tablas!F$7,Tablas!F9,G$10,0) -> 0 | H38: =retenciones(Check!$B$8,$R38,SUM(H$9:H$10,H$16:H$17,H$23:H$24),Tablas!G$7,Tablas!G9,H$10,0) -> 0 | I38: =retenciones(Check!$B$8,$R38,SUM(I$9:I$10,I$16:I$17,I$23:I$24),Tablas!H$7,Tablas!H9,I$10,0) -> 0 | J38: =retenciones(Check!$B$8,$R38,SUM(J$9:J$10,J$16:J$17,J$23:J$24),Tablas!I$7,Tablas!I9,J$10,0) -> 0 | K38: =retenciones(Check!$B$8,$R38,SUM(K$9:K$10,K$16:K$17,K$23:K$24),Tablas!J$7,Tablas!J9,K$10,0) -> 0 | L38: =retenciones(Check!$B$8,$R38,SUM(L$9:L$10,L$16:L$17,L$23:L$24),Tablas!K$7,Tablas!K9,L$10,0) -> 0 | M38: =retenciones(Check!$B$8,$R38,SUM(M$9:M$10,M$16:M$17,M$23:M$24),Tablas!L$7,Tablas!L9,M$10,0) -> 0 | N38: =retenciones(Check!$B$8,$R38,SUM(N$9:N$10,N$16:N$17,N$23:N$24),Tablas!M$7,Tablas!M9,N$10,0) -> 0 | O38: =retenciones(Check!$B$8,$R38,SUM(O$9:O$10,O$16:O$17,O$23:O$24),Tablas!N$7,Tablas!N9,O$10,0) -> 0 | P38: =SUM(D38:O38) -> 0 | R38: =R31 -> Sí
C39: =C32 -> Obra social | D39: =retenciones(Check!$B$8,$R39,SUM(D$9:D$10,D$16:D$17,D$23:D$24),Tablas!C$7,Tablas!C10,D$10,0) -> 0 | E39: =retenciones(Check!$B$8,$R39,SUM(E$9:E$10,E$16:E$17,E$23:E$24),Tablas!D$7,Tablas!D10,E$10,0) -> 0 | F39: =retenciones(Check!$B$8,$R39,SUM(F$9:F$10,F$16:F$17,F$23:F$24),Tablas!E$7,Tablas!E10,F$10,0) -> 0 | G39: =retenciones(Check!$B$8,$R39,SUM(G$9:G$10,G$16:G$17,G$23:G$24),Tablas!F$7,Tablas!F10,G$10,0) -> 0 | H39: =retenciones(Check!$B$8,$R39,SUM(H$9:H$10,H$16:H$17,H$23:H$24),Tablas!G$7,Tablas!G10,H$10,0) -> 0 | I39: =retenciones(Check!$B$8,$R39,SUM(I$9:I$10,I$16:I$17,I$23:I$24),Tablas!H$7,Tablas!H10,I$10,0) -> 0 | J39: =retenciones(Check!$B$8,$R39,SUM(J$9:J$10,J$16:J$17,J$23:J$24),Tablas!I$7,Tablas!I10,J$10,0) -> 0 | K39: =retenciones(Check!$B$8,$R39,SUM(K$9:K$10,K$16:K$17,K$23:K$24),Tablas!J$7,Tablas!J10,K$10,0) -> 0 | L39: =retenciones(Check!$B$8,$R39,SUM(L$9:L$10,L$16:L$17,L$23:L$24),Tablas!K$7,Tablas!K10,L$10,0) -> 0 | M39: =retenciones(Check!$B$8,$R39,SUM(M$9:M$10,M$16:M$17,M$23:M$24),Tablas!L$7,Tablas!L10,M$10,0) -> 0 | N39: =retenciones(Check!$B$8,$R39,SUM(N$9:N$10,N$16:N$17,N$23:N$24),Tablas!M$7,Tablas!M10,N$10,0) -> 0 | O39: =retenciones(Check!$B$8,$R39,SUM(O$9:O$10,O$16:O$17,O$23:O$24),Tablas!N$7,Tablas!N10,O$10,0) -> 0 | P39: 0 | R39: =R32 -> Sí
C40: =C33 -> Sindicato | D40: =retenciones(Check!$B$8,$R40,SUM(D$9:D$10,D$16:D$17,D$23:D$24),Tablas!C$7,Tablas!C11,D$10,0) -> 0 | E40: =retenciones(Check!$B$8,$R40,SUM(E$9:E$10,E$16:E$17,E$23:E$24),Tablas!D$7,Tablas!D11,E$10,0) -> 0 | F40: =retenciones(Check!$B$8,$R40,SUM(F$9:F$10,F$16:F$17,F$23:F$24),Tablas!E$7,Tablas!E11,F$10,0) -> 0 | G40: =retenciones(Check!$B$8,$R40,SUM(G$9:G$10,G$16:G$17,G$23:G$24),Tablas!F$7,Tablas!F11,G$10,0) -> 0 | H40: =retenciones(Check!$B$8,$R40,SUM(H$9:H$10,H$16:H$17,H$23:H$24),Tablas!G$7,Tablas!G11,H$10,0) -> 0 | I40: =retenciones(Check!$B$8,$R40,SUM(I$9:I$10,I$16:I$17,I$23:I$24),Tablas!H$7,Tablas!H11,I$10,0) -> 0 | J40: =retenciones(Check!$B$8,$R40,SUM(J$9:J$10,J$16:J$17,J$23:J$24),Tablas!I$7,Tablas!I11,J$10,0) -> 0 | K40: =retenciones(Check!$B$8,$R40,SUM(K$9:K$10,K$16:K$17,K$23:K$24),Tablas!J$7,Tablas!J11,K$10,0) -> 0 | L40: =retenciones(Check!$B$8,$R40,SUM(L$9:L$10,L$16:L$17,L$23:L$24),Tablas!K$7,Tablas!K11,L$10,0) -> 0 | M40: =retenciones(Check!$B$8,$R40,SUM(M$9:M$10,M$16:M$17,M$23:M$24),Tablas!L$7,Tablas!L11,M$10,0) -> 0 | N40: =retenciones(Check!$B$8,$R40,SUM(N$9:N$10,N$16:N$17,N$23:N$24),Tablas!M$7,Tablas!M11,N$10,0) -> 0 | O40: =retenciones(Check!$B$8,$R40,SUM(O$9:O$10,O$16:O$17,O$23:O$24),Tablas!N$7,Tablas!N11,O$10,0) -> 0 | P40: 0 | R40: =R33 -> No
C41: =C34 -> 0 | D41: =retenciones(Check!$B$8,$R41,SUM(D$9:D$10,D$16:D$17,D$23:D$24),Tablas!C$7,Tablas!C12,D$10,0) -> 0 | E41: =retenciones(Check!$B$8,$R41,SUM(E$9:E$10,E$16:E$17,E$23:E$24),Tablas!D$7,Tablas!D12,E$10,0) -> 0 | F41: =retenciones(Check!$B$8,$R41,SUM(F$9:F$10,F$16:F$17,F$23:F$24),Tablas!E$7,Tablas!E12,F$10,0) -> 0 | G41: =retenciones(Check!$B$8,$R41,SUM(G$9:G$10,G$16:G$17,G$23:G$24),Tablas!F$7,Tablas!F12,G$10,0) -> 0 | H41: =retenciones(Check!$B$8,$R41,SUM(H$9:H$10,H$16:H$17,H$23:H$24),Tablas!G$7,Tablas!G12,H$10,0) -> 0 | I41: =retenciones(Check!$B$8,$R41,SUM(I$9:I$10,I$16:I$17,I$23:I$24),Tablas!H$7,Tablas!H12,I$10,0) -> 0 | J41: =retenciones(Check!$B$8,$R41,SUM(J$9:J$10,J$16:J$17,J$23:J$24),Tablas!I$7,Tablas!I12,J$10,0) -> 0 | K41: =retenciones(Check!$B$8,$R41,SUM(K$9:K$10,K$16:K$17,K$23:K$24),Tablas!J$7,Tablas!J12,K$10,0) -> 0 | L41: =retenciones(Check!$B$8,$R41,SUM(L$9:L$10,L$16:L$17,L$23:L$24),Tablas!K$7,Tablas!K12,L$10,0) -> 0 | M41: =retenciones(Check!$B$8,$R41,SUM(M$9:M$10,M$16:M$17,M$23:M$24),Tablas!L$7,Tablas!L12,M$10,0) -> 0 | N41: =retenciones(Check!$B$8,$R41,SUM(N$9:N$10,N$16:N$17,N$23:N$24),Tablas!M$7,Tablas!M12,N$10,0) -> 0 | O41: =retenciones(Check!$B$8,$R41,SUM(O$9:O$10,O$16:O$17,O$23:O$24),Tablas!N$7,Tablas!N12,O$10,0) -> 0 | P41: 0 | R41: =R34 -> No
C42: 0 | D42: =retenciones(Check!$B$8,$R42,SUM(D$9:D$10,D$16:D$17,D$23:D$24),Tablas!C$7,Tablas!C13,D$10,0) -> 0 | E42: =retenciones(Check!$B$8,$R42,SUM(E$9:E$10,E$16:E$17,E$23:E$24),Tablas!D$7,Tablas!D13,E$10,0) -> 0 | F42: =retenciones(Check!$B$8,$R42,SUM(F$9:F$10,F$16:F$17,F$23:F$24),Tablas!E$7,Tablas!E13,F$10,0) -> 0 | G42: =retenciones(Check!$B$8,$R42,SUM(G$9:G$10,G$16:G$17,G$23:G$24),Tablas!F$7,Tablas!F13,G$10,0) -> 0 | H42: =retenciones(Check!$B$8,$R42,SUM(H$9:H$10,H$16:H$17,H$23:H$24),Tablas!G$7,Tablas!G13,H$10,0) -> 0 | I42: =retenciones(Check!$B$8,$R42,SUM(I$9:I$10,I$16:I$17,I$23:I$24),Tablas!H$7,Tablas!H13,I$10,0) -> 0 | J42: =retenciones(Check!$B$8,$R42,SUM(J$9:J$10,J$16:J$17,J$23:J$24),Tablas!I$7,Tablas!I13,J$10,0) -> 0 | K42: =retenciones(Check!$B$8,$R42,SUM(K$9:K$10,K$16:K$17,K$23:K$24),Tablas!J$7,Tablas!J13,K$10,0) -> 0 | L42: =retenciones(Check!$B$8,$R42,SUM(L$9:L$10,L$16:L$17,L$23:L$24),Tablas!K$7,Tablas!K13,L$10,0) -> 0 | M42: =retenciones(Check!$B$8,$R42,SUM(M$9:M$10,M$16:M$17,M$23:M$24),Tablas!L$7,Tablas!L13,M$10,0) -> 0 | N42: =retenciones(Check!$B$8,$R42,SUM(N$9:N$10,N$16:N$17,N$23:N$24),Tablas!M$7,Tablas!M13,N$10,0) -> 0 | O42: =retenciones(Check!$B$8,$R42,SUM(O$9:O$10,O$16:O$17,O$23:O$24),Tablas!N$7,Tablas!N13,O$10,0) -> 0 | P42: 0 | R42: No
C45: Total deducciones | D45: =SUM(D30:D35) -> 8500 | E45: =SUM(E30:E35) -> 8500 | F45: 8500 | G45: 9010 | H45: 9010 | I45: 9180 | J45: 9180 | K45: 9180 | L45: 9180 | M45: 9180 | N45: 9520 | O45: 9520 | P45: 108460
C47: Ingresos gravados (prorrateo) acumulados
C48: Gravado
C49: Sueldo Rem. (prorrateo) | D49: =SUM(D50:D61) -> 0 | E49: =SUM(E50:E61) -> 0 | F49: 0 | G49: 0 | H49: 0 | I49: 0 | J49: 0 | K49: 0 | L49: 0 | M49: 0 | N49: 0 | O49: 0 | P49: =SUM(D49:O49) -> 0
B50: 1 | C50: Sueldo Rem. (prorrateo) | D50: =(D10+D12)/12 -> 0 | E50: =+D50 -> 0 | F50: =+E50 -> 0 | G50: 0 | H50: 0 | I50: 0 | J50: 0 | K50: 0 | L50: 0 | M50: 0 | N50: 0 | O50: 0 | P50: =SUM(D50:O50) -> 0
B51: =+B50+1 -> 2 | C51: Sueldo Rem. (prorrateo) | E51: =(+$E10+E12)/11 -> 0 | F51: =+E51 -> 0 | G51: 0 | H51: 0 | I51: 0 | J51: 0 | K51: 0 | L51: 0 | M51: 0 | N51: 0 | O51: 0 | P51: 0
B52: =+B51+1 -> 3 | C52: Sueldo Rem. (prorrateo) | F52: =(+$F10+F12)/10 -> 0 | G52: =+F52 -> 0 | H52: 0 | I52: 0 | J52: 0 | K52: 0 | L52: 0 | M52: 0 | N52: 0 | O52: 0 | P52: 0
B53: 4 | C53: Sueldo Rem. (prorrateo) | G53: =(G10+G12)/9 -> 0 | H53: =+G53 -> 0 | I53: 0 | J53: 0 | K53: 0 | L53: 0 | M53: 0 | N53: 0 | O53: 0 | P53: 0
B54: 5 | C54: Sueldo Rem. (prorrateo) | H54: =(H10+H12)/8 -> 0 | I54: =+H54 -> 0 | J54: 0 | K54: 0 | L54: 0 | M54: 0 | N54: 0 | O54: 0 | P54: 0
B55: 6 | C55: Sueldo Rem. (prorrateo) | I55: =(+I10+I12)/7 -> 0 | J55: =+I55 -> 0 | K55: 0 | L55: 0 | M55: 0 | N55: 0 | O55: 0 | P55: 0
B56: 7 | C56: Sueldo Rem. (prorrateo) | J56: =(+J10+J12)/6 -> 0 | K56: =+J56 -> 0 | L56: 0 | M56: 0 | N56: 0 | O56: 0 | P56: 0
B57: 8 | C57: Sueldo Rem. (prorrateo) | K57: =(+K10+K12)/5 -> 0 | L57: =+K57 -> 0 | M57: 0 | N57: 0 | O57: 0 | P57: 0
B58: 9 | C58: Sueldo Rem. (prorrateo) | L58: =(+L10+L12)/4 -> 0 | M58: =+L58 -> 0 | N58: 0 | O58: 0 | P58: 0
B59: 10 | C59: Sueldo Rem. (prorrateo) | M59: =(M10+M12)/3 -> 0 | N59: =+M59 -> 0 | O59: =+N59 -> 0 | P59: 0
B60: 11 | C60: Sueldo Rem. (prorrateo) | N60: =(+N10+N12)/2 -> 0 | O60: =+N60 -> 0 | P60: 0
B61: 12 | C61: Sueldo Rem. (prorrateo) | O61: =(+O10+O12)/1 -> 0 | P61: 0
C63: Deducciones Prorrateo | D63: =SUM(D64:D75) -> 0 | E63: =SUM(E64:E75) -> 0 | F63: 0 | G63: 0 | H63: 0 | I63: 0 | J63: 0 | K63: 0 | L63: 0 | M63: 0 | N63: 0 | O63: 0 | P63: =SUM(D63:O63) -> 0
B64: 1 | C64: Deducciones Prorrateo | D64: =+SUM(D$37:D$42)/12 -> 0 | E64: =+D64 -> 0 | F64: =+E64 -> 0 | G64: 0 | H64: 0 | I64: 0 | J64: 0 | K64: 0 | L64: 0 | M64: 0 | N64: 0 | O64: 0 | P64: 0
B65: =+B64+1 -> 2 | C65: Deducciones Prorrateo | E65: =+SUM(E$37:E$42)/11 -> 0 | F65: =+E65 -> 0 | G65: =+F65 -> 0 | H65: 0 | I65: 0 | J65: 0 | K65: 0 | L65: 0 | M65: 0 | N65: 0 | O65: 0 | P65: 0
B66: =+B65+1 -> 3 | C66: Deducciones Prorrateo | F66: =+SUM(F$37:F$42)/10 -> 0 | G66: =+F66 -> 0 | H66: 0 | I66: 0 | J66: 0 | K66: 0 | L66: 0 | M66: 0 | N66: 0 | O66: 0 | P66: 0
B67: 4 | C67: Deducciones Prorrateo | G67: =+SUM(G$37:G$42)/9 -> 0 | H67: =+G67 -> 0 | I67: =+H67 -> 0 | J67: 0 | K67: 0 | L67: 0 | M67: 0 | N67: 0 | O67: 0 | P67: 0
B68: 5 | C68: Deducciones Prorrateo | H68: =+SUM(H$37:H$42)/8 -> 0 | I68: =+H68 -> 0 | J68: 0 | K68: 0 | L68: 0 | M68: 0 | N68: 0 | O68: 0 | P68: 0
B69: 6 | C69: Deducciones Prorrateo | I69: =+SUM(I$37:I$42)/7 -> 0 | J69: =+I69 -> 0 | K69: 0 | L69: 0 | M69: 0 | N69: 0 | O69: 0 | P69: 0
B70: 7 | C70: Deducciones Prorrateo | J70: =+SUM(J$37:J$42)/6 -> 0 | K70: =+J70 -> 0 | L70: 0 | M70: 0 | N70: 0 | O70: 0 | P70: 0
B71: 8 | C71: Deducciones Prorrateo | K71: =+SUM(K$37:K$42)/5 -> 0 | L71: =+K71 -> 0 | M71: 0 | N71: 0 | O71: 0 | P71: 0
B72: 9 | C72: Deducciones Prorrateo | L72: =+SUM(L$37:L$42)/4 -> 0 | M72: =+L72 -> 0 | N72: 0 | O72: 0 | P72: 0
B73: 10 | C73: Deducciones Prorrateo | M73: =+SUM(M$37:M$42)/3 -> 0 | N73: =+M73 -> 0 | O73: 0 | P73: 0
B74: =+B73+1 -> 11 | C74: Deducciones Prorrateo | N74: =+SUM(N$37:N$42)/2 -> 0 | O74: =+N74 -> 0 | P74: 0
B75: =+B74+1 -> 12 | C75: Deducciones Prorrateo | O75: =+SUM(O$37:O$42) -> 0 | P75: 0
C78: Deducciones generales | D78: 2017-01-01 | E78: 2017-02-01 | F78: 2017-03-01 | G78: 2017-04-01 | H78: 2017-05-01 | I78: 2017-06-01 | J78: 2017-07-01 | K78: 2017-08-01 | L78: 2017-09-01 | M78: 2017-10-01 | N78: 2017-11-01 | O78: 2017-12-01 | P78: Anual
C79: Seguro de Vida | D79: =SUMIF(DedGrales!$D$79:$O$79,MONTH(Auxiliares!D$5),DedGrales!$D$77:$O$77) -> 0 | E79: =SUMIF(DedGrales!$D$79:$O$79,MONTH(Auxiliares!E$5),DedGrales!$D$77:$O$77) -> 0 | F79: =SUMIF(DedGrales!$D$79:$O$79,MONTH(Auxiliares!F$5),DedGrales!$D$77:$O$77) -> 0 | G79: =SUMIF(DedGrales!$D$79:$O$79,MONTH(Auxiliares!G$5),DedGrales!$D$77:$O$77) -> 0 | H79: =SUMIF(DedGrales!$D$79:$O$79,MONTH(Auxiliares!H$5),DedGrales!$D$77:$O$77) -> 0 | I79: =SUMIF(DedGrales!$D$79:$O$79,MONTH(Auxiliares!I$5),DedGrales!$D$77:$O$77) -> 0 | J79: =SUMIF(DedGrales!$D$79:$O$79,MONTH(Auxiliares!J$5),DedGrales!$D$77:$O$77) -> 0 | K79: =SUMIF(DedGrales!$D$79:$O$79,MONTH(Auxiliares!K$5),DedGrales!$D$77:$O$77) -> 0 | L79: =SUMIF(DedGrales!$D$79:$O$79,MONTH(Auxiliares!L$5),DedGrales!$D$77:$O$77) -> 0 | M79: =SUMIF(DedGrales!$D$79:$O$79,MONTH(Auxiliares!M$5),DedGrales!$D$77:$O$77) -> 0 | N79: =SUMIF(DedGrales!$D$79:$O$79,MONTH(Auxiliares!N$5),DedGrales!$D$77:$O$77) -> 0 | O79: =SUMIF(DedGrales!$D$79:$O$79,MONTH(Auxiliares!O$5),DedGrales!$D$77:$O$77) -> 0 | P79: =SUM(D79:O79) -> 0
C80: Gastos de Sepelio | D80: =SUMIF(DedGrales!$D$90:$O$90,MONTH(Auxiliares!D$5),DedGrales!$D$88:$O$88) -> 0 | E80: =SUMIF(DedGrales!$D$90:$O$90,MONTH(Auxiliares!E$5),DedGrales!$D$88:$O$88) -> 0 | F80: =SUMIF(DedGrales!$D$90:$O$90,MONTH(Auxiliares!F$5),DedGrales!$D$88:$O$88) -> 0 | G80: =SUMIF(DedGrales!$D$90:$O$90,MONTH(Auxiliares!G$5),DedGrales!$D$88:$O$88) -> 0 | H80: =SUMIF(DedGrales!$D$90:$O$90,MONTH(Auxiliares!H$5),DedGrales!$D$88:$O$88) -> 0 | I80: =SUMIF(DedGrales!$D$90:$O$90,MONTH(Auxiliares!I$5),DedGrales!$D$88:$O$88) -> 0 | J80: =SUMIF(DedGrales!$D$90:$O$90,MONTH(Auxiliares!J$5),DedGrales!$D$88:$O$88) -> 0 | K80: =SUMIF(DedGrales!$D$90:$O$90,MONTH(Auxiliares!K$5),DedGrales!$D$88:$O$88) -> 0 | L80: =SUMIF(DedGrales!$D$90:$O$90,MONTH(Auxiliares!L$5),DedGrales!$D$88:$O$88) -> 0 | M80: =SUMIF(DedGrales!$D$90:$O$90,MONTH(Auxiliares!M$5),DedGrales!$D$88:$O$88) -> 0 | N80: =SUMIF(DedGrales!$D$90:$O$90,MONTH(Auxiliares!N$5),DedGrales!$D$88:$O$88) -> 0 | O80: =SUMIF(DedGrales!$D$90:$O$90,MONTH(Auxiliares!O$5),DedGrales!$D$88:$O$88) -> 0 | P80: =SUM(D80:O80) -> 0
C81: Intereses Crédito Hipotecario | D81: =SUMIF(DedGrales!$D$107:$O$107,MONTH(Auxiliares!D$5),DedGrales!$D$105:$O$105) -> 0 | E81: =SUMIF(DedGrales!$D$107:$O$107,MONTH(Auxiliares!E$5),DedGrales!$D$105:$O$105) -> 0 | F81: =SUMIF(DedGrales!$D$107:$O$107,MONTH(Auxiliares!F$5),DedGrales!$D$105:$O$105) -> 0 | G81: =SUMIF(DedGrales!$D$107:$O$107,MONTH(Auxiliares!G$5),DedGrales!$D$105:$O$105) -> 0 | H81: =SUMIF(DedGrales!$D$107:$O$107,MONTH(Auxiliares!H$5),DedGrales!$D$105:$O$105) -> 0 | I81: =SUMIF(DedGrales!$D$107:$O$107,MONTH(Auxiliares!I$5),DedGrales!$D$105:$O$105) -> 0 | J81: =SUMIF(DedGrales!$D$107:$O$107,MONTH(Auxiliares!J$5),DedGrales!$D$105:$O$105) -> 0 | K81: =SUMIF(DedGrales!$D$107:$O$107,MONTH(Auxiliares!K$5),DedGrales!$D$105:$O$105) -> 0 | L81: =SUMIF(DedGrales!$D$107:$O$107,MONTH(Auxiliares!L$5),DedGrales!$D$105:$O$105) -> 0 | M81: =SUMIF(DedGrales!$D$107:$O$107,MONTH(Auxiliares!M$5),DedGrales!$D$105:$O$105) -> 0 | N81: =SUMIF(DedGrales!$D$107:$O$107,MONTH(Auxiliares!N$5),DedGrales!$D$105:$O$105) -> 0 | O81: =SUMIF(DedGrales!$D$107:$O$107,MONTH(Auxiliares!O$5),DedGrales!$D$105:$O$105) -> 0 | P81: 0
C82: Personal de Casas Particulares | D82: =SUMIF(DedGrales!$D$98:$O$98,MONTH(Auxiliares!D$5),DedGrales!$D$96:$O$96) -> 0 | E82: =SUMIF(DedGrales!$D$98:$O$98,MONTH(Auxiliares!E$5),DedGrales!$D$96:$O$96) -> 0 | F82: =SUMIF(DedGrales!$D$98:$O$98,MONTH(Auxiliares!F$5),DedGrales!$D$96:$O$96) -> 0 | G82: =SUMIF(DedGrales!$D$98:$O$98,MONTH(Auxiliares!G$5),DedGrales!$D$96:$O$96) -> 0 | H82: =SUMIF(DedGrales!$D$98:$O$98,MONTH(Auxiliares!H$5),DedGrales!$D$96:$O$96) -> 0 | I82: =SUMIF(DedGrales!$D$98:$O$98,MONTH(Auxiliares!I$5),DedGrales!$D$96:$O$96) -> 0 | J82: =SUMIF(DedGrales!$D$98:$O$98,MONTH(Auxiliares!J$5),DedGrales!$D$96:$O$96) -> 0 | K82: =SUMIF(DedGrales!$D$98:$O$98,MONTH(Auxiliares!K$5),DedGrales!$D$96:$O$96) -> 0 | L82: =SUMIF(DedGrales!$D$98:$O$98,MONTH(Auxiliares!L$5),DedGrales!$D$96:$O$96) -> 0 | M82: =SUMIF(DedGrales!$D$98:$O$98,MONTH(Auxiliares!M$5),DedGrales!$D$96:$O$96) -> 0 | N82: =SUMIF(DedGrales!$D$98:$O$98,MONTH(Auxiliares!N$5),DedGrales!$D$96:$O$96) -> 0 | O82: =SUMIF(DedGrales!$D$98:$O$98,MONTH(Auxiliares!O$5),DedGrales!$D$96:$O$96) -> 0 | P82: 0
C83: Aportes a fondos de jubilaciones | D83: =SUMIF(DedGrales!$D$45:$O$45,MONTH(Auxiliares!D$5),DedGrales!$D$43:$O$43) -> 0 | E83: =SUMIF(DedGrales!$D$45:$O$45,MONTH(Auxiliares!E$5),DedGrales!$D$43:$O$43) -> 0 | F83: =SUMIF(DedGrales!$D$45:$O$45,MONTH(Auxiliares!F$5),DedGrales!$D$43:$O$43) -> 0 | G83: =SUMIF(DedGrales!$D$45:$O$45,MONTH(Auxiliares!G$5),DedGrales!$D$43:$O$43) -> 0 | H83: =SUMIF(DedGrales!$D$45:$O$45,MONTH(Auxiliares!H$5),DedGrales!$D$43:$O$43) -> 0 | I83: =SUMIF(DedGrales!$D$45:$O$45,MONTH(Auxiliares!I$5),DedGrales!$D$43:$O$43) -> 0 | J83: =SUMIF(DedGrales!$D$45:$O$45,MONTH(Auxiliares!J$5),DedGrales!$D$43:$O$43) -> 0 | K83: =SUMIF(DedGrales!$D$45:$O$45,MONTH(Auxiliares!K$5),DedGrales!$D$43:$O$43) -> 0 | L83: =SUMIF(DedGrales!$D$45:$O$45,MONTH(Auxiliares!L$5),DedGrales!$D$43:$O$43) -> 0 | M83: =SUMIF(DedGrales!$D$45:$O$45,MONTH(Auxiliares!M$5),DedGrales!$D$43:$O$43) -> 0 | N83: =SUMIF(DedGrales!$D$45:$O$45,MONTH(Auxiliares!N$5),DedGrales!$D$43:$O$43) -> 0 | O83: =SUMIF(DedGrales!$D$45:$O$45,MONTH(Auxiliares!O$5),DedGrales!$D$43:$O$43) -> 0 | P83: 0
C84: Alquiler de casa habitación | D84: =SUMIF(DedGrales!$D$70:$O$70,MONTH(Auxiliares!D$5),DedGrales!$D$68:$O$68)*0.4 -> 1800 | E84: =SUMIF(DedGrales!$D$70:$O$70,MONTH(Auxiliares!E$5),DedGrales!$D$68:$O$68)*0.4 -> 1800 | F84: =SUMIF(DedGrales!$D$70:$O$70,MONTH(Auxiliares!F$5),DedGrales!$D$68:$O$68)*0.4 -> 1800 | G84: =SUMIF(DedGrales!$D$70:$O$70,MONTH(Auxiliares!G$5),DedGrales!$D$68:$O$68)*0.4 -> 1800 | H84: =SUMIF(DedGrales!$D$70:$O$70,MONTH(Auxiliares!H$5),DedGrales!$D$68:$O$68)*0.4 -> 1800 | I84: =SUMIF(DedGrales!$D$70:$O$70,MONTH(Auxiliares!I$5),DedGrales!$D$68:$O$68)*0.4 -> 1800 | J84: =SUMIF(DedGrales!$D$70:$O$70,MONTH(Auxiliares!J$5),DedGrales!$D$68:$O$68)*0.4 -> 2200 | K84: =SUMIF(DedGrales!$D$70:$O$70,MONTH(Auxiliares!K$5),DedGrales!$D$68:$O$68)*0.4 -> 2200 | L84: =SUMIF(DedGrales!$D$70:$O$70,MONTH(Auxiliares!L$5),DedGrales!$D$68:$O$68)*0.4 -> 2200 | M84: =SUMIF(DedGrales!$D$70:$O$70,MONTH(Auxiliares!M$5),DedGrales!$D$68:$O$68)*0.4 -> 2200 | N84: =SUMIF(DedGrales!$D$70:$O$70,MONTH(Auxiliares!N$5),DedGrales!$D$68:$O$68)*0.4 -> 2200 | O84: =SUMIF(DedGrales!$D$70:$O$70,MONTH(Auxiliares!O$5),DedGrales!$D$68:$O$68)*0.4 -> 2200 | P84: 24000
C85: Viáticos | D85: =SUMIF(DedGrales!$D$150:$O$150,MONTH(Auxiliares!D$5),DedGrales!$D$148:$O$148) -> 0 | E85: =SUMIF(DedGrales!$D$150:$O$150,MONTH(Auxiliares!E$5),DedGrales!$D$148:$O$148) -> 0 | F85: =SUMIF(DedGrales!$D$150:$O$150,MONTH(Auxiliares!F$5),DedGrales!$D$148:$O$148) -> 0 | G85: =SUMIF(DedGrales!$D$150:$O$150,MONTH(Auxiliares!G$5),DedGrales!$D$148:$O$148) -> 0 | H85: =SUMIF(DedGrales!$D$150:$O$150,MONTH(Auxiliares!H$5),DedGrales!$D$148:$O$148) -> 0 | I85: =SUMIF(DedGrales!$D$150:$O$150,MONTH(Auxiliares!I$5),DedGrales!$D$148:$O$148) -> 0 | J85: =SUMIF(DedGrales!$D$150:$O$150,MONTH(Auxiliares!J$5),DedGrales!$D$148:$O$148) -> 0 | K85: =SUMIF(DedGrales!$D$150:$O$150,MONTH(Auxiliares!K$5),DedGrales!$D$148:$O$148) -> 0 | L85: =SUMIF(DedGrales!$D$150:$O$150,MONTH(Auxiliares!L$5),DedGrales!$D$148:$O$148) -> 0 | M85: =SUMIF(DedGrales!$D$150:$O$150,MONTH(Auxiliares!M$5),DedGrales!$D$148:$O$148) -> 0 | N85: =SUMIF(DedGrales!$D$150:$O$150,MONTH(Auxiliares!N$5),DedGrales!$D$148:$O$148) -> 0 | O85: =SUMIF(DedGrales!$D$150:$O$150,MONTH(Auxiliares!O$5),DedGrales!$D$148:$O$148) -> 0 | P85: 0
C86: Descuentos obligatorios | D86: =SUMIF(DedGrales!$D$37:$O$37,MONTH(Auxiliares!D$5),DedGrales!$D$35:$O$35) -> 0 | E86: =SUMIF(DedGrales!$D$37:$O$37,MONTH(Auxiliares!E$5),DedGrales!$D$35:$O$35) -> 0 | F86: =SUMIF(DedGrales!$D$37:$O$37,MONTH(Auxiliares!F$5),DedGrales!$D$35:$O$35) -> 0 | G86: =SUMIF(DedGrales!$D$37:$O$37,MONTH(Auxiliares!G$5),DedGrales!$D$35:$O$35) -> 0 | H86: =SUMIF(DedGrales!$D$37:$O$37,MONTH(Auxiliares!H$5),DedGrales!$D$35:$O$35) -> 0 | I86: =SUMIF(DedGrales!$D$37:$O$37,MONTH(Auxiliares!I$5),DedGrales!$D$35:$O$35) -> 0 | J86: =SUMIF(DedGrales!$D$37:$O$37,MONTH(Auxiliares!J$5),DedGrales!$D$35:$O$35) -> 0 | K86: =SUMIF(DedGrales!$D$37:$O$37,MONTH(Auxiliares!K$5),DedGrales!$D$35:$O$35) -> 0 | L86: =SUMIF(DedGrales!$D$37:$O$37,MONTH(Auxiliares!L$5),DedGrales!$D$35:$O$35) -> 0 | M86: =SUMIF(DedGrales!$D$37:$O$37,MONTH(Auxiliares!M$5),DedGrales!$D$35:$O$35) -> 0 | N86: =SUMIF(DedGrales!$D$37:$O$37,MONTH(Auxiliares!N$5),DedGrales!$D$35:$O$35) -> 0 | O86: =SUMIF(DedGrales!$D$37:$O$37,MONTH(Auxiliares!O$5),DedGrales!$D$35:$O$35) -> 0 | P86: 0
C87: SGR | D87: =SUMIF(DedGrales!$D$61:$O$61,MONTH(Auxiliares!D$5),DedGrales!$D$59:$O$59) -> 0 | E87: =SUMIF(DedGrales!$D$61:$O$61,MONTH(Auxiliares!E$5),DedGrales!$D$59:$O$59) -> 0 | F87: =SUMIF(DedGrales!$D$61:$O$61,MONTH(Auxiliares!F$5),DedGrales!$D$59:$O$59) -> 0 | G87: =SUMIF(DedGrales!$D$61:$O$61,MONTH(Auxiliares!G$5),DedGrales!$D$59:$O$59) -> 0 | H87: =SUMIF(DedGrales!$D$61:$O$61,MONTH(Auxiliares!H$5),DedGrales!$D$59:$O$59) -> 0 | I87: =SUMIF(DedGrales!$D$61:$O$61,MONTH(Auxiliares!I$5),DedGrales!$D$59:$O$59) -> 0 | J87: =SUMIF(DedGrales!$D$61:$O$61,MONTH(Auxiliares!J$5),DedGrales!$D$59:$O$59) -> 0 | K87: =SUMIF(DedGrales!$D$61:$O$61,MONTH(Auxiliares!K$5),DedGrales!$D$59:$O$59) -> 0 | L87: =SUMIF(DedGrales!$D$61:$O$61,MONTH(Auxiliares!L$5),DedGrales!$D$59:$O$59) -> 0 | M87: =SUMIF(DedGrales!$D$61:$O$61,MONTH(Auxiliares!M$5),DedGrales!$D$59:$O$59) -> 0 | N87: =SUMIF(DedGrales!$D$61:$O$61,MONTH(Auxiliares!N$5),DedGrales!$D$59:$O$59) -> 0 | O87: =SUMIF(DedGrales!$D$61:$O$61,MONTH(Auxiliares!O$5),DedGrales!$D$59:$O$59) -> 0 | P87: 0
C88: Cajas complementarias de previsión | D88: =SUMIF(DedGrales!$D$53:$O$53,MONTH(Auxiliares!D$5),DedGrales!$D$51:$O$51) -> 0 | E88: =SUMIF(DedGrales!$D$53:$O$53,MONTH(Auxiliares!E$5),DedGrales!$D$51:$O$51) -> 0 | F88: =SUMIF(DedGrales!$D$53:$O$53,MONTH(Auxiliares!F$5),DedGrales!$D$51:$O$51) -> 0 | G88: =SUMIF(DedGrales!$D$53:$O$53,MONTH(Auxiliares!G$5),DedGrales!$D$51:$O$51) -> 0 | H88: =SUMIF(DedGrales!$D$53:$O$53,MONTH(Auxiliares!H$5),DedGrales!$D$51:$O$51) -> 0 | I88: =SUMIF(DedGrales!$D$53:$O$53,MONTH(Auxiliares!I$5),DedGrales!$D$51:$O$51) -> 0 | J88: =SUMIF(DedGrales!$D$53:$O$53,MONTH(Auxiliares!J$5),DedGrales!$D$51:$O$51) -> 0 | K88: =SUMIF(DedGrales!$D$53:$O$53,MONTH(Auxiliares!K$5),DedGrales!$D$51:$O$51) -> 0 | L88: =SUMIF(DedGrales!$D$53:$O$53,MONTH(Auxiliares!L$5),DedGrales!$D$51:$O$51) -> 0 | M88: =SUMIF(DedGrales!$D$53:$O$53,MONTH(Auxiliares!M$5),DedGrales!$D$51:$O$51) -> 0 | N88: =SUMIF(DedGrales!$D$53:$O$53,MONTH(Auxiliares!N$5),DedGrales!$D$51:$O$51) -> 0 | O88: =SUMIF(DedGrales!$D$53:$O$53,MONTH(Auxiliares!O$5),DedGrales!$D$51:$O$51) -> 0 | P88: 0
C89: Viajantes | D89: =SUMIF(DedGrales!$D$141:$O$141,MONTH(Auxiliares!D$5),DedGrales!$D$139:$O$139) -> 0 | E89: =SUMIF(DedGrales!$D$141:$O$141,MONTH(Auxiliares!E$5),DedGrales!$D$139:$O$139) -> 0 | F89: =SUMIF(DedGrales!$D$141:$O$141,MONTH(Auxiliares!F$5),DedGrales!$D$139:$O$139) -> 0 | G89: =SUMIF(DedGrales!$D$141:$O$141,MONTH(Auxiliares!G$5),DedGrales!$D$139:$O$139) -> 0 | H89: =SUMIF(DedGrales!$D$141:$O$141,MONTH(Auxiliares!H$5),DedGrales!$D$139:$O$139) -> 0 | I89: =SUMIF(DedGrales!$D$141:$O$141,MONTH(Auxiliares!I$5),DedGrales!$D$139:$O$139) -> 0 | J89: =SUMIF(DedGrales!$D$141:$O$141,MONTH(Auxiliares!J$5),DedGrales!$D$139:$O$139) -> 0 | K89: =SUMIF(DedGrales!$D$141:$O$141,MONTH(Auxiliares!K$5),DedGrales!$D$139:$O$139) -> 0 | L89: =SUMIF(DedGrales!$D$141:$O$141,MONTH(Auxiliares!L$5),DedGrales!$D$139:$O$139) -> 0 | M89: =SUMIF(DedGrales!$D$141:$O$141,MONTH(Auxiliares!M$5),DedGrales!$D$139:$O$139) -> 0 | N89: =SUMIF(DedGrales!$D$141:$O$141,MONTH(Auxiliares!N$5),DedGrales!$D$139:$O$139) -> 0 | O89: =SUMIF(DedGrales!$D$141:$O$141,MONTH(Auxiliares!O$5),DedGrales!$D$139:$O$139) -> 0 | P89: 0
C90: Tope (5% de la ganancia neta) | D90: =+Liquidacion!F71*0.05 -> 2157.916667 | E90: =+Liquidacion!G71*0.05 -> 4315.833333 | F90: =+Liquidacion!H71*0.05 -> 6473.75 | G90: =+Liquidacion!I71*0.05 -> 8766.541667 | H90: =+Liquidacion!J71*0.05 -> 11059.33333 | I90: =+Liquidacion!K71*0.05 -> 13397.08333 | J90: =+Liquidacion!L71*0.05 -> 15714.83333 | K90: =+Liquidacion!M71*0.05 -> 18032.58333 | L90: =+Liquidacion!N71*0.05 -> 20350.33333 | M90: =+Liquidacion!O71*0.05 -> 22668.08333 | N90: =+Liquidacion!P71*0.05 -> 25075.75 | O90: =+Liquidacion!Q71*0.05 -> 27483.41667 | P90: =+Liquidacion!S71*0.05 -> 27559.5
C91: Cuota Médico Asistencial | D91: =SUMIF(DedGrales!$D$116:$O$116,MONTH(Auxiliares!D$5),DedGrales!$D$114:$O$114) -> 0 | E91: =SUMIF(DedGrales!$D$116:$O$116,MONTH(Auxiliares!E$5),DedGrales!$D$114:$O$114) -> 0 | F91: =SUMIF(DedGrales!$D$116:$O$116,MONTH(Auxiliares!F$5),DedGrales!$D$114:$O$114) -> 0 | G91: =SUMIF(DedGrales!$D$116:$O$116,MONTH(Auxiliares!G$5),DedGrales!$D$114:$O$114) -> 0 | H91: =SUMIF(DedGrales!$D$116:$O$116,MONTH(Auxiliares!H$5),DedGrales!$D$114:$O$114) -> 0 | I91: =SUMIF(DedGrales!$D$116:$O$116,MONTH(Auxiliares!I$5),DedGrales!$D$114:$O$114) -> 0 | J91: =SUMIF(DedGrales!$D$116:$O$116,MONTH(Auxiliares!J$5),DedGrales!$D$114:$O$114) -> 0 | K91: =SUMIF(DedGrales!$D$116:$O$116,MONTH(Auxiliares!K$5),DedGrales!$D$114:$O$114) -> 0 | L91: =SUMIF(DedGrales!$D$116:$O$116,MONTH(Auxiliares!L$5),DedGrales!$D$114:$O$114) -> 0 | M91: =SUMIF(DedGrales!$D$116:$O$116,MONTH(Auxiliares!M$5),DedGrales!$D$114:$O$114) -> 0 | N91: =SUMIF(DedGrales!$D$116:$O$116,MONTH(Auxiliares!N$5),DedGrales!$D$114:$O$114) -> 0 | O91: =SUMIF(DedGrales!$D$116:$O$116,MONTH(Auxiliares!O$5),DedGrales!$D$114:$O$114) -> 0 | P91: 0
C92: Donaciones | D92: =SUMIF(DedGrales!$D$125:$O$125,MONTH(Auxiliares!D$5),DedGrales!$D$123:$O$123) -> 0 | E92: =SUMIF(DedGrales!$D$125:$O$125,MONTH(Auxiliares!E$5),DedGrales!$D$123:$O$123) -> 0 | F92: =SUMIF(DedGrales!$D$125:$O$125,MONTH(Auxiliares!F$5),DedGrales!$D$123:$O$123) -> 0 | G92: =SUMIF(DedGrales!$D$125:$O$125,MONTH(Auxiliares!G$5),DedGrales!$D$123:$O$123) -> 0 | H92: =SUMIF(DedGrales!$D$125:$O$125,MONTH(Auxiliares!H$5),DedGrales!$D$123:$O$123) -> 0 | I92: =SUMIF(DedGrales!$D$125:$O$125,MONTH(Auxiliares!I$5),DedGrales!$D$123:$O$123) -> 0 | J92: =SUMIF(DedGrales!$D$125:$O$125,MONTH(Auxiliares!J$5),DedGrales!$D$123:$O$123) -> 0 | K92: =SUMIF(DedGrales!$D$125:$O$125,MONTH(Auxiliares!K$5),DedGrales!$D$123:$O$123) -> 0 | L92: =SUMIF(DedGrales!$D$125:$O$125,MONTH(Auxiliares!L$5),DedGrales!$D$123:$O$123) -> 0 | M92: =SUMIF(DedGrales!$D$125:$O$125,MONTH(Auxiliares!M$5),DedGrales!$D$123:$O$123) -> 0 | N92: =SUMIF(DedGrales!$D$125:$O$125,MONTH(Auxiliares!N$5),DedGrales!$D$123:$O$123) -> 0 | O92: =SUMIF(DedGrales!$D$125:$O$125,MONTH(Auxiliares!O$5),DedGrales!$D$123:$O$123) -> 0 | P92: 0
C93: Honorarios Médicos Profesionales | P93: =SUM(DedGrales!$D$131:$O$131)*0.4 -> 0
C96: Deducciones personales | D96: 2017-01-01 | E96: 2017-02-01 | F96: 2017-03-01 | G96: 2017-04-01 | H96: 2017-05-01 | I96: 2017-06-01 | J96: 2017-07-01 | K96: 2017-08-01 | L96: 2017-09-01 | M96: 2017-10-01 | N96: 2017-11-01 | O96: 2017-12-01 | P96: Anual
C97: Alta/baja
C98: Cónyuge | D98: =COUNTIF(DedPersonales!$E$8,"<="&MONTH(Auxiliares!D96))-COUNTIF(DedPersonales!$F$8,"<"&MONTH(Auxiliares!D96)) -> 0 | E98: =COUNTIF(DedPersonales!$E$8,"<="&MONTH(Auxiliares!E96))-COUNTIF(DedPersonales!$F$8,"<"&MONTH(Auxiliares!E96)) -> 0 | F98: =COUNTIF(DedPersonales!$E$8,"<="&MONTH(Auxiliares!F96))-COUNTIF(DedPersonales!$F$8,"<"&MONTH(Auxiliares!F96)) -> 0 | G98: =COUNTIF(DedPersonales!$E$8,"<="&MONTH(Auxiliares!G96))-COUNTIF(DedPersonales!$F$8,"<"&MONTH(Auxiliares!G96)) -> 0 | H98: =COUNTIF(DedPersonales!$E$8,"<="&MONTH(Auxiliares!H96))-COUNTIF(DedPersonales!$F$8,"<"&MONTH(Auxiliares!H96)) -> 0 | I98: =COUNTIF(DedPersonales!$E$8,"<="&MONTH(Auxiliares!I96))-COUNTIF(DedPersonales!$F$8,"<"&MONTH(Auxiliares!I96)) -> 0 | J98: =COUNTIF(DedPersonales!$E$8,"<="&MONTH(Auxiliares!J96))-COUNTIF(DedPersonales!$F$8,"<"&MONTH(Auxiliares!J96)) -> 0 | K98: =COUNTIF(DedPersonales!$E$8,"<="&MONTH(Auxiliares!K96))-COUNTIF(DedPersonales!$F$8,"<"&MONTH(Auxiliares!K96)) -> 0 | L98: =COUNTIF(DedPersonales!$E$8,"<="&MONTH(Auxiliares!L96))-COUNTIF(DedPersonales!$F$8,"<"&MONTH(Auxiliares!L96)) -> 0 | M98: =COUNTIF(DedPersonales!$E$8,"<="&MONTH(Auxiliares!M96))-COUNTIF(DedPersonales!$F$8,"<"&MONTH(Auxiliares!M96)) -> 0 | N98: =COUNTIF(DedPersonales!$E$8,"<="&MONTH(Auxiliares!N96))-COUNTIF(DedPersonales!$F$8,"<"&MONTH(Auxiliares!N96)) -> 0 | O98: =COUNTIF(DedPersonales!$E$8,"<="&MONTH(Auxiliares!O96))-COUNTIF(DedPersonales!$F$8,"<"&MONTH(Auxiliares!O96)) -> 0
C100: Hijo1 | D100: =COUNTIF(DedPersonales!$E13,"<="&MONTH(Auxiliares!D$96))-COUNTIF(DedPersonales!$F13,"<"&MONTH(Auxiliares!D$96)) -> 1 | E100: =COUNTIF(DedPersonales!$E13,"<="&MONTH(Auxiliares!E$96))-COUNTIF(DedPersonales!$F13,"<"&MONTH(Auxiliares!E$96)) -> 1 | F100: =COUNTIF(DedPersonales!$E13,"<="&MONTH(Auxiliares!F$96))-COUNTIF(DedPersonales!$F13,"<"&MONTH(Auxiliares!F$96)) -> 1 | G100: =COUNTIF(DedPersonales!$E13,"<="&MONTH(Auxiliares!G$96))-COUNTIF(DedPersonales!$F13,"<"&MONTH(Auxiliares!G$96)) -> 1 | H100: =COUNTIF(DedPersonales!$E13,"<="&MONTH(Auxiliares!H$96))-COUNTIF(DedPersonales!$F13,"<"&MONTH(Auxiliares!H$96)) -> 1 | I100: =COUNTIF(DedPersonales!$E13,"<="&MONTH(Auxiliares!I$96))-COUNTIF(DedPersonales!$F13,"<"&MONTH(Auxiliares!I$96)) -> 1 | J100: =COUNTIF(DedPersonales!$E13,"<="&MONTH(Auxiliares!J$96))-COUNTIF(DedPersonales!$F13,"<"&MONTH(Auxiliares!J$96)) -> 1 | K100: =COUNTIF(DedPersonales!$E13,"<="&MONTH(Auxiliares!K$96))-COUNTIF(DedPersonales!$F13,"<"&MONTH(Auxiliares!K$96)) -> 1 | L100: =COUNTIF(DedPersonales!$E13,"<="&MONTH(Auxiliares!L$96))-COUNTIF(DedPersonales!$F13,"<"&MONTH(Auxiliares!L$96)) -> 1 | M100: =COUNTIF(DedPersonales!$E13,"<="&MONTH(Auxiliares!M$96))-COUNTIF(DedPersonales!$F13,"<"&MONTH(Auxiliares!M$96)) -> 1 | N100: =COUNTIF(DedPersonales!$E13,"<="&MONTH(Auxiliares!N$96))-COUNTIF(DedPersonales!$F13,"<"&MONTH(Auxiliares!N$96)) -> 1 | O100: =COUNTIF(DedPersonales!$E13,"<="&MONTH(Auxiliares!O$96))-COUNTIF(DedPersonales!$F13,"<"&MONTH(Auxiliares!O$96)) -> 1
C101: Hijo2 | D101: =COUNTIF(DedPersonales!$E14,"<="&MONTH(Auxiliares!D$96))-COUNTIF(DedPersonales!$F14,"<"&MONTH(Auxiliares!D$96)) -> 0 | E101: =COUNTIF(DedPersonales!$E14,"<="&MONTH(Auxiliares!E$96))-COUNTIF(DedPersonales!$F14,"<"&MONTH(Auxiliares!E$96)) -> 0 | F101: =COUNTIF(DedPersonales!$E14,"<="&MONTH(Auxiliares!F$96))-COUNTIF(DedPersonales!$F14,"<"&MONTH(Auxiliares!F$96)) -> 0 | G101: =COUNTIF(DedPersonales!$E14,"<="&MONTH(Auxiliares!G$96))-COUNTIF(DedPersonales!$F14,"<"&MONTH(Auxiliares!G$96)) -> 0 | H101: =COUNTIF(DedPersonales!$E14,"<="&MONTH(Auxiliares!H$96))-COUNTIF(DedPersonales!$F14,"<"&MONTH(Auxiliares!H$96)) -> 0 | I101: =COUNTIF(DedPersonales!$E14,"<="&MONTH(Auxiliares!I$96))-COUNTIF(DedPersonales!$F14,"<"&MONTH(Auxiliares!I$96)) -> 0 | J101: =COUNTIF(DedPersonales!$E14,"<="&MONTH(Auxiliares!J$96))-COUNTIF(DedPersonales!$F14,"<"&MONTH(Auxiliares!J$96)) -> 0 | K101: =COUNTIF(DedPersonales!$E14,"<="&MONTH(Auxiliares!K$96))-COUNTIF(DedPersonales!$F14,"<"&MONTH(Auxiliares!K$96)) -> 0 | L101: =COUNTIF(DedPersonales!$E14,"<="&MONTH(Auxiliares!L$96))-COUNTIF(DedPersonales!$F14,"<"&MONTH(Auxiliares!L$96)) -> 0 | M101: =COUNTIF(DedPersonales!$E14,"<="&MONTH(Auxiliares!M$96))-COUNTIF(DedPersonales!$F14,"<"&MONTH(Auxiliares!M$96)) -> 0 | N101: =COUNTIF(DedPersonales!$E14,"<="&MONTH(Auxiliares!N$96))-COUNTIF(DedPersonales!$F14,"<"&MONTH(Auxiliares!N$96)) -> 0 | O101: =COUNTIF(DedPersonales!$E14,"<="&MONTH(Auxiliares!O$96))-COUNTIF(DedPersonales!$F14,"<"&MONTH(Auxiliares!O$96)) -> 0
C102: Hijo3 | D102: =COUNTIF(DedPersonales!$E15,"<="&MONTH(Auxiliares!D$96))-COUNTIF(DedPersonales!$F15,"<"&MONTH(Auxiliares!D$96)) -> 0 | E102: =COUNTIF(DedPersonales!$E15,"<="&MONTH(Auxiliares!E$96))-COUNTIF(DedPersonales!$F15,"<"&MONTH(Auxiliares!E$96)) -> 0 | F102: =COUNTIF(DedPersonales!$E15,"<="&MONTH(Auxiliares!F$96))-COUNTIF(DedPersonales!$F15,"<"&MONTH(Auxiliares!F$96)) -> 0 | G102: =COUNTIF(DedPersonales!$E15,"<="&MONTH(Auxiliares!G$96))-COUNTIF(DedPersonales!$F15,"<"&MONTH(Auxiliares!G$96)) -> 0 | H102: =COUNTIF(DedPersonales!$E15,"<="&MONTH(Auxiliares!H$96))-COUNTIF(DedPersonales!$F15,"<"&MONTH(Auxiliares!H$96)) -> 0 | I102: =COUNTIF(DedPersonales!$E15,"<="&MONTH(Auxiliares!I$96))-COUNTIF(DedPersonales!$F15,"<"&MONTH(Auxiliares!I$96)) -> 0 | J102: =COUNTIF(DedPersonales!$E15,"<="&MONTH(Auxiliares!J$96))-COUNTIF(DedPersonales!$F15,"<"&MONTH(Auxiliares!J$96)) -> 0 | K102: =COUNTIF(DedPersonales!$E15,"<="&MONTH(Auxiliares!K$96))-COUNTIF(DedPersonales!$F15,"<"&MONTH(Auxiliares!K$96)) -> 0 | L102: =COUNTIF(DedPersonales!$E15,"<="&MONTH(Auxiliares!L$96))-COUNTIF(DedPersonales!$F15,"<"&MONTH(Auxiliares!L$96)) -> 0 | M102: =COUNTIF(DedPersonales!$E15,"<="&MONTH(Auxiliares!M$96))-COUNTIF(DedPersonales!$F15,"<"&MONTH(Auxiliares!M$96)) -> 0 | N102: =COUNTIF(DedPersonales!$E15,"<="&MONTH(Auxiliares!N$96))-COUNTIF(DedPersonales!$F15,"<"&MONTH(Auxiliares!N$96)) -> 0 | O102: =COUNTIF(DedPersonales!$E15,"<="&MONTH(Auxiliares!O$96))-COUNTIF(DedPersonales!$F15,"<"&MONTH(Auxiliares!O$96)) -> 0
C103: Hijo4 | D103: =COUNTIF(DedPersonales!$E16,"<="&MONTH(Auxiliares!D$96))-COUNTIF(DedPersonales!$F16,"<"&MONTH(Auxiliares!D$96)) -> 0 | E103: =COUNTIF(DedPersonales!$E16,"<="&MONTH(Auxiliares!E$96))-COUNTIF(DedPersonales!$F16,"<"&MONTH(Auxiliares!E$96)) -> 0 | F103: =COUNTIF(DedPersonales!$E16,"<="&MONTH(Auxiliares!F$96))-COUNTIF(DedPersonales!$F16,"<"&MONTH(Auxiliares!F$96)) -> 0 | G103: =COUNTIF(DedPersonales!$E16,"<="&MONTH(Auxiliares!G$96))-COUNTIF(DedPersonales!$F16,"<"&MONTH(Auxiliares!G$96)) -> 0 | H103: =COUNTIF(DedPersonales!$E16,"<="&MONTH(Auxiliares!H$96))-COUNTIF(DedPersonales!$F16,"<"&MONTH(Auxiliares!H$96)) -> 0 | I103: =COUNTIF(DedPersonales!$E16,"<="&MONTH(Auxiliares!I$96))-COUNTIF(DedPersonales!$F16,"<"&MONTH(Auxiliares!I$96)) -> 0 | J103: =COUNTIF(DedPersonales!$E16,"<="&MONTH(Auxiliares!J$96))-COUNTIF(DedPersonales!$F16,"<"&MONTH(Auxiliares!J$96)) -> 0 | K103: =COUNTIF(DedPersonales!$E16,"<="&MONTH(Auxiliares!K$96))-COUNTIF(DedPersonales!$F16,"<"&MONTH(Auxiliares!K$96)) -> 0 | L103: =COUNTIF(DedPersonales!$E16,"<="&MONTH(Auxiliares!L$96))-COUNTIF(DedPersonales!$F16,"<"&MONTH(Auxiliares!L$96)) -> 0 | M103: =COUNTIF(DedPersonales!$E16,"<="&MONTH(Auxiliares!M$96))-COUNTIF(DedPersonales!$F16,"<"&MONTH(Auxiliares!M$96)) -> 0 | N103: =COUNTIF(DedPersonales!$E16,"<="&MONTH(Auxiliares!N$96))-COUNTIF(DedPersonales!$F16,"<"&MONTH(Auxiliares!N$96)) -> 0 | O103: =COUNTIF(DedPersonales!$E16,"<="&MONTH(Auxiliares!O$96))-COUNTIF(DedPersonales!$F16,"<"&MONTH(Auxiliares!O$96)) -> 0
C104: Hijo5 | D104: =COUNTIF(DedPersonales!$E17,"<="&MONTH(Auxiliares!D$96))-COUNTIF(DedPersonales!$F17,"<"&MONTH(Auxiliares!D$96)) -> 0 | E104: =COUNTIF(DedPersonales!$E17,"<="&MONTH(Auxiliares!E$96))-COUNTIF(DedPersonales!$F17,"<"&MONTH(Auxiliares!E$96)) -> 0 | F104: =COUNTIF(DedPersonales!$E17,"<="&MONTH(Auxiliares!F$96))-COUNTIF(DedPersonales!$F17,"<"&MONTH(Auxiliares!F$96)) -> 0 | G104: =COUNTIF(DedPersonales!$E17,"<="&MONTH(Auxiliares!G$96))-COUNTIF(DedPersonales!$F17,"<"&MONTH(Auxiliares!G$96)) -> 0 | H104: =COUNTIF(DedPersonales!$E17,"<="&MONTH(Auxiliares!H$96))-COUNTIF(DedPersonales!$F17,"<"&MONTH(Auxiliares!H$96)) -> 0 | I104: =COUNTIF(DedPersonales!$E17,"<="&MONTH(Auxiliares!I$96))-COUNTIF(DedPersonales!$F17,"<"&MONTH(Auxiliares!I$96)) -> 0 | J104: =COUNTIF(DedPersonales!$E17,"<="&MONTH(Auxiliares!J$96))-COUNTIF(DedPersonales!$F17,"<"&MONTH(Auxiliares!J$96)) -> 0 | K104: =COUNTIF(DedPersonales!$E17,"<="&MONTH(Auxiliares!K$96))-COUNTIF(DedPersonales!$F17,"<"&MONTH(Auxiliares!K$96)) -> 0 | L104: =COUNTIF(DedPersonales!$E17,"<="&MONTH(Auxiliares!L$96))-COUNTIF(DedPersonales!$F17,"<"&MONTH(Auxiliares!L$96)) -> 0 | M104: =COUNTIF(DedPersonales!$E17,"<="&MONTH(Auxiliares!M$96))-COUNTIF(DedPersonales!$F17,"<"&MONTH(Auxiliares!M$96)) -> 0 | N104: =COUNTIF(DedPersonales!$E17,"<="&MONTH(Auxiliares!N$96))-COUNTIF(DedPersonales!$F17,"<"&MONTH(Auxiliares!N$96)) -> 0 | O104: =COUNTIF(DedPersonales!$E17,"<="&MONTH(Auxiliares!O$96))-COUNTIF(DedPersonales!$F17,"<"&MONTH(Auxiliares!O$96)) -> 0
C105: Hijo6 | D105: =COUNTIF(DedPersonales!$E18,"<="&MONTH(Auxiliares!D$96))-COUNTIF(DedPersonales!$F18,"<"&MONTH(Auxiliares!D$96)) -> 0 | E105: =COUNTIF(DedPersonales!$E18,"<="&MONTH(Auxiliares!E$96))-COUNTIF(DedPersonales!$F18,"<"&MONTH(Auxiliares!E$96)) -> 0 | F105: =COUNTIF(DedPersonales!$E18,"<="&MONTH(Auxiliares!F$96))-COUNTIF(DedPersonales!$F18,"<"&MONTH(Auxiliares!F$96)) -> 0 | G105: =COUNTIF(DedPersonales!$E18,"<="&MONTH(Auxiliares!G$96))-COUNTIF(DedPersonales!$F18,"<"&MONTH(Auxiliares!G$96)) -> 0 | H105: =COUNTIF(DedPersonales!$E18,"<="&MONTH(Auxiliares!H$96))-COUNTIF(DedPersonales!$F18,"<"&MONTH(Auxiliares!H$96)) -> 0 | I105: =COUNTIF(DedPersonales!$E18,"<="&MONTH(Auxiliares!I$96))-COUNTIF(DedPersonales!$F18,"<"&MONTH(Auxiliares!I$96)) -> 0 | J105: =COUNTIF(DedPersonales!$E18,"<="&MONTH(Auxiliares!J$96))-COUNTIF(DedPersonales!$F18,"<"&MONTH(Auxiliares!J$96)) -> 0 | K105: =COUNTIF(DedPersonales!$E18,"<="&MONTH(Auxiliares!K$96))-COUNTIF(DedPersonales!$F18,"<"&MONTH(Auxiliares!K$96)) -> 0 | L105: =COUNTIF(DedPersonales!$E18,"<="&MONTH(Auxiliares!L$96))-COUNTIF(DedPersonales!$F18,"<"&MONTH(Auxiliares!L$96)) -> 0 | M105: =COUNTIF(DedPersonales!$E18,"<="&MONTH(Auxiliares!M$96))-COUNTIF(DedPersonales!$F18,"<"&MONTH(Auxiliares!M$96)) -> 0 | N105: =COUNTIF(DedPersonales!$E18,"<="&MONTH(Auxiliares!N$96))-COUNTIF(DedPersonales!$F18,"<"&MONTH(Auxiliares!N$96)) -> 0 | O105: =COUNTIF(DedPersonales!$E18,"<="&MONTH(Auxiliares!O$96))-COUNTIF(DedPersonales!$F18,"<"&MONTH(Auxiliares!O$96)) -> 0
C106: Hijo7 | D106: =COUNTIF(DedPersonales!$E19,"<="&MONTH(Auxiliares!D$96))-COUNTIF(DedPersonales!$F19,"<"&MONTH(Auxiliares!D$96)) -> 0 | E106: =COUNTIF(DedPersonales!$E19,"<="&MONTH(Auxiliares!E$96))-COUNTIF(DedPersonales!$F19,"<"&MONTH(Auxiliares!E$96)) -> 0 | F106: =COUNTIF(DedPersonales!$E19,"<="&MONTH(Auxiliares!F$96))-COUNTIF(DedPersonales!$F19,"<"&MONTH(Auxiliares!F$96)) -> 0 | G106: =COUNTIF(DedPersonales!$E19,"<="&MONTH(Auxiliares!G$96))-COUNTIF(DedPersonales!$F19,"<"&MONTH(Auxiliares!G$96)) -> 0 | H106: =COUNTIF(DedPersonales!$E19,"<="&MONTH(Auxiliares!H$96))-COUNTIF(DedPersonales!$F19,"<"&MONTH(Auxiliares!H$96)) -> 0 | I106: =COUNTIF(DedPersonales!$E19,"<="&MONTH(Auxiliares!I$96))-COUNTIF(DedPersonales!$F19,"<"&MONTH(Auxiliares!I$96)) -> 0 | J106: =COUNTIF(DedPersonales!$E19,"<="&MONTH(Auxiliares!J$96))-COUNTIF(DedPersonales!$F19,"<"&MONTH(Auxiliares!J$96)) -> 0 | K106: =COUNTIF(DedPersonales!$E19,"<="&MONTH(Auxiliares!K$96))-COUNTIF(DedPersonales!$F19,"<"&MONTH(Auxiliares!K$96)) -> 0 | L106: =COUNTIF(DedPersonales!$E19,"<="&MONTH(Auxiliares!L$96))-COUNTIF(DedPersonales!$F19,"<"&MONTH(Auxiliares!L$96)) -> 0 | M106: =COUNTIF(DedPersonales!$E19,"<="&MONTH(Auxiliares!M$96))-COUNTIF(DedPersonales!$F19,"<"&MONTH(Auxiliares!M$96)) -> 0 | N106: =COUNTIF(DedPersonales!$E19,"<="&MONTH(Auxiliares!N$96))-COUNTIF(DedPersonales!$F19,"<"&MONTH(Auxiliares!N$96)) -> 0 | O106: =COUNTIF(DedPersonales!$E19,"<="&MONTH(Auxiliares!O$96))-COUNTIF(DedPersonales!$F19,"<"&MONTH(Auxiliares!O$96)) -> 0
C107: Hijo8 | D107: =COUNTIF(DedPersonales!$E20,"<="&MONTH(Auxiliares!D$96))-COUNTIF(DedPersonales!$F20,"<"&MONTH(Auxiliares!D$96)) -> 0 | E107: =COUNTIF(DedPersonales!$E20,"<="&MONTH(Auxiliares!E$96))-COUNTIF(DedPersonales!$F20,"<"&MONTH(Auxiliares!E$96)) -> 0 | F107: =COUNTIF(DedPersonales!$E20,"<="&MONTH(Auxiliares!F$96))-COUNTIF(DedPersonales!$F20,"<"&MONTH(Auxiliares!F$96)) -> 0 | G107: =COUNTIF(DedPersonales!$E20,"<="&MONTH(Auxiliares!G$96))-COUNTIF(DedPersonales!$F20,"<"&MONTH(Auxiliares!G$96)) -> 0 | H107: =COUNTIF(DedPersonales!$E20,"<="&MONTH(Auxiliares!H$96))-COUNTIF(DedPersonales!$F20,"<"&MONTH(Auxiliares!H$96)) -> 0 | I107: =COUNTIF(DedPersonales!$E20,"<="&MONTH(Auxiliares!I$96))-COUNTIF(DedPersonales!$F20,"<"&MONTH(Auxiliares!I$96)) -> 0 | J107: =COUNTIF(DedPersonales!$E20,"<="&MONTH(Auxiliares!J$96))-COUNTIF(DedPersonales!$F20,"<"&MONTH(Auxiliares!J$96)) -> 0 | K107: =COUNTIF(DedPersonales!$E20,"<="&MONTH(Auxiliares!K$96))-COUNTIF(DedPersonales!$F20,"<"&MONTH(Auxiliares!K$96)) -> 0 | L107: =COUNTIF(DedPersonales!$E20,"<="&MONTH(Auxiliares!L$96))-COUNTIF(DedPersonales!$F20,"<"&MONTH(Auxiliares!L$96)) -> 0 | M107: =COUNTIF(DedPersonales!$E20,"<="&MONTH(Auxiliares!M$96))-COUNTIF(DedPersonales!$F20,"<"&MONTH(Auxiliares!M$96)) -> 0 | N107: =COUNTIF(DedPersonales!$E20,"<="&MONTH(Auxiliares!N$96))-COUNTIF(DedPersonales!$F20,"<"&MONTH(Auxiliares!N$96)) -> 0 | O107: =COUNTIF(DedPersonales!$E20,"<="&MONTH(Auxiliares!O$96))-COUNTIF(DedPersonales!$F20,"<"&MONTH(Auxiliares!O$96)) -> 0
C108: Hijo9 | D108: =COUNTIF(DedPersonales!$E21,"<="&MONTH(Auxiliares!D$96))-COUNTIF(DedPersonales!$F21,"<"&MONTH(Auxiliares!D$96)) -> 0 | E108: =COUNTIF(DedPersonales!$E21,"<="&MONTH(Auxiliares!E$96))-COUNTIF(DedPersonales!$F21,"<"&MONTH(Auxiliares!E$96)) -> 0 | F108: =COUNTIF(DedPersonales!$E21,"<="&MONTH(Auxiliares!F$96))-COUNTIF(DedPersonales!$F21,"<"&MONTH(Auxiliares!F$96)) -> 0 | G108: =COUNTIF(DedPersonales!$E21,"<="&MONTH(Auxiliares!G$96))-COUNTIF(DedPersonales!$F21,"<"&MONTH(Auxiliares!G$96)) -> 0 | H108: =COUNTIF(DedPersonales!$E21,"<="&MONTH(Auxiliares!H$96))-COUNTIF(DedPersonales!$F21,"<"&MONTH(Auxiliares!H$96)) -> 0 | I108: =COUNTIF(DedPersonales!$E21,"<="&MONTH(Auxiliares!I$96))-COUNTIF(DedPersonales!$F21,"<"&MONTH(Auxiliares!I$96)) -> 0 | J108: =COUNTIF(DedPersonales!$E21,"<="&MONTH(Auxiliares!J$96))-COUNTIF(DedPersonales!$F21,"<"&MONTH(Auxiliares!J$96)) -> 0 | K108: =COUNTIF(DedPersonales!$E21,"<="&MONTH(Auxiliares!K$96))-COUNTIF(DedPersonales!$F21,"<"&MONTH(Auxiliares!K$96)) -> 0 | L108: =COUNTIF(DedPersonales!$E21,"<="&MONTH(Auxiliares!L$96))-COUNTIF(DedPersonales!$F21,"<"&MONTH(Auxiliares!L$96)) -> 0 | M108: =COUNTIF(DedPersonales!$E21,"<="&MONTH(Auxiliares!M$96))-COUNTIF(DedPersonales!$F21,"<"&MONTH(Auxiliares!M$96)) -> 0 | N108: =COUNTIF(DedPersonales!$E21,"<="&MONTH(Auxiliares!N$96))-COUNTIF(DedPersonales!$F21,"<"&MONTH(Auxiliares!N$96)) -> 0 | O108: =COUNTIF(DedPersonales!$E21,"<="&MONTH(Auxiliares!O$96))-COUNTIF(DedPersonales!$F21,"<"&MONTH(Auxiliares!O$96)) -> 0
C109: Hijo10 | D109: =COUNTIF(DedPersonales!$E22,"<="&MONTH(Auxiliares!D$96))-COUNTIF(DedPersonales!$F22,"<"&MONTH(Auxiliares!D$96)) -> 0 | E109: =COUNTIF(DedPersonales!$E22,"<="&MONTH(Auxiliares!E$96))-COUNTIF(DedPersonales!$F22,"<"&MONTH(Auxiliares!E$96)) -> 0 | F109: =COUNTIF(DedPersonales!$E22,"<="&MONTH(Auxiliares!F$96))-COUNTIF(DedPersonales!$F22,"<"&MONTH(Auxiliares!F$96)) -> 0 | G109: =COUNTIF(DedPersonales!$E22,"<="&MONTH(Auxiliares!G$96))-COUNTIF(DedPersonales!$F22,"<"&MONTH(Auxiliares!G$96)) -> 0 | H109: =COUNTIF(DedPersonales!$E22,"<="&MONTH(Auxiliares!H$96))-COUNTIF(DedPersonales!$F22,"<"&MONTH(Auxiliares!H$96)) -> 0 | I109: =COUNTIF(DedPersonales!$E22,"<="&MONTH(Auxiliares!I$96))-COUNTIF(DedPersonales!$F22,"<"&MONTH(Auxiliares!I$96)) -> 0 | J109: =COUNTIF(DedPersonales!$E22,"<="&MONTH(Auxiliares!J$96))-COUNTIF(DedPersonales!$F22,"<"&MONTH(Auxiliares!J$96)) -> 0 | K109: =COUNTIF(DedPersonales!$E22,"<="&MONTH(Auxiliares!K$96))-COUNTIF(DedPersonales!$F22,"<"&MONTH(Auxiliares!K$96)) -> 0 | L109: =COUNTIF(DedPersonales!$E22,"<="&MONTH(Auxiliares!L$96))-COUNTIF(DedPersonales!$F22,"<"&MONTH(Auxiliares!L$96)) -> 0 | M109: =COUNTIF(DedPersonales!$E22,"<="&MONTH(Auxiliares!M$96))-COUNTIF(DedPersonales!$F22,"<"&MONTH(Auxiliares!M$96)) -> 0 | N109: =COUNTIF(DedPersonales!$E22,"<="&MONTH(Auxiliares!N$96))-COUNTIF(DedPersonales!$F22,"<"&MONTH(Auxiliares!N$96)) -> 0 | O109: =COUNTIF(DedPersonales!$E22,"<="&MONTH(Auxiliares!O$96))-COUNTIF(DedPersonales!$F22,"<"&MONTH(Auxiliares!O$96)) -> 0
C110: Hijo11 | D110: =COUNTIF(DedPersonales!$E23,"<="&MONTH(Auxiliares!D$96))-COUNTIF(DedPersonales!$F23,"<"&MONTH(Auxiliares!D$96)) -> 0 | E110: =COUNTIF(DedPersonales!$E23,"<="&MONTH(Auxiliares!E$96))-COUNTIF(DedPersonales!$F23,"<"&MONTH(Auxiliares!E$96)) -> 0 | F110: =COUNTIF(DedPersonales!$E23,"<="&MONTH(Auxiliares!F$96))-COUNTIF(DedPersonales!$F23,"<"&MONTH(Auxiliares!F$96)) -> 0 | G110: =COUNTIF(DedPersonales!$E23,"<="&MONTH(Auxiliares!G$96))-COUNTIF(DedPersonales!$F23,"<"&MONTH(Auxiliares!G$96)) -> 0 | H110: =COUNTIF(DedPersonales!$E23,"<="&MONTH(Auxiliares!H$96))-COUNTIF(DedPersonales!$F23,"<"&MONTH(Auxiliares!H$96)) -> 0 | I110: =COUNTIF(DedPersonales!$E23,"<="&MONTH(Auxiliares!I$96))-COUNTIF(DedPersonales!$F23,"<"&MONTH(Auxiliares!I$96)) -> 0 | J110: =COUNTIF(DedPersonales!$E23,"<="&MONTH(Auxiliares!J$96))-COUNTIF(DedPersonales!$F23,"<"&MONTH(Auxiliares!J$96)) -> 0 | K110: =COUNTIF(DedPersonales!$E23,"<="&MONTH(Auxiliares!K$96))-COUNTIF(DedPersonales!$F23,"<"&MONTH(Auxiliares!K$96)) -> 0 | L110: =COUNTIF(DedPersonales!$E23,"<="&MONTH(Auxiliares!L$96))-COUNTIF(DedPersonales!$F23,"<"&MONTH(Auxiliares!L$96)) -> 0 | M110: =COUNTIF(DedPersonales!$E23,"<="&MONTH(Auxiliares!M$96))-COUNTIF(DedPersonales!$F23,"<"&MONTH(Auxiliares!M$96)) -> 0 | N110: =COUNTIF(DedPersonales!$E23,"<="&MONTH(Auxiliares!N$96))-COUNTIF(DedPersonales!$F23,"<"&MONTH(Auxiliares!N$96)) -> 0 | O110: =COUNTIF(DedPersonales!$E23,"<="&MONTH(Auxiliares!O$96))-COUNTIF(DedPersonales!$F23,"<"&MONTH(Auxiliares!O$96)) -> 0
C111: Hijo12 | D111: =COUNTIF(DedPersonales!$E24,"<="&MONTH(Auxiliares!D$96))-COUNTIF(DedPersonales!$F24,"<"&MONTH(Auxiliares!D$96)) -> 0 | E111: =COUNTIF(DedPersonales!$E24,"<="&MONTH(Auxiliares!E$96))-COUNTIF(DedPersonales!$F24,"<"&MONTH(Auxiliares!E$96)) -> 0 | F111: =COUNTIF(DedPersonales!$E24,"<="&MONTH(Auxiliares!F$96))-COUNTIF(DedPersonales!$F24,"<"&MONTH(Auxiliares!F$96)) -> 0 | G111: =COUNTIF(DedPersonales!$E24,"<="&MONTH(Auxiliares!G$96))-COUNTIF(DedPersonales!$F24,"<"&MONTH(Auxiliares!G$96)) -> 0 | H111: =COUNTIF(DedPersonales!$E24,"<="&MONTH(Auxiliares!H$96))-COUNTIF(DedPersonales!$F24,"<"&MONTH(Auxiliares!H$96)) -> 0 | I111: =COUNTIF(DedPersonales!$E24,"<="&MONTH(Auxiliares!I$96))-COUNTIF(DedPersonales!$F24,"<"&MONTH(Auxiliares!I$96)) -> 0 | J111: =COUNTIF(DedPersonales!$E24,"<="&MONTH(Auxiliares!J$96))-COUNTIF(DedPersonales!$F24,"<"&MONTH(Auxiliares!J$96)) -> 0 | K111: =COUNTIF(DedPersonales!$E24,"<="&MONTH(Auxiliares!K$96))-COUNTIF(DedPersonales!$F24,"<"&MONTH(Auxiliares!K$96)) -> 0 | L111: =COUNTIF(DedPersonales!$E24,"<="&MONTH(Auxiliares!L$96))-COUNTIF(DedPersonales!$F24,"<"&MONTH(Auxiliares!L$96)) -> 0 | M111: =COUNTIF(DedPersonales!$E24,"<="&MONTH(Auxiliares!M$96))-COUNTIF(DedPersonales!$F24,"<"&MONTH(Auxiliares!M$96)) -> 0 | N111: =COUNTIF(DedPersonales!$E24,"<="&MONTH(Auxiliares!N$96))-COUNTIF(DedPersonales!$F24,"<"&MONTH(Auxiliares!N$96)) -> 0 | O111: =COUNTIF(DedPersonales!$E24,"<="&MONTH(Auxiliares!O$96))-COUNTIF(DedPersonales!$F24,"<"&MONTH(Auxiliares!O$96)) -> 0
C112: Hijo13 | D112: =COUNTIF(DedPersonales!$E25,"<="&MONTH(Auxiliares!D$96))-COUNTIF(DedPersonales!$F25,"<"&MONTH(Auxiliares!D$96)) -> 0 | E112: =COUNTIF(DedPersonales!$E25,"<="&MONTH(Auxiliares!E$96))-COUNTIF(DedPersonales!$F25,"<"&MONTH(Auxiliares!E$96)) -> 0 | F112: =COUNTIF(DedPersonales!$E25,"<="&MONTH(Auxiliares!F$96))-COUNTIF(DedPersonales!$F25,"<"&MONTH(Auxiliares!F$96)) -> 0 | G112: =COUNTIF(DedPersonales!$E25,"<="&MONTH(Auxiliares!G$96))-COUNTIF(DedPersonales!$F25,"<"&MONTH(Auxiliares!G$96)) -> 0 | H112: =COUNTIF(DedPersonales!$E25,"<="&MONTH(Auxiliares!H$96))-COUNTIF(DedPersonales!$F25,"<"&MONTH(Auxiliares!H$96)) -> 0 | I112: =COUNTIF(DedPersonales!$E25,"<="&MONTH(Auxiliares!I$96))-COUNTIF(DedPersonales!$F25,"<"&MONTH(Auxiliares!I$96)) -> 0 | J112: =COUNTIF(DedPersonales!$E25,"<="&MONTH(Auxiliares!J$96))-COUNTIF(DedPersonales!$F25,"<"&MONTH(Auxiliares!J$96)) -> 0 | K112: =COUNTIF(DedPersonales!$E25,"<="&MONTH(Auxiliares!K$96))-COUNTIF(DedPersonales!$F25,"<"&MONTH(Auxiliares!K$96)) -> 0 | L112: =COUNTIF(DedPersonales!$E25,"<="&MONTH(Auxiliares!L$96))-COUNTIF(DedPersonales!$F25,"<"&MONTH(Auxiliares!L$96)) -> 0 | M112: =COUNTIF(DedPersonales!$E25,"<="&MONTH(Auxiliares!M$96))-COUNTIF(DedPersonales!$F25,"<"&MONTH(Auxiliares!M$96)) -> 0 | N112: =COUNTIF(DedPersonales!$E25,"<="&MONTH(Auxiliares!N$96))-COUNTIF(DedPersonales!$F25,"<"&MONTH(Auxiliares!N$96)) -> 0 | O112: =COUNTIF(DedPersonales!$E25,"<="&MONTH(Auxiliares!O$96))-COUNTIF(DedPersonales!$F25,"<"&MONTH(Auxiliares!O$96)) -> 0
C113: Hijo14 | D113: =COUNTIF(DedPersonales!$E26,"<="&MONTH(Auxiliares!D$96))-COUNTIF(DedPersonales!$F26,"<"&MONTH(Auxiliares!D$96)) -> 0 | E113: =COUNTIF(DedPersonales!$E26,"<="&MONTH(Auxiliares!E$96))-COUNTIF(DedPersonales!$F26,"<"&MONTH(Auxiliares!E$96)) -> 0 | F113: =COUNTIF(DedPersonales!$E26,"<="&MONTH(Auxiliares!F$96))-COUNTIF(DedPersonales!$F26,"<"&MONTH(Auxiliares!F$96)) -> 0 | G113: =COUNTIF(DedPersonales!$E26,"<="&MONTH(Auxiliares!G$96))-COUNTIF(DedPersonales!$F26,"<"&MONTH(Auxiliares!G$96)) -> 0 | H113: =COUNTIF(DedPersonales!$E26,"<="&MONTH(Auxiliares!H$96))-COUNTIF(DedPersonales!$F26,"<"&MONTH(Auxiliares!H$96)) -> 0 | I113: =COUNTIF(DedPersonales!$E26,"<="&MONTH(Auxiliares!I$96))-COUNTIF(DedPersonales!$F26,"<"&MONTH(Auxiliares!I$96)) -> 0 | J113: =COUNTIF(DedPersonales!$E26,"<="&MONTH(Auxiliares!J$96))-COUNTIF(DedPersonales!$F26,"<"&MONTH(Auxiliares!J$96)) -> 0 | K113: =COUNTIF(DedPersonales!$E26,"<="&MONTH(Auxiliares!K$96))-COUNTIF(DedPersonales!$F26,"<"&MONTH(Auxiliares!K$96)) -> 0 | L113: =COUNTIF(DedPersonales!$E26,"<="&MONTH(Auxiliares!L$96))-COUNTIF(DedPersonales!$F26,"<"&MONTH(Auxiliares!L$96)) -> 0 | M113: =COUNTIF(DedPersonales!$E26,"<="&MONTH(Auxiliares!M$96))-COUNTIF(DedPersonales!$F26,"<"&MONTH(Auxiliares!M$96)) -> 0 | N113: =COUNTIF(DedPersonales!$E26,"<="&MONTH(Auxiliares!N$96))-COUNTIF(DedPersonales!$F26,"<"&MONTH(Auxiliares!N$96)) -> 0 | O113: =COUNTIF(DedPersonales!$E26,"<="&MONTH(Auxiliares!O$96))-COUNTIF(DedPersonales!$F26,"<"&MONTH(Auxiliares!O$96)) -> 0
C114: Hijo15 | D114: =COUNTIF(DedPersonales!$E27,"<="&MONTH(Auxiliares!D$96))-COUNTIF(DedPersonales!$F27,"<"&MONTH(Auxiliares!D$96)) -> 0 | E114: =COUNTIF(DedPersonales!$E27,"<="&MONTH(Auxiliares!E$96))-COUNTIF(DedPersonales!$F27,"<"&MONTH(Auxiliares!E$96)) -> 0 | F114: =COUNTIF(DedPersonales!$E27,"<="&MONTH(Auxiliares!F$96))-COUNTIF(DedPersonales!$F27,"<"&MONTH(Auxiliares!F$96)) -> 0 | G114: =COUNTIF(DedPersonales!$E27,"<="&MONTH(Auxiliares!G$96))-COUNTIF(DedPersonales!$F27,"<"&MONTH(Auxiliares!G$96)) -> 0 | H114: =COUNTIF(DedPersonales!$E27,"<="&MONTH(Auxiliares!H$96))-COUNTIF(DedPersonales!$F27,"<"&MONTH(Auxiliares!H$96)) -> 0 | I114: =COUNTIF(DedPersonales!$E27,"<="&MONTH(Auxiliares!I$96))-COUNTIF(DedPersonales!$F27,"<"&MONTH(Auxiliares!I$96)) -> 0 | J114: =COUNTIF(DedPersonales!$E27,"<="&MONTH(Auxiliares!J$96))-COUNTIF(DedPersonales!$F27,"<"&MONTH(Auxiliares!J$96)) -> 0 | K114: =COUNTIF(DedPersonales!$E27,"<="&MONTH(Auxiliares!K$96))-COUNTIF(DedPersonales!$F27,"<"&MONTH(Auxiliares!K$96)) -> 0 | L114: =COUNTIF(DedPersonales!$E27,"<="&MONTH(Auxiliares!L$96))-COUNTIF(DedPersonales!$F27,"<"&MONTH(Auxiliares!L$96)) -> 0 | M114: =COUNTIF(DedPersonales!$E27,"<="&MONTH(Auxiliares!M$96))-COUNTIF(DedPersonales!$F27,"<"&MONTH(Auxiliares!M$96)) -> 0 | N114: =COUNTIF(DedPersonales!$E27,"<="&MONTH(Auxiliares!N$96))-COUNTIF(DedPersonales!$F27,"<"&MONTH(Auxiliares!N$96)) -> 0 | O114: =COUNTIF(DedPersonales!$E27,"<="&MONTH(Auxiliares!O$96))-COUNTIF(DedPersonales!$F27,"<"&MONTH(Auxiliares!O$96)) -> 0
C115: Hijo16 | D115: =COUNTIF(DedPersonales!$E28,"<="&MONTH(Auxiliares!D$96))-COUNTIF(DedPersonales!$F28,"<"&MONTH(Auxiliares!D$96)) -> 0 | E115: =COUNTIF(DedPersonales!$E28,"<="&MONTH(Auxiliares!E$96))-COUNTIF(DedPersonales!$F28,"<"&MONTH(Auxiliares!E$96)) -> 0 | F115: =COUNTIF(DedPersonales!$E28,"<="&MONTH(Auxiliares!F$96))-COUNTIF(DedPersonales!$F28,"<"&MONTH(Auxiliares!F$96)) -> 0 | G115: =COUNTIF(DedPersonales!$E28,"<="&MONTH(Auxiliares!G$96))-COUNTIF(DedPersonales!$F28,"<"&MONTH(Auxiliares!G$96)) -> 0 | H115: =COUNTIF(DedPersonales!$E28,"<="&MONTH(Auxiliares!H$96))-COUNTIF(DedPersonales!$F28,"<"&MONTH(Auxiliares!H$96)) -> 0 | I115: =COUNTIF(DedPersonales!$E28,"<="&MONTH(Auxiliares!I$96))-COUNTIF(DedPersonales!$F28,"<"&MONTH(Auxiliares!I$96)) -> 0 | J115: =COUNTIF(DedPersonales!$E28,"<="&MONTH(Auxiliares!J$96))-COUNTIF(DedPersonales!$F28,"<"&MONTH(Auxiliares!J$96)) -> 0 | K115: =COUNTIF(DedPersonales!$E28,"<="&MONTH(Auxiliares!K$96))-COUNTIF(DedPersonales!$F28,"<"&MONTH(Auxiliares!K$96)) -> 0 | L115: =COUNTIF(DedPersonales!$E28,"<="&MONTH(Auxiliares!L$96))-COUNTIF(DedPersonales!$F28,"<"&MONTH(Auxiliares!L$96)) -> 0 | M115: =COUNTIF(DedPersonales!$E28,"<="&MONTH(Auxiliares!M$96))-COUNTIF(DedPersonales!$F28,"<"&MONTH(Auxiliares!M$96)) -> 0 | N115: =COUNTIF(DedPersonales!$E28,"<="&MONTH(Auxiliares!N$96))-COUNTIF(DedPersonales!$F28,"<"&MONTH(Auxiliares!N$96)) -> 0 | O115: =COUNTIF(DedPersonales!$E28,"<="&MONTH(Auxiliares!O$96))-COUNTIF(DedPersonales!$F28,"<"&MONTH(Auxiliares!O$96)) -> 0
C117: Mes de información
C118: Cónyuge | D118: =IF(DedPersonales!$G$8=MONTH(D$96),1,0) -> 0 | E118: =IF(DedPersonales!$G$8=MONTH(E$96),1,0) -> 0 | F118: =IF(DedPersonales!$G$8=MONTH(F$96),1,0) -> 0 | G118: =IF(DedPersonales!$G$8=MONTH(G$96),1,0) -> 0 | H118: =IF(DedPersonales!$G$8=MONTH(H$96),1,0) -> 0 | I118: =IF(DedPersonales!$G$8=MONTH(I$96),1,0) -> 0 | J118: =IF(DedPersonales!$G$8=MONTH(J$96),1,0) -> 0 | K118: =IF(DedPersonales!$G$8=MONTH(K$96),1,0) -> 0 | L118: =IF(DedPersonales!$G$8=MONTH(L$96),1,0) -> 0 | M118: =IF(DedPersonales!$G$8=MONTH(M$96),1,0) -> 0 | N118: =IF(DedPersonales!$G$8=MONTH(N$96),1,0) -> 0 | O118: =IF(DedPersonales!$G$8=MONTH(O$96),1,0) -> 0
C120: Hijo1 | D120: =IF(DedPersonales!$G13=MONTH(D$96),1,0) -> 1 | E120: =IF(DedPersonales!$G13=MONTH(E$96),1,0) -> 0 | F120: =IF(DedPersonales!$G13=MONTH(F$96),1,0) -> 0 | G120: =IF(DedPersonales!$G13=MONTH(G$96),1,0) -> 0 | H120: =IF(DedPersonales!$G13=MONTH(H$96),1,0) -> 0 | I120: =IF(DedPersonales!$G13=MONTH(I$96),1,0) -> 0 | J120: =IF(DedPersonales!$G13=MONTH(J$96),1,0) -> 0 | K120: =IF(DedPersonales!$G13=MONTH(K$96),1,0) -> 0 | L120: =IF(DedPersonales!$G13=MONTH(L$96),1,0) -> 0 | M120: =IF(DedPersonales!$G13=MONTH(M$96),1,0) -> 0 | N120: =IF(DedPersonales!$G13=MONTH(N$96),1,0) -> 0 | O120: =IF(DedPersonales!$G13=MONTH(O$96),1,0) -> 0
C121: Hijo2 | D121: =IF(DedPersonales!$G14=MONTH(D$96),1,0) -> 0 | E121: =IF(DedPersonales!$G14=MONTH(E$96),1,0) -> 0 | F121: =IF(DedPersonales!$G14=MONTH(F$96),1,0) -> 0 | G121: =IF(DedPersonales!$G14=MONTH(G$96),1,0) -> 0 | H121: =IF(DedPersonales!$G14=MONTH(H$96),1,0) -> 0 | I121: =IF(DedPersonales!$G14=MONTH(I$96),1,0) -> 0 | J121: =IF(DedPersonales!$G14=MONTH(J$96),1,0) -> 0 | K121: =IF(DedPersonales!$G14=MONTH(K$96),1,0) -> 0 | L121: =IF(DedPersonales!$G14=MONTH(L$96),1,0) -> 0 | M121: =IF(DedPersonales!$G14=MONTH(M$96),1,0) -> 0 | N121: =IF(DedPersonales!$G14=MONTH(N$96),1,0) -> 0 | O121: =IF(DedPersonales!$G14=MONTH(O$96),1,0) -> 0
C122: Hijo3 | D122: =IF(DedPersonales!$G15=MONTH(D$96),1,0) -> 0 | E122: =IF(DedPersonales!$G15=MONTH(E$96),1,0) -> 0 | F122: =IF(DedPersonales!$G15=MONTH(F$96),1,0) -> 0 | G122: =IF(DedPersonales!$G15=MONTH(G$96),1,0) -> 0 | H122: =IF(DedPersonales!$G15=MONTH(H$96),1,0) -> 0 | I122: =IF(DedPersonales!$G15=MONTH(I$96),1,0) -> 0 | J122: =IF(DedPersonales!$G15=MONTH(J$96),1,0) -> 0 | K122: =IF(DedPersonales!$G15=MONTH(K$96),1,0) -> 0 | L122: =IF(DedPersonales!$G15=MONTH(L$96),1,0) -> 0 | M122: =IF(DedPersonales!$G15=MONTH(M$96),1,0) -> 0 | N122: =IF(DedPersonales!$G15=MONTH(N$96),1,0) -> 0 | O122: =IF(DedPersonales!$G15=MONTH(O$96),1,0) -> 0
C123: Hijo4 | D123: =IF(DedPersonales!$G16=MONTH(D$96),1,0) -> 0 | E123: =IF(DedPersonales!$G16=MONTH(E$96),1,0) -> 0 | F123: =IF(DedPersonales!$G16=MONTH(F$96),1,0) -> 0 | G123: =IF(DedPersonales!$G16=MONTH(G$96),1,0) -> 0 | H123: =IF(DedPersonales!$G16=MONTH(H$96),1,0) -> 0 | I123: =IF(DedPersonales!$G16=MONTH(I$96),1,0) -> 0 | J123: =IF(DedPersonales!$G16=MONTH(J$96),1,0) -> 0 | K123: =IF(DedPersonales!$G16=MONTH(K$96),1,0) -> 0 | L123: =IF(DedPersonales!$G16=MONTH(L$96),1,0) -> 0 | M123: =IF(DedPersonales!$G16=MONTH(M$96),1,0) -> 0 | N123: =IF(DedPersonales!$G16=MONTH(N$96),1,0) -> 0 | O123: =IF(DedPersonales!$G16=MONTH(O$96),1,0) -> 0
C124: Hijo5 | D124: =IF(DedPersonales!$G17=MONTH(D$96),1,0) -> 0 | E124: =IF(DedPersonales!$G17=MONTH(E$96),1,0) -> 0 | F124: =IF(DedPersonales!$G17=MONTH(F$96),1,0) -> 0 | G124: =IF(DedPersonales!$G17=MONTH(G$96),1,0) -> 0 | H124: =IF(DedPersonales!$G17=MONTH(H$96),1,0) -> 0 | I124: =IF(DedPersonales!$G17=MONTH(I$96),1,0) -> 0 | J124: =IF(DedPersonales!$G17=MONTH(J$96),1,0) -> 0 | K124: =IF(DedPersonales!$G17=MONTH(K$96),1,0) -> 0 | L124: =IF(DedPersonales!$G17=MONTH(L$96),1,0) -> 0 | M124: =IF(DedPersonales!$G17=MONTH(M$96),1,0) -> 0 | N124: =IF(DedPersonales!$G17=MONTH(N$96),1,0) -> 0 | O124: =IF(DedPersonales!$G17=MONTH(O$96),1,0) -> 0
C125: Hijo6 | D125: =IF(DedPersonales!$G18=MONTH(D$96),1,0) -> 0 | E125: =IF(DedPersonales!$G18=MONTH(E$96),1,0) -> 0 | F125: =IF(DedPersonales!$G18=MONTH(F$96),1,0) -> 0 | G125: =IF(DedPersonales!$G18=MONTH(G$96),1,0) -> 0 | H125: =IF(DedPersonales!$G18=MONTH(H$96),1,0) -> 0 | I125: =IF(DedPersonales!$G18=MONTH(I$96),1,0) -> 0 | J125: =IF(DedPersonales!$G18=MONTH(J$96),1,0) -> 0 | K125: =IF(DedPersonales!$G18=MONTH(K$96),1,0) -> 0 | L125: =IF(DedPersonales!$G18=MONTH(L$96),1,0) -> 0 | M125: =IF(DedPersonales!$G18=MONTH(M$96),1,0) -> 0 | N125: =IF(DedPersonales!$G18=MONTH(N$96),1,0) -> 0 | O125: =IF(DedPersonales!$G18=MONTH(O$96),1,0) -> 0
C126: Hijo7 | D126: =IF(DedPersonales!$G19=MONTH(D$96),1,0) -> 0 | E126: =IF(DedPersonales!$G19=MONTH(E$96),1,0) -> 0 | F126: =IF(DedPersonales!$G19=MONTH(F$96),1,0) -> 0 | G126: =IF(DedPersonales!$G19=MONTH(G$96),1,0) -> 0 | H126: =IF(DedPersonales!$G19=MONTH(H$96),1,0) -> 0 | I126: =IF(DedPersonales!$G19=MONTH(I$96),1,0) -> 0 | J126: =IF(DedPersonales!$G19=MONTH(J$96),1,0) -> 0 | K126: =IF(DedPersonales!$G19=MONTH(K$96),1,0) -> 0 | L126: =IF(DedPersonales!$G19=MONTH(L$96),1,0) -> 0 | M126: =IF(DedPersonales!$G19=MONTH(M$96),1,0) -> 0 | N126: =IF(DedPersonales!$G19=MONTH(N$96),1,0) -> 0 | O126: =IF(DedPersonales!$G19=MONTH(O$96),1,0) -> 0
C127: Hijo8 | D127: =IF(DedPersonales!$G20=MONTH(D$96),1,0) -> 0 | E127: =IF(DedPersonales!$G20=MONTH(E$96),1,0) -> 0 | F127: =IF(DedPersonales!$G20=MONTH(F$96),1,0) -> 0 | G127: =IF(DedPersonales!$G20=MONTH(G$96),1,0) -> 0 | H127: =IF(DedPersonales!$G20=MONTH(H$96),1,0) -> 0 | I127: =IF(DedPersonales!$G20=MONTH(I$96),1,0) -> 0 | J127: =IF(DedPersonales!$G20=MONTH(J$96),1,0) -> 0 | K127: =IF(DedPersonales!$G20=MONTH(K$96),1,0) -> 0 | L127: =IF(DedPersonales!$G20=MONTH(L$96),1,0) -> 0 | M127: =IF(DedPersonales!$G20=MONTH(M$96),1,0) -> 0 | N127: =IF(DedPersonales!$G20=MONTH(N$96),1,0) -> 0 | O127: =IF(DedPersonales!$G20=MONTH(O$96),1,0) -> 0
C128: Hijo9 | D128: =IF(DedPersonales!$G21=MONTH(D$96),1,0) -> 0 | E128: =IF(DedPersonales!$G21=MONTH(E$96),1,0) -> 0 | F128: =IF(DedPersonales!$G21=MONTH(F$96),1,0) -> 0 | G128: =IF(DedPersonales!$G21=MONTH(G$96),1,0) -> 0 | H128: =IF(DedPersonales!$G21=MONTH(H$96),1,0) -> 0 | I128: =IF(DedPersonales!$G21=MONTH(I$96),1,0) -> 0 | J128: =IF(DedPersonales!$G21=MONTH(J$96),1,0) -> 0 | K128: =IF(DedPersonales!$G21=MONTH(K$96),1,0) -> 0 | L128: =IF(DedPersonales!$G21=MONTH(L$96),1,0) -> 0 | M128: =IF(DedPersonales!$G21=MONTH(M$96),1,0) -> 0 | N128: =IF(DedPersonales!$G21=MONTH(N$96),1,0) -> 0 | O128: =IF(DedPersonales!$G21=MONTH(O$96),1,0) -> 0
C129: Hijo10 | D129: =IF(DedPersonales!$G22=MONTH(D$96),1,0) -> 0 | E129: =IF(DedPersonales!$G22=MONTH(E$96),1,0) -> 0 | F129: =IF(DedPersonales!$G22=MONTH(F$96),1,0) -> 0 | G129: =IF(DedPersonales!$G22=MONTH(G$96),1,0) -> 0 | H129: =IF(DedPersonales!$G22=MONTH(H$96),1,0) -> 0 | I129: =IF(DedPersonales!$G22=MONTH(I$96),1,0) -> 0 | J129: =IF(DedPersonales!$G22=MONTH(J$96),1,0) -> 0 | K129: =IF(DedPersonales!$G22=MONTH(K$96),1,0) -> 0 | L129: =IF(DedPersonales!$G22=MONTH(L$96),1,0) -> 0 | M129: =IF(DedPersonales!$G22=MONTH(M$96),1,0) -> 0 | N129: =IF(DedPersonales!$G22=MONTH(N$96),1,0) -> 0 | O129: =IF(DedPersonales!$G22=MONTH(O$96),1,0) -> 0
C130: Hijo11 | D130: =IF(DedPersonales!$G23=MONTH(D$96),1,0) -> 0 | E130: =IF(DedPersonales!$G23=MONTH(E$96),1,0) -> 0 | F130: =IF(DedPersonales!$G23=MONTH(F$96),1,0) -> 0 | G130: =IF(DedPersonales!$G23=MONTH(G$96),1,0) -> 0 | H130: =IF(DedPersonales!$G23=MONTH(H$96),1,0) -> 0 | I130: =IF(DedPersonales!$G23=MONTH(I$96),1,0) -> 0 | J130: =IF(DedPersonales!$G23=MONTH(J$96),1,0) -> 0 | K130: =IF(DedPersonales!$G23=MONTH(K$96),1,0) -> 0 | L130: =IF(DedPersonales!$G23=MONTH(L$96),1,0) -> 0 | M130: =IF(DedPersonales!$G23=MONTH(M$96),1,0) -> 0 | N130: =IF(DedPersonales!$G23=MONTH(N$96),1,0) -> 0 | O130: =IF(DedPersonales!$G23=MONTH(O$96),1,0) -> 0
C131: Hijo12 | D131: =IF(DedPersonales!$G24=MONTH(D$96),1,0) -> 0 | E131: =IF(DedPersonales!$G24=MONTH(E$96),1,0) -> 0 | F131: =IF(DedPersonales!$G24=MONTH(F$96),1,0) -> 0 | G131: =IF(DedPersonales!$G24=MONTH(G$96),1,0) -> 0 | H131: =IF(DedPersonales!$G24=MONTH(H$96),1,0) -> 0 | I131: =IF(DedPersonales!$G24=MONTH(I$96),1,0) -> 0 | J131: =IF(DedPersonales!$G24=MONTH(J$96),1,0) -> 0 | K131: =IF(DedPersonales!$G24=MONTH(K$96),1,0) -> 0 | L131: =IF(DedPersonales!$G24=MONTH(L$96),1,0) -> 0 | M131: =IF(DedPersonales!$G24=MONTH(M$96),1,0) -> 0 | N131: =IF(DedPersonales!$G24=MONTH(N$96),1,0) -> 0 | O131: =IF(DedPersonales!$G24=MONTH(O$96),1,0) -> 0
C132: Hijo13 | D132: =IF(DedPersonales!$G25=MONTH(D$96),1,0) -> 0 | E132: =IF(DedPersonales!$G25=MONTH(E$96),1,0) -> 0 | F132: =IF(DedPersonales!$G25=MONTH(F$96),1,0) -> 0 | G132: =IF(DedPersonales!$G25=MONTH(G$96),1,0) -> 0 | H132: =IF(DedPersonales!$G25=MONTH(H$96),1,0) -> 0 | I132: =IF(DedPersonales!$G25=MONTH(I$96),1,0) -> 0 | J132: =IF(DedPersonales!$G25=MONTH(J$96),1,0) -> 0 | K132: =IF(DedPersonales!$G25=MONTH(K$96),1,0) -> 0 | L132: =IF(DedPersonales!$G25=MONTH(L$96),1,0) -> 0 | M132: =IF(DedPersonales!$G25=MONTH(M$96),1,0) -> 0 | N132: =IF(DedPersonales!$G25=MONTH(N$96),1,0) -> 0 | O132: =IF(DedPersonales!$G25=MONTH(O$96),1,0) -> 0
C133: Hijo14 | D133: =IF(DedPersonales!$G26=MONTH(D$96),1,0) -> 0 | E133: =IF(DedPersonales!$G26=MONTH(E$96),1,0) -> 0 | F133: =IF(DedPersonales!$G26=MONTH(F$96),1,0) -> 0 | G133: =IF(DedPersonales!$G26=MONTH(G$96),1,0) -> 0 | H133: =IF(DedPersonales!$G26=MONTH(H$96),1,0) -> 0 | I133: =IF(DedPersonales!$G26=MONTH(I$96),1,0) -> 0 | J133: =IF(DedPersonales!$G26=MONTH(J$96),1,0) -> 0 | K133: =IF(DedPersonales!$G26=MONTH(K$96),1,0) -> 0 | L133: =IF(DedPersonales!$G26=MONTH(L$96),1,0) -> 0 | M133: =IF(DedPersonales!$G26=MONTH(M$96),1,0) -> 0 | N133: =IF(DedPersonales!$G26=MONTH(N$96),1,0) -> 0 | O133: =IF(DedPersonales!$G26=MONTH(O$96),1,0) -> 0
C134: Hijo15 | D134: =IF(DedPersonales!$G27=MONTH(D$96),1,0) -> 0 | E134: =IF(DedPersonales!$G27=MONTH(E$96),1,0) -> 0 | F134: =IF(DedPersonales!$G27=MONTH(F$96),1,0) -> 0 | G134: =IF(DedPersonales!$G27=MONTH(G$96),1,0) -> 0 | H134: =IF(DedPersonales!$G27=MONTH(H$96),1,0) -> 0 | I134: =IF(DedPersonales!$G27=MONTH(I$96),1,0) -> 0 | J134: =IF(DedPersonales!$G27=MONTH(J$96),1,0) -> 0 | K134: =IF(DedPersonales!$G27=MONTH(K$96),1,0) -> 0 | L134: =IF(DedPersonales!$G27=MONTH(L$96),1,0) -> 0 | M134: =IF(DedPersonales!$G27=MONTH(M$96),1,0) -> 0 | N134: =IF(DedPersonales!$G27=MONTH(N$96),1,0) -> 0 | O134: =IF(DedPersonales!$G27=MONTH(O$96),1,0) -> 0
C135: Hijo16 | D135: =IF(DedPersonales!$G28=MONTH(D$96),1,0) -> 0 | E135: =IF(DedPersonales!$G28=MONTH(E$96),1,0) -> 0 | F135: =IF(DedPersonales!$G28=MONTH(F$96),1,0) -> 0 | G135: =IF(DedPersonales!$G28=MONTH(G$96),1,0) -> 0 | H135: =IF(DedPersonales!$G28=MONTH(H$96),1,0) -> 0 | I135: =IF(DedPersonales!$G28=MONTH(I$96),1,0) -> 0 | J135: =IF(DedPersonales!$G28=MONTH(J$96),1,0) -> 0 | K135: =IF(DedPersonales!$G28=MONTH(K$96),1,0) -> 0 | L135: =IF(DedPersonales!$G28=MONTH(L$96),1,0) -> 0 | M135: =IF(DedPersonales!$G28=MONTH(M$96),1,0) -> 0 | N135: =IF(DedPersonales!$G28=MONTH(N$96),1,0) -> 0 | O135: =IF(DedPersonales!$G28=MONTH(O$96),1,0) -> 0
C137: Imputación
C138: Cónyuge | D138: =IF(D118=1,SUM($D98:D98),0) -> 0 | E138: =IF(OR(E118=1,D138<>0),SUM($D98:E98),0) -> 0 | F138: =IF(OR(F118=1,E138<>0),SUM($D98:F98),0) -> 0 | G138: =IF(OR(G118=1,F138<>0),SUM($D98:G98),0) -> 0 | H138: =IF(OR(H118=1,G138<>0),SUM($D98:H98),0) -> 0 | I138: =IF(OR(I118=1,H138<>0),SUM($D98:I98),0) -> 0 | J138: =IF(OR(J118=1,I138<>0),SUM($D98:J98),0) -> 0 | K138: =IF(OR(K118=1,J138<>0),SUM($D98:K98),0) -> 0 | L138: =IF(OR(L118=1,K138<>0),SUM($D98:L98),0) -> 0 | M138: =IF(OR(M118=1,L138<>0),SUM($D98:M98),0) -> 0 | N138: =IF(OR(N118=1,M138<>0),SUM($D98:N98),0) -> 0 | O138: =IF(OR(O118=1,N138<>0),SUM($D98:O98),0) -> 0 | P138: =O138 -> 0
C140: Hijo1 | D140: =IF(D120=1,SUM($D100:D100),0) -> 1 | E140: =IF(OR(E120=1,D140<>0),SUM($D100:E100),0) -> 2 | F140: =IF(OR(F120=1,E140<>0),SUM($D100:F100),0) -> 3 | G140: =IF(OR(G120=1,F140<>0),SUM($D100:G100),0) -> 4 | H140: =IF(OR(H120=1,G140<>0),SUM($D100:H100),0) -> 5 | I140: =IF(OR(I120=1,H140<>0),SUM($D100:I100),0) -> 6 | J140: =IF(OR(J120=1,I140<>0),SUM($D100:J100),0) -> 7 | K140: =IF(OR(K120=1,J140<>0),SUM($D100:K100),0) -> 8 | L140: =IF(OR(L120=1,K140<>0),SUM($D100:L100),0) -> 9 | M140: =IF(OR(M120=1,L140<>0),SUM($D100:M100),0) -> 10 | N140: =IF(OR(N120=1,M140<>0),SUM($D100:N100),0) -> 11 | O140: =IF(OR(O120=1,N140<>0),SUM($D100:O100),0) -> 12 | P140: =O140 -> 12
C141: Hijo2 | D141: =IF(D121=1,SUM($D101:D101),0) -> 0 | E141: =IF(OR(E121=1,D141<>0),SUM($D101:E101),0) -> 0 | F141: =IF(OR(F121=1,E141<>0),SUM($D101:F101),0) -> 0 | G141: =IF(OR(G121=1,F141<>0),SUM($D101:G101),0) -> 0 | H141: =IF(OR(H121=1,G141<>0),SUM($D101:H101),0) -> 0 | I141: =IF(OR(I121=1,H141<>0),SUM($D101:I101),0) -> 0 | J141: =IF(OR(J121=1,I141<>0),SUM($D101:J101),0) -> 0 | K141: =IF(OR(K121=1,J141<>0),SUM($D101:K101),0) -> 0 | L141: =IF(OR(L121=1,K141<>0),SUM($D101:L101),0) -> 0 | M141: =IF(OR(M121=1,L141<>0),SUM($D101:M101),0) -> 0 | N141: =IF(OR(N121=1,M141<>0),SUM($D101:N101),0) -> 0 | O141: =IF(OR(O121=1,N141<>0),SUM($D101:O101),0) -> 0 | P141: 0
C142: Hijo3 | D142: =IF(D122=1,SUM($D102:D102),0) -> 0 | E142: =IF(OR(E122=1,D142<>0),SUM($D102:E102),0) -> 0 | F142: =IF(OR(F122=1,E142<>0),SUM($D102:F102),0) -> 0 | G142: =IF(OR(G122=1,F142<>0),SUM($D102:G102),0) -> 0 | H142: =IF(OR(H122=1,G142<>0),SUM($D102:H102),0) -> 0 | I142: =IF(OR(I122=1,H142<>0),SUM($D102:I102),0) -> 0 | J142: =IF(OR(J122=1,I142<>0),SUM($D102:J102),0) -> 0 | K142: =IF(OR(K122=1,J142<>0),SUM($D102:K102),0) -> 0 | L142: =IF(OR(L122=1,K142<>0),SUM($D102:L102),0) -> 0 | M142: =IF(OR(M122=1,L142<>0),SUM($D102:M102),0) -> 0 | N142: =IF(OR(N122=1,M142<>0),SUM($D102:N102),0) -> 0 | O142: =IF(OR(O122=1,N142<>0),SUM($D102:O102),0) -> 0 | P142: 0
C143: Hijo4 | D143: =IF(D123=1,SUM($D103:D103),0) -> 0 | E143: =IF(OR(E123=1,D143<>0),SUM($D103:E103),0) -> 0 | F143: =IF(OR(F123=1,E143<>0),SUM($D103:F103),0) -> 0 | G143: =IF(OR(G123=1,F143<>0),SUM($D103:G103),0) -> 0 | H143: =IF(OR(H123=1,G143<>0),SUM($D103:H103),0) -> 0 | I143: =IF(OR(I123=1,H143<>0),SUM($D103:I103),0) -> 0 | J143: =IF(OR(J123=1,I143<>0),SUM($D103:J103),0) -> 0 | K143: =IF(OR(K123=1,J143<>0),SUM($D103:K103),0) -> 0 | L143: =IF(OR(L123=1,K143<>0),SUM($D103:L103),0) -> 0 | M143: =IF(OR(M123=1,L143<>0),SUM($D103:M103),0) -> 0 | N143: =IF(OR(N123=1,M143<>0),SUM($D103:N103),0) -> 0 | O143: =IF(OR(O123=1,N143<>0),SUM($D103:O103),0) -> 0 | P143: 0
C144: Hijo5 | D144: =IF(D124=1,SUM($D104:D104),0) -> 0 | E144: =IF(OR(E124=1,D144<>0),SUM($D104:E104),0) -> 0 | F144: =IF(OR(F124=1,E144<>0),SUM($D104:F104),0) -> 0 | G144: =IF(OR(G124=1,F144<>0),SUM($D104:G104),0) -> 0 | H144: =IF(OR(H124=1,G144<>0),SUM($D104:H104),0) -> 0 | I144: =IF(OR(I124=1,H144<>0),SUM($D104:I104),0) -> 0 | J144: =IF(OR(J124=1,I144<>0),SUM($D104:J104),0) -> 0 | K144: =IF(OR(K124=1,J144<>0),SUM($D104:K104),0) -> 0 | L144: =IF(OR(L124=1,K144<>0),SUM($D104:L104),0) -> 0 | M144: =IF(OR(M124=1,L144<>0),SUM($D104:M104),0) -> 0 | N144: =IF(OR(N124=1,M144<>0),SUM($D104:N104),0) -> 0 | O144: =IF(OR(O124=1,N144<>0),SUM($D104:O104),0) -> 0 | P144: 0
C145: Hijo6 | D145: =IF(D125=1,SUM($D105:D105),0) -> 0 | E145: =IF(OR(E125=1,D145<>0),SUM($D105:E105),0) -> 0 | F145: =IF(OR(F125=1,E145<>0),SUM($D105:F105),0) -> 0 | G145: =IF(OR(G125=1,F145<>0),SUM($D105:G105),0) -> 0 | H145: =IF(OR(H125=1,G145<>0),SUM($D105:H105),0) -> 0 | I145: =IF(OR(I125=1,H145<>0),SUM($D105:I105),0) -> 0 | J145: =IF(OR(J125=1,I145<>0),SUM($D105:J105),0) -> 0 | K145: =IF(OR(K125=1,J145<>0),SUM($D105:K105),0) -> 0 | L145: =IF(OR(L125=1,K145<>0),SUM($D105:L105),0) -> 0 | M145: =IF(OR(M125=1,L145<>0),SUM($D105:M105),0) -> 0 | N145: =IF(OR(N125=1,M145<>0),SUM($D105:N105),0) -> 0 | O145: =IF(OR(O125=1,N145<>0),SUM($D105:O105),0) -> 0 | P145: 0
C146: Hijo7 | D146: =IF(D126=1,SUM($D106:D106),0) -> 0 | E146: =IF(OR(E126=1,D146<>0),SUM($D106:E106),0) -> 0 | F146: =IF(OR(F126=1,E146<>0),SUM($D106:F106),0) -> 0 | G146: =IF(OR(G126=1,F146<>0),SUM($D106:G106),0) -> 0 | H146: =IF(OR(H126=1,G146<>0),SUM($D106:H106),0) -> 0 | I146: =IF(OR(I126=1,H146<>0),SUM($D106:I106),0) -> 0 | J146: =IF(OR(J126=1,I146<>0),SUM($D106:J106),0) -> 0 | K146: =IF(OR(K126=1,J146<>0),SUM($D106:K106),0) -> 0 | L146: =IF(OR(L126=1,K146<>0),SUM($D106:L106),0) -> 0 | M146: =IF(OR(M126=1,L146<>0),SUM($D106:M106),0) -> 0 | N146: =IF(OR(N126=1,M146<>0),SUM($D106:N106),0) -> 0 | O146: =IF(OR(O126=1,N146<>0),SUM($D106:O106),0) -> 0 | P146: 0
C147: Hijo8 | D147: =IF(D127=1,SUM($D107:D107),0) -> 0 | E147: =IF(OR(E127=1,D147<>0),SUM($D107:E107),0) -> 0 | F147: =IF(OR(F127=1,E147<>0),SUM($D107:F107),0) -> 0 | G147: =IF(OR(G127=1,F147<>0),SUM($D107:G107),0) -> 0 | H147: =IF(OR(H127=1,G147<>0),SUM($D107:H107),0) -> 0 | I147: =IF(OR(I127=1,H147<>0),SUM($D107:I107),0) -> 0 | J147: =IF(OR(J127=1,I147<>0),SUM($D107:J107),0) -> 0 | K147: =IF(OR(K127=1,J147<>0),SUM($D107:K107),0) -> 0 | L147: =IF(OR(L127=1,K147<>0),SUM($D107:L107),0) -> 0 | M147: =IF(OR(M127=1,L147<>0),SUM($D107:M107),0) -> 0 | N147: =IF(OR(N127=1,M147<>0),SUM($D107:N107),0) -> 0 | O147: =IF(OR(O127=1,N147<>0),SUM($D107:O107),0) -> 0 | P147: 0
C148: Hijo9 | D148: =IF(D128=1,SUM($D108:D108),0) -> 0 | E148: =IF(OR(E128=1,D148<>0),SUM($D108:E108),0) -> 0 | F148: =IF(OR(F128=1,E148<>0),SUM($D108:F108),0) -> 0 | G148: =IF(OR(G128=1,F148<>0),SUM($D108:G108),0) -> 0 | H148: =IF(OR(H128=1,G148<>0),SUM($D108:H108),0) -> 0 | I148: =IF(OR(I128=1,H148<>0),SUM($D108:I108),0) -> 0 | J148: =IF(OR(J128=1,I148<>0),SUM($D108:J108),0) -> 0 | K148: =IF(OR(K128=1,J148<>0),SUM($D108:K108),0) -> 0 | L148: =IF(OR(L128=1,K148<>0),SUM($D108:L108),0) -> 0 | M148: =IF(OR(M128=1,L148<>0),SUM($D108:M108),0) -> 0 | N148: =IF(OR(N128=1,M148<>0),SUM($D108:N108),0) -> 0 | O148: =IF(OR(O128=1,N148<>0),SUM($D108:O108),0) -> 0 | P148: 0
C149: Hijo10 | D149: =IF(D129=1,SUM($D109:D109),0) -> 0 | E149: =IF(OR(E129=1,D149<>0),SUM($D109:E109),0) -> 0 | F149: =IF(OR(F129=1,E149<>0),SUM($D109:F109),0) -> 0 | G149: =IF(OR(G129=1,F149<>0),SUM($D109:G109),0) -> 0 | H149: =IF(OR(H129=1,G149<>0),SUM($D109:H109),0) -> 0 | I149: =IF(OR(I129=1,H149<>0),SUM($D109:I109),0) -> 0 | J149: =IF(OR(J129=1,I149<>0),SUM($D109:J109),0) -> 0 | K149: =IF(OR(K129=1,J149<>0),SUM($D109:K109),0) -> 0 | L149: =IF(OR(L129=1,K149<>0),SUM($D109:L109),0) -> 0 | M149: =IF(OR(M129=1,L149<>0),SUM($D109:M109),0) -> 0 | N149: =IF(OR(N129=1,M149<>0),SUM($D109:N109),0) -> 0 | O149: =IF(OR(O129=1,N149<>0),SUM($D109:O109),0) -> 0 | P149: 0
C150: Hijo11 | D150: =IF(D130=1,SUM($D110:D110),0) -> 0 | E150: =IF(OR(E130=1,D150<>0),SUM($D110:E110),0) -> 0 | F150: =IF(OR(F130=1,E150<>0),SUM($D110:F110),0) -> 0 | G150: =IF(OR(G130=1,F150<>0),SUM($D110:G110),0) -> 0 | H150: =IF(OR(H130=1,G150<>0),SUM($D110:H110),0) -> 0 | I150: =IF(OR(I130=1,H150<>0),SUM($D110:I110),0) -> 0 | J150: =IF(OR(J130=1,I150<>0),SUM($D110:J110),0) -> 0 | K150: =IF(OR(K130=1,J150<>0),SUM($D110:K110),0) -> 0 | L150: =IF(OR(L130=1,K150<>0),SUM($D110:L110),0) -> 0 | M150: =IF(OR(M130=1,L150<>0),SUM($D110:M110),0) -> 0 | N150: =IF(OR(N130=1,M150<>0),SUM($D110:N110),0) -> 0 | O150: =IF(OR(O130=1,N150<>0),SUM($D110:O110),0) -> 0 | P150: 0
C151: Hijo12 | D151: =IF(D131=1,SUM($D111:D111),0) -> 0 | E151: =IF(OR(E131=1,D151<>0),SUM($D111:E111),0) -> 0 | F151: =IF(OR(F131=1,E151<>0),SUM($D111:F111),0) -> 0 | G151: =IF(OR(G131=1,F151<>0),SUM($D111:G111),0) -> 0 | H151: =IF(OR(H131=1,G151<>0),SUM($D111:H111),0) -> 0 | I151: =IF(OR(I131=1,H151<>0),SUM($D111:I111),0) -> 0 | J151: =IF(OR(J131=1,I151<>0),SUM($D111:J111),0) -> 0 | K151: =IF(OR(K131=1,J151<>0),SUM($D111:K111),0) -> 0 | L151: =IF(OR(L131=1,K151<>0),SUM($D111:L111),0) -> 0 | M151: =IF(OR(M131=1,L151<>0),SUM($D111:M111),0) -> 0 | N151: =IF(OR(N131=1,M151<>0),SUM($D111:N111),0) -> 0 | O151: =IF(OR(O131=1,N151<>0),SUM($D111:O111),0) -> 0 | P151: 0
C152: Hijo13 | D152: =IF(D132=1,SUM($D112:D112),0) -> 0 | E152: =IF(OR(E132=1,D152<>0),SUM($D112:E112),0) -> 0 | F152: =IF(OR(F132=1,E152<>0),SUM($D112:F112),0) -> 0 | G152: =IF(OR(G132=1,F152<>0),SUM($D112:G112),0) -> 0 | H152: =IF(OR(H132=1,G152<>0),SUM($D112:H112),0) -> 0 | I152: =IF(OR(I132=1,H152<>0),SUM($D112:I112),0) -> 0 | J152: =IF(OR(J132=1,I152<>0),SUM($D112:J112),0) -> 0 | K152: =IF(OR(K132=1,J152<>0),SUM($D112:K112),0) -> 0 | L152: =IF(OR(L132=1,K152<>0),SUM($D112:L112),0) -> 0 | M152: =IF(OR(M132=1,L152<>0),SUM($D112:M112),0) -> 0 | N152: =IF(OR(N132=1,M152<>0),SUM($D112:N112),0) -> 0 | O152: =IF(OR(O132=1,N152<>0),SUM($D112:O112),0) -> 0 | P152: 0
C153: Hijo14 | D153: =IF(D133=1,SUM($D113:D113),0) -> 0 | E153: =IF(OR(E133=1,D153<>0),SUM($D113:E113),0) -> 0 | F153: =IF(OR(F133=1,E153<>0),SUM($D113:F113),0) -> 0 | G153: =IF(OR(G133=1,F153<>0),SUM($D113:G113),0) -> 0 | H153: =IF(OR(H133=1,G153<>0),SUM($D113:H113),0) -> 0 | I153: =IF(OR(I133=1,H153<>0),SUM($D113:I113),0) -> 0 | J153: =IF(OR(J133=1,I153<>0),SUM($D113:J113),0) -> 0 | K153: =IF(OR(K133=1,J153<>0),SUM($D113:K113),0) -> 0 | L153: =IF(OR(L133=1,K153<>0),SUM($D113:L113),0) -> 0 | M153: =IF(OR(M133=1,L153<>0),SUM($D113:M113),0) -> 0 | N153: =IF(OR(N133=1,M153<>0),SUM($D113:N113),0) -> 0 | O153: =IF(OR(O133=1,N153<>0),SUM($D113:O113),0) -> 0 | P153: 0
C154: Hijo15 | D154: =IF(D134=1,SUM($D114:D114),0) -> 0 | E154: =IF(OR(E134=1,D154<>0),SUM($D114:E114),0) -> 0 | F154: =IF(OR(F134=1,E154<>0),SUM($D114:F114),0) -> 0 | G154: =IF(OR(G134=1,F154<>0),SUM($D114:G114),0) -> 0 | H154: =IF(OR(H134=1,G154<>0),SUM($D114:H114),0) -> 0 | I154: =IF(OR(I134=1,H154<>0),SUM($D114:I114),0) -> 0 | J154: =IF(OR(J134=1,I154<>0),SUM($D114:J114),0) -> 0 | K154: =IF(OR(K134=1,J154<>0),SUM($D114:K114),0) -> 0 | L154: =IF(OR(L134=1,K154<>0),SUM($D114:L114),0) -> 0 | M154: =IF(OR(M134=1,L154<>0),SUM($D114:M114),0) -> 0 | N154: =IF(OR(N134=1,M154<>0),SUM($D114:N114),0) -> 0 | O154: =IF(OR(O134=1,N154<>0),SUM($D114:O114),0) -> 0 | P154: 0
C155: Hijo16 | D155: =IF(D135=1,SUM($D115:D115),0) -> 0 | E155: =IF(OR(E135=1,D155<>0),SUM($D115:E115),0) -> 0 | F155: =IF(OR(F135=1,E155<>0),SUM($D115:F115),0) -> 0 | G155: =IF(OR(G135=1,F155<>0),SUM($D115:G115),0) -> 0 | H155: =IF(OR(H135=1,G155<>0),SUM($D115:H115),0) -> 0 | I155: =IF(OR(I135=1,H155<>0),SUM($D115:I115),0) -> 0 | J155: =IF(OR(J135=1,I155<>0),SUM($D115:J115),0) -> 0 | K155: =IF(OR(K135=1,J155<>0),SUM($D115:K115),0) -> 0 | L155: =IF(OR(L135=1,K155<>0),SUM($D115:L115),0) -> 0 | M155: =IF(OR(M135=1,L155<>0),SUM($D115:M115),0) -> 0 | N155: =IF(OR(N135=1,M155<>0),SUM($D115:N115),0) -> 0 | O155: =IF(OR(O135=1,N155<>0),SUM($D115:O115),0) -> 0 | P155: 0
C157: Retenciones al SAC | D157: 2017-01-01 | E157: 2017-02-01 | F157: 2017-03-01 | G157: 2017-04-01 | H157: 2017-05-01 | I157: 2017-06-01 | J157: 2017-07-01 | K157: 2017-08-01 | L157: 2017-09-01 | M157: 2017-10-01 | N157: 2017-11-01 | O157: 2017-12-01 | P157: Anual
C158: SAC Importe | D158: =+Ingresos!C12+Ingresos!C39 -> 0 | E158: =+Ingresos!D12+Ingresos!D39 -> 0 | F158: =+Ingresos!E12+Ingresos!E39 -> 0 | G158: =+Ingresos!F12+Ingresos!F39 -> 0 | H158: =+Ingresos!G12+Ingresos!G39 -> 0 | I158: =+Ingresos!H12+Ingresos!H39 -> 27000 | J158: =+Ingresos!I12+Ingresos!I39 -> 0 | K158: =+Ingresos!J12+Ingresos!J39 -> 0 | L158: =+Ingresos!K12+Ingresos!K39 -> 0 | M158: =+Ingresos!L12+Ingresos!L39 -> 0 | N158: =+Ingresos!M12+Ingresos!M39 -> 0 | O158: =+Ingresos!N12+Ingresos!N39 -> 28000 | P158: =SUM(D158:O158) -> 55000
C159: SUMA Remunerativo | D159: =+D10+D9 -> 50000 | E159: 50000 | F159: 50000 | G159: 53000 | H159: 53000 | I159: 54000 | J159: 54000 | K159: 54000 | L159: 54000 | M159: 54000 | N159: 56000 | O159: 56000 | P159: =SUM(D159:O159) -> 638000
C160: Empleo + Pluriempleo
C161: =+C30 -> Jubilación | D161: =IF(D$158<>0,retenciones(Check!$B$8,$R161,SUM(D$158:D$159),Tablas!C$7*1.5,Tablas!C8,D$158,0),0) -> 0 | E161: =IF(E$158<>0,retenciones(Check!$B$8,$R161,SUM(E$158:E$159),Tablas!D$7*1.5,Tablas!D8,E$158,0),0) -> 0 | F161: =IF(F$158<>0,retenciones(Check!$B$8,$R161,SUM(F$158:F$159),Tablas!E$7*1.5,Tablas!E8,F$158,0),0) -> 0 | G161: =IF(G$158<>0,retenciones(Check!$B$8,$R161,SUM(G$158:G$159),Tablas!F$7*1.5,Tablas!F8,G$158,0),0) -> 0 | H161: =IF(H$158<>0,retenciones(Check!$B$8,$R161,SUM(H$158:H$159),Tablas!G$7*1.5,Tablas!G8,H$158,0),0) -> 0 | I161: =IF(I$158<>0,retenciones(Check!$B$8,$R161,SUM(I$158:I$159),Tablas!H$7*1.5,Tablas!H8,I$158,0),0) -> 2970 | J161: =IF(J$158<>0,retenciones(Check!$B$8,$R161,SUM(J$158:J$159),Tablas!I$7*1.5,Tablas!I8,J$158,0),0) -> 0 | K161: =IF(K$158<>0,retenciones(Check!$B$8,$R161,SUM(K$158:K$159),Tablas!J$7*1.5,Tablas!J8,K$158,0),0) -> 0 | L161: =IF(L$158<>0,retenciones(Check!$B$8,$R161,SUM(L$158:L$159),Tablas!K$7*1.5,Tablas!K8,L$158,0),0) -> 0 | M161: =IF(M$158<>0,retenciones(Check!$B$8,$R161,SUM(M$158:M$159),Tablas!L$7*1.5,Tablas!L8,M$158,0),0) -> 0 | N161: =IF(N$158<>0,retenciones(Check!$B$8,$R161,SUM(N$158:N$159),Tablas!M$7*1.5,Tablas!M8,N$158,0),0) -> 0 | O161: =IF(O$158<>0,retenciones(Check!$B$8,$R161,SUM(O$158:O$159),Tablas!N$7*1.5,Tablas!N8,O$158,0),0) -> 3080 | P161: =IF(Check!$B$8="Ok",SUM(D161:O161),DedGrales!P23) -> 6050 | R161: =+R30 -> Sí
C162: =+C31 -> Ley 19032 | D162: =IF(D$158<>0,retenciones(Check!$B$8,$R162,SUM(D$158:D$159),Tablas!C$7*1.5,Tablas!C9,D$158,0),0) -> 0 | E162: =IF(E$158<>0,retenciones(Check!$B$8,$R162,SUM(E$158:E$159),Tablas!D$7*1.5,Tablas!D9,E$158,0),0) -> 0 | F162: =IF(F$158<>0,retenciones(Check!$B$8,$R162,SUM(F$158:F$159),Tablas!E$7*1.5,Tablas!E9,F$158,0),0) -> 0 | G162: =IF(G$158<>0,retenciones(Check!$B$8,$R162,SUM(G$158:G$159),Tablas!F$7*1.5,Tablas!F9,G$158,0),0) -> 0 | H162: =IF(H$158<>0,retenciones(Check!$B$8,$R162,SUM(H$158:H$159),Tablas!G$7*1.5,Tablas!G9,H$158,0),0) -> 0 | I162: =IF(I$158<>0,retenciones(Check!$B$8,$R162,SUM(I$158:I$159),Tablas!H$7*1.5,Tablas!H9,I$158,0),0) -> 810 | J162: =IF(J$158<>0,retenciones(Check!$B$8,$R162,SUM(J$158:J$159),Tablas!I$7*1.5,Tablas!I9,J$158,0),0) -> 0 | K162: =IF(K$158<>0,retenciones(Check!$B$8,$R162,SUM(K$158:K$159),Tablas!J$7*1.5,Tablas!J9,K$158,0),0) -> 0 | L162: =IF(L$158<>0,retenciones(Check!$B$8,$R162,SUM(L$158:L$159),Tablas!K$7*1.5,Tablas!K9,L$158,0),0) -> 0 | M162: =IF(M$158<>0,retenciones(Check!$B$8,$R162,SUM(M$158:M$159),Tablas!L$7*1.5,Tablas!L9,M$158,0),0) -> 0 | N162: =IF(N$158<>0,retenciones(Check!$B$8,$R162,SUM(N$158:N$159),Tablas!M$7*1.5,Tablas!M9,N$158,0),0) -> 0 | O162: =IF(O$158<>0,retenciones(Check!$B$8,$R162,SUM(O$158:O$159),Tablas!N$7*1.5,Tablas!N9,O$158,0),0) -> 840 | P162: =IF(Check!$B$8="Ok",SUM(D162:O162),DedGrales!P24) -> 1650 | R162: =+R31 -> Sí
C163: Obra social | D163: =IF(D$158<>0,retenciones(Check!$B$8,$R163,SUM(D$158:D$159),Tablas!C$7*1.5,Tablas!C10,D$158,0),0) -> 0 | E163: =IF(E$158<>0,retenciones(Check!$B$8,$R163,SUM(E$158:E$159),Tablas!D$7*1.5,Tablas!D10,E$158,0),0) -> 0 | F163: =IF(F$158<>0,retenciones(Check!$B$8,$R163,SUM(F$158:F$159),Tablas!E$7*1.5,Tablas!E10,F$158,0),0) -> 0 | G163: =IF(G$158<>0,retenciones(Check!$B$8,$R163,SUM(G$158:G$159),Tablas!F$7*1.5,Tablas!F10,G$158,0),0) -> 0 | H163: =IF(H$158<>0,retenciones(Check!$B$8,$R163,SUM(H$158:H$159),Tablas!G$7*1.5,Tablas!G10,H$158,0),0) -> 0 | I163: =IF(I$158<>0,retenciones(Check!$B$8,$R163,SUM(I$158:I$159),Tablas!H$7*1.5,Tablas!H10,I$158,0),0) -> 810 | J163: =IF(J$158<>0,retenciones(Check!$B$8,$R163,SUM(J$158:J$159),Tablas!I$7*1.5,Tablas!I10,J$158,0),0) -> 0 | K163: =IF(K$158<>0,retenciones(Check!$B$8,$R163,SUM(K$158:K$159),Tablas!J$7*1.5,Tablas!J10,K$158,0),0) -> 0 | L163: =IF(L$158<>0,retenciones(Check!$B$8,$R163,SUM(L$158:L$159),Tablas!K$7*1.5,Tablas!K10,L$158,0),0) -> 0 | M163: =IF(M$158<>0,retenciones(Check!$B$8,$R163,SUM(M$158:M$159),Tablas!L$7*1.5,Tablas!L10,M$158,0),0) -> 0 | N163: =IF(N$158<>0,retenciones(Check!$B$8,$R163,SUM(N$158:N$159),Tablas!M$7*1.5,Tablas!M10,N$158,0),0) -> 0 | O163: =IF(O$158<>0,retenciones(Check!$B$8,$R163,SUM(O$158:O$159),Tablas!N$7*1.5,Tablas!N10,O$158,0),0) -> 840 | P163: =IF(Check!$B$8="Ok",SUM(D163:O163),DedGrales!P25) -> 1650 | R163: Sí
C164: Sindicato | D164: =IF(D$158<>0,retenciones(Check!$B$8,$R164,SUM(D$158:D$159),Tablas!C$7*1.5,Tablas!C11,D$158,0),0) -> 0 | E164: =IF(E$158<>0,retenciones(Check!$B$8,$R164,SUM(E$158:E$159),Tablas!D$7*1.5,Tablas!D11,E$158,0),0) -> 0 | F164: =IF(F$158<>0,retenciones(Check!$B$8,$R164,SUM(F$158:F$159),Tablas!E$7*1.5,Tablas!E11,F$158,0),0) -> 0 | G164: =IF(G$158<>0,retenciones(Check!$B$8,$R164,SUM(G$158:G$159),Tablas!F$7*1.5,Tablas!F11,G$158,0),0) -> 0 | H164: =IF(H$158<>0,retenciones(Check!$B$8,$R164,SUM(H$158:H$159),Tablas!G$7*1.5,Tablas!G11,H$158,0),0) -> 0 | I164: =IF(I$158<>0,retenciones(Check!$B$8,$R164,SUM(I$158:I$159),Tablas!H$7*1.5,Tablas!H11,I$158,0),0) -> 0 | J164: =IF(J$158<>0,retenciones(Check!$B$8,$R164,SUM(J$158:J$159),Tablas!I$7*1.5,Tablas!I11,J$158,0),0) -> 0 | K164: =IF(K$158<>0,retenciones(Check!$B$8,$R164,SUM(K$158:K$159),Tablas!J$7*1.5,Tablas!J11,K$158,0),0) -> 0 | L164: =IF(L$158<>0,retenciones(Check!$B$8,$R164,SUM(L$158:L$159),Tablas!K$7*1.5,Tablas!K11,L$158,0),0) -> 0 | M164: =IF(M$158<>0,retenciones(Check!$B$8,$R164,SUM(M$158:M$159),Tablas!L$7*1.5,Tablas!L11,M$158,0),0) -> 0 | N164: =IF(N$158<>0,retenciones(Check!$B$8,$R164,SUM(N$158:N$159),Tablas!M$7*1.5,Tablas!M11,N$158,0),0) -> 0 | O164: =IF(O$158<>0,retenciones(Check!$B$8,$R164,SUM(O$158:O$159),Tablas!N$7*1.5,Tablas!N11,O$158,0),0) -> 0 | P164: =IF(Check!$B$8="Ok",SUM(D164:O164),DedGrales!P26) -> 0 | R164: No
C165: 0 | D165: =IF(D$158<>0,retenciones(Check!$B$8,$R165,SUM(D$158:D$159),Tablas!C$7*1.5,Tablas!C12,D$158,0),0) -> 0 | E165: =IF(E$158<>0,retenciones(Check!$B$8,$R165,SUM(E$158:E$159),Tablas!D$7*1.5,Tablas!D12,E$158,0),0) -> 0 | F165: =IF(F$158<>0,retenciones(Check!$B$8,$R165,SUM(F$158:F$159),Tablas!E$7*1.5,Tablas!E12,F$158,0),0) -> 0 | G165: =IF(G$158<>0,retenciones(Check!$B$8,$R165,SUM(G$158:G$159),Tablas!F$7*1.5,Tablas!F12,G$158,0),0) -> 0 | H165: =IF(H$158<>0,retenciones(Check!$B$8,$R165,SUM(H$158:H$159),Tablas!G$7*1.5,Tablas!G12,H$158,0),0) -> 0 | I165: =IF(I$158<>0,retenciones(Check!$B$8,$R165,SUM(I$158:I$159),Tablas!H$7*1.5,Tablas!H12,I$158,0),0) -> 0 | J165: =IF(J$158<>0,retenciones(Check!$B$8,$R165,SUM(J$158:J$159),Tablas!I$7*1.5,Tablas!I12,J$158,0),0) -> 0 | K165: =IF(K$158<>0,retenciones(Check!$B$8,$R165,SUM(K$158:K$159),Tablas!J$7*1.5,Tablas!J12,K$158,0),0) -> 0 | L165: =IF(L$158<>0,retenciones(Check!$B$8,$R165,SUM(L$158:L$159),Tablas!K$7*1.5,Tablas!K12,L$158,0),0) -> 0 | M165: =IF(M$158<>0,retenciones(Check!$B$8,$R165,SUM(M$158:M$159),Tablas!L$7*1.5,Tablas!L12,M$158,0),0) -> 0 | N165: =IF(N$158<>0,retenciones(Check!$B$8,$R165,SUM(N$158:N$159),Tablas!M$7*1.5,Tablas!M12,N$158,0),0) -> 0 | O165: =IF(O$158<>0,retenciones(Check!$B$8,$R165,SUM(O$158:O$159),Tablas!N$7*1.5,Tablas!N12,O$158,0),0) -> 0 | P165: =IF(Check!$B$8="Ok",SUM(D165:O165),DedGrales!P27) -> 0 | R165: No
C166: =+C35 -> 0 | D166: =IF(D$158<>0,retenciones(Check!$B$8,$R166,SUM(D$158:D$159),Tablas!C$7*1.5,Tablas!C13,D$158,0),0) -> 0 | E166: =IF(E$158<>0,retenciones(Check!$B$8,$R166,SUM(E$158:E$159),Tablas!D$7*1.5,Tablas!D13,E$158,0),0) -> 0 | F166: =IF(F$158<>0,retenciones(Check!$B$8,$R166,SUM(F$158:F$159),Tablas!E$7*1.5,Tablas!E13,F$158,0),0) -> 0 | G166: =IF(G$158<>0,retenciones(Check!$B$8,$R166,SUM(G$158:G$159),Tablas!F$7*1.5,Tablas!F13,G$158,0),0) -> 0 | H166: =IF(H$158<>0,retenciones(Check!$B$8,$R166,SUM(H$158:H$159),Tablas!G$7*1.5,Tablas!G13,H$158,0),0) -> 0 | I166: =IF(I$158<>0,retenciones(Check!$B$8,$R166,SUM(I$158:I$159),Tablas!H$7*1.5,Tablas!H13,I$158,0),0) -> 0 | J166: =IF(J$158<>0,retenciones(Check!$B$8,$R166,SUM(J$158:J$159),Tablas!I$7*1.5,Tablas!I13,J$158,0),0) -> 0 | K166: =IF(K$158<>0,retenciones(Check!$B$8,$R166,SUM(K$158:K$159),Tablas!J$7*1.5,Tablas!J13,K$158,0),0) -> 0 | L166: =IF(L$158<>0,retenciones(Check!$B$8,$R166,SUM(L$158:L$159),Tablas!K$7*1.5,Tablas!K13,L$158,0),0) -> 0 | M166: =IF(M$158<>0,retenciones(Check!$B$8,$R166,SUM(M$158:M$159),Tablas!L$7*1.5,Tablas!L13,M$158,0),0) -> 0 | N166: =IF(N$158<>0,retenciones(Check!$B$8,$R166,SUM(N$158:N$159),Tablas!M$7*1.5,Tablas!M13,N$158,0),0) -> 0 | O166: =IF(O$158<>0,retenciones(Check!$B$8,$R166,SUM(O$158:O$159),Tablas!N$7*1.5,Tablas!N13,O$158,0),0) -> 0 | P166: =IF(Check!$B$8="Ok",SUM(D166:O166),DedGrales!P28) -> 0 | R166: No
C167: Total | D167: =+SUM(D161:D166) -> 0 | E167: 0 | F167: 0 | G167: 0 | H167: 0 | I167: 4590 | J167: 0 | K167: 0 | L167: 0 | M167: 0 | N167: 0 | O167: 4760 | P167: =+SUM(P161:P166) -> 9350
C169: Retenciones estimadas | D169: 2017-01-01 | E169: 2017-02-01 | F169: 2017-03-01 | G169: 2017-04-01 | H169: 2017-05-01 | I169: 2017-06-01 | J169: 2017-07-01 | K169: 2017-08-01 | L169: 2017-09-01 | M169: 2017-10-01 | N169: 2017-11-01 | O169: 2017-12-01 | P169: Anual
C170: SAC Importe estimado bruto 1 | D170: =+D191 -> 4166.666667 | E170: =+E191 -> 4166.666667 | F170: 4166.666667 | G170: 4416.666667 | H170: 4416.666667 | I170: 4500 | J170: 4500 | K170: 4500 | L170: 4500 | M170: 4500 | N170: 4666.666667 | O170: 4666.666667
C171: =+C161 -> Jubilación | D171: =maximo(D$170,Tablas!C$7/12)*Tablas!C8 -> 458.3333333 | E171: =maximo(E$170,Tablas!D$7/12)*Tablas!D8 -> 458.3333333 | F171: =maximo(F$170,Tablas!E$7/12)*Tablas!E8 -> 458.3333333 | G171: =maximo(G$170,Tablas!F$7/12)*Tablas!F8 -> 485.8333333 | H171: =maximo(H$170,Tablas!G$7/12)*Tablas!G8 -> 485.8333333 | I171: =maximo(I$170,Tablas!H$7/12)*Tablas!H8 -> 495 | J171: =maximo(J$170,Tablas!I$7/12)*Tablas!I8 -> 495 | K171: =maximo(K$170,Tablas!J$7/12)*Tablas!J8 -> 495 | L171: =maximo(L$170,Tablas!K$7/12)*Tablas!K8 -> 495 | M171: =maximo(M$170,Tablas!L$7/12)*Tablas!L8 -> 495 | N171: =maximo(N$170,Tablas!M$7/12)*Tablas!M8 -> 513.3333333 | O171: =maximo(O$170,Tablas!N$7/12)*Tablas!N8 -> 513.3333333 | P171: =IF(Check!$B$8="Ok",SUM(D171:O171),DedGrales!P161) -> 5848.333333 | R171: =+R30 -> Sí
C172: =+C162 -> Ley 19032 | D172: =maximo(D$170,Tablas!C$7/12)*Tablas!C9 -> 125 | E172: =maximo(E$170,Tablas!D$7/12)*Tablas!D9 -> 125 | F172: =maximo(F$170,Tablas!E$7/12)*Tablas!E9 -> 125 | G172: =maximo(G$170,Tablas!F$7/12)*Tablas!F9 -> 132.5 | H172: =maximo(H$170,Tablas!G$7/12)*Tablas!G9 -> 132.5 | I172: =maximo(I$170,Tablas!H$7/12)*Tablas!H9 -> 135 | J172: =maximo(J$170,Tablas!I$7/12)*Tablas!I9 -> 135 | K172: =maximo(K$170,Tablas!J$7/12)*Tablas!J9 -> 135 | L172: =maximo(L$170,Tablas!K$7/12)*Tablas!K9 -> 135 | M172: =maximo(M$170,Tablas!L$7/12)*Tablas!L9 -> 135 | N172: =maximo(N$170,Tablas!M$7/12)*Tablas!M9 -> 140 | O172: =maximo(O$170,Tablas!N$7/12)*Tablas!N9 -> 140 | P172: =IF(Check!$B$8="Ok",SUM(D172:O172),DedGrales!P162) -> 1595 | R172: =+R31 -> Sí
C173: Obra social | D173: =maximo(D$170,Tablas!C$7/12)*Tablas!C10 -> 125 | E173: =maximo(E$170,Tablas!D$7/12)*Tablas!D10 -> 125 | F173: =maximo(F$170,Tablas!E$7/12)*Tablas!E10 -> 125 | G173: =maximo(G$170,Tablas!F$7/12)*Tablas!F10 -> 132.5 | H173: =maximo(H$170,Tablas!G$7/12)*Tablas!G10 -> 132.5 | I173: =maximo(I$170,Tablas!H$7/12)*Tablas!H10 -> 135 | J173: =maximo(J$170,Tablas!I$7/12)*Tablas!I10 -> 135 | K173: =maximo(K$170,Tablas!J$7/12)*Tablas!J10 -> 135 | L173: =maximo(L$170,Tablas!K$7/12)*Tablas!K10 -> 135 | M173: =maximo(M$170,Tablas!L$7/12)*Tablas!L10 -> 135 | N173: =maximo(N$170,Tablas!M$7/12)*Tablas!M10 -> 140 | O173: =maximo(O$170,Tablas!N$7/12)*Tablas!N10 -> 140 | P173: =IF(Check!$B$8="Ok",SUM(D173:O173),DedGrales!P163) -> 1595 | R173: Sí
C174: Sindicato | D174: =maximo(D$170,Tablas!C$7/12)*Tablas!C11 -> 0 | E174: =maximo(E$170,Tablas!D$7/12)*Tablas!D11 -> 0 | F174: =maximo(F$170,Tablas!E$7/12)*Tablas!E11 -> 0 | G174: =maximo(G$170,Tablas!F$7/12)*Tablas!F11 -> 0 | H174: =maximo(H$170,Tablas!G$7/12)*Tablas!G11 -> 0 | I174: =maximo(I$170,Tablas!H$7/12)*Tablas!H11 -> 0 | J174: =maximo(J$170,Tablas!I$7/12)*Tablas!I11 -> 0 | K174: =maximo(K$170,Tablas!J$7/12)*Tablas!J11 -> 0 | L174: =maximo(L$170,Tablas!K$7/12)*Tablas!K11 -> 0 | M174: =maximo(M$170,Tablas!L$7/12)*Tablas!L11 -> 0 | N174: =maximo(N$170,Tablas!M$7/12)*Tablas!M11 -> 0 | O174: =maximo(O$170,Tablas!N$7/12)*Tablas!N11 -> 0 | P174: =IF(Check!$B$8="Ok",SUM(D174:O174),DedGrales!P164) -> 0 | R174: No
C175: 0 | D175: =maximo(D$170,Tablas!C$7/12)*Tablas!C12 -> 0 | E175: =maximo(E$170,Tablas!D$7/12)*Tablas!D12 -> 0 | F175: =maximo(F$170,Tablas!E$7/12)*Tablas!E12 -> 0 | G175: =maximo(G$170,Tablas!F$7/12)*Tablas!F12 -> 0 | H175: =maximo(H$170,Tablas!G$7/12)*Tablas!G12 -> 0 | I175: =maximo(I$170,Tablas!H$7/12)*Tablas!H12 -> 0 | J175: =maximo(J$170,Tablas!I$7/12)*Tablas!I12 -> 0 | K175: =maximo(K$170,Tablas!J$7/12)*Tablas!J12 -> 0 | L175: =maximo(L$170,Tablas!K$7/12)*Tablas!K12 -> 0 | M175: =maximo(M$170,Tablas!L$7/12)*Tablas!L12 -> 0 | N175: =maximo(N$170,Tablas!M$7/12)*Tablas!M12 -> 0 | O175: =maximo(O$170,Tablas!N$7/12)*Tablas!N12 -> 0 | P175: =IF(Check!$B$8="Ok",SUM(D175:O175),DedGrales!P165) -> 0 | R175: No
C176: 0 | D176: =maximo(D$170,Tablas!C$7/12)*Tablas!C13 -> 0 | E176: =maximo(E$170,Tablas!D$7/12)*Tablas!D13 -> 0 | F176: =maximo(F$170,Tablas!E$7/12)*Tablas!E13 -> 0 | G176: =maximo(G$170,Tablas!F$7/12)*Tablas!F13 -> 0 | H176: =maximo(H$170,Tablas!G$7/12)*Tablas!G13 -> 0 | I176: =maximo(I$170,Tablas!H$7/12)*Tablas!H13 -> 0 | J176: =maximo(J$170,Tablas!I$7/12)*Tablas!I13 -> 0 | K176: =maximo(K$170,Tablas!J$7/12)*Tablas!J13 -> 0 | L176: =maximo(L$170,Tablas!K$7/12)*Tablas!K13 -> 0 | M176: =maximo(M$170,Tablas!L$7/12)*Tablas!L13 -> 0 | N176: =maximo(N$170,Tablas!M$7/12)*Tablas!M13 -> 0 | O176: =maximo(O$170,Tablas!N$7/12)*Tablas!N13 -> 0 | P176: =IF(Check!$B$8="Ok",SUM(D176:O176),DedGrales!P166) -> 0 | R176: No
C177: Total | D177: =+SUM(D171:D176) -> 708.3333333 | E177: 708.3333333 | F177: 708.3333333 | G177: 750.8333333 | H177: 750.8333333 | I177: 765 | J177: 765 | K177: 765 | L177: 765 | M177: 765 | N177: 793.3333333 | O177: 793.3333333 | P177: =+SUM(P171:P176) -> 9038.333333
C179: Retenciones estimadas | D179: 2017-01-01 | E179: 2017-02-01 | F179: 2017-03-01 | G179: 2017-04-01 | H179: 2017-05-01 | I179: 2017-06-01 | J179: 2017-07-01 | K179: 2017-08-01 | L179: 2017-09-01 | M179: 2017-10-01 | N179: 2017-11-01 | O179: 2017-12-01 | P179: Anual
C180: SAC Importe estimado bruto 2 | D180: =+D196 -> 0 | E180: =+E196 -> 0 | F180: 0 | G180: 0 | H180: 0 | I180: 0 | J180: 0 | K180: 0 | L180: 0 | M180: 0 | N180: 0 | O180: 0
C181: =+C171 -> Jubilación | D181: =maximo(D$180,Tablas!C$7/12)*Tablas!C8 -> 0 | E181: =maximo(E$180,Tablas!D$7/12)*Tablas!D8 -> 0 | F181: =maximo(F$180,Tablas!E$7/12)*Tablas!E8 -> 0 | G181: =maximo(G$180,Tablas!F$7/12)*Tablas!F8 -> 0 | H181: =maximo(H$180,Tablas!G$7/12)*Tablas!G8 -> 0 | I181: =maximo(I$180,Tablas!H$7/12)*Tablas!H8 -> 0 | J181: =maximo(J$180,Tablas!I$7/12)*Tablas!I8 -> 0 | K181: =maximo(K$180,Tablas!J$7/12)*Tablas!J8 -> 0 | L181: =maximo(L$180,Tablas!K$7/12)*Tablas!K8 -> 0 | M181: =maximo(M$180,Tablas!L$7/12)*Tablas!L8 -> 0 | N181: =maximo(N$180,Tablas!M$7/12)*Tablas!M8 -> 0 | O181: =maximo(O$180,Tablas!N$7/12)*Tablas!N8 -> 0 | P181: =IF(Check!$B$8="Ok",SUM(D181:O181),DedGrales!P171) -> 0 | R181: =+R40 -> No
C182: =+C172 -> Ley 19032 | D182: =maximo(D$180,Tablas!C$7/12)*Tablas!C9 -> 0 | E182: =maximo(E$180,Tablas!D$7/12)*Tablas!D9 -> 0 | F182: =maximo(F$180,Tablas!E$7/12)*Tablas!E9 -> 0 | G182: =maximo(G$180,Tablas!F$7/12)*Tablas!F9 -> 0 | H182: =maximo(H$180,Tablas!G$7/12)*Tablas!G9 -> 0 | I182: =maximo(I$180,Tablas!H$7/12)*Tablas!H9 -> 0 | J182: =maximo(J$180,Tablas!I$7/12)*Tablas!I9 -> 0 | K182: =maximo(K$180,Tablas!J$7/12)*Tablas!J9 -> 0 | L182: =maximo(L$180,Tablas!K$7/12)*Tablas!K9 -> 0 | M182: =maximo(M$180,Tablas!L$7/12)*Tablas!L9 -> 0 | N182: =maximo(N$180,Tablas!M$7/12)*Tablas!M9 -> 0 | O182: =maximo(O$180,Tablas!N$7/12)*Tablas!N9 -> 0 | P182: =IF(Check!$B$8="Ok",SUM(D182:O182),DedGrales!P172) -> 0 | R182: =+R41 -> No
C183: Obra social | D183: =maximo(D$180,Tablas!C$7/12)*Tablas!C10 -> 0 | E183: =maximo(E$180,Tablas!D$7/12)*Tablas!D10 -> 0 | F183: =maximo(F$180,Tablas!E$7/12)*Tablas!E10 -> 0 | G183: =maximo(G$180,Tablas!F$7/12)*Tablas!F10 -> 0 | H183: =maximo(H$180,Tablas!G$7/12)*Tablas!G10 -> 0 | I183: =maximo(I$180,Tablas!H$7/12)*Tablas!H10 -> 0 | J183: =maximo(J$180,Tablas!I$7/12)*Tablas!I10 -> 0 | K183: =maximo(K$180,Tablas!J$7/12)*Tablas!J10 -> 0 | L183: =maximo(L$180,Tablas!K$7/12)*Tablas!K10 -> 0 | M183: =maximo(M$180,Tablas!L$7/12)*Tablas!L10 -> 0 | N183: =maximo(N$180,Tablas!M$7/12)*Tablas!M10 -> 0 | O183: =maximo(O$180,Tablas!N$7/12)*Tablas!N10 -> 0 | P183: =IF(Check!$B$8="Ok",SUM(D183:O183),DedGrales!P173) -> 0 | R183: No
C184: Sindicato | D184: =maximo(D$180,Tablas!C$7/12)*Tablas!C11 -> 0 | E184: =maximo(E$180,Tablas!D$7/12)*Tablas!D11 -> 0 | F184: =maximo(F$180,Tablas!E$7/12)*Tablas!E11 -> 0 | G184: =maximo(G$180,Tablas!F$7/12)*Tablas!F11 -> 0 | H184: =maximo(H$180,Tablas!G$7/12)*Tablas!G11 -> 0 | I184: =maximo(I$180,Tablas!H$7/12)*Tablas!H11 -> 0 | J184: =maximo(J$180,Tablas!I$7/12)*Tablas!I11 -> 0 | K184: =maximo(K$180,Tablas!J$7/12)*Tablas!J11 -> 0 | L184: =maximo(L$180,Tablas!K$7/12)*Tablas!K11 -> 0 | M184: =maximo(M$180,Tablas!L$7/12)*Tablas!L11 -> 0 | N184: =maximo(N$180,Tablas!M$7/12)*Tablas!M11 -> 0 | O184: =maximo(O$180,Tablas!N$7/12)*Tablas!N11 -> 0 | P184: =IF(Check!$B$8="Ok",SUM(D184:O184),DedGrales!P174) -> 0 | R184: 0
C185: 0 | D185: =maximo(D$180,Tablas!C$7/12)*Tablas!C12 -> 0 | E185: =maximo(E$180,Tablas!D$7/12)*Tablas!D12 -> 0 | F185: =maximo(F$180,Tablas!E$7/12)*Tablas!E12 -> 0 | G185: =maximo(G$180,Tablas!F$7/12)*Tablas!F12 -> 0 | H185: =maximo(H$180,Tablas!G$7/12)*Tablas!G12 -> 0 | I185: =maximo(I$180,Tablas!H$7/12)*Tablas!H12 -> 0 | J185: =maximo(J$180,Tablas!I$7/12)*Tablas!I12 -> 0 | K185: =maximo(K$180,Tablas!J$7/12)*Tablas!J12 -> 0 | L185: =maximo(L$180,Tablas!K$7/12)*Tablas!K12 -> 0 | M185: =maximo(M$180,Tablas!L$7/12)*Tablas!L12 -> 0 | N185: =maximo(N$180,Tablas!M$7/12)*Tablas!M12 -> 0 | O185: =maximo(O$180,Tablas!N$7/12)*Tablas!N12 -> 0 | P185: =IF(Check!$B$8="Ok",SUM(D185:O185),DedGrales!P175) -> 0 | R185: 0
C186: 0 | D186: =maximo(D$180,Tablas!C$7/12)*Tablas!C13 -> 0 | E186: =maximo(E$180,Tablas!D$7/12)*Tablas!D13 -> 0 | F186: =maximo(F$180,Tablas!E$7/12)*Tablas!E13 -> 0 | G186: =maximo(G$180,Tablas!F$7/12)*Tablas!F13 -> 0 | H186: =maximo(H$180,Tablas!G$7/12)*Tablas!G13 -> 0 | I186: =maximo(I$180,Tablas!H$7/12)*Tablas!H13 -> 0 | J186: =maximo(J$180,Tablas!I$7/12)*Tablas!I13 -> 0 | K186: =maximo(K$180,Tablas!J$7/12)*Tablas!J13 -> 0 | L186: =maximo(L$180,Tablas!K$7/12)*Tablas!K13 -> 0 | M186: =maximo(M$180,Tablas!L$7/12)*Tablas!L13 -> 0 | N186: =maximo(N$180,Tablas!M$7/12)*Tablas!M13 -> 0 | O186: =maximo(O$180,Tablas!N$7/12)*Tablas!N13 -> 0 | P186: =IF(Check!$B$8="Ok",SUM(D186:O186),DedGrales!P176) -> 0 | R186: 0
C187: Total | D187: =+SUM(D181:D186) -> 0 | E187: 0 | F187: 0 | G187: 0 | H187: 0 | I187: 0 | J187: 0 | K187: 0 | L187: 0 | M187: 0 | N187: 0 | O187: 0 | P187: =+SUM(P181:P186) -> 0
C189: Base estimada | D189: =SUMIF(Ingresos!$S8:$S26,"Sí",Ingresos!C$8:C$26) -> 50000 | E189: =SUMIF(Ingresos!$S8:$S26,"Sí",Ingresos!D$8:D$26) -> 50000 | F189: =SUMIF(Ingresos!$S8:$S26,"Sí",Ingresos!E$8:E$26) -> 50000 | G189: =SUMIF(Ingresos!$S8:$S26,"Sí",Ingresos!F$8:F$26) -> 53000 | H189: =SUMIF(Ingresos!$S8:$S26,"Sí",Ingresos!G$8:G$26) -> 53000 | I189: =SUMIF(Ingresos!$S8:$S26,"Sí",Ingresos!H$8:H$26) -> 54000 | J189: =SUMIF(Ingresos!$S8:$S26,"Sí",Ingresos!I$8:I$26) -> 54000 | K189: =SUMIF(Ingresos!$S8:$S26,"Sí",Ingresos!J$8:J$26) -> 54000 | L189: =SUMIF(Ingresos!$S8:$S26,"Sí",Ingresos!K$8:K$26) -> 54000 | M189: =SUMIF(Ingresos!$S8:$S26,"Sí",Ingresos!L$8:L$26) -> 54000 | N189: =SUMIF(Ingresos!$S8:$S26,"Sí",Ingresos!M$8:M$26) -> 56000 | O189: =SUMIF(Ingresos!$S8:$S26,"Sí",Ingresos!N$8:N$26) -> 56000
C190: Máx | D190: =MAX($D$189:D189) -> 50000 | E190: =MAX($D$189:E189) -> 50000 | F190: =MAX($D$189:F189) -> 50000 | G190: =MAX($D$189:G189) -> 53000 | H190: =MAX($D$189:H189) -> 53000 | I190: =MAX($D$189:I189) -> 54000 | J190: =MAX($J$189:J189) -> 54000 | K190: =MAX($J$189:K189) -> 54000 | L190: =MAX($J$189:L189) -> 54000 | M190: =MAX($J$189:M189) -> 54000 | N190: =MAX($J$189:N189) -> 56000 | O190: =MAX($J$189:O189) -> 56000
C191: SAC estimado bruto 1 | D191: =D189/12 -> 4166.666667 | E191: =E189/12 -> 4166.666667 | F191: 4166.666667 | G191: 4416.666667 | H191: 4416.666667 | I191: 4500 | J191: 4500 | K191: 4500 | L191: 4500 | M191: 4500 | N191: 4666.666667 | O191: 4666.666667
C192: SAC estimado neto 1 | D192: =IF(Check!$B$8="Ok",D170-D177,D170-DedGrales!D18) -> 3458.333333 | E192: =IF(Check!$B$8="Ok",E170-E177,E170-DedGrales!E18) -> 3458.333333 | F192: =IF(Check!$B$8="Ok",F170-F177,F170-DedGrales!F18) -> 3458.333333 | G192: =IF(Check!$B$8="Ok",G170-G177,G170-DedGrales!G18) -> 3665.833333 | H192: =IF(Check!$B$8="Ok",H170-H177,H170-DedGrales!H18) -> 3665.833333 | I192: =IF(Check!$B$8="Ok",I170-I177,I170-DedGrales!I18) -> 3735 | J192: =IF(Check!$B$8="Ok",J170-J177,J170-DedGrales!J18) -> 3735 | K192: =IF(Check!$B$8="Ok",K170-K177,K170-DedGrales!K18) -> 3735 | L192: =IF(Check!$B$8="Ok",L170-L177,L170-DedGrales!L18) -> 3735 | M192: =IF(Check!$B$8="Ok",M170-M177,M170-DedGrales!M18) -> 3735 | N192: =IF(Check!$B$8="Ok",N170-N177,N170-DedGrales!N18) -> 3873.333333 | O192: =IF(Check!$B$8="Ok",O170-O177,O170-DedGrales!O18) -> 3873.333333
C194: Base estimada | D194: =SUMIF(Ingresos!$S35:$S45,"Sí",Ingresos!C$35:C$45) -> 0 | E194: =SUMIF(Ingresos!$S35:$S45,"Sí",Ingresos!D$35:D$45) -> 0 | F194: =SUMIF(Ingresos!$S35:$S45,"Sí",Ingresos!E$35:E$45) -> 0 | G194: =SUMIF(Ingresos!$S35:$S45,"Sí",Ingresos!F$35:F$45) -> 0 | H194: =SUMIF(Ingresos!$S35:$S45,"Sí",Ingresos!G$35:G$45) -> 0 | I194: =SUMIF(Ingresos!$S35:$S45,"Sí",Ingresos!H$35:H$45) -> 0 | J194: =SUMIF(Ingresos!$S35:$S45,"Sí",Ingresos!I$35:I$45) -> 0 | K194: =SUMIF(Ingresos!$S35:$S45,"Sí",Ingresos!J$35:J$45) -> 0 | L194: =SUMIF(Ingresos!$S35:$S45,"Sí",Ingresos!K$35:K$45) -> 0 | M194: =SUMIF(Ingresos!$S35:$S45,"Sí",Ingresos!L$35:L$45) -> 0 | N194: =SUMIF(Ingresos!$S35:$S45,"Sí",Ingresos!M$35:M$45) -> 0 | O194: =SUMIF(Ingresos!$S35:$S45,"Sí",Ingresos!N$35:N$45) -> 0
C195: Máx | D195: =MAX($D$194:D194) -> 0 | E195: =MAX($D$194:E194) -> 0 | F195: =MAX($D$194:F194) -> 0 | G195: =MAX($D$194:G194) -> 0 | H195: =MAX($D$194:H194) -> 0 | I195: =MAX($D$194:I194) -> 0 | J195: =MAX($D$194:J194) -> 0 | K195: =MAX($D$194:K194) -> 0 | L195: =MAX($D$194:L194) -> 0 | M195: =MAX($D$194:M194) -> 0 | N195: =MAX($D$194:N194) -> 0 | O195: =MAX($D$194:O194) -> 0
C196: SAC estimado bruto 2 | D196: =D194/12 -> 0 | E196: =E194/12 -> 0 | F196: 0 | G196: 0 | H196: 0 | I196: 0 | J196: 0 | K196: 0 | L196: 0 | M196: 0 | N196: 0 | O196: 0
C197: SAC estimado neto 2 | D197: =IF(Check!$B$8="Ok",D180-D187,D180-DedGrales!D29) -> 0 | E197: =IF(Check!$B$8="Ok",E180-E187,E180-DedGrales!E29) -> 0 | F197: =IF(Check!$B$8="Ok",F180-F187,F180-DedGrales!F29) -> 0 | G197: =IF(Check!$B$8="Ok",G180-G187,G180-DedGrales!G29) -> 0 | H197: =IF(Check!$B$8="Ok",H180-H187,H180-DedGrales!H29) -> 0 | I197: =IF(Check!$B$8="Ok",I180-I187,I180-DedGrales!I29) -> 0 | J197: =IF(Check!$B$8="Ok",J180-J187,J180-DedGrales!J29) -> 0 | K197: =IF(Check!$B$8="Ok",K180-K187,K180-DedGrales!K29) -> 0 | L197: =IF(Check!$B$8="Ok",L180-L187,L180-DedGrales!L29) -> 0 | M197: =IF(Check!$B$8="Ok",M180-M187,M180-DedGrales!M29) -> 0 | N197: =IF(Check!$B$8="Ok",N180-N187,N180-DedGrales!N29) -> 0 | O197: =IF(Check!$B$8="Ok",O180-O187,O180-DedGrales!O29) -> 0
C200: Formulario
D201: 2017-01-01 | E201: 2017-02-01 | F201: 2017-03-01 | G201: 2017-04-01 | H201: 2017-05-01 | I201: 2017-06-01 | J201: 2017-07-01 | K201: 2017-08-01 | L201: 2017-09-01 | M201: 2017-10-01 | N201: 2017-11-01 | O201: 2017-12-01
C202: Remunerativo | D202: =SUMIFS(Ingresos!C8:C26,Ingresos!$R$8:$R$26,"Sí") -> 50000 | E202: =SUMIFS(Ingresos!D8:D26,Ingresos!$R$8:$R$26,"Sí") -> 50000 | F202: =SUMIFS(Ingresos!E8:E26,Ingresos!$R$8:$R$26,"Sí") -> 50000 | G202: =SUMIFS(Ingresos!F8:F26,Ingresos!$R$8:$R$26,"Sí") -> 53000 | H202: =SUMIFS(Ingresos!G8:G26,Ingresos!$R$8:$R$26,"Sí") -> 53000 | I202: =SUMIFS(Ingresos!H8:H26,Ingresos!$R$8:$R$26,"Sí") -> 81000 | J202: =SUMIFS(Ingresos!I8:I26,Ingresos!$R$8:$R$26,"Sí") -> 54000 | K202: =SUMIFS(Ingresos!J8:J26,Ingresos!$R$8:$R$26,"Sí") -> 54000 | L202: =SUMIFS(Ingresos!K8:K26,Ingresos!$R$8:$R$26,"Sí") -> 54000 | M202: =SUMIFS(Ingresos!L8:L26,Ingresos!$R$8:$R$26,"Sí") -> 54000 | N202: =SUMIFS(Ingresos!M8:M26,Ingresos!$R$8:$R$26,"Sí") -> 56000 | O202: =SUMIFS(Ingresos!N8:N26,Ingresos!$R$8:$R$26,"Sí") -> 84000
C203: Si hay SAC | D203: =IF(Ingresos!C12+Ingresos!C39>0,1.5,1) -> 1 | E203: =IF(Ingresos!D12+Ingresos!D39>0,1.5,1) -> 1 | F203: =IF(Ingresos!E12+Ingresos!E39>0,1.5,1) -> 1 | G203: =IF(Ingresos!F12+Ingresos!F39>0,1.5,1) -> 1 | H203: =IF(Ingresos!G12+Ingresos!G39>0,1.5,1) -> 1 | I203: =IF(Ingresos!H12+Ingresos!H39>0,1.5,1) -> 1.5 | J203: =IF(Ingresos!I12+Ingresos!I39>0,1.5,1) -> 1 | K203: =IF(Ingresos!J12+Ingresos!J39>0,1.5,1) -> 1 | L203: =IF(Ingresos!K12+Ingresos!K39>0,1.5,1) -> 1 | M203: =IF(Ingresos!L12+Ingresos!L39>0,1.5,1) -> 1 | N203: =IF(Ingresos!M12+Ingresos!M39>0,1.5,1) -> 1 | O203: =IF(Ingresos!N12+Ingresos!N39>0,1.5,1) -> 1.5 | S203: Proporción exento-nogravado/total | T203: Deducciones hs. Extras exentas
C204: Jubilaciones | D204: =(IF(Check!$B$8="Ok",IF($R$204="Sí",maximo(D$202,Tablas!C$7*Auxiliares!D$203)*Tablas!C8,D$202*Tablas!C8),DedGrales!D12)-D208)*D211 -> 5500 | E204: =(IF(Check!$B$8="Ok",IF($R$204="Sí",maximo(E$202,Tablas!D$7*Auxiliares!E$203)*Tablas!D8,E$202*Tablas!D8),DedGrales!E12)-E208)*E211 -> 5500 | F204: =(IF(Check!$B$8="Ok",IF($R$204="Sí",maximo(F$202,Tablas!E$7*Auxiliares!F$203)*Tablas!E8,F$202*Tablas!E8),DedGrales!F12)-F208)*F211 -> 5500 | G204: =(IF(Check!$B$8="Ok",IF($R$204="Sí",maximo(G$202,Tablas!F$7*Auxiliares!G$203)*Tablas!F8,G$202*Tablas!F8),DedGrales!G12)-G208)*G211 -> 5830 | H204: =(IF(Check!$B$8="Ok",IF($R$204="Sí",maximo(H$202,Tablas!G$7*Auxiliares!H$203)*Tablas!G8,H$202*Tablas!G8),DedGrales!H12)-H208)*H211 -> 5830 | I204: =(IF(Check!$B$8="Ok",IF($R$204="Sí",maximo(I$202,Tablas!H$7*Auxiliares!I$203)*Tablas!H8,I$202*Tablas!H8),DedGrales!I12)-I208)*I211 -> 8910 | J204: =(IF(Check!$B$8="Ok",IF($R$204="Sí",maximo(J$202,Tablas!I$7*Auxiliares!J$203)*Tablas!I8,J$202*Tablas!I8),DedGrales!J12)-J208)*J211 -> 5940 | K204: =(IF(Check!$B$8="Ok",IF($R$204="Sí",maximo(K$202,Tablas!J$7*Auxiliares!K$203)*Tablas!J8,K$202*Tablas!J8),DedGrales!K12)-K208)*K211 -> 5940 | L204: =(IF(Check!$B$8="Ok",IF($R$204="Sí",maximo(L$202,Tablas!K$7*Auxiliares!L$203)*Tablas!K8,L$202*Tablas!K8),DedGrales!L12)-L208)*L211 -> 5940 | M204: =(IF(Check!$B$8="Ok",IF($R$204="Sí",maximo(M$202,Tablas!L$7*Auxiliares!M$203)*Tablas!L8,M$202*Tablas!L8),DedGrales!M12)-M208)*M211 -> 5940 | N204: =(IF(Check!$B$8="Ok",IF($R$204="Sí",maximo(N$202,Tablas!M$7*Auxiliares!N$203)*Tablas!M8,N$202*Tablas!M8),DedGrales!N12)-N208)*N211 -> 6160 | O204: =(IF(Check!$B$8="Ok",IF($R$204="Sí",maximo(O$202,Tablas!N$7*Auxiliares!O$203)*Tablas!N8,O$202*Tablas!N8),DedGrales!O12)-O208)*O211 -> 9240 | P204: =SUM(D204:O204) -> 76230 | R204: =+R30 -> Sí | S204: =SUM(P204:P210)-SUM(D212:O212) -> 0
C205: Obra social | D205: =(IF(Check!$B$8="Ok",IF($R$205="Sí",maximo(D$202,Tablas!C$7*D$203)*(Tablas!C9+Tablas!C10),D$202*(Tablas!C9+Tablas!C10)),DedGrales!D13+DedGrales!D14)-D209)*D211 -> 3000 | E205: =(IF(Check!$B$8="Ok",IF($R$205="Sí",maximo(E$202,Tablas!D$7*E$203)*(Tablas!D9+Tablas!D10),E$202*(Tablas!D9+Tablas!D10)),DedGrales!E13+DedGrales!E14)-E209)*E211 -> 3000 | F205: =(IF(Check!$B$8="Ok",IF($R$205="Sí",maximo(F$202,Tablas!E$7*F$203)*(Tablas!E9+Tablas!E10),F$202*(Tablas!E9+Tablas!E10)),DedGrales!F13+DedGrales!F14)-F209)*F211 -> 3000 | G205: =(IF(Check!$B$8="Ok",IF($R$205="Sí",maximo(G$202,Tablas!F$7*G$203)*(Tablas!F9+Tablas!F10),G$202*(Tablas!F9+Tablas!F10)),DedGrales!G13+DedGrales!G14)-G209)*G211 -> 3180 | H205: =(IF(Check!$B$8="Ok",IF($R$205="Sí",maximo(H$202,Tablas!G$7*H$203)*(Tablas!G9+Tablas!G10),H$202*(Tablas!G9+Tablas!G10)),DedGrales!H13+DedGrales!H14)-H209)*H211 -> 3180 | I205: =(IF(Check!$B$8="Ok",IF($R$205="Sí",maximo(I$202,Tablas!H$7*I$203)*(Tablas!H9+Tablas!H10),I$202*(Tablas!H9+Tablas!H10)),DedGrales!I13+DedGrales!I14)-I209)*I211 -> 4860 | J205: =(IF(Check!$B$8="Ok",IF($R$205="Sí",maximo(J$202,Tablas!I$7*J$203)*(Tablas!I9+Tablas!I10),J$202*(Tablas!I9+Tablas!I10)),DedGrales!J13+DedGrales!J14)-J209)*J211 -> 3240 | K205: =(IF(Check!$B$8="Ok",IF($R$205="Sí",maximo(K$202,Tablas!J$7*K$203)*(Tablas!J9+Tablas!J10),K$202*(Tablas!J9+Tablas!J10)),DedGrales!K13+DedGrales!K14)-K209)*K211 -> 3240 | L205: =(IF(Check!$B$8="Ok",IF($R$205="Sí",maximo(L$202,Tablas!K$7*L$203)*(Tablas!K9+Tablas!K10),L$202*(Tablas!K9+Tablas!K10)),DedGrales!L13+DedGrales!L14)-L209)*L211 -> 3240 | M205: =(IF(Check!$B$8="Ok",IF($R$205="Sí",maximo(M$202,Tablas!L$7*M$203)*(Tablas!L9+Tablas!L10),M$202*(Tablas!L9+Tablas!L10)),DedGrales!M13+DedGrales!M14)-M209)*M211 -> 3240 | N205: =(IF(Check!$B$8="Ok",IF($R$205="Sí",maximo(N$202,Tablas!M$7*N$203)*(Tablas!M9+Tablas!M10),N$202*(Tablas!M9+Tablas!M10)),DedGrales!N13+DedGrales!N14)-N209)*N211 -> 3360 | O205: =(IF(Check!$B$8="Ok",IF($R$205="Sí",maximo(O$202,Tablas!N$7*O$203)*(Tablas!N9+Tablas!N10),O$202*(Tablas!N9+Tablas!N10)),DedGrales!O13+DedGrales!O14)-O209)*O211 -> 5040 | P205: =SUM(D205:O205) -> 41580 | R205: =+R31 -> Sí
C206: Cuota sindical | D206: =(IF(Check!$B$8="Ok",IF($R$206="Sí",maximo(D$202,Tablas!C$7*D$203)*Tablas!C11,D$202*Tablas!C11),DedGrales!D15)-D210)*D211 -> 0 | E206: =(IF(Check!$B$8="Ok",IF($R$206="Sí",maximo(E$202,Tablas!D$7*E$203)*Tablas!D11,E$202*Tablas!D11),DedGrales!E15)-E210)*E211 -> 0 | F206: =(IF(Check!$B$8="Ok",IF($R$206="Sí",maximo(F$202,Tablas!E$7*F$203)*Tablas!E11,F$202*Tablas!E11),DedGrales!F15)-F210)*F211 -> 0 | G206: =(IF(Check!$B$8="Ok",IF($R$206="Sí",maximo(G$202,Tablas!F$7*G$203)*Tablas!F11,G$202*Tablas!F11),DedGrales!G15)-G210)*G211 -> 0 | H206: =(IF(Check!$B$8="Ok",IF($R$206="Sí",maximo(H$202,Tablas!G$7*H$203)*Tablas!G11,H$202*Tablas!G11),DedGrales!H15)-H210)*H211 -> 0 | I206: =(IF(Check!$B$8="Ok",IF($R$206="Sí",maximo(I$202,Tablas!H$7*I$203)*Tablas!H11,I$202*Tablas!H11),DedGrales!I15)-I210)*I211 -> 0 | J206: =(IF(Check!$B$8="Ok",IF($R$206="Sí",maximo(J$202,Tablas!I$7*J$203)*Tablas!I11,J$202*Tablas!I11),DedGrales!J15)-J210)*J211 -> 0 | K206: =(IF(Check!$B$8="Ok",IF($R$206="Sí",maximo(K$202,Tablas!J$7*K$203)*Tablas!J11,K$202*Tablas!J11),DedGrales!K15)-K210)*K211 -> 0 | L206: =(IF(Check!$B$8="Ok",IF($R$206="Sí",maximo(L$202,Tablas!K$7*L$203)*Tablas!K11,L$202*Tablas!K11),DedGrales!L15)-L210)*L211 -> 0 | M206: =(IF(Check!$B$8="Ok",IF($R$206="Sí",maximo(M$202,Tablas!L$7*M$203)*Tablas!L11,M$202*Tablas!L11),DedGrales!M15)-M210)*M211 -> 0 | N206: =(IF(Check!$B$8="Ok",IF($R$206="Sí",maximo(N$202,Tablas!M$7*N$203)*Tablas!M11,N$202*Tablas!M11),DedGrales!N15)-N210)*N211 -> 0 | O206: =(IF(Check!$B$8="Ok",IF($R$206="Sí",maximo(O$202,Tablas!N$7*O$203)*Tablas!N11,O$202*Tablas!N11),DedGrales!O15)-O210)*O211 -> 0 | P206: =SUM(D206:O206) -> 0 | R206: =+R33 -> No
C207: Otros empleos (remunerativo) | D207: =SUMIFS(Ingresos!C35:C45,Ingresos!$R$35:$R$45,"Sí")+D202 -> 50000 | E207: =SUMIFS(Ingresos!D35:D45,Ingresos!$R$35:$R$45,"Sí")+E202 -> 50000 | F207: =SUMIFS(Ingresos!E35:E45,Ingresos!$R$35:$R$45,"Sí")+F202 -> 50000 | G207: =SUMIFS(Ingresos!F35:F45,Ingresos!$R$35:$R$45,"Sí")+G202 -> 53000 | H207: =SUMIFS(Ingresos!G35:G45,Ingresos!$R$35:$R$45,"Sí")+H202 -> 53000 | I207: =SUMIFS(Ingresos!H35:H45,Ingresos!$R$35:$R$45,"Sí")+I202 -> 81000 | J207: =SUMIFS(Ingresos!I35:I45,Ingresos!$R$35:$R$45,"Sí")+J202 -> 54000 | K207: =SUMIFS(Ingresos!J35:J45,Ingresos!$R$35:$R$45,"Sí")+K202 -> 54000 | L207: =SUMIFS(Ingresos!K35:K45,Ingresos!$R$35:$R$45,"Sí")+L202 -> 54000 | M207: =SUMIFS(Ingresos!L35:L45,Ingresos!$R$35:$R$45,"Sí")+M202 -> 54000 | N207: =SUMIFS(Ingresos!M35:M45,Ingresos!$R$35:$R$45,"Sí")+N202 -> 56000 | O207: =SUMIFS(Ingresos!N35:N45,Ingresos!$R$35:$R$45,"Sí")+O202 -> 84000
C208: Aportes jubilatorios otros empleos | D208: =(IF(Check!$B$8="Ok",IF(AND($R$208="Sí",D202<>0),(maximo(D$207,Tablas!C$7*D203)*Tablas!C8)*(D$207-D$202)/D$207,(D$207-D$202)*Tablas!C8),DedGrales!D23))*D211 -> 0 | E208: =(IF(Check!$B$8="Ok",IF(AND($R$208="Sí",E202<>0),(maximo(E$207,Tablas!D$7*E203)*Tablas!D8)*(E$207-E$202)/E$207,(E$207-E$202)*Tablas!D8),DedGrales!E23))*E211 -> 0 | F208: =(IF(Check!$B$8="Ok",IF(AND($R$208="Sí",F202<>0),(maximo(F$207,Tablas!E$7*F203)*Tablas!E8)*(F$207-F$202)/F$207,(F$207-F$202)*Tablas!E8),DedGrales!F23))*F211 -> 0 | G208: =(IF(Check!$B$8="Ok",IF(AND($R$208="Sí",G202<>0),(maximo(G$207,Tablas!F$7*G203)*Tablas!F8)*(G$207-G$202)/G$207,(G$207-G$202)*Tablas!F8),DedGrales!G23))*G211 -> 0 | H208: =(IF(Check!$B$8="Ok",IF(AND($R$208="Sí",H202<>0),(maximo(H$207,Tablas!G$7*H203)*Tablas!G8)*(H$207-H$202)/H$207,(H$207-H$202)*Tablas!G8),DedGrales!H23))*H211 -> 0 | I208: =(IF(Check!$B$8="Ok",IF(AND($R$208="Sí",I202<>0),(maximo(I$207,Tablas!H$7*I203)*Tablas!H8)*(I$207-I$202)/I$207,(I$207-I$202)*Tablas!H8),DedGrales!I23))*I211 -> 0 | J208: =(IF(Check!$B$8="Ok",IF(AND($R$208="Sí",J202<>0),(maximo(J$207,Tablas!I$7*J203)*Tablas!I8)*(J$207-J$202)/J$207,(J$207-J$202)*Tablas!I8),DedGrales!J23))*J211 -> 0 | K208: =(IF(Check!$B$8="Ok",IF(AND($R$208="Sí",K202<>0),(maximo(K$207,Tablas!J$7*K203)*Tablas!J8)*(K$207-K$202)/K$207,(K$207-K$202)*Tablas!J8),DedGrales!K23))*K211 -> 0 | L208: =(IF(Check!$B$8="Ok",IF(AND($R$208="Sí",L202<>0),(maximo(L$207,Tablas!K$7*L203)*Tablas!K8)*(L$207-L$202)/L$207,(L$207-L$202)*Tablas!K8),DedGrales!L23))*L211 -> 0 | M208: =(IF(Check!$B$8="Ok",IF(AND($R$208="Sí",M202<>0),(maximo(M$207,Tablas!L$7*M203)*Tablas!L8)*(M$207-M$202)/M$207,(M$207-M$202)*Tablas!L8),DedGrales!M23))*M211 -> 0 | N208: =(IF(Check!$B$8="Ok",IF(AND($R$208="Sí",N202<>0),(maximo(N$207,Tablas!M$7*N203)*Tablas!M8)*(N$207-N$202)/N$207,(N$207-N$202)*Tablas!M8),DedGrales!N23))*N211 -> 0 | O208: =(IF(Check!$B$8="Ok",IF(AND($R$208="Sí",O202<>0),(maximo(O$207,Tablas!N$7*O203)*Tablas!N8)*(O$207-O$202)/O$207,(O$207-O$202)*Tablas!N8),DedGrales!O23))*O211 -> 0 | P208: =SUM(D208:O208) -> 0 | R208: =+R204 -> Sí
C209: Aportes obra social otros empleos | D209: =(IF(Check!$B$8="Ok",IF(AND($R$209="Sí",D202<>0),(maximo(D$207,Tablas!C$7*D203)*Tablas!C9)*(D$207-D$202)/D$207,(D$207-D$202)*Tablas!C9),DedGrales!D24+DedGrales!D25))*D211 -> 0 | E209: =(IF(Check!$B$8="Ok",IF(AND($R$209="Sí",E202<>0),(maximo(E$207,Tablas!D$7*E203)*Tablas!D9)*(E$207-E$202)/E$207,(E$207-E$202)*Tablas!D9),DedGrales!E24+DedGrales!E25))*E211 -> 0 | F209: =(IF(Check!$B$8="Ok",IF(AND($R$209="Sí",F202<>0),(maximo(F$207,Tablas!E$7*F203)*Tablas!E9)*(F$207-F$202)/F$207,(F$207-F$202)*Tablas!E9),DedGrales!F24+DedGrales!F25))*F211 -> 0 | G209: =(IF(Check!$B$8="Ok",IF(AND($R$209="Sí",G202<>0),(maximo(G$207,Tablas!F$7*G203)*Tablas!F9)*(G$207-G$202)/G$207,(G$207-G$202)*Tablas!F9),DedGrales!G24+DedGrales!G25))*G211 -> 0 | H209: =(IF(Check!$B$8="Ok",IF(AND($R$209="Sí",H202<>0),(maximo(H$207,Tablas!G$7*H203)*Tablas!G9)*(H$207-H$202)/H$207,(H$207-H$202)*Tablas!G9),DedGrales!H24+DedGrales!H25))*H211 -> 0 | I209: =(IF(Check!$B$8="Ok",IF(AND($R$209="Sí",I202<>0),(maximo(I$207,Tablas!H$7*I203)*Tablas!H9)*(I$207-I$202)/I$207,(I$207-I$202)*Tablas!H9),DedGrales!I24+DedGrales!I25))*I211 -> 0 | J209: =(IF(Check!$B$8="Ok",IF(AND($R$209="Sí",J202<>0),(maximo(J$207,Tablas!I$7*J203)*Tablas!I9)*(J$207-J$202)/J$207,(J$207-J$202)*Tablas!I9),DedGrales!J24+DedGrales!J25))*J211 -> 0 | K209: =(IF(Check!$B$8="Ok",IF(AND($R$209="Sí",K202<>0),(maximo(K$207,Tablas!J$7*K203)*Tablas!J9)*(K$207-K$202)/K$207,(K$207-K$202)*Tablas!J9),DedGrales!K24+DedGrales!K25))*K211 -> 0 | L209: =(IF(Check!$B$8="Ok",IF(AND($R$209="Sí",L202<>0),(maximo(L$207,Tablas!K$7*L203)*Tablas!K9)*(L$207-L$202)/L$207,(L$207-L$202)*Tablas!K9),DedGrales!L24+DedGrales!L25))*L211 -> 0 | M209: =(IF(Check!$B$8="Ok",IF(AND($R$209="Sí",M202<>0),(maximo(M$207,Tablas!L$7*M203)*Tablas!L9)*(M$207-M$202)/M$207,(M$207-M$202)*Tablas!L9),DedGrales!M24+DedGrales!M25))*M211 -> 0 | N209: =(IF(Check!$B$8="Ok",IF(AND($R$209="Sí",N202<>0),(maximo(N$207,Tablas!M$7*N203)*Tablas!M9)*(N$207-N$202)/N$207,(N$207-N$202)*Tablas!M9),DedGrales!N24+DedGrales!N25))*N211 -> 0 | O209: =(IF(Check!$B$8="Ok",IF(AND($R$209="Sí",O202<>0),(maximo(O$207,Tablas!N$7*O203)*Tablas!N9)*(O$207-O$202)/O$207,(O$207-O$202)*Tablas!N9),DedGrales!O24+DedGrales!O25))*O211 -> 0 | P209: =SUM(D209:O209) -> 0 | R209: =+R205 -> Sí
C210: Cuota sindical otros empleos | D210: =(IF(Check!$B$8="Ok",IF($R$210="Sí",(maximo(D$207,Tablas!C$7*D203)*Tablas!C10)*(D$207-D$202)/D$207,(D$207-D$202)*Tablas!C10),DedGrales!D26))*D211 -> 0 | E210: =(IF(Check!$B$8="Ok",IF($R$210="Sí",(maximo(E$207,Tablas!D$7*E203)*Tablas!D10)*(E$207-E$202)/E$207,(E$207-E$202)*Tablas!D10),DedGrales!E26))*E211 -> 0 | F210: =(IF(Check!$B$8="Ok",IF($R$210="Sí",(maximo(F$207,Tablas!E$7*F203)*Tablas!E10)*(F$207-F$202)/F$207,(F$207-F$202)*Tablas!E10),DedGrales!F26))*F211 -> 0 | G210: =(IF(Check!$B$8="Ok",IF($R$210="Sí",(maximo(G$207,Tablas!F$7*G203)*Tablas!F10)*(G$207-G$202)/G$207,(G$207-G$202)*Tablas!F10),DedGrales!G26))*G211 -> 0 | H210: =(IF(Check!$B$8="Ok",IF($R$210="Sí",(maximo(H$207,Tablas!G$7*H203)*Tablas!G10)*(H$207-H$202)/H$207,(H$207-H$202)*Tablas!G10),DedGrales!H26))*H211 -> 0 | I210: =(IF(Check!$B$8="Ok",IF($R$210="Sí",(maximo(I$207,Tablas!H$7*I203)*Tablas!H10)*(I$207-I$202)/I$207,(I$207-I$202)*Tablas!H10),DedGrales!I26))*I211 -> 0 | J210: =(IF(Check!$B$8="Ok",IF($R$210="Sí",(maximo(J$207,Tablas!I$7*J203)*Tablas!I10)*(J$207-J$202)/J$207,(J$207-J$202)*Tablas!I10),DedGrales!J26))*J211 -> 0 | K210: =(IF(Check!$B$8="Ok",IF($R$210="Sí",(maximo(K$207,Tablas!J$7*K203)*Tablas!J10)*(K$207-K$202)/K$207,(K$207-K$202)*Tablas!J10),DedGrales!K26))*K211 -> 0 | L210: =(IF(Check!$B$8="Ok",IF($R$210="Sí",(maximo(L$207,Tablas!K$7*L203)*Tablas!K10)*(L$207-L$202)/L$207,(L$207-L$202)*Tablas!K10),DedGrales!L26))*L211 -> 0 | M210: =(IF(Check!$B$8="Ok",IF($R$210="Sí",(maximo(M$207,Tablas!L$7*M203)*Tablas!L10)*(M$207-M$202)/M$207,(M$207-M$202)*Tablas!L10),DedGrales!M26))*M211 -> 0 | N210: =(IF(Check!$B$8="Ok",IF($R$210="Sí",(maximo(N$207,Tablas!M$7*N203)*Tablas!M10)*(N$207-N$202)/N$207,(N$207-N$202)*Tablas!M10),DedGrales!N26))*N211 -> 0 | O210: =(IF(Check!$B$8="Ok",IF($R$210="Sí",(maximo(O$207,Tablas!N$7*O203)*Tablas!N10)*(O$207-O$202)/O$207,(O$207-O$202)*Tablas!N10),DedGrales!O26))*O211 -> 0 | P210: =SUM(D210:O210) -> 0 | R210: =+R206 -> No
C211: Proporción Gravado/Total | D211: =proporcionGravado(SUM(D9:D10),SUM(D9:D10,D16:D17,D23:D24)) -> 1 | E211: =proporcionGravado(SUM(E9:E10),SUM(E9:E10,E16:E17,E23:E24)) -> 1 | F211: 1 | G211: 1 | H211: 1 | I211: 1 | J211: 1 | K211: 1 | L211: 1 | M211: 1 | N211: 1 | O211: 1 | P211: =+SUM(D211:O211)/12 -> 1
C212: Para restar horas extras exentas | D212: =IF(OR(TYPE(+D204/D211)=16,TYPE(+D205/D211)=16,TYPE(+D206/D211)=16,TYPE(+D208/D211)=16,TYPE(+D208/D211)=16,TYPE(+D209/D211)=16,TYPE(+D210/D211)=16),0,+D204/D211+D205/D211+D206/D211+D208/D211+D209/D211+D210/D211) -> 8500 | E212: =IF(OR(TYPE(+E204/E211)=16,TYPE(+E205/E211)=16,TYPE(+E206/E211)=16,TYPE(+E208/E211)=16,TYPE(+E208/E211)=16,TYPE(+E209/E211)=16,TYPE(+E210/E211)=16),0,+E204/E211+E205/E211+E206/E211+E208/E211+E209/E211+E210/E211) -> 8500 | F212: 8500 | G212: 9010 | H212: 9010 | I212: 13770 | J212: 9180 | K212: 9180 | L212: 9180 | M212: 9180 | N212: 9520 | O212: 14280
C213: Retenciones Hs Extras
C214: HsExtras1 | D214: =+Ingresos!C9+Ingresos!C11 -> 0 | E214: =+Ingresos!D9+Ingresos!D11 -> 0 | F214: =+Ingresos!E9+Ingresos!E11 -> 0 | G214: =+Ingresos!F9+Ingresos!F11 -> 0 | H214: =+Ingresos!G9+Ingresos!G11 -> 0 | I214: =+Ingresos!H9+Ingresos!H11 -> 0 | J214: =+Ingresos!I9+Ingresos!I11 -> 0 | K214: =+Ingresos!J9+Ingresos!J11 -> 0 | L214: =+Ingresos!K9+Ingresos!K11 -> 0 | M214: =+Ingresos!L9+Ingresos!L11 -> 0 | N214: =+Ingresos!M9+Ingresos!M11 -> 0 | O214: =+Ingresos!N9+Ingresos!N11 -> 0
C215: HsExtras2 | D215: =+Ingresos!C36+Ingresos!C38 -> 0 | E215: =+Ingresos!D36+Ingresos!D38 -> 0 | F215: =+Ingresos!E36+Ingresos!E38 -> 0 | G215: =+Ingresos!F36+Ingresos!F38 -> 0 | H215: =+Ingresos!G36+Ingresos!G38 -> 0 | I215: =+Ingresos!H36+Ingresos!H38 -> 0 | J215: =+Ingresos!I36+Ingresos!I38 -> 0 | K215: =+Ingresos!J36+Ingresos!J38 -> 0 | L215: =+Ingresos!K36+Ingresos!K38 -> 0 | M215: =+Ingresos!L36+Ingresos!L38 -> 0 | N215: =+Ingresos!M36+Ingresos!M38 -> 0 | O215: =+Ingresos!N36+Ingresos!N38 -> 0
C216: =+C161 -> Jubilación | D216: =retenciones(Check!$B$8,Auxiliares!$R$216,SUM(D$9:D$10,D$16:D$17,D$23:D$24),Tablas!C$7,Tablas!C8,D$214,0) -> 0 | E216: =retenciones(Check!$B$8,Auxiliares!$R$216,SUM(E$9:E$10,E$16:E$17,E$23:E$24),Tablas!D$7,Tablas!D8,E$214,0) -> 0 | F216: =retenciones(Check!$B$8,Auxiliares!$R$216,SUM(F$9:F$10,F$16:F$17,F$23:F$24),Tablas!E$7,Tablas!E8,F$214,0) -> 0 | G216: =retenciones(Check!$B$8,Auxiliares!$R$216,SUM(G$9:G$10,G$16:G$17,G$23:G$24),Tablas!F$7,Tablas!F8,G$214,0) -> 0 | H216: =retenciones(Check!$B$8,Auxiliares!$R$216,SUM(H$9:H$10,H$16:H$17,H$23:H$24),Tablas!G$7,Tablas!G8,H$214,0) -> 0 | I216: =retenciones(Check!$B$8,Auxiliares!$R$216,SUM(I$9:I$10,I$16:I$17,I$23:I$24),Tablas!H$7,Tablas!H8,I$214,0) -> 0 | J216: =retenciones(Check!$B$8,Auxiliares!$R$216,SUM(J$9:J$10,J$16:J$17,J$23:J$24),Tablas!I$7,Tablas!I8,J$214,0) -> 0 | K216: =retenciones(Check!$B$8,Auxiliares!$R$216,SUM(K$9:K$10,K$16:K$17,K$23:K$24),Tablas!J$7,Tablas!J8,K$214,0) -> 0 | L216: =retenciones(Check!$B$8,Auxiliares!$R$216,SUM(L$9:L$10,L$16:L$17,L$23:L$24),Tablas!K$7,Tablas!K8,L$214,0) -> 0 | M216: =retenciones(Check!$B$8,Auxiliares!$R$216,SUM(M$9:M$10,M$16:M$17,M$23:M$24),Tablas!L$7,Tablas!L8,M$214,0) -> 0 | N216: =retenciones(Check!$B$8,Auxiliares!$R$216,SUM(N$9:N$10,N$16:N$17,N$23:N$24),Tablas!M$7,Tablas!M8,N$214,0) -> 0 | O216: =retenciones(Check!$B$8,Auxiliares!$R$216,SUM(O$9:O$10,O$16:O$17,O$23:O$24),Tablas!N$7,Tablas!N8,O$214,0) -> 0 | R216: =+R161 -> Sí
C217: Ley 19032 | D217: =retenciones(Check!$B$8,Auxiliares!$R$217,SUM(D$9:D$10,D$16:D$17,D$23:D$24),Tablas!C$7,Tablas!C9,D$214,0) -> 0 | E217: =retenciones(Check!$B$8,Auxiliares!$R$217,SUM(E$9:E$10,E$16:E$17,E$23:E$24),Tablas!D$7,Tablas!D9,E$214,0) -> 0 | F217: =retenciones(Check!$B$8,Auxiliares!$R$217,SUM(F$9:F$10,F$16:F$17,F$23:F$24),Tablas!E$7,Tablas!E9,F$214,0) -> 0 | G217: =retenciones(Check!$B$8,Auxiliares!$R$217,SUM(G$9:G$10,G$16:G$17,G$23:G$24),Tablas!F$7,Tablas!F9,G$214,0) -> 0 | H217: =retenciones(Check!$B$8,Auxiliares!$R$217,SUM(H$9:H$10,H$16:H$17,H$23:H$24),Tablas!G$7,Tablas!G9,H$214,0) -> 0 | I217: =retenciones(Check!$B$8,Auxiliares!$R$217,SUM(I$9:I$10,I$16:I$17,I$23:I$24),Tablas!H$7,Tablas!H9,I$214,0) -> 0 | J217: =retenciones(Check!$B$8,Auxiliares!$R$217,SUM(J$9:J$10,J$16:J$17,J$23:J$24),Tablas!I$7,Tablas!I9,J$214,0) -> 0 | K217: =retenciones(Check!$B$8,Auxiliares!$R$217,SUM(K$9:K$10,K$16:K$17,K$23:K$24),Tablas!J$7,Tablas!J9,K$214,0) -> 0 | L217: =retenciones(Check!$B$8,Auxiliares!$R$217,SUM(L$9:L$10,L$16:L$17,L$23:L$24),Tablas!K$7,Tablas!K9,L$214,0) -> 0 | M217: =retenciones(Check!$B$8,Auxiliares!$R$217,SUM(M$9:M$10,M$16:M$17,M$23:M$24),Tablas!L$7,Tablas!L9,M$214,0) -> 0 | N217: =retenciones(Check!$B$8,Auxiliares!$R$217,SUM(N$9:N$10,N$16:N$17,N$23:N$24),Tablas!M$7,Tablas!M9,N$214,0) -> 0 | O217: =retenciones(Check!$B$8,Auxiliares!$R$217,SUM(O$9:O$10,O$16:O$17,O$23:O$24),Tablas!N$7,Tablas!N9,O$214,0) -> 0 | R217: Sí
C218: Obra social | D218: =retenciones(Check!$B$8,Auxiliares!$R$218,SUM(D$9:D$10,D$16:D$17,D$23:D$24),Tablas!C$7,Tablas!C10,D$214,0) -> 0 | E218: =retenciones(Check!$B$8,Auxiliares!$R$218,SUM(E$9:E$10,E$16:E$17,E$23:E$24),Tablas!D$7,Tablas!D10,E$214,0) -> 0 | F218: =retenciones(Check!$B$8,Auxiliares!$R$218,SUM(F$9:F$10,F$16:F$17,F$23:F$24),Tablas!E$7,Tablas!E10,F$214,0) -> 0 | G218: =retenciones(Check!$B$8,Auxiliares!$R$218,SUM(G$9:G$10,G$16:G$17,G$23:G$24),Tablas!F$7,Tablas!F10,G$214,0) -> 0 | H218: =retenciones(Check!$B$8,Auxiliares!$R$218,SUM(H$9:H$10,H$16:H$17,H$23:H$24),Tablas!G$7,Tablas!G10,H$214,0) -> 0 | I218: =retenciones(Check!$B$8,Auxiliares!$R$218,SUM(I$9:I$10,I$16:I$17,I$23:I$24),Tablas!H$7,Tablas!H10,I$214,0) -> 0 | J218: =retenciones(Check!$B$8,Auxiliares!$R$218,SUM(J$9:J$10,J$16:J$17,J$23:J$24),Tablas!I$7,Tablas!I10,J$214,0) -> 0 | K218: =retenciones(Check!$B$8,Auxiliares!$R$218,SUM(K$9:K$10,K$16:K$17,K$23:K$24),Tablas!J$7,Tablas!J10,K$214,0) -> 0 | L218: =retenciones(Check!$B$8,Auxiliares!$R$218,SUM(L$9:L$10,L$16:L$17,L$23:L$24),Tablas!K$7,Tablas!K10,L$214,0) -> 0 | M218: =retenciones(Check!$B$8,Auxiliares!$R$218,SUM(M$9:M$10,M$16:M$17,M$23:M$24),Tablas!L$7,Tablas!L10,M$214,0) -> 0 | N218: =retenciones(Check!$B$8,Auxiliares!$R$218,SUM(N$9:N$10,N$16:N$17,N$23:N$24),Tablas!M$7,Tablas!M10,N$214,0) -> 0 | O218: =retenciones(Check!$B$8,Auxiliares!$R$218,SUM(O$9:O$10,O$16:O$17,O$23:O$24),Tablas!N$7,Tablas!N10,O$214,0) -> 0 | R218: Sí
C219: Sindicato | D219: =retenciones(Check!$B$8,Auxiliares!$R$219,SUM(D$9:D$10,D$16:D$17,D$23:D$24),Tablas!C$7,Tablas!C11,D$214,0) -> 0 | E219: =retenciones(Check!$B$8,Auxiliares!$R$219,SUM(E$9:E$10,E$16:E$17,E$23:E$24),Tablas!D$7,Tablas!D11,E$214,0) -> 0 | F219: =retenciones(Check!$B$8,Auxiliares!$R$219,SUM(F$9:F$10,F$16:F$17,F$23:F$24),Tablas!E$7,Tablas!E11,F$214,0) -> 0 | G219: =retenciones(Check!$B$8,Auxiliares!$R$219,SUM(G$9:G$10,G$16:G$17,G$23:G$24),Tablas!F$7,Tablas!F11,G$214,0) -> 0 | H219: =retenciones(Check!$B$8,Auxiliares!$R$219,SUM(H$9:H$10,H$16:H$17,H$23:H$24),Tablas!G$7,Tablas!G11,H$214,0) -> 0 | I219: =retenciones(Check!$B$8,Auxiliares!$R$219,SUM(I$9:I$10,I$16:I$17,I$23:I$24),Tablas!H$7,Tablas!H11,I$214,0) -> 0 | J219: =retenciones(Check!$B$8,Auxiliares!$R$219,SUM(J$9:J$10,J$16:J$17,J$23:J$24),Tablas!I$7,Tablas!I11,J$214,0) -> 0 | K219: =retenciones(Check!$B$8,Auxiliares!$R$219,SUM(K$9:K$10,K$16:K$17,K$23:K$24),Tablas!J$7,Tablas!J11,K$214,0) -> 0 | L219: =retenciones(Check!$B$8,Auxiliares!$R$219,SUM(L$9:L$10,L$16:L$17,L$23:L$24),Tablas!K$7,Tablas!K11,L$214,0) -> 0 | M219: =retenciones(Check!$B$8,Auxiliares!$R$219,SUM(M$9:M$10,M$16:M$17,M$23:M$24),Tablas!L$7,Tablas!L11,M$214,0) -> 0 | N219: =retenciones(Check!$B$8,Auxiliares!$R$219,SUM(N$9:N$10,N$16:N$17,N$23:N$24),Tablas!M$7,Tablas!M11,N$214,0) -> 0 | O219: =retenciones(Check!$B$8,Auxiliares!$R$219,SUM(O$9:O$10,O$16:O$17,O$23:O$24),Tablas!N$7,Tablas!N11,O$214,0) -> 0 | R219: No
C220: 0 | D220: =retenciones(Check!$B$8,Auxiliares!$R$220,SUM(D$9:D$10,D$16:D$17,D$23:D$24),Tablas!C$7,Tablas!C12,D$214,0) -> 0 | E220: =retenciones(Check!$B$8,Auxiliares!$R$220,SUM(E$9:E$10,E$16:E$17,E$23:E$24),Tablas!D$7,Tablas!D12,E$214,0) -> 0 | F220: =retenciones(Check!$B$8,Auxiliares!$R$220,SUM(F$9:F$10,F$16:F$17,F$23:F$24),Tablas!E$7,Tablas!E12,F$214,0) -> 0 | G220: =retenciones(Check!$B$8,Auxiliares!$R$220,SUM(G$9:G$10,G$16:G$17,G$23:G$24),Tablas!F$7,Tablas!F12,G$214,0) -> 0 | H220: =retenciones(Check!$B$8,Auxiliares!$R$220,SUM(H$9:H$10,H$16:H$17,H$23:H$24),Tablas!G$7,Tablas!G12,H$214,0) -> 0 | I220: =retenciones(Check!$B$8,Auxiliares!$R$220,SUM(I$9:I$10,I$16:I$17,I$23:I$24),Tablas!H$7,Tablas!H12,I$214,0) -> 0 | J220: =retenciones(Check!$B$8,Auxiliares!$R$220,SUM(J$9:J$10,J$16:J$17,J$23:J$24),Tablas!I$7,Tablas!I12,J$214,0) -> 0 | K220: =retenciones(Check!$B$8,Auxiliares!$R$220,SUM(K$9:K$10,K$16:K$17,K$23:K$24),Tablas!J$7,Tablas!J12,K$214,0) -> 0 | L220: =retenciones(Check!$B$8,Auxiliares!$R$220,SUM(L$9:L$10,L$16:L$17,L$23:L$24),Tablas!K$7,Tablas!K12,L$214,0) -> 0 | M220: =retenciones(Check!$B$8,Auxiliares!$R$220,SUM(M$9:M$10,M$16:M$17,M$23:M$24),Tablas!L$7,Tablas!L12,M$214,0) -> 0 | N220: =retenciones(Check!$B$8,Auxiliares!$R$220,SUM(N$9:N$10,N$16:N$17,N$23:N$24),Tablas!M$7,Tablas!M12,N$214,0) -> 0 | O220: =retenciones(Check!$B$8,Auxiliares!$R$220,SUM(O$9:O$10,O$16:O$17,O$23:O$24),Tablas!N$7,Tablas!N12,O$214,0) -> 0 | R220: No
C221: 0 | D221: =retenciones(Check!$B$8,Auxiliares!$R$221,SUM(D$9:D$10,D$16:D$17,D$23:D$24),Tablas!C$7,Tablas!C13,D$214,0) -> 0 | E221: =retenciones(Check!$B$8,Auxiliares!$R$221,SUM(E$9:E$10,E$16:E$17,E$23:E$24),Tablas!D$7,Tablas!D13,E$214,0) -> 0 | F221: =retenciones(Check!$B$8,Auxiliares!$R$221,SUM(F$9:F$10,F$16:F$17,F$23:F$24),Tablas!E$7,Tablas!E13,F$214,0) -> 0 | G221: =retenciones(Check!$B$8,Auxiliares!$R$221,SUM(G$9:G$10,G$16:G$17,G$23:G$24),Tablas!F$7,Tablas!F13,G$214,0) -> 0 | H221: =retenciones(Check!$B$8,Auxiliares!$R$221,SUM(H$9:H$10,H$16:H$17,H$23:H$24),Tablas!G$7,Tablas!G13,H$214,0) -> 0 | I221: =retenciones(Check!$B$8,Auxiliares!$R$221,SUM(I$9:I$10,I$16:I$17,I$23:I$24),Tablas!H$7,Tablas!H13,I$214,0) -> 0 | J221: =retenciones(Check!$B$8,Auxiliares!$R$221,SUM(J$9:J$10,J$16:J$17,J$23:J$24),Tablas!I$7,Tablas!I13,J$214,0) -> 0 | K221: =retenciones(Check!$B$8,Auxiliares!$R$221,SUM(K$9:K$10,K$16:K$17,K$23:K$24),Tablas!J$7,Tablas!J13,K$214,0) -> 0 | L221: =retenciones(Check!$B$8,Auxiliares!$R$221,SUM(L$9:L$10,L$16:L$17,L$23:L$24),Tablas!K$7,Tablas!K13,L$214,0) -> 0 | M221: =retenciones(Check!$B$8,Auxiliares!$R$221,SUM(M$9:M$10,M$16:M$17,M$23:M$24),Tablas!L$7,Tablas!L13,M$214,0) -> 0 | N221: =retenciones(Check!$B$8,Auxiliares!$R$221,SUM(N$9:N$10,N$16:N$17,N$23:N$24),Tablas!M$7,Tablas!M13,N$214,0) -> 0 | O221: =retenciones(Check!$B$8,Auxiliares!$R$221,SUM(O$9:O$10,O$16:O$17,O$23:O$24),Tablas!N$7,Tablas!N13,O$214,0) -> 0 | R221: No
C222: Total | D222: =IF(Check!$B$8="Ok",D214-SUM(D216:D221),Ingresos!C31) -> 0 | E222: =IF(Check!$B$8="Ok",E214-SUM(E216:E221),Ingresos!D31) -> 0 | F222: =IF(Check!$B$8="Ok",F214-SUM(F216:F221),Ingresos!E31) -> 0 | G222: =IF(Check!$B$8="Ok",G214-SUM(G216:G221),Ingresos!F31) -> 0 | H222: =IF(Check!$B$8="Ok",H214-SUM(H216:H221),Ingresos!G31) -> 0 | I222: =IF(Check!$B$8="Ok",I214-SUM(I216:I221),Ingresos!H31) -> 0 | J222: =IF(Check!$B$8="Ok",J214-SUM(J216:J221),Ingresos!I31) -> 0 | K222: =IF(Check!$B$8="Ok",K214-SUM(K216:K221),Ingresos!J31) -> 0 | L222: =IF(Check!$B$8="Ok",L214-SUM(L216:L221),Ingresos!K31) -> 0 | M222: =IF(Check!$B$8="Ok",M214-SUM(M216:M221),Ingresos!L31) -> 0 | N222: =IF(Check!$B$8="Ok",N214-SUM(N216:N221),Ingresos!M31) -> 0 | O222: =IF(Check!$B$8="Ok",O214-SUM(O216:O221),Ingresos!N31) -> 0 | P222: =P214-SUM(P216:P221) -> 0
C224: =+C216 -> Jubilación | D224: =retenciones(Check!$B$8,Auxiliares!$R$224,SUM(D$9:D$10,D$16:D$17,D$23:D$24),Tablas!C$7,Tablas!C8,D$215,0) -> 0 | E224: =retenciones(Check!$B$8,Auxiliares!$R$224,SUM(E$9:E$10,E$16:E$17,E$23:E$24),Tablas!D$7,Tablas!D8,E$215,0) -> 0 | F224: =retenciones(Check!$B$8,Auxiliares!$R$224,SUM(F$9:F$10,F$16:F$17,F$23:F$24),Tablas!E$7,Tablas!E8,F$215,0) -> 0 | G224: =retenciones(Check!$B$8,Auxiliares!$R$224,SUM(G$9:G$10,G$16:G$17,G$23:G$24),Tablas!F$7,Tablas!F8,G$215,0) -> 0 | H224: =retenciones(Check!$B$8,Auxiliares!$R$224,SUM(H$9:H$10,H$16:H$17,H$23:H$24),Tablas!G$7,Tablas!G8,H$215,0) -> 0 | I224: =retenciones(Check!$B$8,Auxiliares!$R$224,SUM(I$9:I$10,I$16:I$17,I$23:I$24),Tablas!H$7,Tablas!H8,I$215,0) -> 0 | J224: =retenciones(Check!$B$8,Auxiliares!$R$224,SUM(J$9:J$10,J$16:J$17,J$23:J$24),Tablas!I$7,Tablas!I8,J$215,0) -> 0 | K224: =retenciones(Check!$B$8,Auxiliares!$R$224,SUM(K$9:K$10,K$16:K$17,K$23:K$24),Tablas!J$7,Tablas!J8,K$215,0) -> 0 | L224: =retenciones(Check!$B$8,Auxiliares!$R$224,SUM(L$9:L$10,L$16:L$17,L$23:L$24),Tablas!K$7,Tablas!K8,L$215,0) -> 0 | M224: =retenciones(Check!$B$8,Auxiliares!$R$224,SUM(M$9:M$10,M$16:M$17,M$23:M$24),Tablas!L$7,Tablas!L8,M$215,0) -> 0 | N224: =retenciones(Check!$B$8,Auxiliares!$R$224,SUM(N$9:N$10,N$16:N$17,N$23:N$24),Tablas!M$7,Tablas!M8,N$215,0) -> 0 | O224: =retenciones(Check!$B$8,Auxiliares!$R$224,SUM(O$9:O$10,O$16:O$17,O$23:O$24),Tablas!N$7,Tablas!N8,O$215,0) -> 0 | R224: =+R216 -> Sí
C225: =+C217 -> Ley 19032 | D225: =retenciones(Check!$B$8,Auxiliares!$R$225,SUM(D$9:D$10,D$16:D$17,D$23:D$24),Tablas!C$7,Tablas!C9,D$215,0) -> 0 | E225: =retenciones(Check!$B$8,Auxiliares!$R$225,SUM(E$9:E$10,E$16:E$17,E$23:E$24),Tablas!D$7,Tablas!D9,E$215,0) -> 0 | F225: =retenciones(Check!$B$8,Auxiliares!$R$225,SUM(F$9:F$10,F$16:F$17,F$23:F$24),Tablas!E$7,Tablas!E9,F$215,0) -> 0 | G225: =retenciones(Check!$B$8,Auxiliares!$R$225,SUM(G$9:G$10,G$16:G$17,G$23:G$24),Tablas!F$7,Tablas!F9,G$215,0) -> 0 | H225: =retenciones(Check!$B$8,Auxiliares!$R$225,SUM(H$9:H$10,H$16:H$17,H$23:H$24),Tablas!G$7,Tablas!G9,H$215,0) -> 0 | I225: =retenciones(Check!$B$8,Auxiliares!$R$225,SUM(I$9:I$10,I$16:I$17,I$23:I$24),Tablas!H$7,Tablas!H9,I$215,0) -> 0 | J225: =retenciones(Check!$B$8,Auxiliares!$R$225,SUM(J$9:J$10,J$16:J$17,J$23:J$24),Tablas!I$7,Tablas!I9,J$215,0) -> 0 | K225: =retenciones(Check!$B$8,Auxiliares!$R$225,SUM(K$9:K$10,K$16:K$17,K$23:K$24),Tablas!J$7,Tablas!J9,K$215,0) -> 0 | L225: =retenciones(Check!$B$8,Auxiliares!$R$225,SUM(L$9:L$10,L$16:L$17,L$23:L$24),Tablas!K$7,Tablas!K9,L$215,0) -> 0 | M225: =retenciones(Check!$B$8,Auxiliares!$R$225,SUM(M$9:M$10,M$16:M$17,M$23:M$24),Tablas!L$7,Tablas!L9,M$215,0) -> 0 | N225: =retenciones(Check!$B$8,Auxiliares!$R$225,SUM(N$9:N$10,N$16:N$17,N$23:N$24),Tablas!M$7,Tablas!M9,N$215,0) -> 0 | O225: =retenciones(Check!$B$8,Auxiliares!$R$225,SUM(O$9:O$10,O$16:O$17,O$23:O$24),Tablas!N$7,Tablas!N9,O$215,0) -> 0 | R225: =+R217 -> Sí
C226: Obra social | D226: =retenciones(Check!$B$8,Auxiliares!$R$226,SUM(D$9:D$10,D$16:D$17,D$23:D$24),Tablas!C$7,Tablas!C10,D$215,0) -> 0 | E226: =retenciones(Check!$B$8,Auxiliares!$R$226,SUM(E$9:E$10,E$16:E$17,E$23:E$24),Tablas!D$7,Tablas!D10,E$215,0) -> 0 | F226: =retenciones(Check!$B$8,Auxiliares!$R$226,SUM(F$9:F$10,F$16:F$17,F$23:F$24),Tablas!E$7,Tablas!E10,F$215,0) -> 0 | G226: =retenciones(Check!$B$8,Auxiliares!$R$226,SUM(G$9:G$10,G$16:G$17,G$23:G$24),Tablas!F$7,Tablas!F10,G$215,0) -> 0 | H226: =retenciones(Check!$B$8,Auxiliares!$R$226,SUM(H$9:H$10,H$16:H$17,H$23:H$24),Tablas!G$7,Tablas!G10,H$215,0) -> 0 | I226: =retenciones(Check!$B$8,Auxiliares!$R$226,SUM(I$9:I$10,I$16:I$17,I$23:I$24),Tablas!H$7,Tablas!H10,I$215,0) -> 0 | J226: =retenciones(Check!$B$8,Auxiliares!$R$226,SUM(J$9:J$10,J$16:J$17,J$23:J$24),Tablas!I$7,Tablas!I10,J$215,0) -> 0 | K226: =retenciones(Check!$B$8,Auxiliares!$R$226,SUM(K$9:K$10,K$16:K$17,K$23:K$24),Tablas!J$7,Tablas!J10,K$215,0) -> 0 | L226: =retenciones(Check!$B$8,Auxiliares!$R$226,SUM(L$9:L$10,L$16:L$17,L$23:L$24),Tablas!K$7,Tablas!K10,L$215,0) -> 0 | M226: =retenciones(Check!$B$8,Auxiliares!$R$226,SUM(M$9:M$10,M$16:M$17,M$23:M$24),Tablas!L$7,Tablas!L10,M$215,0) -> 0 | N226: =retenciones(Check!$B$8,Auxiliares!$R$226,SUM(N$9:N$10,N$16:N$17,N$23:N$24),Tablas!M$7,Tablas!M10,N$215,0) -> 0 | O226: =retenciones(Check!$B$8,Auxiliares!$R$226,SUM(O$9:O$10,O$16:O$17,O$23:O$24),Tablas!N$7,Tablas!N10,O$215,0) -> 0 | R226: Sí
C227: Sindicato | D227: =retenciones(Check!$B$8,Auxiliares!$R$227,SUM(D$9:D$10,D$16:D$17,D$23:D$24),Tablas!C$7,Tablas!C11,D$215,0) -> 0 | E227: =retenciones(Check!$B$8,Auxiliares!$R$227,SUM(E$9:E$10,E$16:E$17,E$23:E$24),Tablas!D$7,Tablas!D11,E$215,0) -> 0 | F227: =retenciones(Check!$B$8,Auxiliares!$R$227,SUM(F$9:F$10,F$16:F$17,F$23:F$24),Tablas!E$7,Tablas!E11,F$215,0) -> 0 | G227: =retenciones(Check!$B$8,Auxiliares!$R$227,SUM(G$9:G$10,G$16:G$17,G$23:G$24),Tablas!F$7,Tablas!F11,G$215,0) -> 0 | H227: =retenciones(Check!$B$8,Auxiliares!$R$227,SUM(H$9:H$10,H$16:H$17,H$23:H$24),Tablas!G$7,Tablas!G11,H$215,0) -> 0 | I227: =retenciones(Check!$B$8,Auxiliares!$R$227,SUM(I$9:I$10,I$16:I$17,I$23:I$24),Tablas!H$7,Tablas!H11,I$215,0) -> 0 | J227: =retenciones(Check!$B$8,Auxiliares!$R$227,SUM(J$9:J$10,J$16:J$17,J$23:J$24),Tablas!I$7,Tablas!I11,J$215,0) -> 0 | K227: =retenciones(Check!$B$8,Auxiliares!$R$227,SUM(K$9:K$10,K$16:K$17,K$23:K$24),Tablas!J$7,Tablas!J11,K$215,0) -> 0 | L227: =retenciones(Check!$B$8,Auxiliares!$R$227,SUM(L$9:L$10,L$16:L$17,L$23:L$24),Tablas!K$7,Tablas!K11,L$215,0) -> 0 | M227: =retenciones(Check!$B$8,Auxiliares!$R$227,SUM(M$9:M$10,M$16:M$17,M$23:M$24),Tablas!L$7,Tablas!L11,M$215,0) -> 0 | N227: =retenciones(Check!$B$8,Auxiliares!$R$227,SUM(N$9:N$10,N$16:N$17,N$23:N$24),Tablas!M$7,Tablas!M11,N$215,0) -> 0 | O227: =retenciones(Check!$B$8,Auxiliares!$R$227,SUM(O$9:O$10,O$16:O$17,O$23:O$24),Tablas!N$7,Tablas!N11,O$215,0) -> 0 | R227: No
C228: 0 | D228: =retenciones(Check!$B$8,Auxiliares!$R$228,SUM(D$9:D$10,D$16:D$17,D$23:D$24),Tablas!C$7,Tablas!C12,D$215,0) -> 0 | E228: =retenciones(Check!$B$8,Auxiliares!$R$228,SUM(E$9:E$10,E$16:E$17,E$23:E$24),Tablas!D$7,Tablas!D12,E$215,0) -> 0 | F228: =retenciones(Check!$B$8,Auxiliares!$R$228,SUM(F$9:F$10,F$16:F$17,F$23:F$24),Tablas!E$7,Tablas!E12,F$215,0) -> 0 | G228: =retenciones(Check!$B$8,Auxiliares!$R$228,SUM(G$9:G$10,G$16:G$17,G$23:G$24),Tablas!F$7,Tablas!F12,G$215,0) -> 0 | H228: =retenciones(Check!$B$8,Auxiliares!$R$228,SUM(H$9:H$10,H$16:H$17,H$23:H$24),Tablas!G$7,Tablas!G12,H$215,0) -> 0 | I228: =retenciones(Check!$B$8,Auxiliares!$R$228,SUM(I$9:I$10,I$16:I$17,I$23:I$24),Tablas!H$7,Tablas!H12,I$215,0) -> 0 | J228: =retenciones(Check!$B$8,Auxiliares!$R$228,SUM(J$9:J$10,J$16:J$17,J$23:J$24),Tablas!I$7,Tablas!I12,J$215,0) -> 0 | K228: =retenciones(Check!$B$8,Auxiliares!$R$228,SUM(K$9:K$10,K$16:K$17,K$23:K$24),Tablas!J$7,Tablas!J12,K$215,0) -> 0 | L228: =retenciones(Check!$B$8,Auxiliares!$R$228,SUM(L$9:L$10,L$16:L$17,L$23:L$24),Tablas!K$7,Tablas!K12,L$215,0) -> 0 | M228: =retenciones(Check!$B$8,Auxiliares!$R$228,SUM(M$9:M$10,M$16:M$17,M$23:M$24),Tablas!L$7,Tablas!L12,M$215,0) -> 0 | N228: =retenciones(Check!$B$8,Auxiliares!$R$228,SUM(N$9:N$10,N$16:N$17,N$23:N$24),Tablas!M$7,Tablas!M12,N$215,0) -> 0 | O228: =retenciones(Check!$B$8,Auxiliares!$R$228,SUM(O$9:O$10,O$16:O$17,O$23:O$24),Tablas!N$7,Tablas!N12,O$215,0) -> 0 | R228: No
... 7 more rows

Sheet Tablas
B2: TABLAS
B4: RETENCIONES DE LA SEGURIDAD SOCIAL
C6: enero | D6: febrero | E6: marzo | F6: abril | G6: mayo | H6: junio | I6: julio | J6: agosto | K6: septiembre | L6: octubre | M6: noviembre | N6: diciembre | O6: Aplica tope?
B7: BI Máx | C7: 81918.55 | D7: =+C7 -> 81918.55 | E7: =IF(Check!$B$1="Ok",Tablas!D7,81918.55) -> 81918.55 | F7: =+E7 -> 81918.55 | G7: =+F7 -> 81918.55 | H7: =+G7 -> 81918.55 | I7: =+H7 -> 81918.55 | J7: =+I7 -> 81918.55 | K7: =IF(Check!$B$1="Ok",Tablas!J7,81918.55) -> 81918.55 | L7: =+K7 -> 81918.55 | M7: =+L7 -> 81918.55 | N7: =+M7 -> 81918.55
B8: Jubilación | C8: 0.11 | D8: 0.11 | E8: 0.11 | F8: 0.11 | G8: 0.11 | H8: 0.11 | I8: 0.11 | J8: 0.11 | K8: 0.11 | L8: 0.11 | M8: 0.11 | N8: 0.11 | O8: Sí
B9: Ley 19032 | C9: 0.03 | D9: 0.03 | E9: 0.03 | F9: 0.03 | G9: 0.03 | H9: 0.03 | I9: 0.03 | J9: 0.03 | K9: 0.03 | L9: 0.03 | M9: 0.03 | N9: 0.03 | O9: Sí
B10: Obra social | C10: 0.03 | D10: 0.03 | E10: 0.03 | F10: 0.03 | G10: 0.03 | H10: 0.03 | I10: 0.03 | J10: 0.03 | K10: 0.03 | L10: 0.03 | M10: 0.03 | N10: 0.03 | O10: Sí
B11: Sindicato | C11: 0 | D11: 0 | E11: 0 | F11: 0 | G11: 0 | H11: 0 | I11: 0 | J11: 0 | K11: 0 | L11: 0 | M11: 0 | N11: 0 | O11: No
C12: 0 | D12: 0 | E12: 0 | F12: 0 | G12: 0 | H12: 0 | I12: 0 | J12: 0 | K12: 0 | L12: 0 | M12: 0 | N12: 0 | O12: No
C13: 0 | D13: 0 | E13: 0 | F13: 0 | G13: 0 | H13: 0 | I13: 0 | J13: 0 | K13: 0 | L13: 0 | M13: 0 | N13: 0 | O13: No
B15: DEDUCCIONES GENERALES
C17: 2017-01-01 | D17: 2017-02-01 | E17: 2017-03-01 | F17: 2017-04-01 | G17: 2017-05-01 | H17: 2017-06-01 | I17: 2017-07-01 | J17: 2017-08-01 | K17: 2017-09-01 | L17: 2017-10-01 | M17: 2017-11-01 | N17: 2017-12-01 | O17: Anual
B18: Seguro de vida | C18: 83.01 | D18: =+C18+83.01 -> 166.02 | E18: =+D18+83.01 -> 249.03 | F18: 332.04 | G18: 415.05 | H18: 498.06 | I18: 581.07 | J18: 664.08 | K18: 747.09 | L18: 830.1 | M18: 913.11 | N18: 996.23 | O18: =+N18 -> 996.23
B19: Gastos de sepelio | C19: =+$C$18*DedGrales!$D$85 -> 83.01 | D19: =+D18*DedGrales!$D$85 -> 166.02 | E19: =+E18*DedGrales!$D$85 -> 249.03 | F19: =+F18*DedGrales!$D$85 -> 332.04 | G19: =+G18*DedGrales!$D$85 -> 415.05 | H19: =+H18*DedGrales!$D$85 -> 498.06 | I19: =+I18*DedGrales!$D$85 -> 581.07 | J19: =+J18*DedGrales!$D$85 -> 664.08 | K19: =+K18*DedGrales!$D$85 -> 747.09 | L19: =+L18*DedGrales!$D$85 -> 830.1 | M19: =+M18*DedGrales!$D$85 -> 913.11 | N19: 996.23 | O19: =+N19 -> 996.23
B20: Intereses créditos hipotecarios | C20: 20000 | D20: 20000 | E20: 20000 | F20: 20000 | G20: 20000 | H20: 20000 | I20: 20000 | J20: 20000 | K20: 20000 | L20: 20000 | M20: 20000 | N20: 20000 | O20: 20000
B21: Personal de Casas Particulares | C21: =+$O$21 -> 66917.91 | D21: =+$O$21 -> 66917.91 | E21: 66917.91 | F21: 66917.91 | G21: 66917.91 | H21: 66917.91 | I21: 66917.91 | J21: 66917.91 | K21: 66917.91 | L21: 66917.91 | M21: 66917.91 | N21: 66917.91 | O21: =+O30 -> 66917.91
B22: Alquiler de casa habitación | C22: =+$O$22/12*MONTH(C17) -> 5576.4925 | D22: =+$O$22/12*MONTH(D17) -> 11152.985 | E22: 16729.4775 | F22: 22305.97 | G22: 27882.4625 | H22: 33458.955 | I22: 39035.4475 | J22: 44611.94 | K22: 50188.4325 | L22: 55764.925 | M22: 61341.4175 | N22: 66917.91 | O22: =+O30 -> 66917.91
B23: Viáticos | C23: =+$O$23 -> 26767.164 | D23: =+$O$23 -> 26767.164 | E23: 26767.164 | F23: 26767.164 | G23: 26767.164 | H23: 26767.164 | I23: 26767.164 | J23: 26767.164 | K23: 26767.164 | L23: 26767.164 | M23: 26767.164 | N23: 26767.164 | O23: =+O30*0.4 -> 26767.164
B24: Viajantes de comercio | C24: =+$O$24 -> 26767.164 | D24: =+$O$24 -> 26767.164 | E24: 26767.164 | F24: 26767.164 | G24: 26767.164 | H24: 26767.164 | I24: 26767.164 | J24: 26767.164 | K24: 26767.164 | L24: 26767.164 | M24: 26767.164 | N24: 26767.164 | O24: =+O30*0.4 -> 26767.164
B25: Tope 5% ganancia neta | C25: =Liquidacion!F71*0.05 -> 2157.916667 | D25: =Liquidacion!G71*0.05 -> 4315.833333 | E25: =Liquidacion!H71*0.05 -> 6473.75 | F25: =Liquidacion!I71*0.05 -> 8766.541667 | G25: =Liquidacion!J71*0.05 -> 11059.33333 | H25: =Liquidacion!K71*0.05 -> 13397.08333 | I25: =Liquidacion!L71*0.05 -> 15714.83333 | J25: =Liquidacion!M71*0.05 -> 18032.58333 | K25: =Liquidacion!N71*0.05 -> 20350.33333 | L25: =Liquidacion!O71*0.05 -> 22668.08333 | M25: =Liquidacion!P71*0.05 -> 25075.75 | N25: =Liquidacion!Q71*0.05 -> 27483.41667 | O25: =+Liquidacion!S71*0.05 -> 27559.5
B27: DEDUCCIONES PERSONALES
C29: enero | D29: febrero | E29: marzo | F29: abril | G29: mayo | H29: junio | I29: julio | J29: agosto | K29: septiembre | L29: octubre | M29: noviembre | N29: diciembre | O29: Anual
B30: GNI | C30: =+$O$30/12 -> 5576.4925 | D30: =+$O$30/12 -> 5576.4925 | E30: 5576.4925 | F30: 5576.4925 | G30: 5576.4925 | H30: 5576.4925 | I30: 5576.4925 | J30: 5576.4925 | K30: 5576.4925 | L30: 5576.4925 | M30: 5576.4925 | N30: 5576.4925 | O30: =IF(Datos!$F$20="Zona patagónica",66917.91*1.22,66917.91) -> 66917.91
B31: Deducción especial | C31: =+$O$31/12 -> 26767.164 | D31: =+$O$31/12 -> 26767.164 | E31: 26767.164 | F31: 26767.164 | G31: 26767.164 | H31: 26767.164 | I31: 26767.164 | J31: 26767.164 | K31: 26767.164 | L31: 26767.164 | M31: 26767.164 | N31: 26767.164 | O31: =IF(Datos!$F$20="Zona patagónica",66917.91*1.22*4.8,66917.91*4.8) -> 321205.968
B32: Cónyuge | C32: =+$O$32/12 -> 5198.766667 | D32: =+$O$32/12 -> 5198.766667 | E32: 5198.766667 | F32: 5198.766667 | G32: 5198.766667 | H32: 5198.766667 | I32: 5198.766667 | J32: 5198.766667 | K32: 5198.766667 | L32: 5198.766667 | M32: 5198.766667 | N32: 5198.766667 | O32: =IF(Datos!$F$20="Zona patagónica",62385.2*1.22,62385.2) -> 62385.2
B33: Hijo | C33: =+$O$33/12 -> 2621.7575 | D33: =+$O$33/12 -> 2621.7575 | E33: 2621.7575 | F33: 2621.7575 | G33: 2621.7575 | H33: 2621.7575 | I33: 2621.7575 | J33: 2621.7575 | K33: 2621.7575 | L33: 2621.7575 | M33: 2621.7575 | N33: 2621.7575 | O33: =IF(Datos!$F$20="Zona patagónica",31461.09*1.22,31461.09) -> 31461.09

Sheet Liquidacion
D4: Período fiscal 2018 | F4: ="Trabajador:"&Datos!F15&" "&Datos!F16 -> Trabajador:FLORENCIA FIORELLA MATEI | K4: Legajo: | L4: =Datos!F17 -> 561 | O4: CUIL: | P4: =Datos!F18 -> 27451112220
B6: Datos Mensuales | D6: Ingresos | F6: 2016-01-31 | G6: 2016-02-28 | H6: 2016-03-31 | I6: 2016-04-30 | J6: 2016-05-31 | K6: 2016-06-30 | L6: 2016-07-31 | M6: 2016-08-31 | N6: 2016-09-30 | O6: 2016-10-31 | P6: 2016-11-30 | Q6: 2016-12-31 | S6: Anual
D7: =Ingresos!B8 -> Sueldo bruto | F7: =Ingresos!C8 -> 50000 | G7: =Ingresos!D8 -> 50000 | H7: =Ingresos!E8 -> 50000 | I7: =Ingresos!F8 -> 53000 | J7: =Ingresos!G8 -> 53000 | K7: =Ingresos!H8 -> 54000 | L7: =Ingresos!I8 -> 54000 | M7: =Ingresos!J8 -> 54000 | N7: =Ingresos!K8 -> 54000 | O7: =Ingresos!L8 -> 54000 | P7: =Ingresos!M8 -> 56000 | Q7: =Ingresos!N8 -> 56000 | S7: =SUM(F7:Q7) -> 638000
D8: =Ingresos!B9 -> Horas extras (días inhábiles) | F8: =Ingresos!C9 -> 0 | G8: =Ingresos!D9 -> 0 | H8: =Ingresos!E9 -> 0 | I8: =Ingresos!F9 -> 0 | J8: =Ingresos!G9 -> 0 | K8: =Ingresos!H9 -> 0 | L8: =Ingresos!I9 -> 0 | M8: =Ingresos!J9 -> 0 | N8: =Ingresos!K9 -> 0 | O8: =Ingresos!L9 -> 0 | P8: =Ingresos!M9 -> 0 | Q8: =Ingresos!N9 -> 0 | S8: 0
D9: =Ingresos!B10 -> Plus horas extras (días inhábiles) | F9: =Ingresos!C10 -> 0 | G9: =Ingresos!D10 -> 0 | H9: =Ingresos!E10 -> 0 | I9: =Ingresos!F10 -> 0 | J9: =Ingresos!G10 -> 0 | K9: =Ingresos!H10 -> 0 | L9: =Ingresos!I10 -> 0 | M9: =Ingresos!J10 -> 0 | N9: =Ingresos!K10 -> 0 | O9: =Ingresos!L10 -> 0 | P9: =Ingresos!M10 -> 0 | Q9: =Ingresos!N10 -> 0 | S9: 0
D10: =Ingresos!B11 -> Horas extras (días hábiles) | F10: =Ingresos!C11 -> 0 | G10: =Ingresos!D11 -> 0 | H10: =Ingresos!E11 -> 0 | I10: =Ingresos!F11 -> 0 | J10: =Ingresos!G11 -> 0 | K10: =Ingresos!H11 -> 0 | L10: =Ingresos!I11 -> 0 | M10: =Ingresos!J11 -> 0 | N10: =Ingresos!K11 -> 0 | O10: =Ingresos!L11 -> 0 | P10: =Ingresos!M11 -> 0 | Q10: =Ingresos!N11 -> 0 | S10: 0
D11: =Ingresos!B12 -> SAC | F11: =Ingresos!C12 -> 0 | G11: =Ingresos!D12 -> 0 | H11: =Ingresos!E12 -> 0 | I11: =Ingresos!F12 -> 0 | J11: =Ingresos!G12 -> 0 | K11: =Ingresos!H12 -> 27000 | L11: =Ingresos!I12 -> 0 | M11: =Ingresos!J12 -> 0 | N11: =Ingresos!K12 -> 0 | O11: =Ingresos!L12 -> 0 | P11: =Ingresos!M12 -> 0 | Q11: =Ingresos!N12 -> 28000 | S11: 55000
D12: =Ingresos!B13 -> Plus Vacacional | F12: =Ingresos!C13 -> 0 | G12: =Ingresos!D13 -> 0 | H12: =Ingresos!E13 -> 0 | I12: =Ingresos!F13 -> 0 | J12: =Ingresos!G13 -> 0 | K12: =Ingresos!H13 -> 0 | L12: =Ingresos!I13 -> 0 | M12: =Ingresos!J13 -> 0 | N12: =Ingresos!K13 -> 0 | O12: =Ingresos!L13 -> 0 | P12: =Ingresos!M13 -> 0 | Q12: =Ingresos!N13 -> 0 | S12: 0
D13: =Ingresos!B14 -> Plus Feriado | F13: =Ingresos!C14 -> 0 | G13: =Ingresos!D14 -> 0 | H13: =Ingresos!E14 -> 0 | I13: =Ingresos!F14 -> 0 | J13: =Ingresos!G14 -> 0 | K13: =Ingresos!H14 -> 0 | L13: =Ingresos!I14 -> 0 | M13: =Ingresos!J14 -> 0 | N13: =Ingresos!K14 -> 0 | O13: =Ingresos!L14 -> 0 | P13: =Ingresos!M14 -> 0 | Q13: =Ingresos!N14 -> 0 | S13: 0
D14: =Ingresos!B15 -> Gratif. (rem.) | F14: =Ingresos!C15 -> 0 | G14: =Ingresos!D15 -> 0 | H14: =Ingresos!E15 -> 0 | I14: =Ingresos!F15 -> 0 | J14: =Ingresos!G15 -> 0 | K14: =Ingresos!H15 -> 0 | L14: =Ingresos!I15 -> 0 | M14: =Ingresos!J15 -> 0 | N14: =Ingresos!K15 -> 0 | O14: =Ingresos!L15 -> 0 | P14: =Ingresos!M15 -> 0 | Q14: =Ingresos!N15 -> 0 | S14: 0
D15: =Ingresos!B16 -> Gratif. (no rem.) | F15: =Ingresos!C16 -> 0 | G15: =Ingresos!D16 -> 0 | H15: =Ingresos!E16 -> 0 | I15: =Ingresos!F16 -> 0 | J15: =Ingresos!G16 -> 0 | K15: =Ingresos!H16 -> 0 | L15: =Ingresos!I16 -> 0 | M15: =Ingresos!J16 -> 0 | N15: =Ingresos!K16 -> 0 | O15: =Ingresos!L16 -> 0 | P15: =Ingresos!M16 -> 0 | Q15: =Ingresos!N16 -> 0 | S15: 0
D16: =Ingresos!B17 -> Licencias varias | F16: =Ingresos!C17 -> 0 | G16: =Ingresos!D17 -> 0 | H16: =Ingresos!E17 -> 0 | I16: =Ingresos!F17 -> 0 | J16: =Ingresos!G17 -> 0 | K16: =Ingresos!H17 -> 0 | L16: =Ingresos!I17 -> 0 | M16: =Ingresos!J17 -> 0 | N16: =Ingresos!K17 -> 0 | O16: =Ingresos!L17 -> 0 | P16: =Ingresos!M17 -> 0 | Q16: =Ingresos!N17 -> 0 | S16: 0
D17: =Ingresos!B18 -> Benef. Soc. (no rem.) | F17: =Ingresos!C18 -> 0 | G17: =Ingresos!D18 -> 0 | H17: =Ingresos!E18 -> 0 | I17: =Ingresos!F18 -> 0 | J17: =Ingresos!G18 -> 0 | K17: =Ingresos!H18 -> 0 | L17: =Ingresos!I18 -> 0 | M17: =Ingresos!J18 -> 0 | N17: =Ingresos!K18 -> 0 | O17: =Ingresos!L18 -> 0 | P17: =Ingresos!M18 -> 0 | Q17: =Ingresos!N18 -> 0 | S17: 0
D18: =Ingresos!B19 -> Indemnización art. 245 | F18: =Ingresos!C19 -> 0 | G18: =Ingresos!D19 -> 0 | H18: =Ingresos!E19 -> 0 | I18: =Ingresos!F19 -> 0 | J18: =Ingresos!G19 -> 0 | K18: =Ingresos!H19 -> 0 | L18: =Ingresos!I19 -> 0 | M18: =Ingresos!J19 -> 0 | N18: =Ingresos!K19 -> 0 | O18: =Ingresos!L19 -> 0 | P18: =Ingresos!M19 -> 0 | Q18: =Ingresos!N19 -> 0 | S18: 0
D19: =Ingresos!B20 -> Preaviso | F19: =Ingresos!C20 -> 0 | G19: =Ingresos!D20 -> 0 | H19: =Ingresos!E20 -> 0 | I19: =Ingresos!F20 -> 0 | J19: =Ingresos!G20 -> 0 | K19: =Ingresos!H20 -> 0 | L19: =Ingresos!I20 -> 0 | M19: =Ingresos!J20 -> 0 | N19: =Ingresos!K20 -> 0 | O19: =Ingresos!L20 -> 0 | P19: =Ingresos!M20 -> 0 | Q19: =Ingresos!N20 -> 0 | S19: 0
D20: =Ingresos!B21 -> SAC s/preaviso | F20: =Ingresos!C21 -> 0 | G20: =Ingresos!D21 -> 0 | H20: =Ingresos!E21 -> 0 | I20: =Ingresos!F21 -> 0 | J20: =Ingresos!G21 -> 0 | K20: =Ingresos!H21 -> 0 | L20: =Ingresos!I21 -> 0 | M20: =Ingresos!J21 -> 0 | N20: =Ingresos!K21 -> 0 | O20: =Ingresos!L21 -> 0 | P20: =Ingresos!M21 -> 0 | Q20: =Ingresos!N21 -> 0 | S20: 0
D21: =Ingresos!B22 -> Vacaciones no gozadas | F21: =Ingresos!C22 -> 0 | G21: =Ingresos!D22 -> 0 | H21: =Ingresos!E22 -> 0 | I21: =Ingresos!F22 -> 0 | J21: =Ingresos!G22 -> 0 | K21: =Ingresos!H22 -> 0 | L21: =Ingresos!I22 -> 0 | M21: =Ingresos!J22 -> 0 | N21: =Ingresos!K22 -> 0 | O21: =Ingresos!L22 -> 0 | P21: =Ingresos!M22 -> 0 | Q21: =Ingresos!N22 -> 0 | S21: 0
D22: =Ingresos!B23 -> SAC s/vacaciones no gozadas | F22: =Ingresos!C23 -> 0 | G22: =Ingresos!D23 -> 0 | H22: =Ingresos!E23 -> 0 | I22: =Ingresos!F23 -> 0 | J22: =Ingresos!G23 -> 0 | K22: =Ingresos!H23 -> 0 | L22: =Ingresos!I23 -> 0 | M22: =Ingresos!J23 -> 0 | N22: =Ingresos!K23 -> 0 | O22: =Ingresos!L23 -> 0 | P22: =Ingresos!M23 -> 0 | Q22: =Ingresos!N23 -> 0 | S22: 0
D23: =Ingresos!B24 -> Integración mes de despido | F23: =Ingresos!C24 -> 0 | G23: =Ingresos!D24 -> 0 | H23: =Ingresos!E24 -> 0 | I23: =Ingresos!F24 -> 0 | J23: =Ingresos!G24 -> 0 | K23: =Ingresos!H24 -> 0 | L23: =Ingresos!I24 -> 0 | M23: =Ingresos!J24 -> 0 | N23: =Ingresos!K24 -> 0 | O23: =Ingresos!L24 -> 0 | P23: =Ingresos!M24 -> 0 | Q23: =Ingresos!N24 -> 0 | S23: 0
D24: =Ingresos!B25 -> SAC s/integración mes de despido | F24: =Ingresos!C25 -> 0 | G24: =Ingresos!D25 -> 0 | H24: =Ingresos!E25 -> 0 | I24: =Ingresos!F25 -> 0 | J24: =Ingresos!G25 -> 0 | K24: =Ingresos!H25 -> 0 | L24: =Ingresos!I25 -> 0 | M24: =Ingresos!J25 -> 0 | N24: =Ingresos!K25 -> 0 | O24: =Ingresos!L25 -> 0 | P24: =Ingresos!M25 -> 0 | Q24: =Ingresos!N25 -> 0 | S24: 0
D25: =Ingresos!B26 -> Gratificación por cese | F25: =Ingresos!C26 -> 0 | G25: =Ingresos!D26 -> 0 | H25: =Ingresos!E26 -> 0 | I25: =Ingresos!F26 -> 0 | J25: =Ingresos!G26 -> 0 | K25: =Ingresos!H26 -> 0 | L25: =Ingresos!I26 -> 0 | M25: =Ingresos!J26 -> 0 | N25: =Ingresos!K26 -> 0 | O25: =Ingresos!L26 -> 0 | P25: =Ingresos!M26 -> 0 | Q25: =Ingresos!N26 -> 0 | S25: 0
D26: Pluriempleo
D27: =Ingresos!B35 -> Sueldo bruto | F27: =+Ingresos!C35 -> 0 | G27: =+Ingresos!D35 -> 0 | H27: =+Ingresos!E35 -> 0 | I27: =+Ingresos!F35 -> 0 | J27: =+Ingresos!G35 -> 0 | K27: =+Ingresos!H35 -> 0 | L27: =+Ingresos!I35 -> 0 | M27: =+Ingresos!J35 -> 0 | N27: =+Ingresos!K35 -> 0 | O27: =+Ingresos!L35 -> 0 | P27: =+Ingresos!M35 -> 0 | Q27: =+Ingresos!N35 -> 0 | S27: 0
D28: =Ingresos!B36 -> Horas extras (días inhábiles) | F28: =+Ingresos!C36 -> 0 | G28: =+Ingresos!D36 -> 0 | H28: =+Ingresos!E36 -> 0 | I28: =+Ingresos!F36 -> 0 | J28: =+Ingresos!G36 -> 0 | K28: =+Ingresos!H36 -> 0 | L28: =+Ingresos!I36 -> 0 | M28: =+Ingresos!J36 -> 0 | N28: =+Ingresos!K36 -> 0 | O28: =+Ingresos!L36 -> 0 | P28: =+Ingresos!M36 -> 0 | Q28: =+Ingresos!N36 -> 0 | S28: 0
D29: =Ingresos!B37 -> Plus horas extras (días inhábiles) | F29: =+Ingresos!C37 -> 0 | G29: =+Ingresos!D37 -> 0 | H29: =+Ingresos!E37 -> 0 | I29: =+Ingresos!F37 -> 0 | J29: =+Ingresos!G37 -> 0 | K29: =+Ingresos!H37 -> 0 | L29: =+Ingresos!I37 -> 0 | M29: =+Ingresos!J37 -> 0 | N29: =+Ingresos!K37 -> 0 | O29: =+Ingresos!L37 -> 0 | P29: =+Ingresos!M37 -> 0 | Q29: =+Ingresos!N37 -> 0 | S29: 0
D30: =Ingresos!B38 -> Horas extras (días hábiles) | F30: =+Ingresos!C38 -> 0 | G30: =+Ingresos!D38 -> 0 | H30: =+Ingresos!E38 -> 0 | I30: =+Ingresos!F38 -> 0 | J30: =+Ingresos!G38 -> 0 | K30: =+Ingresos!H38 -> 0 | L30: =+Ingresos!I38 -> 0 | M30: =+Ingresos!J38 -> 0 | N30: =+Ingresos!K38 -> 0 | O30: =+Ingresos!L38 -> 0 | P30: =+Ingresos!M38 -> 0 | Q30: =+Ingresos!N38 -> 0 | S30: 0
D31: =Ingresos!B39 -> SAC | F31: =+Ingresos!C39 -> 0 | G31: =+Ingresos!D39 -> 0 | H31: =+Ingresos!E39 -> 0 | I31: =+Ingresos!F39 -> 0 | J31: =+Ingresos!G39 -> 0 | K31: =+Ingresos!H39 -> 0 | L31: =+Ingresos!I39 -> 0 | M31: =+Ingresos!J39 -> 0 | N31: =+Ingresos!K39 -> 0 | O31: =+Ingresos!L39 -> 0 | P31: =+Ingresos!M39 -> 0 | Q31: =+Ingresos!N39 -> 0 | S31: 0
D32: =Ingresos!B40 -> 0 | F32: =+Ingresos!C40 -> 0 | G32: =+Ingresos!D40 -> 0 | H32: =+Ingresos!E40 -> 0 | I32: =+Ingresos!F40 -> 0 | J32: =+Ingresos!G40 -> 0 | K32: =+Ingresos!H40 -> 0 | L32: =+Ingresos!I40 -> 0 | M32: =+Ingresos!J40 -> 0 | N32: =+Ingresos!K40 -> 0 | O32: =+Ingresos!L40 -> 0 | P32: =+Ingresos!M40 -> 0 | Q32: =+Ingresos!N40 -> 0 | S32: 0
D33: =Ingresos!B41 -> 0 | F33: =+Ingresos!C41 -> 0 | G33: =+Ingresos!D41 -> 0 | H33: =+Ingresos!E41 -> 0 | I33: =+Ingresos!F41 -> 0 | J33: =+Ingresos!G41 -> 0 | K33: =+Ingresos!H41 -> 0 | L33: =+Ingresos!I41 -> 0 | M33: =+Ingresos!J41 -> 0 | N33: =+Ingresos!K41 -> 0 | O33: =+Ingresos!L41 -> 0 | P33: =+Ingresos!M41 -> 0 | Q33: =+Ingresos!N41 -> 0 | S33: 0
D34: =Ingresos!B42 -> 0 | F34: =+Ingresos!C42 -> 0 | G34: =+Ingresos!D42 -> 0 | H34: =+Ingresos!E42 -> 0 | I34: =+Ingresos!F42 -> 0 | J34: =+Ingresos!G42 -> 0 | K34: =+Ingresos!H42 -> 0 | L34: =+Ingresos!I42 -> 0 | M34: =+Ingresos!J42 -> 0 | N34: =+Ingresos!K42 -> 0 | O34: =+Ingresos!L42 -> 0 | P34: =+Ingresos!M42 -> 0 | Q34: =+Ingresos!N42 -> 0 | S34: 0
D35: =Ingresos!B43 -> 0 | F35: =+Ingresos!C43 -> 0 | G35: =+Ingresos!D43 -> 0 | H35: =+Ingresos!E43 -> 0 | I35: =+Ingresos!F43 -> 0 | J35: =+Ingresos!G43 -> 0 | K35: =+Ingresos!H43 -> 0 | L35: =+Ingresos!I43 -> 0 | M35: =+Ingresos!J43 -> 0 | N35: =+Ingresos!K43 -> 0 | O35: =+Ingresos!L43 -> 0 | P35: =+Ingresos!M43 -> 0 | Q35: =+Ingresos!N43 -> 0 | S35: 0
D36: =Ingresos!B44 -> 0 | F36: =+Ingresos!C44 -> 0 | G36: =+Ingresos!D44 -> 0 | H36: =+Ingresos!E44 -> 0 | I36: =+Ingresos!F44 -> 0 | J36: =+Ingresos!G44 -> 0 | K36: =+Ingresos!H44 -> 0 | L36: =+Ingresos!I44 -> 0 | M36: =+Ingresos!J44 -> 0 | N36: =+Ingresos!K44 -> 0 | O36: =+Ingresos!L44 -> 0 | P36: =+Ingresos!M44 -> 0 | Q36: =+Ingresos!N44 -> 0 | S36: 0
D37: =Ingresos!B45 -> 0 | F37: =+Ingresos!C45 -> 0 | G37: =+Ingresos!D45 -> 0 | H37: =+Ingresos!E45 -> 0 | I37: =+Ingresos!F45 -> 0 | J37: =+Ingresos!G45 -> 0 | K37: =+Ingresos!H45 -> 0 | L37: =+Ingresos!I45 -> 0 | M37: =+Ingresos!J45 -> 0 | N37: =+Ingresos!K45 -> 0 | O37: =+Ingresos!L45 -> 0 | P37: =+Ingresos!M45 -> 0 | Q37: =+Ingresos!N45 -> 0 | S37: 0
D38: Sub Total Ganancia Bruta | F38: =SUM(F7:F37) -> 50000 | G38: =SUM(G7:G37) -> 50000 | H38: 50000 | I38: 53000 | J38: 53000 | K38: 81000 | L38: 54000 | M38: 54000 | N38: 54000 | O38: 54000 | P38: 56000 | Q38: 84000 | S38: =SUM(S7:S37) -> 693000
D40: Retenciones computables | F40: 2016-01-31 | G40: 2016-02-28 | H40: 2016-03-31 | I40: 2016-04-30 | J40: 2016-05-31 | K40: 2016-06-30 | L40: 2016-07-31 | M40: 2016-08-31 | N40: 2016-09-30 | O40: 2016-10-31 | P40: 2016-11-30 | Q40: 2016-12-31 | S40: Anual
D41: =Tablas!B8 -> Jubilación | F41: =Auxiliares!D30+Auxiliares!D37+Auxiliares!D161 -> 5500 | G41: =Auxiliares!E30+Auxiliares!E37+Auxiliares!E161 -> 5500 | H41: =Auxiliares!F30+Auxiliares!F37+Auxiliares!F161 -> 5500 | I41: =Auxiliares!G30+Auxiliares!G37+Auxiliares!G161 -> 5830 | J41: =Auxiliares!H30+Auxiliares!H37+Auxiliares!H161 -> 5830 | K41: =Auxiliares!I30+Auxiliares!I37+Auxiliares!I161 -> 8910 | L41: =Auxiliares!J30+Auxiliares!J37+Auxiliares!J161 -> 5940 | M41: =Auxiliares!K30+Auxiliares!K37+Auxiliares!K161 -> 5940 | N41: =Auxiliares!L30+Auxiliares!L37+Auxiliares!L161 -> 5940 | O41: =Auxiliares!M30+Auxiliares!M37+Auxiliares!M161 -> 5940 | P41: =Auxiliares!N30+Auxiliares!N37+Auxiliares!N161 -> 6160 | Q41: =Auxiliares!O30+Auxiliares!O37+Auxiliares!O161 -> 9240 | S41: =SUM(F41:Q41) -> 76230
D42: =Tablas!B9 -> Ley 19032 | F42: =Auxiliares!D31+Auxiliares!D38+Auxiliares!D162 -> 1500 | G42: =Auxiliares!E31+Auxiliares!E38+Auxiliares!E162 -> 1500 | H42: =Auxiliares!F31+Auxiliares!F38+Auxiliares!F162 -> 1500 | I42: =Auxiliares!G31+Auxiliares!G38+Auxiliares!G162 -> 1590 | J42: =Auxiliares!H31+Auxiliares!H38+Auxiliares!H162 -> 1590 | K42: =Auxiliares!I31+Auxiliares!I38+Auxiliares!I162 -> 2430 | L42: =Auxiliares!J31+Auxiliares!J38+Auxiliares!J162 -> 1620 | M42: =Auxiliares!K31+Auxiliares!K38+Auxiliares!K162 -> 1620 | N42: =Auxiliares!L31+Auxiliares!L38+Auxiliares!L162 -> 1620 | O42: =Auxiliares!M31+Auxiliares!M38+Auxiliares!M162 -> 1620 | P42: =Auxiliares!N31+Auxiliares!N38+Auxiliares!N162 -> 1680 | Q42: =Auxiliares!O31+Auxiliares!O38+Auxiliares!O162 -> 2520 | S42: =SUM(F42:Q42) -> 20790
D43: =Tablas!B10 -> Obra social | F43: =Auxiliares!D32+Auxiliares!D39+Auxiliares!D163 -> 1500 | G43: =Auxiliares!E32+Auxiliares!E39+Auxiliares!E163 -> 1500 | H43: =Auxiliares!F32+Auxiliares!F39+Auxiliares!F163 -> 1500 | I43: =Auxiliares!G32+Auxiliares!G39+Auxiliares!G163 -> 1590 | J43: =Auxiliares!H32+Auxiliares!H39+Auxiliares!H163 -> 1590 | K43: =Auxiliares!I32+Auxiliares!I39+Auxiliares!I163 -> 2430 | L43: =Auxiliares!J32+Auxiliares!J39+Auxiliares!J163 -> 1620 | M43: =Auxiliares!K32+Auxiliares!K39+Auxiliares!K163 -> 1620 | N43: =Auxiliares!L32+Auxiliares!L39+Auxiliares!L163 -> 1620 | O43: =Auxiliares!M32+Auxiliares!M39+Auxiliares!M163 -> 1620 | P43: =Auxiliares!N32+Auxiliares!N39+Auxiliares!N163 -> 1680 | Q43: =Auxiliares!O32+Auxiliares!O39+Auxiliares!O163 -> 2520 | S43: =SUM(F43:Q43) -> 20790
D44: =Tablas!B11 -> Sindicato | F44: =Auxiliares!D33+Auxiliares!D40+Auxiliares!D164 -> 0 | G44: =Auxiliares!E33+Auxiliares!E40+Auxiliares!E164 -> 0 | H44: =Auxiliares!F33+Auxiliares!F40+Auxiliares!F164 -> 0 | I44: =Auxiliares!G33+Auxiliares!G40+Auxiliares!G164 -> 0 | J44: =Auxiliares!H33+Auxiliares!H40+Auxiliares!H164 -> 0 | K44: =Auxiliares!I33+Auxiliares!I40+Auxiliares!I164 -> 0 | L44: =Auxiliares!J33+Auxiliares!J40+Auxiliares!J164 -> 0 | M44: =Auxiliares!K33+Auxiliares!K40+Auxiliares!K164 -> 0 | N44: =Auxiliares!L33+Auxiliares!L40+Auxiliares!L164 -> 0 | O44: =Auxiliares!M33+Auxiliares!M40+Auxiliares!M164 -> 0 | P44: =Auxiliares!N33+Auxiliares!N40+Auxiliares!N164 -> 0 | Q44: =Auxiliares!O33+Auxiliares!O40+Auxiliares!O164 -> 0 | S44: =SUM(F44:Q44) -> 0
D45: =Tablas!B12 -> 0 | F45: =Auxiliares!D34+Auxiliares!D41+Auxiliares!D165 -> 0 | G45: =Auxiliares!E34+Auxiliares!E41+Auxiliares!E165 -> 0 | H45: =Auxiliares!F34+Auxiliares!F41+Auxiliares!F165 -> 0 | I45: =Auxiliares!G34+Auxiliares!G41+Auxiliares!G165 -> 0 | J45: =Auxiliares!H34+Auxiliares!H41+Auxiliares!H165 -> 0 | K45: =Auxiliares!I34+Auxiliares!I41+Auxiliares!I165 -> 0 | L45: =Auxiliares!J34+Auxiliares!J41+Auxiliares!J165 -> 0 | M45: =Auxiliares!K34+Auxiliares!K41+Auxiliares!K165 -> 0 | N45: =Auxiliares!L34+Auxiliares!L41+Auxiliares!L165 -> 0 | O45: =Auxiliares!M34+Auxiliares!M41+Auxiliares!M165 -> 0 | P45: =Auxiliares!N34+Auxiliares!N41+Auxiliares!N165 -> 0 | Q45: =Auxiliares!O34+Auxiliares!O41+Auxiliares!O165 -> 0 | S45: 0
D46: =Tablas!B13 -> 0 | F46: =Auxiliares!D35+Auxiliares!D42+Auxiliares!D166 -> 0 | G46: =Auxiliares!E35+Auxiliares!E42+Auxiliares!E166 -> 0 | H46: =Auxiliares!F35+Auxiliares!F42+Auxiliares!F166 -> 0 | I46: =Auxiliares!G35+Auxiliares!G42+Auxiliares!G166 -> 0 | J46: =Auxiliares!H35+Auxiliares!H42+Auxiliares!H166 -> 0 | K46: =Auxiliares!I35+Auxiliares!I42+Auxiliares!I166 -> 0 | L46: =Auxiliares!J35+Auxiliares!J42+Auxiliares!J166 -> 0 | M46: =Auxiliares!K35+Auxiliares!K42+Auxiliares!K166 -> 0 | N46: =Auxiliares!L35+Auxiliares!L42+Auxiliares!L166 -> 0 | O46: =Auxiliares!M35+Auxiliares!M42+Auxiliares!M166 -> 0 | P46: =Auxiliares!N35+Auxiliares!N42+Auxiliares!N166 -> 0 | Q46: =Auxiliares!O35+Auxiliares!O42+Auxiliares!O166 -> 0 | S46: 0
B48: Datos Acumulados | D48: Ingresos Gravados Acumulados | F48: 2016-01-31 | G48: 2016-02-28 | H48: 2016-03-31 | I48: 2016-04-30 | J48: 2016-05-31 | K48: 2016-06-30 | L48: 2016-07-31 | M48: 2016-08-31 | N48: 2016-09-30 | O48: 2016-10-31 | P48: 2016-11-30 | Q48: 2016-12-31 | S48: Anual
D49: Ingresos gravados (menos SAC) | F49: =Auxiliares!D9+Auxiliares!D11 -> 50000 | G49: =Auxiliares!E9+Auxiliares!E11+F49 -> 100000 | H49: =Auxiliares!F9+Auxiliares!F11+G49 -> 150000 | I49: =Auxiliares!G9+Auxiliares!G11+H49 -> 203000 | J49: =Auxiliares!H9+Auxiliares!H11+I49 -> 256000 | K49: =Auxiliares!I9+Auxiliares!I11+J49 -> 310000 | L49: =Auxiliares!J9+Auxiliares!J11+K49 -> 364000 | M49: =Auxiliares!K9+Auxiliares!K11+L49 -> 418000 | N49: =Auxiliares!L9+Auxiliares!L11+M49 -> 472000 | O49: =Auxiliares!M9+Auxiliares!M11+N49 -> 526000 | P49: =Auxiliares!N9+Auxiliares!N11+O49 -> 582000 | Q49: =Auxiliares!O9+Auxiliares!O11+P49 -> 638000 | S49: =Q49 -> 638000
D50: Ingresos prorrateados (menos SAC) | F50: =+Auxiliares!D49 -> 0 | G50: =+F50+Auxiliares!E49 -> 0 | H50: =+G50+Auxiliares!F49 -> 0 | I50: =+H50+Auxiliares!G49 -> 0 | J50: =+I50+Auxiliares!H49 -> 0 | K50: =+J50+Auxiliares!I49 -> 0 | L50: =+K50+Auxiliares!J49 -> 0 | M50: =+L50+Auxiliares!K49 -> 0 | N50: =+M50+Auxiliares!L49 -> 0 | O50: =+N50+Auxiliares!M49 -> 0 | P50: =+O50+Auxiliares!N49 -> 0 | Q50: =+P50+Auxiliares!O49 -> 0 | S50: =+Q50 -> 0
D51: Ajuste SAC Neto | F51: =Ingresos!C28+Ingresos!C47 -> 3458.333333 | G51: =Ingresos!D28+Ingresos!D47+F51 -> 6916.666667 | H51: =Ingresos!E28+Ingresos!E47+G51 -> 10375 | I51: =Ingresos!F28+Ingresos!F47+H51 -> 14040.83333 | J51: =Ingresos!G28+Ingresos!G47+I51 -> 17706.66667 | K51: =Ingresos!H28+Ingresos!H47+J51 -> 21441.66667 | L51: =Ingresos!I28+Ingresos!I47+K51 -> 25176.66667 | M51: =Ingresos!J28+Ingresos!J47+L51 -> 28911.66667 | N51: =Ingresos!K28+Ingresos!K47+M51 -> 32646.66667 | O51: =Ingresos!L28+Ingresos!L47+N51 -> 36381.66667 | P51: =Ingresos!M28+Ingresos!M47+O51 -> 40255 | Q51: =Ingresos!N28+Ingresos!N47+P51 -> 44128.33333 | S51: 0
D52: SAC (bruto) | F52: 0 | G52: 0 | H52: 0 | I52: 0 | J52: 0 | K52: 0 | L52: 0 | M52: 0 | N52: 0 | O52: 0 | P52: 0 | Q52: 0 | S52: =SUM(Ingresos!$C$12:$N$12)+SUM(Ingresos!$C$39:$N$39) -> 55000
D53: Sub Total Ganancia Bruta | F53: =SUM(F49:F51) -> 53458.33333 | G53: 106916.6667 | H53: 160375 | I53: 217040.8333 | J53: 273706.6667 | K53: 331441.6667 | L53: 389176.6667 | M53: 446911.6667 | N53: 504646.6667 | O53: 562381.6667 | P53: 622255 | Q53: 682128.3333 | S53: =SUM(S49:S52) -> 693000
H54: =+H51-G51 -> 3458.333333
D55: Deducciones Generales Acumuladas | F55: 2016-01-31 | G55: 2016-02-28 | H55: 2016-03-31 | I55: 2016-04-30 | J55: 2016-05-31 | K55: 2016-06-30 | L55: 2016-07-31 | M55: 2016-08-31 | N55: 2016-09-30 | O55: 2016-10-31 | P55: 2016-11-30 | Q55: 2016-12-31 | S55: Anual
D56: Retenciones sobre ing. no prorrateados | F56: =Auxiliares!D45 -> 8500 | G56: =Auxiliares!E45+F56 -> 17000 | H56: =Auxiliares!F45+G56 -> 25500 | I56: =Auxiliares!G45+H56 -> 34510 | J56: =Auxiliares!H45+I56 -> 43520 | K56: =Auxiliares!I45+J56 -> 52700 | L56: =Auxiliares!J45+K56 -> 61880 | M56: =Auxiliares!K45+L56 -> 71060 | N56: =Auxiliares!L45+M56 -> 80240 | O56: =Auxiliares!M45+N56 -> 89420 | P56: =Auxiliares!N45+O56 -> 98940 | Q56: =Auxiliares!O45+P56 -> 108460 | S56: =+SUM(Auxiliares!P30:P35) -> 108460
D57: Retenciones sobre ing. prorrateados | F57: =+Auxiliares!D63 -> 0 | G57: =+Auxiliares!E63+F57 -> 0 | H57: =+Auxiliares!F63+G57 -> 0 | I57: =+Auxiliares!G63+H57 -> 0 | J57: =+Auxiliares!H63+I57 -> 0 | K57: =+Auxiliares!I63+J57 -> 0 | L57: =+Auxiliares!J63+K57 -> 0 | M57: =+Auxiliares!K63+L57 -> 0 | N57: =+Auxiliares!L63+M57 -> 0 | O57: =+Auxiliares!M63+N57 -> 0 | P57: =+Auxiliares!N63+O57 -> 0 | Q57: =+Auxiliares!O63+P57 -> 0 | S57: =+SUM(Q57,Auxiliares!P167) -> 9350
D59: Seguro de Vida | F59: =IF(Check!$B$2<>"",maximo(SUM(Auxiliares!$D$79:D79),Tablas!C18),0) -> 0 | G59: =IF(Check!$B$2<>"",maximo(SUM(Auxiliares!$D$79:E79),Tablas!D18),0) -> 0 | H59: =IF(Check!$B$2<>"",maximo(SUM(Auxiliares!$D$79:F79),Tablas!E18),0) -> 0 | I59: =IF(Check!$B$2<>"",maximo(SUM(Auxiliares!$D$79:G79),Tablas!F18),0) -> 0 | J59: =IF(Check!$B$2<>"",maximo(SUM(Auxiliares!$D$79:H79),Tablas!G18),0) -> 0 | K59: =IF(Check!$B$2<>"",maximo(SUM(Auxiliares!$D$79:I79),Tablas!H18),0) -> 0 | L59: =IF(Check!$B$2<>"",maximo(SUM(Auxiliares!$D$79:J79),Tablas!I18),0) -> 0 | M59: =IF(Check!$B$2<>"",maximo(SUM(Auxiliares!$D$79:K79),Tablas!J18),0) -> 0 | N59: =IF(Check!$B$2<>"",maximo(SUM(Auxiliares!$D$79:L79),Tablas!K18),0) -> 0 | O59: =IF(Check!$B$2<>"",maximo(SUM(Auxiliares!$D$79:M79),Tablas!L18),0) -> 0 | P59: =IF(Check!$B$2<>"",maximo(SUM(Auxiliares!$D$79:N79),Tablas!M18),0) -> 0 | Q59: =IF(Check!$B$2<>"",maximo(SUM(Auxiliares!$D$79:O79),Tablas!N18),0) -> 0 | S59: =Q59 -> 0
D60: Gastos de Sepelio | F60: =IF(Check!$B$3<>"",maximo(SUM(Auxiliares!$D$80:D80),Tablas!C19),0) -> 0 | G60: =IF(Check!$B$3<>"",maximo(SUM(Auxiliares!$D$80:E80),Tablas!D19),0) -> 0 | H60: =IF(Check!$B$3<>"",maximo(SUM(Auxiliares!$D$80:F80),Tablas!E19),0) -> 0 | I60: =IF(Check!$B$3<>"",maximo(SUM(Auxiliares!$D$80:G80),Tablas!F19),0) -> 0 | J60: =IF(Check!$B$3<>"",maximo(SUM(Auxiliares!$D$80:H80),Tablas!G19),0) -> 0 | K60: =IF(Check!$B$3<>"",maximo(SUM(Auxiliares!$D$80:I80),Tablas!H19),0) -> 0 | L60: =IF(Check!$B$3<>"",maximo(SUM(Auxiliares!$D$80:J80),Tablas!I19),0) -> 0 | M60: =IF(Check!$B$3<>"",maximo(SUM(Auxiliares!$D$80:K80),Tablas!J19),0) -> 0 | N60: =IF(Check!$B$3<>"",maximo(SUM(Auxiliares!$D$80:L80),Tablas!K19),0) -> 0 | O60: =IF(Check!$B$3<>"",maximo(SUM(Auxiliares!$D$80:M80),Tablas!L19),0) -> 0 | P60: =IF(Check!$B$3<>"",maximo(SUM(Auxiliares!$D$80:N80),Tablas!M19),0) -> 0 | Q60: =IF(Check!$B$3<>"",maximo(SUM(Auxiliares!$D$80:O80),Tablas!N19),0) -> 0 | S60: 0
D61: Intereses Crédito Hipotecario | F61: =IF(Check!$B4<>"",maximo(SUM(Auxiliares!$D$81:D81),Tablas!C20),0) -> 0 | G61: =IF(Check!$B$4<>"",maximo(SUM(Auxiliares!$D$81:E81),Tablas!D20),0) -> 0 | H61: =IF(Check!$B$4<>"",maximo(SUM(Auxiliares!$D$81:F81),Tablas!E20),0) -> 0 | I61: =IF(Check!$B$4<>"",maximo(SUM(Auxiliares!$D$81:G81),Tablas!F20),0) -> 0 | J61: =IF(Check!$B$4<>"",maximo(SUM(Auxiliares!$D$81:H81),Tablas!G20),0) -> 0 | K61: =IF(Check!$B$4<>"",maximo(SUM(Auxiliares!$D$81:I81),Tablas!H20),0) -> 0 | L61: =IF(Check!$B$4<>"",maximo(SUM(Auxiliares!$D$81:J81),Tablas!I20),0) -> 0 | M61: =IF(Check!$B$4<>"",maximo(SUM(Auxiliares!$D$81:K81),Tablas!J20),0) -> 0 | N61: =IF(Check!$B$4<>"",maximo(SUM(Auxiliares!$D$81:L81),Tablas!K20),0) -> 0 | O61: =IF(Check!$B$4<>"",maximo(SUM(Auxiliares!$D$81:M81),Tablas!L20),0) -> 0 | P61: =IF(Check!$B$4<>"",maximo(SUM(Auxiliares!$D$81:N81),Tablas!M20),0) -> 0 | Q61: =IF(Check!$B$4<>"",maximo(SUM(Auxiliares!$D$81:O81),Tablas!N20),0) -> 0 | S61: 0
D62: Personal de Casas Particulares | F62: =IF(Check!$B5<>"",maximo(SUM(Auxiliares!$D$82:D82),Tablas!C21),0) -> 0 | G62: =IF(Check!$B5<>"",maximo(SUM(Auxiliares!$D$82:E82),Tablas!D21),0) -> 0 | H62: =IF(Check!$B5<>"",maximo(SUM(Auxiliares!$D$82:F82),Tablas!E21),0) -> 0 | I62: =IF(Check!$B5<>"",maximo(SUM(Auxiliares!$D$82:G82),Tablas!F21),0) -> 0 | J62: =IF(Check!$B5<>"",maximo(SUM(Auxiliares!$D$82:H82),Tablas!G21),0) -> 0 | K62: =IF(Check!$B5<>"",maximo(SUM(Auxiliares!$D$82:I82),Tablas!H21),0) -> 0 | L62: =IF(Check!$B5<>"",maximo(SUM(Auxiliares!$D$82:J82),Tablas!I21),0) -> 0 | M62: =IF(Check!$B5<>"",maximo(SUM(Auxiliares!$D$82:K82),Tablas!J21),0) -> 0 | N62: =IF(Check!$B5<>"",maximo(SUM(Auxiliares!$D$82:L82),Tablas!K21),0) -> 0 | O62: =IF(Check!$B5<>"",maximo(SUM(Auxiliares!$D$82:M82),Tablas!L21),0) -> 0 | P62: =IF(Check!$B5<>"",maximo(SUM(Auxiliares!$D$82:N82),Tablas!M21),0) -> 0 | Q62: =IF(Check!$B5<>"",maximo(SUM(Auxiliares!$D$82:O82),Tablas!N21),0) -> 0 | S62: 0
D63: Aportes a fondos de jubilaciones | F63: =IF(Check!$B$9<>"",SUM(Auxiliares!$D83:D83),0) -> 0 | G63: =IF(Check!$B$9<>"",SUM(Auxiliares!$D83:E83),0) -> 0 | H63: =IF(Check!$B$9<>"",SUM(Auxiliares!$D83:F83),0) -> 0 | I63: =IF(Check!$B$9<>"",SUM(Auxiliares!$D83:G83),0) -> 0 | J63: =IF(Check!$B$9<>"",SUM(Auxiliares!$D83:H83),0) -> 0 | K63: =IF(Check!$B$9<>"",SUM(Auxiliares!$D83:I83),0) -> 0 | L63: =IF(Check!$B$9<>"",SUM(Auxiliares!$D83:J83),0) -> 0 | M63: =IF(Check!$B$9<>"",SUM(Auxiliares!$D83:K83),0) -> 0 | N63: =IF(Check!$B$9<>"",SUM(Auxiliares!$D83:L83),0) -> 0 | O63: =IF(Check!$B$9<>"",SUM(Auxiliares!$D83:M83),0) -> 0 | P63: =IF(Check!$B$9<>"",SUM(Auxiliares!$D83:N83),0) -> 0 | Q63: =IF(Check!$B$9<>"",SUM(Auxiliares!$D83:O83),0) -> 0 | S63: 0
D64: Alquiler de casa habitación | F64: =IF(Check!$B10<>"",maximo(SUM(Auxiliares!$D84:D84),Tablas!C22),0) -> 1800 | G64: =IF(Check!$B10<>"",maximo(SUM(Auxiliares!$D84:E84),Tablas!D22),0) -> 3600 | H64: =IF(Check!$B10<>"",maximo(SUM(Auxiliares!$D84:F84),Tablas!E22),0) -> 5400 | I64: =IF(Check!$B10<>"",maximo(SUM(Auxiliares!$D84:G84),Tablas!F22),0) -> 7200 | J64: =IF(Check!$B10<>"",maximo(SUM(Auxiliares!$D84:H84),Tablas!G22),0) -> 9000 | K64: =IF(Check!$B10<>"",maximo(SUM(Auxiliares!$D84:I84),Tablas!H22),0) -> 10800 | L64: =IF(Check!$B10<>"",maximo(SUM(Auxiliares!$D84:J84),Tablas!I22),0) -> 13000 | M64: =IF(Check!$B10<>"",maximo(SUM(Auxiliares!$D84:K84),Tablas!J22),0) -> 15200 | N64: =IF(Check!$B10<>"",maximo(SUM(Auxiliares!$D84:L84),Tablas!K22),0) -> 17400 | O64: =IF(Check!$B10<>"",maximo(SUM(Auxiliares!$D84:M84),Tablas!L22),0) -> 19600 | P64: =IF(Check!$B10<>"",maximo(SUM(Auxiliares!$D84:N84),Tablas!M22),0) -> 21800 | Q64: =IF(Check!$B10<>"",maximo(SUM(Auxiliares!$D84:O84),Tablas!N22),0) -> 24000 | S64: 24000
D65: Descuentos obligatorios | F65: =IF(Check!$B12<>"",SUM(Auxiliares!$D86:D86),0) -> 0 | G65: =IF(Check!$B12<>"",SUM(Auxiliares!$D86:E86),0) -> 0 | H65: =IF(Check!$B12<>"",SUM(Auxiliares!$D86:F86),0) -> 0 | I65: =IF(Check!$B12<>"",SUM(Auxiliares!$D86:G86),0) -> 0 | J65: =IF(Check!$B12<>"",SUM(Auxiliares!$D86:H86),0) -> 0 | K65: =IF(Check!$B12<>"",SUM(Auxiliares!$D86:I86),0) -> 0 | L65: =IF(Check!$B12<>"",SUM(Auxiliares!$D86:J86),0) -> 0 | M65: =IF(Check!$B12<>"",SUM(Auxiliares!$D86:K86),0) -> 0 | N65: =IF(Check!$B12<>"",SUM(Auxiliares!$D86:L86),0) -> 0 | O65: =IF(Check!$B12<>"",SUM(Auxiliares!$D86:M86),0) -> 0 | P65: =IF(Check!$B12<>"",SUM(Auxiliares!$D86:N86),0) -> 0 | Q65: =IF(Check!$B12<>"",SUM(Auxiliares!$D86:O86),0) -> 0 | S65: 0
D66: SGR | F66: =IF(Check!$B13<>"",SUM(Auxiliares!$D87:D87),0) -> 0 | G66: =IF(Check!$B13<>"",SUM(Auxiliares!$D87:E87),0) -> 0 | H66: =IF(Check!$B13<>"",SUM(Auxiliares!$D87:F87),0) -> 0 | I66: =IF(Check!$B13<>"",SUM(Auxiliares!$D87:G87),0) -> 0 | J66: =IF(Check!$B13<>"",SUM(Auxiliares!$D87:H87),0) -> 0 | K66: =IF(Check!$B13<>"",SUM(Auxiliares!$D87:I87),0) -> 0 | L66: =IF(Check!$B13<>"",SUM(Auxiliares!$D87:J87),0) -> 0 | M66: =IF(Check!$B13<>"",SUM(Auxiliares!$D87:K87),0) -> 0 | N66: =IF(Check!$B13<>"",SUM(Auxiliares!$D87:L87),0) -> 0 | O66: =IF(Check!$B13<>"",SUM(Auxiliares!$D87:M87),0) -> 0 | P66: =IF(Check!$B13<>"",SUM(Auxiliares!$D87:N87),0) -> 0 | Q66: =IF(Check!$B13<>"",SUM(Auxiliares!$D87:O87),0) -> 0 | S66: 0
D67: Cajas complementarias de previsión | F67: =IF(Check!$B14<>"",SUM(Auxiliares!$D88:D88),0) -> 0 | G67: =IF(Check!$B14<>"",SUM(Auxiliares!$D88:E88),0) -> 0 | H67: =IF(Check!$B14<>"",SUM(Auxiliares!$D88:F88),0) -> 0 | I67: =IF(Check!$B14<>"",SUM(Auxiliares!$D88:G88),0) -> 0 | J67: =IF(Check!$B14<>"",SUM(Auxiliares!$D88:H88),0) -> 0 | K67: =IF(Check!$B14<>"",SUM(Auxiliares!$D88:I88),0) -> 0 | L67: =IF(Check!$B14<>"",SUM(Auxiliares!$D88:J88),0) -> 0 | M67: =IF(Check!$B14<>"",SUM(Auxiliares!$D88:K88),0) -> 0 | N67: =IF(Check!$B14<>"",SUM(Auxiliares!$D88:L88),0) -> 0 | O67: =IF(Check!$B14<>"",SUM(Auxiliares!$D88:M88),0) -> 0 | P67: =IF(Check!$B14<>"",SUM(Auxiliares!$D88:N88),0) -> 0 | Q67: =IF(Check!$B14<>"",SUM(Auxiliares!$D88:O88),0) -> 0 | S67: 0
D68: Viajantes | F68: =IF(Check!$B16<>"",maximo(SUM(Auxiliares!$D89:D89),Tablas!C24),0) -> 0 | G68: =IF(Check!$B16<>"",maximo(SUM(Auxiliares!$D89:E89),Tablas!D24),0) -> 0 | H68: =IF(Check!$B16<>"",maximo(SUM(Auxiliares!$D89:F89),Tablas!E24),0) -> 0 | I68: =IF(Check!$B16<>"",maximo(SUM(Auxiliares!$D89:G89),Tablas!F24),0) -> 0 | J68: =IF(Check!$B16<>"",maximo(SUM(Auxiliares!$D89:H89),Tablas!G24),0) -> 0 | K68: =IF(Check!$B16<>"",maximo(SUM(Auxiliares!$D89:I89),Tablas!H24),0) -> 0 | L68: =IF(Check!$B16<>"",maximo(SUM(Auxiliares!$D89:J89),Tablas!I24),0) -> 0 | M68: =IF(Check!$B16<>"",maximo(SUM(Auxiliares!$D89:K89),Tablas!J24),0) -> 0 | N68: =IF(Check!$B16<>"",maximo(SUM(Auxiliares!$D89:L89),Tablas!K24),0) -> 0 | O68: =IF(Check!$B16<>"",maximo(SUM(Auxiliares!$D89:M89),Tablas!L24),0) -> 0 | P68: =IF(Check!$B16<>"",maximo(SUM(Auxiliares!$D89:N89),Tablas!M24),0) -> 0 | Q68: =IF(Check!$B16<>"",maximo(SUM(Auxiliares!$D89:O89),Tablas!N24),0) -> 0 | S68: 0
D69: Viáticos | F69: =IF(Check!$B11<>"",maximo(SUM(Auxiliares!$D85:D85),Tablas!C23),0) -> 0 | G69: =IF(Check!$B11<>"",maximo(SUM(Auxiliares!$D85:E85),Tablas!D23),0) -> 0 | H69: =IF(Check!$B11<>"",maximo(SUM(Auxiliares!$D85:F85),Tablas!E23),0) -> 0 | I69: =IF(Check!$B11<>"",maximo(SUM(Auxiliares!$D85:G85),Tablas!F23),0) -> 0 | J69: =IF(Check!$B11<>"",maximo(SUM(Auxiliares!$D85:H85),Tablas!G23),0) -> 0 | K69: =IF(Check!$B11<>"",maximo(SUM(Auxiliares!$D85:I85),Tablas!H23),0) -> 0 | L69: =IF(Check!$B11<>"",maximo(SUM(Auxiliares!$D85:J85),Tablas!I23),0) -> 0 | M69: =IF(Check!$B11<>"",maximo(SUM(Auxiliares!$D85:K85),Tablas!J23),0) -> 0 | N69: =IF(Check!$B11<>"",maximo(SUM(Auxiliares!$D85:L85),Tablas!K23),0) -> 0 | O69: =IF(Check!$B11<>"",maximo(SUM(Auxiliares!$D85:M85),Tablas!L23),0) -> 0 | P69: =IF(Check!$B11<>"",maximo(SUM(Auxiliares!$D85:N85),Tablas!M23),0) -> 0 | Q69: =IF(Check!$B11<>"",maximo(SUM(Auxiliares!$D85:O85),Tablas!N23),0) -> 0 | S69: =+Q69 -> 0
D70: Auxiliar Deducciones | F70: =SUM(F56:F68) -> 10300 | G70: 20600 | H70: 30900 | I70: 41710 | J70: 52520 | K70: 63500 | L70: 74880 | M70: 86260 | N70: 97640 | O70: 109020 | P70: 120740 | Q70: 132460 | S70: =SUM(S56:S69) -> 141810
D71: Auxiliar Ganancia Neta | F71: =IF(F53-F70<=0,0,F53-F70) -> 43158.33333 | G71: 86316.66667 | H71: 129475 | I71: 175330.8333 | J71: 221186.6667 | K71: 267941.6667 | L71: 314296.6667 | M71: 360651.6667 | N71: 407006.6667 | O71: 453361.6667 | P71: 501515 | Q71: 549668.3333 | S71: =IF(S53-S70<=0,0,S53-S70) -> 551190
D72: Cuota Médico Asistencial | F72: =IF(Check!$B6<>"",maximo(SUM(Auxiliares!$D91:D91),Auxiliares!D$90),0) -> 0 | G72: =IF(Check!$B6<>"",maximo(SUM(Auxiliares!$D91:E91),Auxiliares!E$90),0) -> 0 | H72: =IF(Check!$B6<>"",maximo(SUM(Auxiliares!$D91:F91),Auxiliares!F$90),0) -> 0 | I72: =IF(Check!$B6<>"",maximo(SUM(Auxiliares!$D91:G91),Auxiliares!G$90),0) -> 0 | J72: =IF(Check!$B6<>"",maximo(SUM(Auxiliares!$D91:H91),Auxiliares!H$90),0) -> 0 | K72: =IF(Check!$B6<>"",maximo(SUM(Auxiliares!$D91:I91),Auxiliares!I$90),0) -> 0 | L72: =IF(Check!$B6<>"",maximo(SUM(Auxiliares!$D91:J91),Auxiliares!J$90),0) -> 0 | M72: =IF(Check!$B6<>"",maximo(SUM(Auxiliares!$D91:K91),Auxiliares!K$90),0) -> 0 | N72: =IF(Check!$B6<>"",maximo(SUM(Auxiliares!$D91:L91),Auxiliares!L$90),0) -> 0 | O72: =IF(Check!$B6<>"",maximo(SUM(Auxiliares!$D91:M91),Auxiliares!M$90),0) -> 0 | P72: =IF(Check!$B6<>"",maximo(SUM(Auxiliares!$D91:N91),Auxiliares!N$90),0) -> 0 | Q72: =IF(Check!$B6<>"",maximo(SUM(Auxiliares!$D91:O91),Auxiliares!O$90),0) -> 0 | S72: =+Q72 -> 0
D73: Donaciones | F73: =IF(Check!$B7<>"",maximo(SUM(Auxiliares!$D92:D92),Auxiliares!D$90),0) -> 0 | G73: =IF(Check!$B7<>"",maximo(SUM(Auxiliares!$D92:E92),Auxiliares!E$90),0) -> 0 | H73: =IF(Check!$B7<>"",maximo(SUM(Auxiliares!$D92:F92),Auxiliares!F$90),0) -> 0 | I73: =IF(Check!$B7<>"",maximo(SUM(Auxiliares!$D92:G92),Auxiliares!G$90),0) -> 0 | J73: =IF(Check!$B7<>"",maximo(SUM(Auxiliares!$D92:H92),Auxiliares!H$90),0) -> 0 | K73: =IF(Check!$B7<>"",maximo(SUM(Auxiliares!$D92:I92),Auxiliares!I$90),0) -> 0 | L73: =IF(Check!$B7<>"",maximo(SUM(Auxiliares!$D92:J92),Auxiliares!J$90),0) -> 0 | M73: =IF(Check!$B7<>"",maximo(SUM(Auxiliares!$D92:K92),Auxiliares!K$90),0) -> 0 | N73: =IF(Check!$B7<>"",maximo(SUM(Auxiliares!$D92:L92),Auxiliares!L$90),0) -> 0 | O73: =IF(Check!$B7<>"",maximo(SUM(Auxiliares!$D92:M92),Auxiliares!M$90),0) -> 0 | P73: =IF(Check!$B7<>"",maximo(SUM(Auxiliares!$D92:N92),Auxiliares!N$90),0) -> 0 | Q73: =IF(Check!$B7<>"",maximo(SUM(Auxiliares!$D92:O92),Auxiliares!O$90),0) -> 0 | S73: =+Q73 -> 0
D74: Honorarios Médicos Profesionales | S74: =IF(Check!B15<>"",maximo(Auxiliares!P93,Auxiliares!P90),0) -> 0
D75: Sub Total Deducciones Generales | F75: =SUM(F56:F69,F72:F74) -> 10300 | G75: =SUM(G56:G69,G72:G74) -> 20600 | H75: =SUM(H56:H69,H72:H74) -> 30900 | I75: 41710 | J75: 52520 | K75: 63500 | L75: 74880 | M75: 86260 | N75: 97640 | O75: 109020 | P75: 120740 | Q75: =SUM(Q56:Q69,Q72:Q74) -> 132460 | S75: =SUM(S56:S69,S72:S74) -> 141810
D77: Ganancia Neta | F77: =IF((F53-F75)<0,0,F53-F75) -> 43158.33333 | G77: 86316.66667 | H77: 129475 | I77: 175330.8333 | J77: 221186.6667 | K77: 267941.6667 | L77: 314296.6667 | M77: 360651.6667 | N77: 407006.6667 | O77: 453361.6667 | P77: 501515 | Q77: 549668.3333 | S77: =IF((S53-S75)<0,0,S53-S75) -> 551190
D79: Deducciones Art. 23 | F79: 2016-01-31 | G79: 2016-02-28 | H79: 2016-03-31 | I79: 2016-04-30 | J79: 2016-05-31 | K79: 2016-06-30 | L79: 2016-07-31 | M79: 2016-08-31 | N79: 2016-09-30 | O79: 2016-10-31 | P79: 2016-11-30 | Q79: 2016-12-31 | S79: Anual
D80: Ganancia no Imponible | F80: =Tablas!C30 -> 5576.4925 | G80: =+F80+Tablas!D30 -> 11152.985 | H80: =+G80+Tablas!E30 -> 16729.4775 | I80: =+H80+Tablas!F30 -> 22305.97 | J80: =+I80+Tablas!G30 -> 27882.4625 | K80: =+J80+Tablas!H30 -> 33458.955 | L80: =+K80+Tablas!I30 -> 39035.4475 | M80: =+L80+Tablas!J30 -> 44611.94 | N80: =+M80+Tablas!K30 -> 50188.4325 | O80: =+N80+Tablas!L30 -> 55764.925 | P80: =+O80+Tablas!M30 -> 61341.4175 | Q80: =+P80+Tablas!N30 -> 66917.91 | S80: =Q80 -> 66917.91
D81: Deducción especial | F81: =+Tablas!C31 -> 26767.164 | G81: =+F81+Tablas!D31 -> 53534.328 | H81: =+G81+Tablas!E31 -> 80301.492 | I81: =+H81+Tablas!F31 -> 107068.656 | J81: =+I81+Tablas!G31 -> 133835.82 | K81: =+J81+Tablas!H31 -> 160602.984 | L81: =+K81+Tablas!I31 -> 187370.148 | M81: =+L81+Tablas!J31 -> 214137.312 | N81: =+M81+Tablas!K31 -> 240904.476 | O81: =+N81+Tablas!L31 -> 267671.64 | P81: =+O81+Tablas!M31 -> 294438.804 | Q81: =+P81+Tablas!N31 -> 321205.968 | S81: =Q81 -> 321205.968
D82: Cónyuge | F82: =Auxiliares!D138*Tablas!C32 -> 0 | G82: =Auxiliares!E138*Tablas!D32 -> 0 | H82: =Auxiliares!F138*Tablas!E32 -> 0 | I82: =Auxiliares!G138*Tablas!F32 -> 0 | J82: =Auxiliares!H138*Tablas!G32 -> 0 | K82: =Auxiliares!I138*Tablas!H32 -> 0 | L82: =Auxiliares!J138*Tablas!I32 -> 0 | M82: =Auxiliares!K138*Tablas!J32 -> 0 | N82: =Auxiliares!L138*Tablas!K32 -> 0 | O82: =Auxiliares!M138*Tablas!L32 -> 0 | P82: =Auxiliares!N138*Tablas!M32 -> 0 | Q82: =Auxiliares!O138*Tablas!N32 -> 0 | S82: =Q82 -> 0
D83: Hijos | F83: =SUM(Auxiliares!D140:D155)*Tablas!C33 -> 2621.7575 | G83: =SUM(Auxiliares!E140:E155)*Tablas!D33 -> 5243.515 | H83: =SUM(Auxiliares!F140:F155)*Tablas!E33 -> 7865.2725 | I83: =SUM(Auxiliares!G140:G155)*Tablas!F33 -> 10487.03 | J83: =SUM(Auxiliares!H140:H155)*Tablas!G33 -> 13108.7875 | K83: =SUM(Auxiliares!I140:I155)*Tablas!H33 -> 15730.545 | L83: =SUM(Auxiliares!J140:J155)*Tablas!I33 -> 18352.3025 | M83: =SUM(Auxiliares!K140:K155)*Tablas!J33 -> 20974.06 | N83: =SUM(Auxiliares!L140:L155)*Tablas!K33 -> 23595.8175 | O83: =SUM(Auxiliares!M140:M155)*Tablas!L33 -> 26217.575 | P83: =SUM(Auxiliares!N140:N155)*Tablas!M33 -> 28839.3325 | Q83: =SUM(Auxiliares!O140:O155)*Tablas!N33 -> 31461.09 | S83: =Q83 -> 31461.09
D84: Sub Total Deducciones Art. 23 | F84: =SUM(F80:F83) -> 34965.414 | G84: 69930.828 | H84: 104896.242 | I84: 139861.656 | J84: 174827.07 | K84: 209792.484 | L84: 244757.898 | M84: 279723.312 | N84: 314688.726 | O84: 349654.14 | P84: 384619.554 | Q84: 419584.968 | S84: =SUM(S80:S83) -> 419584.968
D86: Ganancia Neta Sujeta a Impuesto | F86: =IF((F77-F84)>=0,F77-F84,0) -> 8192.919333 | G86: 16385.83867 | H86: 24578.758 | I86: 35469.17733 | J86: 46359.59667 | K86: 58149.18267 | L86: 69538.76867 | M86: 80928.35467 | N86: 92317.94067 | O86: 103707.5267 | P86: 116895.446 | Q86: 130083.3653 | S86: =IF((S77-S84)>=0,S77-S84,0) -> 131605.032
B88: Liquidación | D88: Determinación del Impuesto | F88: 2016-01-31 | G88: 2016-02-28 | H88: 2016-03-31 | I88: 2016-04-30 | J88: 2016-05-31 | K88: 2016-06-30 | L88: 2016-07-31 | M88: 2016-08-31 | N88: 2016-09-30 | O88: 2016-10-31 | P88: 2016-11-30 | Q88: 2016-12-31 | S88: Anual
D89: Porcentaje | F89: =impuestoAlicuota(F86,IF(Check!$B$8="Ok",SUM(Auxiliares!$D$222:D222)+SUM(Auxiliares!$D$236:D236),SUM(Ingresos!$C$31:'Ingresos'!C31)),MONTH(F88)) -> 0.15 | G89: =impuestoAlicuota(G86,IF(Check!$B$8="Ok",SUM(Auxiliares!$D$222:E222)+SUM(Auxiliares!$D$236:E236),SUM(Ingresos!$C$31:'Ingresos'!D31)),MONTH(G88)) -> 0.15 | H89: =impuestoAlicuota(H86,IF(Check!$B$8="Ok",SUM(Auxiliares!$D$222:F222)+SUM(Auxiliares!$D$236:F236),SUM(Ingresos!$C$31:'Ingresos'!E31)),MONTH(H88)) -> 0.15 | I89: =impuestoAlicuota(I86,IF(Check!$B$8="Ok",SUM(Auxiliares!$D$222:G222)+SUM(Auxiliares!$D$236:G236),SUM(Ingresos!$C$31:'Ingresos'!F31)),MONTH(I88)) -> 0.19 | J89: =impuestoAlicuota(J86,IF(Check!$B$8="Ok",SUM(Auxiliares!$D$222:H222)+SUM(Auxiliares!$D$236:H236),SUM(Ingresos!$C$31:'Ingresos'!G31)),MONTH(J88)) -> 0.19 | K89: =impuestoAlicuota(K86,IF(Check!$B$8="Ok",SUM(Auxiliares!$D$222:I222)+SUM(Auxiliares!$D$236:I236),SUM(Ingresos!$C$31:'Ingresos'!H31)),MONTH(K88)) -> 0.19 | L89: =impuestoAlicuota(L86,IF(Check!$B$8="Ok",SUM(Auxiliares!$D$222:J222)+SUM(Auxiliares!$D$236:J236),SUM(Ingresos!$C$31:'Ingresos'!I31)),MONTH(L88)) -> 0.19 | M89: =impuestoAlicuota(M86,IF(Check!$B$8="Ok",SUM(Auxiliares!$D$222:K222)+SUM(Auxiliares!$D$236:K236),SUM(Ingresos!$C$31:'Ingresos'!J31)),MONTH(M88)) -> 0.19 | N89: =impuestoAlicuota(N86,IF(Check!$B$8="Ok",SUM(Auxiliares!$D$222:L222)+SUM(Auxiliares!$D$236:L236),SUM(Ingresos!$C$31:'Ingresos'!K31)),MONTH(N88)) -> 0.19 | O89: =impuestoAlicuota(O86,IF(Check!$B$8="Ok",SUM(Auxiliares!$D$222:M222)+SUM(Auxiliares!$D$236:M236),SUM(Ingresos!$C$31:'Ingresos'!L31)),MONTH(O88)) -> 0.19 | P89: =impuestoAlicuota(P86,IF(Check!$B$8="Ok",SUM(Auxiliares!$D$222:N222)+SUM(Auxiliares!$D$236:N236),SUM(Ingresos!$C$31:'Ingresos'!M31)),MONTH(P88)) -> 0.19 | Q89: =impuestoAlicuota(Q86,IF(Check!$B$8="Ok",SUM(Auxiliares!$D$222:O222)+SUM(Auxiliares!$D$236:O236),SUM(Ingresos!$C$31:'Ingresos'!N31)),MONTH(Q88)) -> 0.19 | S89: =impuestoAlicuota(S86,IF(Check!$B$8="Ok",SUM(Auxiliares!$D$222:O222)+SUM(Auxiliares!$D$236:O236),SUM(Ingresos!$C$31:'Ingresos'!N31)),12) -> 0.19
D90: Valor Fijo | F90: =impuestoFijo(F86,IF(Check!$B$8="Ok",SUM(Auxiliares!$D$222:D222,Auxiliares!$D$236:D236),SUM(Ingresos!$C$31:C31)),MONTH(F88)) -> 558.0033333 | G90: =impuestoFijo(G86,IF(Check!$B$8="Ok",SUM(Auxiliares!$D$222:E222,Auxiliares!$D$236:E236),SUM(Ingresos!$C$31:D31)),MONTH(G88)) -> 1116.006667 | H90: =impuestoFijo(H86,IF(Check!$B$8="Ok",SUM(Auxiliares!$D$222:F222,Auxiliares!$D$236:F236),SUM(Ingresos!$C$31:E31)),MONTH(H88)) -> 1674.01 | I90: =impuestoFijo(I86,IF(Check!$B$8="Ok",SUM(Auxiliares!$D$222:G222,Auxiliares!$D$236:G236),SUM(Ingresos!$C$31:F31)),MONTH(I88)) -> 3519.713333 | J90: =impuestoFijo(J86,IF(Check!$B$8="Ok",SUM(Auxiliares!$D$222:H222,Auxiliares!$D$236:H236),SUM(Ingresos!$C$31:G31)),MONTH(J88)) -> 4399.641667 | K90: =impuestoFijo(K86,IF(Check!$B$8="Ok",SUM(Auxiliares!$D$222:I222,Auxiliares!$D$236:I236),SUM(Ingresos!$C$31:H31)),MONTH(K88)) -> 5279.57 | L90: =impuestoFijo(L86,IF(Check!$B$8="Ok",SUM(Auxiliares!$D$222:J222,Auxiliares!$D$236:J236),SUM(Ingresos!$C$31:I31)),MONTH(L88)) -> 6159.498333 | M90: =impuestoFijo(M86,IF(Check!$B$8="Ok",SUM(Auxiliares!$D$222:K222,Auxiliares!$D$236:K236),SUM(Ingresos!$C$31:J31)),MONTH(M88)) -> 7039.426667 | N90: =impuestoFijo(N86,IF(Check!$B$8="Ok",SUM(Auxiliares!$D$222:L222,Auxiliares!$D$236:L236),SUM(Ingresos!$C$31:K31)),MONTH(N88)) -> 7919.355 | O90: =impuestoFijo(O86,IF(Check!$B$8="Ok",SUM(Auxiliares!$D$222:M222,Auxiliares!$D$236:M236),SUM(Ingresos!$C$31:L31)),MONTH(O88)) -> 8799.283333 | P90: =impuestoFijo(P86,IF(Check!$B$8="Ok",SUM(Auxiliares!$D$222:N222,Auxiliares!$D$236:N236),SUM(Ingresos!$C$31:M31)),MONTH(P88)) -> 9679.211667 | Q90: =impuestoFijo(Q86,IF(Check!$B$8="Ok",SUM(Auxiliares!$D$222:O222,Auxiliares!$D$236:O236),SUM(Ingresos!$C$31:N31)),MONTH(Q88)) -> 10559.14 | S90: =impuestoFijo(S86,IF(Check!$B$8="Ok",SUM(Auxiliares!$D$222:O222)+SUM(Auxiliares!$D$236:O236),SUM(Ingresos!$C$31:'Ingresos'!N31)),12) -> 10559.14
D91: Excedente | F91: =impuestoExcedente(F86,IF(Check!$B$8="Ok",SUM(Auxiliares!$D$222:D222,Auxiliares!$D$236:D236),SUM(Ingresos!$C$31:'Ingresos'!C31)),MONTH(F88)) -> 6438.5 | G91: =impuestoExcedente(G86,IF(Check!$B$8="Ok",SUM(Auxiliares!$D$222:E222,Auxiliares!$D$236:E236),SUM(Ingresos!$C$31:'Ingresos'!D31)),MONTH(G88)) -> 12877 | H91: =impuestoExcedente(H86,IF(Check!$B$8="Ok",SUM(Auxiliares!$D$222:F222,Auxiliares!$D$236:F236),SUM(Ingresos!$C$31:'Ingresos'!E31)),MONTH(H88)) -> 19315.5 | I91: =impuestoExcedente(I86,IF(Check!$B$8="Ok",SUM(Auxiliares!$D$222:G222,Auxiliares!$D$236:G236),SUM(Ingresos!$C$31:'Ingresos'!F31)),MONTH(I88)) -> 34338.66667 | J91: =impuestoExcedente(J86,IF(Check!$B$8="Ok",SUM(Auxiliares!$D$222:H222,Auxiliares!$D$236:H236),SUM(Ingresos!$C$31:'Ingresos'!G31)),MONTH(J88)) -> 42923.33333 | K91: =impuestoExcedente(K86,IF(Check!$B$8="Ok",SUM(Auxiliares!$D$222:I222,Auxiliares!$D$236:I236),SUM(Ingresos!$C$31:'Ingresos'!H31)),MONTH(K88)) -> 51508 | L91: =impuestoExcedente(L86,IF(Check!$B$8="Ok",SUM(Auxiliares!$D$222:J222,Auxiliares!$D$236:J236),SUM(Ingresos!$C$31:'Ingresos'!I31)),MONTH(L88)) -> 60092.66667 | M91: =impuestoExcedente(M86,IF(Check!$B$8="Ok",SUM(Auxiliares!$D$222:K222,Auxiliares!$D$236:K236),SUM(Ingresos!$C$31:'Ingresos'!J31)),MONTH(M88)) -> 68677.33333 | N91: =impuestoExcedente(N86,IF(Check!$B$8="Ok",SUM(Auxiliares!$D$222:L222,Auxiliares!$D$236:L236),SUM(Ingresos!$C$31:'Ingresos'!K31)),MONTH(N88)) -> 77262 | O91: =impuestoExcedente(O86,IF(Check!$B$8="Ok",SUM(Auxiliares!$D$222:M222,Auxiliares!$D$236:M236),SUM(Ingresos!$C$31:'Ingresos'!L31)),MONTH(O88)) -> 85846.66667 | P91: =impuestoExcedente(P86,IF(Check!$B$8="Ok",SUM(Auxiliares!$D$222:N222,Auxiliares!$D$236:N236),SUM(Ingresos!$C$31:'Ingresos'!M31)),MONTH(P88)) -> 94431.33333 | Q91: =impuestoExcedente(Q86,IF(Check!$B$8="Ok",SUM(Auxiliares!$D$222:O222,Auxiliares!$D$236:O236),SUM(Ingresos!$C$31:'Ingresos'!N31)),MONTH(Q88)) -> 103016 | S91: =impuestoExcedente(S86,IF(Check!$B$8="Ok",SUM(Auxiliares!$D$222:O222)+SUM(Auxiliares!$D$236:O236),SUM(Ingresos!$C$31:'Ingresos'!N31)),12) -> 103016
D92: Impuesto determinado (acumulado) | F92: =impuestoDeterminado(F86,SUM(Auxiliares!$D$222:D222,Auxiliares!$D$230:D230,Auxiliares!$D$236:D236),MONTH(F6)) -> 821.1662333 | G92: =impuestoDeterminado(G86,SUM(Auxiliares!$D$222:E222,Auxiliares!$D$230:E230,Auxiliares!$D$236:E236),MONTH(G6)) -> 1642.332467 | H92: =impuestoDeterminado(H86,SUM(Auxiliares!$D$222:F222,Auxiliares!$D$230:F230,Auxiliares!$D$236:F236),MONTH(H6)) -> 2463.4987 | I92: =impuestoDeterminado(I86,SUM(Auxiliares!$D$222:G222,Auxiliares!$D$230:G230,Auxiliares!$D$236:G236),MONTH(I6)) -> 3734.51036 | J92: =impuestoDeterminado(J86,SUM(Auxiliares!$D$222:H222,Auxiliares!$D$230:H230,Auxiliares!$D$236:H236),MONTH(J6)) -> 5052.5317 | K92: =impuestoDeterminado(K86,SUM(Auxiliares!$D$222:I222,Auxiliares!$D$230:I230,Auxiliares!$D$236:I236),MONTH(K6)) -> 6541.394707 | L92: =impuestoDeterminado(L86,SUM(Auxiliares!$D$222:J222,Auxiliares!$D$230:J230,Auxiliares!$D$236:J236),MONTH(L6)) -> 7954.257713 | M92: =impuestoDeterminado(M86,SUM(Auxiliares!$D$222:K222,Auxiliares!$D$230:K230,Auxiliares!$D$236:K236),MONTH(M6)) -> 9367.12072 | N92: =impuestoDeterminado(N86,SUM(Auxiliares!$D$222:L222,Auxiliares!$D$230:L230,Auxiliares!$D$236:L236),MONTH(N6)) -> 10779.98373 | O92: =impuestoDeterminado(O86,SUM(Auxiliares!$D$222:M222,Auxiliares!$D$230:M230,Auxiliares!$D$236:M236),MONTH(O6)) -> 12192.84673 | P92: =impuestoDeterminado(P86,SUM(Auxiliares!$D$222:N222,Auxiliares!$D$230:N230,Auxiliares!$D$236:N236),MONTH(P6)) -> 13947.39307 | Q92: =impuestoDeterminado(Q86,SUM(Auxiliares!$D$222:O222,Auxiliares!$D$230:O230,Auxiliares!$D$236:O236),MONTH(Q6)) -> 15701.93941 | S92: =impuestoDeterminado(S86,IF(Check!$B$8="Ok",SUM(Auxiliares!$D$222:O222)+SUM(Auxiliares!$D$236:O236),SUM(Ingresos!$C$31:'Ingresos'!N31)),12) -> 15991.05608
D93: Pagos a cuenta | S93: =PagosACuenta!N8 -> 0
D95: Cálculo de la retención del impuesto | F95: 2016-01-31 | G95: 2016-02-28 | H95: 2016-03-31 | I95: 2016-04-30 | J95: 2016-05-31 | K95: 2016-06-30 | L95: 2016-07-31 | M95: 2016-08-31 | N95: 2016-09-30 | O95: 2016-10-31 | P95: 2016-11-30 | Q95: 2016-12-31 | S95: Anual
D96: Importe a Retener (mensual) | F96: =retener(F92,0,SUM(Ingresos!C$8:C$26)) -> 821.1662333 | G96: =retener(G92,SUM($F$96:F96),SUM(Ingresos!D$8:D$26)) -> 821.1662333 | H96: =retener(H92,SUM($F$96:G96),SUM(Ingresos!E$8:E$26)) -> 821.1662333 | I96: =retener(I92,SUM($F$96:H96),SUM(Ingresos!F$8:F$26)) -> 1271.01166 | J96: =retener(J92,SUM($F$96:I96),SUM(Ingresos!G$8:G$26)) -> 1318.02134 | K96: =retener(K92,SUM($F$96:J96),SUM(Ingresos!H$8:H$26)) -> 1488.863007 | L96: =retener(L92,SUM($F$96:K96),SUM(Ingresos!I$8:I$26)) -> 1412.863007 | M96: =retener(M92,SUM($F$96:L96),SUM(Ingresos!J$8:J$26)) -> 1412.863007 | N96: =retener(N92,SUM($F$96:M96),SUM(Ingresos!K$8:K$26)) -> 1412.863007 | O96: =retener(O92,SUM($F$96:N96),SUM(Ingresos!L$8:L$26)) -> 1412.863007 | P96: =retener(P92,SUM($F$96:O96),SUM(Ingresos!M$8:M$26)) -> 1754.54634 | Q96: =retener(Q92,SUM($F$96:P96),SUM(Ingresos!N$8:N$26)) -> 1754.54634 | S96: =retenerAnual(S92,SUM($F96:R96),SUM(Auxiliares!P9:P12,Auxiliares!P16:P19,Auxiliares!P23:P26)-SUM(Auxiliares!P30:P35,Auxiliares!P37:P42),Check!$B$17) -> 289.1166667
D97: Importe a Devolver | F97: =devolucion(F92,F96,0) -> 0 | G97: =devolucion(G92,SUM($F$96:G96),SUM($F$97:F97)) -> 0 | H97: =devolucion(H92,SUM($F$96:H96),SUM($F$97:G97)) -> 0 | I97: =devolucion(I92,SUM($F$96:I96),SUM($F$97:H97)) -> 0 | J97: =devolucion(J92,SUM($F$96:J96),SUM($F$97:I97)) -> 0 | K97: =devolucion(K92,SUM($F$96:K96),SUM($F$97:J97)) -> 0 | L97: =devolucion(L92,SUM($F$96:L96),SUM($F$97:K97)) -> 0 | M97: =devolucion(M92,SUM($F$96:M96),SUM($F$97:L97)) -> 0 | N97: =devolucion(N92,SUM($F$96:N96),SUM($F$97:M97)) -> 0 | O97: =devolucion(O92,SUM($F$96:O96),SUM($F$97:N97)) -> 0 | P97: =devolucion(P92,SUM($F$96:P96),SUM($F$97:O97)) -> 0 | Q97: =devolucion(Q92,SUM($F$96:Q96),SUM($F$97:P97)) -> 0 | S97: =devolucion(S92-S93,SUM($F$96:S96),SUM($F$97:R97)) -> 0
D99: Importe efectivamente retenido | F99: =PagosACuenta!C14-PagosACuenta!C15 -> 0 | G99: =PagosACuenta!D14-PagosACuenta!D15 -> 0 | H99: =PagosACuenta!E14-PagosACuenta!E15 -> 0 | I99: =PagosACuenta!F14-PagosACuenta!F15 -> 0 | J99: =PagosACuenta!G14-PagosACuenta!G15 -> 0 | K99: =PagosACuenta!H14-PagosACuenta!H15 -> 0 | L99: =PagosACuenta!I14-PagosACuenta!I15 -> 0 | M99: =PagosACuenta!J14-PagosACuenta!J15 -> 0 | N99: =PagosACuenta!K14-PagosACuenta!K15 -> 0 | O99: =PagosACuenta!L14-PagosACuenta!L15 -> 0 | P99: =PagosACuenta!M14-PagosACuenta!M15 -> 0 | Q99: =PagosACuenta!N14-PagosACuenta!N15 -> 0 | S99: =PagosACuenta!O14-PagosACuenta!O15 -> 0
D100: Saldo a favor de AFIP/Contribuyente | F100: =ROUND(F92-F99,2) -> 821.17 | G100: =ROUND(G92-SUM($F$99:G99),2) -> 1642.33 | H100: =ROUND(H92-SUM($F$99:H99),2) -> 2463.5 | I100: =ROUND(I92-SUM($F$99:I99),2) -> 3734.51 | J100: =ROUND(J92-SUM($F$99:J99),2) -> 5052.53 | K100: =ROUND(K92-SUM($F$99:K99),2) -> 6541.39 | L100: =ROUND(L92-SUM($F$99:L99),2) -> 7954.26 | M100: =ROUND(M92-SUM($F$99:M99),2) -> 9367.12 | N100: =ROUND(N92-SUM($F$99:N99),2) -> 10779.98 | O100: =ROUND(O92-SUM($F$99:O99),2) -> 12192.85 | P100: =ROUND(P92-SUM($F$99:P99),2) -> 13947.39 | Q100: =ROUND(Q92-SUM($F$99:Q99),2) -> 15701.94 | S100: =ROUND(S92-SUM($F$99:Q99),2) -> 15991.06
F101: =IF(F100=0,"",IF(F100>0,"A favor de AFIP","A favor del contribuyente")) -> A favor de AFIP | G101: =IF(G100=0,"",IF(G100>0,"A favor de AFIP","A favor del contribuyente")) -> A favor de AFIP | H101: A favor de AFIP | I101: A favor de AFIP | J101: A favor de AFIP | K101: A favor de AFIP | L101: A favor de AFIP | M101: A favor de AFIP | N101: A favor de AFIP | O101: A favor de AFIP | P101: A favor de AFIP | Q101: A favor de AFIP | S101: A favor de AFIP
B103: En el cálculo de las retenciones mensuales y a los fines del encuadre en el tramo correspondiente de la escala para determinar el impuesto, no se han tenido en cuenta las horas extras netas gravadas ni la doceava parte del SAC neto correspondiente a las mismas. A la fecha de cierre de la presente versión, esto no ha sido reglamentado.

Sheet Formulario
C4: Liquidación de impuesto a las ganancias -
C5: 4ta. categoría relación de dependencia
C7: ="Fecha: "&DAY(Datos!F34)&"/"&MONTH(Datos!F34)&"/"&YEAR(Datos!F34) -> Fecha: 31/12/2018
C8: ="Empleado: "&Datos!F18&", "&Datos!F16&" "&Datos!F15&", "&Datos!F19 -> Empleado: 27451112220, MATEI FLORENCIA FIORELLA,
C9: ="Agente de Retención: "&Datos!F24&", "&Datos!F25 -> Agente de Retención: ,
C10: ="Período Fiscal: "&Datos!F12 -> Período Fiscal: 2018
C11: Remuneraciones
C13: Remuneración bruta | H13: =Liquidacion!S38-SUM(H14:H20) -> 638000
C14: Retribuciones no habituales | D14: $ | H14: =SUMIF(Ingresos!$Q$8:$Q$26,"Sí",Ingresos!C$8:C$26)+SUMIF(Ingresos!$Q$8:$Q$26,"Sí",Ingresos!D$8:D$26)+SUMIF(Ingresos!$Q$8:$Q$26,"Sí",Ingresos!E$8:E$26)+SUMIF(Ingresos!$Q$8:$Q$26,"Sí",Ingresos!F$8:F$26)+SUMIF(Ingresos!$Q$8:$Q$26,"Sí",Ingresos!G$8:G$26)+SUMIF(Ingresos!$Q$8:$Q$26,"Sí",Ingresos!H$8:H$26)+SUMIF(Ingresos!$Q$8:$Q$26,"Sí",Ingresos!I$8:I$26)+SUMIF(Ingresos!$Q$8:$Q$26,"Sí",Ingresos!J$8:J$26)+SUMIF(Ingresos!$Q$8:$Q$26,"Sí",Ingresos!K$8:K$26)+SUMIF(Ingresos!$Q$8:$Q$26,"Sí",Ingresos!L$8:L$26)+SUMIF(Ingresos!$Q$8:$Q$26,"Sí",Ingresos!M$8:M$26)+SUMIF(Ingresos!$Q$8:$Q$26,"Sí",Ingresos!N$8:N$26)-H15-H16 -> 0
C15: SAC primera cuota | D15: $ | H15: =SUM(Liquidacion!F11:K11) -> 27000
C16: SAC segunda cuota | D16: $ | H16: =SUM(Liquidacion!L11:Q11) -> 28000
C17: Remuneración no alcanzada | D17: $ | H17: =+SUMIF(Ingresos!$P$8:$P$26,"No gravado",Ingresos!C$8:C$26)+SUMIF(Ingresos!$P$8:$P$26,"No gravado",Ingresos!D$8:D$26)+SUMIF(Ingresos!$P$8:$P$26,"No gravado",Ingresos!E$8:E$26)+SUMIF(Ingresos!$P$8:$P$26,"No gravado",Ingresos!F$8:F$26)+SUMIF(Ingresos!$P$8:$P$26,"No gravado",Ingresos!G$8:G$26)+SUMIF(Ingresos!$P$8:$P$26,"No gravado",Ingresos!H$8:H$26)+SUMIF(Ingresos!$P$8:$P$26,"No gravado",Ingresos!I$8:I$26)+SUMIF(Ingresos!$P$8:$P$26,"No gravado",Ingresos!J$8:J$26)+SUMIF(Ingresos!$P$8:$P$26,"No gravado",Ingresos!K$8:K$26)+SUMIF(Ingresos!$P$8:$P$26,"No gravado",Ingresos!L$8:L$26)+SUMIF(Ingresos!$P$8:$P$26,"No gravado",Ingresos!M$8:M$26)+SUMIF(Ingresos!$P$8:$P$26,"No gravado",Ingresos!N$8:N$26) -> 0
C18: Remuneración exenta (sin incluir horas extras) | D18: $ | H18: =+SUMIF(Ingresos!$P$8:$P$26,"Exento",Ingresos!C$8:C$26)+SUMIF(Ingresos!$P$8:$P$26,"Exento",Ingresos!D$8:D$26)+SUMIF(Ingresos!$P$8:$P$26,"Exento",Ingresos!E$8:E$26)+SUMIF(Ingresos!$P$8:$P$26,"Exento",Ingresos!F$8:F$26)+SUMIF(Ingresos!$P$8:$P$26,"Exento",Ingresos!G$8:G$26)+SUMIF(Ingresos!$P$8:$P$26,"Exento",Ingresos!H$8:H$26)+SUMIF(Ingresos!$P$8:$P$26,"Exento",Ingresos!I$8:I$26)+SUMIF(Ingresos!$P$8:$P$26,"Exento",Ingresos!J$8:J$26)+SUMIF(Ingresos!$P$8:$P$26,"Exento",Ingresos!K$8:K$26)+SUMIF(Ingresos!$P$8:$P$26,"Exento",Ingresos!L$8:L$26)+SUMIF(Ingresos!$P$8:$P$26,"Exento",Ingresos!M$8:M$26)+SUMIF(Ingresos!$P$8:$P$26,"Exento",Ingresos!N$8:N$26)-H19-Auxiliares!T204 -> 0
C19: Remuneración exenta horas extras (netas) | D19: $ | H19: =SUM(Ingresos!C10:N10)+SUM(Ingresos!C37:N37)+Auxiliares!S204 -> 0
C20: Remuneración otros empleos | D20: $ | H20: =SUM(Ingresos!C46:N46) -> 0
C21: REMUNERACIÓN COMPUTABLE | D21: $ | H21: =Liquidacion!S49+Liquidacion!S50+Liquidacion!S52 -> 693000
C23: Deducciones
C25: Aportes a fondos de jubilaciones, retiros, pensiones o subsidios que se destinen a cajas nacionales, provinciales o municipales. | H25: =+Auxiliares!P204 -> 76230
C26: Aportes Obra Social | H26: =+Auxiliares!P205 -> 41580
C27: Cuota sindical | H27: =+Auxiliares!P206 -> 0
C28: Aportes jubilatorios otros empleos | H28: =+Auxiliares!P208 -> 0
C29: Aportes Obra Social otros empleos | H29: =+Auxiliares!P209 -> 0
C30: Cuota sindical otros empleos | H30: =+Auxiliares!P210 -> 0
C31: Cuotas médico asistenciales | H31: =+Liquidacion!S72 -> 0
C32: Primas de Seguro para el caso de muerte | H32: =+Liquidacion!S59 -> 0
C33: Gastos de sepelio | H33: =+Liquidacion!S60 -> 0
C34: Gastos estimativos para corredores y viajantes de comercio | H34: =+Liquidacion!S68 -> 0
C35: Donaciones a Fiscos nacional, provinciales y municipales, y a instituciones comprendidas en el art. 20, incs. e) y f) de la ley | H35: =+Liquidacion!S73 -> 0
C36: Descuentos obligatorios establecidos por ley nacional, provincial o municipal | H36: =+Liquidacion!S65 -> 0
C37: Honorarios por servicios de asistencia sanitaria, médica y paramédica | H37: =+Liquidacion!S74 -> 0
C38: Intereses créditos hipotecarios | H38: =+Liquidacion!S61 -> 0
C39: Aportes al capital social o al fondo de riesgo de socios protectores de Sociedades de Garantía Recíproca | H39: =+Liquidacion!S66 -> 0
C40: Empleados del servicio doméstico | H40: =+Liquidacion!S62 -> 0
C41: Aportes a Cajas Complementarias de Previsión, Fondos Compensadores de Previsión o similares | H41: =+Liquidacion!S67 -> 0
C42: Alquileres de inmuebles destinados a su casa habitación | H42: =+Liquidacion!S64 -> 24000
C43: Gastos de movilidad, viáticos y otras compensaciones análogas abonados por el empleador | H43: =+Liquidacion!S69 -> 0
C44: Otras deducciones | H44: =+Liquidacion!S63 -> 0
C45: TOTAL DEDUCCIONES | H45: =SUM(H25:H44) -> 141810
C47: Deducciones artículo 23
C49: ="Ganancia no imponible "&IF(Tablas!O30=66917.91,"","(incrementada en 22%)") -> Ganancia no imponible | H49: =+Liquidacion!S80 -> 66917.91
C50: ="Deducción especial/Deducción específica "&IF(Tablas!O30=66917.91,"","(incrementada en 22%)") -> Deducción especial/Deducción específica | H50: =+Liquidacion!S81 -> 321205.968
C51: ="Cargas de familia "&IF(Tablas!O30=66917.91,"","(incrementada en 22%)") -> Cargas de familia
C52: ="Cónyuge "&IF(Tablas!O30=66917.91,"","(incrementada en 22%)") -> Cónyuge | H52: =+Liquidacion!S82 -> 0
C53: ="Hijos "&IF(Tablas!O30=66917.91,"","(incrementada en 22%)") -> Hijos | H53: =+Liquidacion!S83 -> 31461.09
C54: TOTAL | H54: =SUM(H49:H53) -> 419584.968
C56: REMUNERACIÓN SUJETA A IMPUESTO | D56: $ | H56: =+Liquidacion!S86 -> 131605.032
C58: Tramo de alícuota artículo 90 ley gravamen | D58: % | H58: =impuestoAlicuota(Liquidacion!S86,0,12) -> 0.19
C59: Tramo de alícuota aplicable (sin incluir horas extras) | D59: % | H59: =Liquidacion!S89 -> 0.19
C60: IMPUESTO DETERMINADO | D60: $ | H60: =Liquidacion!S92 -> 15991.05608
C61: Impuesto retenido | D61: $ | H61: =SUM(Liquidacion!S99,Liquidacion!F99:Q99)+15991.06 -> 15991.06
C62: Pagos a cuenta | D62: $ | H62: =Liquidacion!S93 -> 0
C63: ="Saldo"&IF(H63>=0," (a favor de AFIP)"," (a favor del contribuyente)") -> Saldo (a favor del contribuyente) | D63: $ | H63: =+H60-H61+H62 -> -0.003919999988
C65: Se extiende el presente certificado para constancia del interesado
C66: =Datos!F33&", "&DAY(Datos!F34)&"/"&MONTH(Datos!F34)&"/"&YEAR(Datos!F34) -> , 31/12/2018
C67: Firma del responsable
C68: =Datos!F29&", "&Datos!F30 -> ,

Sheet ImpuestoTabla
B3: CÁLCULO DEL IMPUESTO DETERMINADO | I3: ESCALA DEL ART. 90
B5: • Período mensual/anual | J5: Ganancia neta imponible acumulada | L5: Pagarán $ | M5: Más el % | N5: Sobre el excedente
J6: Más de $ | K6: A $
I7: =IF(HLOOKUP($B$32,$D$31:$P$36,6,FALSE)=M7,1,0) -> 0 | J7: 0 | K7: =25754/12*IF($B$32=13,12,$B$32) -> 8584.666667 | L7: 0 | M7: 0.05 | N7: 0
B8: • Ganancia neta sujeta a impuesto (acumulado) | F8: =HLOOKUP(B32,D31:P35,3,FALSE) -> 35469.17733 | I8: 0 | J8: =25754/12*IF($B$32=13,12,$B$32) -> 8584.666667 | K8: =51508/12*IF($B$32=13,12,$B$32) -> 17169.33333 | L8: =1287.7/12*IF($B$32=13,12,$B$32) -> 429.2333333 | M8: 0.09 | N8: =25754/12*IF($B$32=13,12,$B$32) -> 8584.666667
I9: 0 | J9: =51508/12*IF($B$32=13,12,$B$32) -> 17169.33333 | K9: =77262/12*IF($B$32=13,12,$B$32) -> 25754 | L9: =3605.56/12*IF($B$32=13,12,$B$32) -> 1201.853333 | M9: 0.12 | N9: =51508/12*IF($B$32=13,12,$B$32) -> 17169.33333
B10: • Ganancia neta sujeta a impuesto - horas extras netas (acumulado) | F10: =IF(+HLOOKUP(B32,D31:P35,3,FALSE)-HLOOKUP(B32,D31:P35,5,FALSE)<0,0,+HLOOKUP(B32,D31:P35,3,FALSE)-HLOOKUP(B32,D31:P35,5,FALSE)) -> 35469.17733 | I10: 0 | J10: =77262/12*IF($B$32=13,12,$B$32) -> 25754 | K10: =103016/12*IF($B$32=13,12,$B$32) -> 34338.66667 | L10: =6696.04/12*IF($B$32=13,12,$B$32) -> 2232.013333 | M10: 0.15 | N10: =77262/12*IF($B$32=13,12,$B$32) -> 25754
I11: 1 | J11: =103016/12*IF($B$32=13,12,$B$32) -> 34338.66667 | K11: =154524/12*IF($B$32=13,12,$B$32) -> 51508 | L11: =10559.14/12*IF($B$32=13,12,$B$32) -> 3519.713333 | M11: 0.19 | N11: =103016/12*IF($B$32=13,12,$B$32) -> 34338.66667
B12: • Ganancia neta sujeta a impuesto detraidas las horas extras netas y las horas extras netas del SAC prorrateado (acumulado) | F12: =IF(+F10-HLOOKUP(B32,D31:P37,7,FALSE)<0,0,+F10-HLOOKUP(B32,D31:P37,7,FALSE)) -> 35469.17733 | I12: 0 | J12: =154524/12*IF($B$32=13,12,$B$32) -> 51508 | K12: =206032/12*IF($B$32=13,12,$B$32) -> 68677.33333 | L12: =20345.66/12*IF($B$32=13,12,$B$32) -> 6781.886667 | M12: 0.23 | N12: =154524/12*IF($B$32=13,12,$B$32) -> 51508
I13: 0 | J13: =206032/12*IF($B$32=13,12,$B$32) -> 68677.33333 | K13: =309048/12*IF($B$32=13,12,$B$32) -> 103016 | L13: =32192.5/12*IF($B$32=13,12,$B$32) -> 10730.83333 | M13: 0.27 | N13: =206032/12*IF($B$32=13,12,$B$32) -> 68677.33333
I14: 0 | J14: =309048/12*IF($B$32=13,12,$B$32) -> 103016 | K14: =412064/12*IF($B$32=13,12,$B$32) -> 137354.6667 | L14: =60006.82/12*IF($B$32=13,12,$B$32) -> 20002.27333 | M14: 0.31 | N14: =309048/12*IF($B$32=13,12,$B$32) -> 103016
B15: • Impuesto determinado | F15: =HLOOKUP(B32,D31:P32,2,FALSE) -> 3734.51036 | I15: 0 | J15: =412064/12*IF($B$32=13,12,$B$32) -> 137354.6667 | K15: en adelante | L15: =91941.78/12*IF($B$32=13,12,$B$32) -> 30647.26 | M15: 0.35 | N15: =412064/12*IF($B$32=13,12,$B$32) -> 137354.6667
B17: • Cálculo auxiliar | D17: =IF(F8=0,0,TEXT(VLOOKUP(1,I7:N15,4,FALSE),"$#.##0,00")&" + ("&TEXT(F8,"$#.##0,00")&" - "&TEXT(VLOOKUP(1,I7:N15,6,FALSE),"$#.##0,00")&") * "&VLOOKUP(1,$I$7:$N$15,5,FALSE)) -> $3.519,71 + ($35.469,18 - $34.338,67) * 0,19
B20: En el cálculo de las retenciones mensuales y a los fines del encuadre en el tramo correspondiente de la escala para determinar el impuesto, no se han tenido en cuenta las horas extras netas gravadas ni la doceava parte del SAC neto correspondiente a las mismas. A la fecha de cierre de la presente versión, esto no ha sido reglamentado.
B31: Mes | C31: 0 | D31: 1 | E31: 2 | F31: 3 | G31: 4 | H31: 5 | I31: 6 | J31: 7 | K31: 8 | L31: 9 | M31: 10 | N31: 11 | O31: 12 | P31: 13
B32: 4 | C32: 0 | D32: =Liquidacion!F92 -> 821.1662333 | E32: =Liquidacion!G92 -> 1642.332467 | F32: =Liquidacion!H92 -> 2463.4987 | G32: =Liquidacion!I92 -> 3734.51036 | H32: =Liquidacion!J92 -> 5052.5317 | I32: =Liquidacion!K92 -> 6541.394707 | J32: =Liquidacion!L92 -> 7954.257713 | K32: =Liquidacion!M92 -> 9367.12072 | L32: =Liquidacion!N92 -> 10779.98373 | M32: =Liquidacion!O92 -> 12192.84673 | N32: =Liquidacion!P92 -> 13947.39307 | O32: =Liquidacion!Q92 -> 15701.93941 | P32: =+Liquidacion!S92 -> 15991.05608 | Q32: Impuesto det
C33: =+C32 -> 0 | D33: =Liquidacion!F86 -> 8192.919333 | E33: =Liquidacion!G86 -> 16385.83867 | F33: =Liquidacion!H86 -> 24578.758 | G33: =Liquidacion!I86 -> 35469.17733 | H33: =Liquidacion!J86 -> 46359.59667 | I33: =Liquidacion!K86 -> 58149.18267 | J33: =Liquidacion!L86 -> 69538.76867 | K33: =Liquidacion!M86 -> 80928.35467 | L33: =Liquidacion!N86 -> 92317.94067 | M33: =Liquidacion!O86 -> 103707.5267 | N33: =Liquidacion!P86 -> 116895.446 | O33: =Liquidacion!Q86 -> 130083.3653 | P33: =+Liquidacion!S86 -> 131605.032 | Q33: GNSI
C34: =+C33 -> 0 | D34: =+IF(Check!$B$8="Ok",Ingresos!C30+Ingresos!C49,Ingresos!C31+Ingresos!C50) -> 0 | E34: =+IF(Check!$B$8="Ok",Ingresos!D30+Ingresos!D49,Ingresos!D31+Ingresos!D50) -> 0 | F34: =+IF(Check!$B$8="Ok",Ingresos!E30+Ingresos!E49,Ingresos!E31+Ingresos!E50) -> 0 | G34: =+IF(Check!$B$8="Ok",Ingresos!F30+Ingresos!F49,Ingresos!F31+Ingresos!F50) -> 0 | H34: =+IF(Check!$B$8="Ok",Ingresos!G30+Ingresos!G49,Ingresos!G31+Ingresos!G50) -> 0 | I34: =+IF(Check!$B$8="Ok",Ingresos!H30+Ingresos!H49,Ingresos!H31+Ingresos!H50) -> 0 | J34: =+IF(Check!$B$8="Ok",Ingresos!I30+Ingresos!I49,Ingresos!I31+Ingresos!I50) -> 0 | K34: =+IF(Check!$B$8="Ok",Ingresos!J30+Ingresos!J49,Ingresos!J31+Ingresos!J50) -> 0 | L34: =+IF(Check!$B$8="Ok",Ingresos!K30+Ingresos!K49,Ingresos!K31+Ingresos!K50) -> 0 | M34: =+IF(Check!$B$8="Ok",Ingresos!L30+Ingresos!L49,Ingresos!L31+Ingresos!L50) -> 0 | N34: =+IF(Check!$B$8="Ok",Ingresos!M30+Ingresos!M49,Ingresos!M31+Ingresos!M50) -> 0 | O34: =+IF(Check!$B$8="Ok",Ingresos!N30+Ingresos!N49,Ingresos!N31+Ingresos!N50) -> 0 | P34: =+O34 -> 0 | Q34: Hrs. extras
C35: 0 | D35: =+D34 -> 0 | E35: =+E34+D35 -> 0 | F35: =+F34+E35 -> 0 | G35: 0 | H35: =+H34+G35 -> 0 | I35: 0 | J35: 0 | K35: 0 | L35: 0 | M35: 0 | N35: 0 | O35: 0 | P35: =+O35 -> 0 | Q35: Hrs. extras (acumuladas
C36: 0 | D36: =+Liquidacion!F89 -> 0.15 | E36: =+Liquidacion!G89 -> 0.15 | F36: =+Liquidacion!H89 -> 0.15 | G36: =+Liquidacion!I89 -> 0.19 | H36: =+Liquidacion!J89 -> 0.19 | I36: =+Liquidacion!K89 -> 0.19 | J36: =+Liquidacion!L89 -> 0.19 | K36: =+Liquidacion!M89 -> 0.19 | L36: =+Liquidacion!N89 -> 0.19 | M36: =+Liquidacion!O89 -> 0.19 | N36: =+Liquidacion!P89 -> 0.19 | O36: =+Liquidacion!Q89 -> 0.19 | P36: =+Liquidacion!S89 -> 0.19 | Q36: Alícuota
D37: =Auxiliares!D236 -> 0 | E37: =Auxiliares!E236+D37 -> 0 | F37: =Auxiliares!F236+E37 -> 0 | G37: =Auxiliares!G236+F37 -> 0 | H37: =Auxiliares!H236+G37 -> 0 | I37: =Auxiliares!I236+H37 -> 0 | J37: =Auxiliares!J236+I37 -> 0 | K37: =Auxiliares!K236+J37 -> 0 | L37: =Auxiliares!L236+K37 -> 0 | M37: =Auxiliares!M236+L37 -> 0 | N37: =Auxiliares!N236+M37 -> 0 | O37: =Auxiliares!O236+N37 -> 0 | P37: =Auxiliares!P236+O37 -> 0 | Q37: Hrs. extras netas, parte del SAC
